Workbook

Sheet Base Line Rates
B2: Metrics encompass 2012-13 to 2014015 663+ 5v5 mins (390 FWDS --> 30 TMS * 13 Fwds per TM) | P2: Points
B3: Category (Min Rank/390) | C3: TOI/GAME | D3: UA CF60 | E3: UACA60 | F3: UA Corsi% | G3: G60 | H3: A60 | I3: P60 | J3: Sh60 | P3: Player | Q3: 2013-14 | R3: 2011-12 | S3: 2010-11 | T3: Avg
B4: 1st Line (90/390) | C4: 13.6 | D4: 57.8 | E4: 51 | F4: 52.5 | G4: 0.78 | H4: 1.12 | I4: 1.85 | J4: 8.2 | O4: 2nd | P4: 90th | Q4: 48 | R4: 51 | S4: 49 | T4: 49
B5: 2nd Line (180/390) | C5: 12.6 | D5: 54.8 | E5: 52.9 | F5: 50.8 | G5: 0.64 | H5: 0.91 | I5: 1.58 | J5: 7.1 | O5: 3rd | P5: 180th | Q5: 32 | R5: 32 | S5: 34 | T5: 33
B6: 3rd Line (270/390) | C6: 11.5 | D6: 51.3 | E6: 54.6 | F6: 48.6 | G6: 0.53 | H6: 0.74 | I6: 1.3 | J6: 6.2 | O6: 4th | P6: 270th | Q6: 20 | R6: 18 | S6: 20 | T6: 19
B7: 4th Line (360/390) | C7: 9.2 | D7: 45.1 | E7: 57.6 | F7: 45.2 | G7: 0.3 | H7: 0.47 | I7: 0.93 | J7: 4.7
P8: Goals
P9: Player | Q9: 2013-14 | R9: 2011-12 | S9: 2010-11 | T9: Avg
B10: Metrics encompass 2012-13 to 2014-15 874+ 5v5 mins (210 Dmen --> 30 tms * 7 dmen per Tm | O10: 1st | P10: 90th | Q10: 20 | R10: 20 | S10: 21 | T10: 20
B11: Category (Min Rank/390) | C11: TOI/GAME | D11: UA CF60 | E11: UACA60 | F11: UA Corsi% | G11: G60 | H11: A60 | I11: P60 | J11: Sh60 | K11: UA FF60 | L11: UA FA60 | M11: UA Fen% | O11: 2nd | P11: 180th | Q11: 13 | R11: 14 | S11: 14 | T11: 14
B12: Top Pair (60/120) | C12: 16.9 | D12: 55.1 | E12: 51.2 | F12: 51.6 | I12: 0.83 | K12: 41.2 | L12: 38.5 | M12: 51.5 | O12: 3rd | P12: 270th | Q12: 8 | R12: 7 | S12: 8 | T12: 8
B13: Top 4 Pair (120/210) | C13: 15.7 | D13: 52.6 | E13: 53.6 | F13: 49.3 | I13: 0.67 | K13: 39.5 | L13: 40.5 | M13: 49.5
B14: Bottom Pair (180/210) | C14: 14.2 | D14: 49.2 | E14: 57.7 | F14: 47 | I14: 0.51 | K14: 37 | L14: 43.1 | M14: 47.1
Q15: G/60 | S15: A/60 | U15: Pts/60 | W15: SOG/60
B16: Line - 2014-15 - Per 60 | C16: TOI | D16: G | E16: A1 | F16: A2 | G16: PTS | K16: Corsi% | L16: P/60 | Q16: Mean | R16: Median | S16: Mean | T16: Median | U16: Mean | V16: Median | W16: Mean | X16: Median
B17: 1st line | C17: 14.53655556 | D17: 0.792 | E17: 0.7202222222 | F17: 0.4418888889 | G17: 1.954666667 | J17: 1st | K17: 0.518 | L17: 2 | P17: 1st | Q17: 0.88 | R17: 0.85 | S17: 1.24 | T17: 1.19 | U17: 2.12 | V17: 2.07
B18: 2nd line | C18: 13.24733333 | D18: 0.7422222222 | E18: 0.6074444444 | F18: 0.3964444444 | G18: 1.746222222 | J18: 2nd | K18: 0.505 | L18: 1.7 | P18: 2nd | Q18: 0.76 | R18: 0.75 | S18: 1 | T18: 0.98 | U18: 1.76 | V18: 1.72
B19: 3rd line | C19: 11.881 | D19: 0.6767777778 | E19: 0.5291111111 | F19: 0.3598888889 | G19: 1.567222222 | J19: 3rd | K19: 0.493 | L19: 1.5 | P19: 3rd | Q19: 0.61 | R19: 0.59 | S19: 0.86 | T19: 0.83 | U19: 1.48 | V19: 1.46
B20: 4th line | C20: 9.704942529 | D20: 0.4317241379 | E20: 0.3597701149 | F20: 0.263908046 | G20: 1.056091954 | J20: 4th | K20: 0.481 | L20: 1 | P20: 4th | Q20: 0.44 | R20: 0.41 | S20: 0.63 | T20: 0.58 | U20: 1.08 | V20: 1.04
B21: 2014-15 5v5 base lines
B22: Line - 2014-15 - Per 60 | C22: TOI | D22: G | E22: A1 | F22: A2 | G22: PTS
B23: 1st pair | C23: 18.375 | D23: 0.2091666667 | E23: 0.28 | F23: 0.3518333333 | G23: 0.8398333333
B24: 2nd pair | C24: 16.43083333 | D24: 0.1951666667 | E24: 0.2738333333 | F24: 0.3651666667 | G24: 0.835 | P24: LINE | Q24: TOI/60 | R24: IGP | S24: IAP | T24: IPP | V24: LINE | W24: TOI/60 | X24: IGP | Y24: IAP | Z24: IPP
B25: 3rd pair | C25: 14.29461538 | D25: 0.16 | E25: 0.2335897436 | F25: 0.2953846154 | G25: 0.6894871795 | P25: 1st | Q25: 0.7722942387 | R25: 28.28111111 | S25: 43.35111111 | T25: 71.63555556 | V25: 1st | W25: 0.9749693287 | X25: 8.238333333 | Y25: 25.92833333 | Z25: 34.16166667
P26: 2nd | Q26: 0.6750174897 | R26: 28.73111111 | S26: 38.74777778 | T26: 67.48555556 | V26: 2nd | W26: 0.7868900463 | X26: 8.461666667 | Y26: 25.33166667 | Z26: 33.80333333
B27: LINE | C27: TOI/60 | D27: G/60 | E27: A1/60 | F27: A2/60 | G27: P/60 | P27: 3rd | Q27: 0.566905607 | R27: 26.73888889 | S27: 40.32 | T27: 67.06777778 | V27: 3rd | W27: 0.6059033565 | X27: 7.2 | Y27: 24.27333333 | Z27: 31.47333333
B28: 1st | C28: 2.712666667 | D28: 2.044555556 | E28: 1.568 | F28: 1.411444444 | G28: 5.025222222 | P28: 4th | Q28: 0.4629152698 | R28: 28.68666667 | S28: 37.20333333 | T28: 65.89
B29: 2nd | C29: 2.287341772 | D29: 0.9601265823 | E29: 0.9262025316 | F29: 0.7449367089 | G29: 2.631392405
B30: 2014-15 PP base lines | P30: LINE | Q30: TOI/60 | R30: SOG/60 | S30: iFen/60 | T30: iCorsi/60
B31: LINE | C31: TOI/60 | D31: G/60 | E31: A1/60 | F31: A2/60 | G31: P/60 | P31: 1st | Q31: 0.7722942387 | R31: 7.406111111 | S31: 10.06455556 | T31: 13.08022222
B32: 1st | C32: 2.647333333 | D32: 0.8485 | E32: 1.559166667 | F32: 1.5795 | G32: 3.987 | P32: 2nd | Q32: 0.6750174897 | R32: 7.365555556 | S32: 10.01877778 | T32: 12.83488889
B33: 2nd | C33: 2.193888889 | D33: 0.44 | E33: 0.5833333333 | F33: 0.6383333333 | G33: 1.661111111 | P33: 3rd | Q33: 0.566905607 | R33: 6.682666667 | S33: 9.088555556 | T33: 11.69722222
P34: 4th | Q34: 0.4629152698 | R34: 6.563111111 | S34: 9.088666667 | T34: 11.55877778
B36: Dmen - Per 60 | C36: G | D36: A | E36: A1 | F36: A2 | G36: PTS | H36: Total Time | P36: LINE | Q36: CF60 | R36: CA60 | S36: CF% | T36: CPDO | U36: CF% RelTM
B37: =H37/60 -> 0.8084837963 | C37: 0.21 | D37: 0.624 | E37: 0.27 | G37: 0.83 | H37: 48.50902778 | P37: 1st | Q37: 57.60288889 | R37: 54.46188889 | S37: 51.41333333 | T37: 100.12 | U37: 2.164444444
B38: =H38/60 -> 0.654849537 | C38: 0.18 | D38: 0.54 | E38: 0.23 | G38: 0.72 | H38: 39.29097222 | P38: 2nd | Q38: 56.79622222 | R38: 53.45688889 | S38: 50.48333333 | T38: 100.17 | U38: 0.8488888889
B39: =H39/60 -> 0.4951273148 | C39: 0.18 | D39: 0.57 | E39: 0.25 | G39: 0.75 | H39: 29.70763889 | P39: 3rd | Q39: 52.49422222 | R39: 54.85944444 | S39: 48.81222222 | T39: 99.99777778 | U39: -0.6588888889
P40: 4th | Q40: 50.8737931 | R40: 54.28877778 | S40: 48.34222222 | T40: 99.66888889 | U40: -1.052222222
B41: Fwds - Per 60 | C41: G | D41: A | E41: A1 | F41: A2 | G41: PTS | H41: Total Time
B42: =H42/60 -> 0.6404050926 | C42: 0.71 | D42: 1.07 | E42: 0.65 | G42: 1.77 | H42: 38.42430556 | P42: LINE | Q42: TOI/60 | R42: min/iFenwick | S42: min/iCorsi | U42: LINE | V42: TOI/60 | W42: min/iFenwick | X42: min/iCorsi
B43: =H43/60 -> 0.5588078704 | C43: 0.74 | D43: 0.99 | E43: 0.61 | G43: 1.73 | H43: 33.52847222 | P43: 1st | Q43: 0.7722942387 | R43: 0.2673800926 | S43: 0.2061678318 | U43: 1st | V43: 0.9749693287 | W43: 0.4613915948 | X43: 0.2993546509
B44: =H44/60 -> 0.4698611111 | C44: 0.57 | D44: 0.85 | E44: 0.49 | G44: 1.42 | H44: 28.19166667 | P44: 2nd | Q44: 0.6750174897 | R44: 0.2624773806 | S44: 0.2053600338 | U44: 2nd | V44: 0.7868900463 | W44: 0.4442409748 | X44: 0.2871724348
B45: =H45/60 -> 0.3536574074 | C45: 0.55 | D45: 0.7 | E45: 0.42 | G45: 1.25 | H45: 21.21944444 | P45: 3rd | Q45: 0.566905607 | R45: 0.2938581232 | S45: 0.2281330776 | U45: 3rd | V45: 0.6059033565 | W45: 0.4924185567 | X45: 0.3232490007
P46: 4th | Q46: 0.4629152698 | R46: 0.2935695109 | S46: 0.2299539605

Sheet Base Rates
A1: NOTES | B1: 5v5
A2: Category | B2: G | C2: A1 | D2: A2 | E2: A | F2: P | G2: P1 | H2: G60 | I2: A160 | J2: A260 | K2: A60 | L2: P60 | M2: P160 | N2: iCF | O2: CF/60 | P2: SOG | Q2: SOG/60 | R2: Sh% | S2: TOI/Gm | T2: CF | U2: CA | V2: CF60 | W2: CA60 | X2: CF% | Y2: SF | Z2: SA | AA2: SF60 | AB2: SA60 | AC2: SF% | AD2: OISh% | AE2: Sv% | AF2: PDO | AG2: GF | AH2: GA | AI2: GF60 | AJ2: GA60 | AK2: GF%
A3: 1st Line | B3: =AVERAGE('5v5'!F2:F91) -> 13.61111111 | C3: =AVERAGE('5v5'!G2:G91) -> 11.6 | D3: =AVERAGE('5v5'!H2:H91) -> 7.211111111 | E3: =AVERAGE('5v5'!I2:I91) -> 18.81111111 | F3: =AVERAGE('5v5'!J2:J91) -> 32.42222222 | G3: =AVERAGE('5v5'!K2:K91) -> 25.21111111 | H3: =AVERAGE('5v5'!L2:L91) -> 0.7727777778 | I3: =AVERAGE('5v5'!M2:M91) -> 0.6604444444 | J3: =AVERAGE('5v5'!N2:N91) -> 0.4146666667 | K3: =AVERAGE('5v5'!O2:O91) -> 1.075444444 | L3: =AVERAGE('5v5'!P2:P91) -> 1.848333333 | M3: =AVERAGE('5v5'!Q2:Q91) -> 1.433 | N3: =AVERAGE('5v5'!R2:R91) -> 232.5777778 | O3: =AVERAGE('5v5'!S2:S91) -> 13.22077778 | P3: =AVERAGE('5v5'!T2:T91) -> 133.2333333 | Q3: =AVERAGE('5v5'!U2:U91) -> 7.586888889 | R3: =AVERAGE('5v5'!V2:V91) -> 10.33044444 | S3: =AVERAGE('5v5'!W2:W91) -> 13.99563867 | T3: =AVERAGE('5v5'!X2:X91) -> 1023.833 | U3: =AVERAGE('5v5'!Y2:Y91) -> 959.0302222 | V3: =AVERAGE('5v5'!Z2:Z91) -> 58.36655556 | W3: =AVERAGE('5v5'!AA2:AA91) -> 54.90144444 | X3: =AVERAGE('5v5'!AB2:AB91) -> 51.49788889 | Y3: =AVERAGE('5v5'!AC2:AC91) -> 548.8861111 | Z3: =AVERAGE('5v5'!AD2:AD91) -> 512.7717778 | AA3: =AVERAGE('5v5'!AE2:AE91) -> 31.32366667 | AB3: =AVERAGE('5v5'!AF2:AF91) -> 29.38566667 | AC3: =AVERAGE('5v5'!AG2:AG91) -> 51.58888889 | AD3: =AVERAGE('5v5'!AH2:AH91) -> 8.198222222 | AE3: =AVERAGE('5v5'!AI2:AI91) -> 92.40666667 | AF3: =AVERAGE('5v5'!AJ2:AJ91) -> 100.6043333 | AG3: =AVERAGE('5v5'!AK2:AK91) -> 45.07555556 | AH3: =AVERAGE('5v5'!AL2:AL91) -> 38.96022222 | AI3: =AVERAGE('5v5'!AM2:AM91) -> 2.566555556 | AJ3: =AVERAGE('5v5'!AN2:AN91) -> 2.236777778 | AK3: =AVERAGE('5v5'!AO2:AO91) -> 53.33933333
A4: 2nd Line | B4: =AVERAGE('5v5'!F92:F181) -> 10.4 | C4: =AVERAGE('5v5'!G92:G181) -> 8.366666667 | D4: =AVERAGE('5v5'!H92:H181) -> 6.1 | E4: =AVERAGE('5v5'!I92:I181) -> 14.46666667 | F4: =AVERAGE('5v5'!J92:J181) -> 24.86666667 | G4: =AVERAGE('5v5'!K92:K181) -> 18.76666667 | H4: =AVERAGE('5v5'!L92:L181) -> 0.7051111111 | I4: =AVERAGE('5v5'!M92:M181) -> 0.5635555556 | J4: =AVERAGE('5v5'!N92:N181) -> 0.4165555556 | K4: =AVERAGE('5v5'!O92:O181) -> 0.9798888889 | L4: =AVERAGE('5v5'!P92:P181) -> 1.684111111 | M4: =AVERAGE('5v5'!Q92:Q181) -> 1.268333333 | N4: =AVERAGE('5v5'!R92:R181) -> 190.8555556 | O4: =AVERAGE('5v5'!S92:S181) -> 13.07211111 | P4: =AVERAGE('5v5'!T92:T181) -> 109.0333333 | Q4: =AVERAGE('5v5'!U92:U181) -> 7.449 | R4: =AVERAGE('5v5'!V92:V181) -> 9.592 | S4: =AVERAGE('5v5'!W92:W181) -> 12.83457582 | T4: =AVERAGE('5v5'!X92:X181) -> 845.255 | U4: =AVERAGE('5v5'!Y92:Y181) -> 804.4925556 | V4: =AVERAGE('5v5'!Z92:Z181) -> 57.51355556 | W4: =AVERAGE('5v5'!AA92:AA181) -> 54.78644444 | X4: =AVERAGE('5v5'!AB92:AB181) -> 51.14511111 | Y4: =AVERAGE('5v5'!AC92:AC181) -> 447.7364444 | Z4: =AVERAGE('5v5'!AD92:AD181) -> 432.6684444 | AA4: =AVERAGE('5v5'!AE92:AE181) -> 30.30544444 | AB4: =AVERAGE('5v5'!AF92:AF181) -> 29.41033333 | AC4: =AVERAGE('5v5'!AG92:AG181) -> 50.72344444 | AD4: =AVERAGE('5v5'!AH92:AH181) -> 8.030444444 | AE4: =AVERAGE('5v5'!AI92:AI181) -> 92.43866667 | AF4: =AVERAGE('5v5'!AJ92:AJ181) -> 100.468 | AG4: =AVERAGE('5v5'!AK92:AK181) -> 36.12511111 | AH4: =AVERAGE('5v5'!AL92:AL181) -> 32.57 | AI4: =AVERAGE('5v5'!AM92:AM181) -> 2.431555556 | AJ4: =AVERAGE('5v5'!AN92:AN181) -> 2.210777778 | AK4: =AVERAGE('5v5'!AO92:AO181) -> 52.21044444
A5: 3rd Line | B5: =AVERAGE('5v5'!F182:F271) -> 7.033333333 | C5: =AVERAGE('5v5'!G182:G271) -> 6.022222222 | D5: =AVERAGE('5v5'!H182:H271) -> 4.122222222 | E5: =AVERAGE('5v5'!I182:I271) -> 10.14444444 | F5: =AVERAGE('5v5'!J182:J271) -> 17.17777778 | G5: =AVERAGE('5v5'!K182:K271) -> 13.05555556 | H5: =AVERAGE('5v5'!L182:L271) -> 0.5626666667 | I5: =AVERAGE('5v5'!M182:M271) -> 0.4664444444 | J5: =AVERAGE('5v5'!N182:N271) -> 0.3096666667 | K5: =AVERAGE('5v5'!O182:O271) -> 0.7761111111 | L5: =AVERAGE('5v5'!P182:P271) -> 1.338111111 | M5: =AVERAGE('5v5'!Q182:Q271) -> 1.028888889 | N5: =AVERAGE('5v5'!R182:R271) -> 143.4333333 | O5: =AVERAGE('5v5'!S182:S271) -> 11.84933333 | P5: =AVERAGE('5v5'!T182:T271) -> 82.83333333 | Q5: =AVERAGE('5v5'!U182:U271) -> 6.836444444 | R5: =AVERAGE('5v5'!V182:V271) -> 8.483333333 | S5: =AVERAGE('5v5'!W182:W271) -> 11.83823145 | T5: =AVERAGE('5v5'!X182:X271) -> 665.076 | U5: =AVERAGE('5v5'!Y182:Y271) -> 669.6131111 | V5: =AVERAGE('5v5'!Z182:Z271) -> 54.69166667 | W5: =AVERAGE('5v5'!AA182:AA271) -> 55.17911111 | X5: =AVERAGE('5v5'!AB182:AB271) -> 49.77655556 | Y5: =AVERAGE('5v5'!AC182:AC271) -> 357.2732222 | Z5: =AVERAGE('5v5'!AD182:AD271) -> 357.4183333 | AA5: =AVERAGE('5v5'!AE182:AE271) -> 29.14311111 | AB5: =AVERAGE('5v5'!AF182:AF271) -> 29.62633333 | AC5: =AVERAGE('5v5'!AG182:AG271) -> 49.62022222 | AD5: =AVERAGE('5v5'!AH182:AH271) -> 7.225333333 | AE5: =AVERAGE('5v5'!AI182:AI271) -> 92.515 | AF5: =AVERAGE('5v5'!AJ182:AJ271) -> 99.74055556 | AG5: =AVERAGE('5v5'!AK182:AK271) -> 26.29677778 | AH5: =AVERAGE('5v5'!AL182:AL271) -> 27.27644444 | AI5: =AVERAGE('5v5'!AM182:AM271) -> 2.104555556 | AJ5: =AVERAGE('5v5'!AN182:AN271) -> 2.222555556 | AK5: =AVERAGE('5v5'!AO182:AO271) -> 48.278
A6: 4th Line | B6: =AVERAGE('5v5'!F272:F371) -> 4.37 | C6: =AVERAGE('5v5'!G272:G371) -> 3.37 | D6: =AVERAGE('5v5'!H272:H371) -> 2.52 | E6: =AVERAGE('5v5'!I272:I371) -> 5.89 | F6: =AVERAGE('5v5'!J272:J371) -> 10.26 | G6: =AVERAGE('5v5'!K272:K371) -> 7.74 | H6: =AVERAGE('5v5'!L272:L371) -> 0.4624 | I6: =AVERAGE('5v5'!M272:M371) -> 0.3329 | J6: =AVERAGE('5v5'!N272:N371) -> 0.2689 | K6: =AVERAGE('5v5'!O272:O371) -> 0.6018 | L6: =AVERAGE('5v5'!P272:P371) -> 1.064 | M6: =AVERAGE('5v5'!Q272:Q371) -> 0.7953 | N6: =AVERAGE('5v5'!R272:R371) -> 101.35 | O6: =AVERAGE('5v5'!S272:S371) -> 11.242 | P6: =AVERAGE('5v5'!T272:T371) -> 59.12 | Q6: =AVERAGE('5v5'!U272:U371) -> 6.5482 | R6: =AVERAGE('5v5'!V272:V371) -> 7.2209 | S6: =AVERAGE('5v5'!W272:W371) -> 10.7109693 | T6: =AVERAGE('5v5'!X272:X371) -> 471.8225 | U6: =AVERAGE('5v5'!Y272:Y371) -> 501.3161 | V6: =AVERAGE('5v5'!Z272:Z371) -> 51.5132 | W6: =AVERAGE('5v5'!AA272:AA371) -> 55.3924 | X6: =AVERAGE('5v5'!AB272:AB371) -> 48.1472 | Y6: =AVERAGE('5v5'!AC272:AC371) -> 250.5159 | Z6: =AVERAGE('5v5'!AD272:AD371) -> 265.772 | AA6: =AVERAGE('5v5'!AE272:AE371) -> 27.377 | AB6: =AVERAGE('5v5'!AF272:AF371) -> 29.4071 | AC6: =AVERAGE('5v5'!AG272:AG371) -> 48.2098 | AD6: =AVERAGE('5v5'!AH272:AH371) -> 6.5235 | AE6: =AVERAGE('5v5'!AI272:AI371) -> 92.4877 | AF6: =AVERAGE('5v5'!AJ272:AJ371) -> 99.0113 | AG6: =AVERAGE('5v5'!AK272:AK371) -> 16.5059 | AH6: =AVERAGE('5v5'!AL272:AL371) -> 19.3015 | AI6: =AVERAGE('5v5'!AM272:AM371) -> 1.775 | AJ6: =AVERAGE('5v5'!AN272:AN371) -> 2.1986 | AK6: =AVERAGE('5v5'!AO272:AO371) -> 44.4139
A9: Category | B9: G | C9: A1 | D9: A2 | E9: A | F9: P | G9: P1 | H9: G60 | I9: A160 | J9: A260 | K9: A60 | L9: P60 | M9: P160 | N9: iCF | O9: iCF60 | P9: iSF | Q9: iSF60 | R9: iSh% | S9: TOI/60 | T9: CF | U9: CA | V9: CF60 | W9: CA60 | X9: CF% | Y9: SF | Z9: SA | AA9: SF60 | AB9: SA60 | AC9: SF% | AD9: OISh% | AE9: Sv% | AF9: PDO | AG9: GF | AH9: GA | AI9: GF60 | AJ9: GA60 | AK9: GF%
A10: 1st Pair | B10: =AVERAGE('5v5'!AV2:AV61) -> 4.45 | C10: =AVERAGE('5v5'!AW2:AW61) -> 7.2 | D10: =AVERAGE('5v5'!AX2:AX61) -> 7.15 | E10: =AVERAGE('5v5'!AY2:AY61) -> 14.35 | F10: =AVERAGE('5v5'!AZ2:AZ61) -> 18.8 | G10: =AVERAGE('5v5'!BA2:BA61) -> 11.65 | H10: =AVERAGE('5v5'!BB2:BB61) -> 0.1906666667 | I10: =AVERAGE('5v5'!BC2:BC61) -> 0.3116666667 | J10: =AVERAGE('5v5'!BD2:BD61) -> 0.3095 | K10: =AVERAGE('5v5'!BE2:BE61) -> 0.6218333333 | L10: =AVERAGE('5v5'!BF2:BF61) -> 0.8131666667 | M10: =AVERAGE('5v5'!BG2:BG61) -> 0.5033333333 | N10: =AVERAGE('5v5'!BH2:BH61) -> 222.6833333 | O10: =AVERAGE('5v5'!BI2:BI61) -> 9.639666667 | P10: =AVERAGE('5v5'!BJ2:BJ61) -> 101.0333333 | Q10: =AVERAGE('5v5'!BK2:BK61) -> 4.372833333 | R10: =AVERAGE('5v5'!BL2:BL61) -> 4.259 | S10: =AVERAGE('5v5'!BM2:BM61) -> 17.36379358 | T10: =AVERAGE('5v5'!BN2:BN61) -> 1299.521833 | U10: =AVERAGE('5v5'!BO2:BO61) -> 1263.5015 | V10: =AVERAGE('5v5'!BP2:BP61) -> 56.392 | W10: =AVERAGE('5v5'!BQ2:BQ61) -> 54.842 | X10: =AVERAGE('5v5'!BR2:BR61) -> 50.6545 | Y10: =AVERAGE('5v5'!BS2:BS61) -> 697.8241667 | Z10: =AVERAGE('5v5'!BT2:BT61) -> 670.7065 | AA10: =AVERAGE('5v5'!BU2:BU61) -> 30.29316667 | AB10: =AVERAGE('5v5'!BV2:BV61) -> 29.1285 | AC10: =AVERAGE('5v5'!BW2:BW61) -> 50.98033333 | AD10: =AVERAGE('5v5'!BX2:BX61) -> 7.495 | AE10: =AVERAGE('5v5'!BY2:BY61) -> 92.48283333 | AF10: =AVERAGE('5v5'!BZ2:BZ61) -> 99.977 | AG10: =AVERAGE('5v5'!CA2:CA61) -> 52.21416667 | AH10: =AVERAGE('5v5'!CB2:CB61) -> 50.58266667 | AI10: =AVERAGE('5v5'!CC2:CC61) -> 2.264833333 | AJ10: =AVERAGE('5v5'!CD2:CD61) -> 2.1945 | AK10: =AVERAGE('5v5'!CE2:CE61) -> 50.802
A11: 2nd Pair | B11: =AVERAGE('5v5'!AV62:AV121) -> 3.516666667 | C11: =AVERAGE('5v5'!AW62:AW121) -> 4.95 | D11: =AVERAGE('5v5'!AX62:AX121) -> 5.616666667 | E11: =AVERAGE('5v5'!AY62:AY121) -> 10.56666667 | F11: =AVERAGE('5v5'!AZ62:AZ121) -> 14.08333333 | G11: =AVERAGE('5v5'!BA62:BA121) -> 8.466666667 | H11: =AVERAGE('5v5'!BB62:BB121) -> 0.1833333333 | I11: =AVERAGE('5v5'!BC62:BC121) -> 0.2571666667 | J11: =AVERAGE('5v5'!BD62:BD121) -> 0.2931666667 | K11: =AVERAGE('5v5'!BE62:BE121) -> 0.5505 | L11: =AVERAGE('5v5'!BF62:BF121) -> 0.734 | M11: =AVERAGE('5v5'!BG62:BG121) -> 0.4403333333 | N11: =AVERAGE('5v5'!BH62:BH121) -> 179.3 | O11: =AVERAGE('5v5'!BI62:BI121) -> 9.355 | P11: =AVERAGE('5v5'!BJ62:BJ121) -> 81.45 | Q11: =AVERAGE('5v5'!BK62:BK121) -> 4.249333333 | R11: =AVERAGE('5v5'!BL62:BL121) -> 4.308833333 | S11: =AVERAGE('5v5'!BM62:BM121) -> 16.02676278 | T11: =AVERAGE('5v5'!BN62:BN121) -> 1046.874667 | U11: =AVERAGE('5v5'!BO62:BO121) -> 1057.799 | V11: =AVERAGE('5v5'!BP62:BP121) -> 54.75316667 | W11: =AVERAGE('5v5'!BQ62:BQ121) -> 55.3425 | X11: =AVERAGE('5v5'!BR62:BR121) -> 49.73816667 | Y11: =AVERAGE('5v5'!BS62:BS121) -> 555.6998333 | Z11: =AVERAGE('5v5'!BT62:BT121) -> 564.0186667 | AA11: =AVERAGE('5v5'!BU62:BU121) -> 29.06933333 | AB11: =AVERAGE('5v5'!BV62:BV121) -> 29.528 | AC11: =AVERAGE('5v5'!BW62:BW121) -> 49.622 | AD11: =AVERAGE('5v5'!BX62:BX121) -> 7.7165 | AE11: =AVERAGE('5v5'!BY62:BY121) -> 92.56766667 | AF11: =AVERAGE('5v5'!BZ62:BZ121) -> 100.285 | AG11: =AVERAGE('5v5'!CA62:CA121) -> 42.75966667 | AH11: =AVERAGE('5v5'!CB62:CB121) -> 41.852 | AI11: =AVERAGE('5v5'!CC62:CC121) -> 2.236666667 | AJ11: =AVERAGE('5v5'!CD62:CD121) -> 2.194 | AK11: =AVERAGE('5v5'!CE62:CE121) -> 50.36316667
A12: 3rd Pair | B12: =AVERAGE('5v5'!AV122:AV181) -> 1.85 | C12: =AVERAGE('5v5'!AW122:AW181) -> 3.016666667 | D12: =AVERAGE('5v5'!AX122:AX181) -> 3.483333333 | E12: =AVERAGE('5v5'!AY122:AY181) -> 6.5 | F12: =AVERAGE('5v5'!AZ122:AZ181) -> 8.35 | G12: =AVERAGE('5v5'!BA122:BA181) -> 4.866666667 | H12: =AVERAGE('5v5'!BB122:BB181) -> 0.1288333333 | I12: =AVERAGE('5v5'!BC122:BC181) -> 0.2103333333 | J12: =AVERAGE('5v5'!BD122:BD181) -> 0.2451666667 | K12: =AVERAGE('5v5'!BE122:BE181) -> 0.4541666667 | L12: =AVERAGE('5v5'!BF122:BF181) -> 0.5838333333 | M12: =AVERAGE('5v5'!BG122:BG181) -> 0.3391666667 | N12: =AVERAGE('5v5'!BH122:BH181) -> 120.25 | O12: =AVERAGE('5v5'!BI122:BI181) -> 8.4845 | P12: =AVERAGE('5v5'!BJ122:BJ181) -> 53.46666667 | Q12: =AVERAGE('5v5'!BK122:BK181) -> 3.755 | R12: =AVERAGE('5v5'!BL122:BL181) -> 3.411833333 | S12: =AVERAGE('5v5'!BM122:BM181) -> 14.43614073 | T12: =AVERAGE('5v5'!BN122:BN181) -> 760.6163333 | U12: =AVERAGE('5v5'!BO122:BO181) -> 785.4096667 | V12: =AVERAGE('5v5'!BP122:BP181) -> 53.86966667 | W12: =AVERAGE('5v5'!BQ122:BQ181) -> 55.69866667 | X12: =AVERAGE('5v5'!BR122:BR181) -> 49.15683333 | Y12: =AVERAGE('5v5'!BS122:BS181) -> 404.4193333 | Z12: =AVERAGE('5v5'!BT122:BT181) -> 423.0595 | AA12: =AVERAGE('5v5'!BU122:BU181) -> 28.62366667 | AB12: =AVERAGE('5v5'!BV122:BV181) -> 30.02183333 | AC12: =AVERAGE('5v5'!BW122:BW181) -> 48.81883333 | AD12: =AVERAGE('5v5'!BX122:BX181) -> 7.3835 | AE12: =AVERAGE('5v5'!BY122:BY181) -> 92.59683333 | AF12: =AVERAGE('5v5'!BZ122:BZ181) -> 99.981 | AG12: =AVERAGE('5v5'!CA122:CA181) -> 29.81933333 | AH12: =AVERAGE('5v5'!CB122:CB181) -> 31.14216667 | AI12: =AVERAGE('5v5'!CC122:CC181) -> 2.115166667 | AJ12: =AVERAGE('5v5'!CD122:CD181) -> 2.205833333 | AK12: =AVERAGE('5v5'!CE122:CE181) -> 48.79333333
A15: NOTES | B15: 5v4
A16: Category | B16: G | C16: A1 | D16: A2 | E16: A | F16: P | G16: P1 | H16: G60 | I16: A160 | J16: A260 | K16: A60 | L16: P60 | M16: P160 | N16: iCF | O16: iCF60 | P16: iSF | Q16: iSF60 | R16: iSh% | S16: CF | T16: CF60 | U16: SF | V16: SF60 | W16: SF% | X16: OISh% | Y16: Sv% | Z16: PDO | AA16: GF | AB16: GF60
A17: 1st PP Unit | B17: =AVERAGE('5v4'!G2:G91) -> 6 | C17: =AVERAGE('5v4'!H2:H91) -> 5.311111111 | D17: =AVERAGE('5v4'!I2:I91) -> 4.655555556 | E17: =AVERAGE('5v4'!J2:J91) -> 9.966666667 | F17: =AVERAGE('5v4'!K2:K91) -> 15.96666667 | G17: =AVERAGE('5v4'!L2:L91) -> 11.31111111 | H17: =AVERAGE('5v4'!M2:M91) -> 1.575444444 | I17: =AVERAGE('5v4'!N2:N91) -> 1.404444444 | J17: =AVERAGE('5v4'!O2:O91) -> 1.245333333 | K17: =AVERAGE('5v4'!P2:P91) -> 2.649888889 | L17: =AVERAGE('5v4'!Q2:Q91) -> 4.225 | M17: =AVERAGE('5v4'!R2:R91) -> 2.979777778 | N17: =AVERAGE('5v4'!S2:S91) -> 73.93333333 | O17: =AVERAGE('5v4'!T2:T91) -> 19.37722222 | P17: =AVERAGE('5v4'!U2:U91) -> 40.87777778 | Q17: =AVERAGE('5v4'!V2:V91) -> 10.719 | R17: =AVERAGE('5v4'!W2:W91) -> 15.15877778 | S17: =AVERAGE('5v4'!X2:X91) -> 376.3888889 | T17: =AVERAGE('5v4'!Y2:Y91) -> 99.34955556 | U17: =AVERAGE('5v4'!AC2:AC91) -> 199.4555556 | V17: =AVERAGE('5v4'!AD2:AD91) -> 52.60266667 | W17: =AVERAGE('5v4'!AE2:AE91) -> 86.49766667 | X17: =AVERAGE('5v4'!AF2:AF91) -> 12.77777778 | Y17: =AVERAGE('5v4'!AG2:AG91) -> 90.92588889 | Z17: =AVERAGE('5v4'!AH2:AH91) -> 103.7028889 | AA17: =AVERAGE('5v4'!AI2:AI91) -> 25.48888889 | AB17: =AVERAGE('5v4'!AJ2:AJ91) -> 6.724222222
A18: 2nd PP Unit | B18: =AVERAGE('5v4'!G92:G181) -> 3.588888889 | C18: =AVERAGE('5v4'!H92:H181) -> 2.7 | D18: =AVERAGE('5v4'!I92:I181) -> 2.555555556 | E18: =AVERAGE('5v4'!J92:J181) -> 5.255555556 | F18: =AVERAGE('5v4'!K92:K181) -> 8.844444444 | G18: =AVERAGE('5v4'!L92:L181) -> 6.288888889 | H18: =AVERAGE('5v4'!M92:M181) -> 1.288888889 | I18: =AVERAGE('5v4'!N92:N181) -> 0.9951111111 | J18: =AVERAGE('5v4'!O92:O181) -> 0.9477777778 | K18: =AVERAGE('5v4'!P92:P181) -> 1.943222222 | L18: =AVERAGE('5v4'!Q92:Q181) -> 3.231222222 | M18: =AVERAGE('5v4'!R92:R181) -> 2.283666667 | N18: =AVERAGE('5v4'!S92:S181) -> 42.12222222 | O18: =AVERAGE('5v4'!T92:T181) -> 15.35611111 | P18: =AVERAGE('5v4'!U92:U181) -> 24.63333333 | Q18: =AVERAGE('5v4'!V92:V181) -> 8.960777778 | R18: =AVERAGE('5v4'!W92:W181) -> 14.98133333 | S18: =AVERAGE('5v4'!X92:X181) -> 241.9444444 | T18: =AVERAGE('5v4'!Y92:Y181) -> 88.61611111 | U18: =AVERAGE('5v4'!AC92:AC181) -> 128.0222222 | V18: =AVERAGE('5v4'!AD92:AD181) -> 46.83188889 | W18: =AVERAGE('5v4'!AE92:AE181) -> 86.38122222 | X18: =AVERAGE('5v4'!AF92:AF181) -> 12.29988889 | Y18: =AVERAGE('5v4'!AG92:AG181) -> 90.73666667 | Z18: =AVERAGE('5v4'!AH92:AH181) -> 103.0355556 | AA18: =AVERAGE('5v4'!AI92:AI181) -> 15.76666667 | AB18: =AVERAGE('5v4'!AJ92:AJ181) -> 5.757
A21: Category | B21: G | C21: A1 | D21: A2 | E21: A | F21: P | G21: P1 | H21: G60 | I21: A160 | J21: A260 | K21: A60 | L21: P60 | M21: P160 | N21: iCF | O21: iCF60 | P21: iSF | Q21: iSF60 | R21: iSh% | S21: CF | T21: CF60 | U21: SF | V21: SF60 | W21: SF% | X21: OISh% | Y21: Sv% | Z21: PDO | AA21: GF | AB21: GF60
A22: 1st PP pairing | B22: =AVERAGE('5v4'!AR2:AR61) -> 3.033333333 | C22: =AVERAGE('5v4'!AS2:AS61) -> 5.05 | D22: =AVERAGE('5v4'!AT2:AT61) -> 5.533333333 | E22: =AVERAGE('5v4'!AU2:AU61) -> 10.58333333 | F22: =AVERAGE('5v4'!AV2:AV61) -> 13.61666667 | G22: =AVERAGE('5v4'!AW2:AW61) -> 8.083333333 | H22: =AVERAGE('5v4'!AX2:AX61) -> 0.8435 | I22: =AVERAGE('5v4'!AY2:AY61) -> 1.394833333 | J22: =AVERAGE('5v4'!AZ2:AZ61) -> 1.532166667 | K22: =AVERAGE('5v4'!BA2:BA61) -> 2.927333333 | L22: =AVERAGE('5v4'!BB2:BB61) -> 3.770166667 | M22: =AVERAGE('5v4'!BC2:BC61) -> 2.238 | N22: =AVERAGE('5v4'!BD2:BD61) -> 80.63333333 | O22: =AVERAGE('5v4'!BE2:BE61) -> 22.54633333 | P22: =AVERAGE('5v4'!BG2:BG61) -> 37.36666667 | Q22: =AVERAGE('5v4'!BH2:BH61) -> 10.43316667 | R22: =AVERAGE('5v4'!BI2:BI61) -> 7.845666667 | S22: =AVERAGE('5v4'!BJ2:BJ61) -> 324.8 | T22: =AVERAGE('5v4'!BK2:BK61) -> 91.506 | U22: =AVERAGE('5v4'!BO2:BO61) -> 171.9333333 | V22: =AVERAGE('5v4'!BP2:BP61) -> 48.39933333 | W22: =AVERAGE('5v4'!BR2:BR61) -> 86.45383333 | X22: =AVERAGE('5v4'!BS2:BS61) -> 12.244 | Y22: =AVERAGE('5v4'!BT2:BT61) -> 91.06866667 | Z22: =AVERAGE('5v4'!BU2:BU61) -> 103.3135 | AA22: =AVERAGE('5v4'!BV2:BV61) -> 21.11666667 | AB22: =AVERAGE('5v4'!BW2:BW61) -> 5.919833333
A23: 2nd PP pairing | B23: =AVERAGE('5v4'!AR62:AR119) -> 0.8 | C23: =AVERAGE('5v4'!AS62:AS119) -> 1.636363636 | D23: =AVERAGE('5v4'!AT62:AT119) -> 1.236363636 | E23: =AVERAGE('5v4'!AU62:AU119) -> 2.872727273 | F23: =AVERAGE('5v4'!AV62:AV119) -> 3.672727273 | G23: =AVERAGE('5v4'!AW62:AW119) -> 2.436363636 | H23: =AVERAGE('5v4'!AX62:AX119) -> 0.5023636364 | I23: =AVERAGE('5v4'!AY62:AY119) -> 0.9992727273 | J23: =AVERAGE('5v4'!AZ62:AZ119) -> 0.8176363636 | K23: =AVERAGE('5v4'!BA62:BA119) -> 1.817090909 | L23: =AVERAGE('5v4'!BB62:BB119) -> 2.319090909 | M23: =AVERAGE('5v4'!BC62:BC119) -> 1.501636364 | N23: =AVERAGE('5v4'!BD62:BD119) -> 27.21818182 | O23: =AVERAGE('5v4'!BE62:BE119) -> 17.49527273 | P23: =AVERAGE('5v4'!BG62:BG119) -> 12.67272727 | Q23: =AVERAGE('5v4'!BH62:BH119) -> 8.117818182 | R23: =AVERAGE('5v4'!BI62:BI119) -> 6.465272727 | S23: =AVERAGE('5v4'!BJ62:BJ119) -> 113.8909091 | T23: =AVERAGE('5v4'!BK62:BK119) -> 73.06618182 | U23: =AVERAGE('5v4'!BO62:BO119) -> 59.76363636 | V23: =AVERAGE('5v4'!BP62:BP119) -> 38.16036364 | W23: =AVERAGE('5v4'!BR62:BR119) -> 84.94818182 | X23: =AVERAGE('5v4'!BS62:BS119) -> 10.15072727 | Y23: =AVERAGE('5v4'!BT62:BT119) -> 91.98618182 | Z23: =AVERAGE('5v4'!BU62:BU119) -> 102.1374545 | AA23: =AVERAGE('5v4'!BV62:BV119) -> 6.254545455 | AB23: =AVERAGE('5v4'!BW62:BW119) -> 3.948909091

Sheet 5v5
A1: Player | B1: Pos | C1: Team | D1: GP | E1: TOI | F1: G | G1: A1 | H1: A2 | I1: A | J1: P | K1: P1 | L1: G60 | M1: A160 | N1: A260 | O1: A60 | P1: P60 | Q1: P160 | R1: iCF | S1: iCF60 | T1: iSF | U1: iSF60 | V1: iSh% | W1: TOI/60 | X1: CF | Y1: CA | Z1: CF60 | AA1: CA60 | AB1: CF% | AC1: SF | AD1: SA | AE1: SF60 | AF1: SA60 | AG1: SF% | AH1: Sh% | AI1: Sv% | AJ1: PDO | AK1: GF | AL1: GA | AM1: GF60 | AN1: GA60 | AO1: GF% | AQ1: Player | AR1: Pos | AS1: Team | AT1: GP | AU1: TOI | AV1: G | AW1: A1 | AX1: A2 | AY1: A | AZ1: P | BA1: P1 | BB1: G60 | BC1: A160 | BD1: A260 | BE1: A60 | BF1: P60 | BG1: P160 | BH1: iCF | BI1: iCF60 | BJ1: iSF | BK1: iSF60 | BL1: iSh% | BM1: TOI/60 | BN1: CF | BO1: CA | BP1: CF60 | BQ1: CA60 | BR1: CF% | BS1: SF | BT1: SA | BU1: SF60 | BV1: SA60 | BW1: SF% | BX1: Sh% | BY1: Sv% | BZ1: PDO | CA1: GF | CB1: GA | CC1: GF60 | CD1: GA60 | CE1: GF%
A2: EVANDER.KANE | B2: L | C2: BUF | D2: 65 | E2: 1037.66 | F2: 13 | G2: 4 | H2: 4 | I2: 8 | J2: 21 | K2: 17 | L2: 0.75 | M2: 0.23 | N2: 0.23 | O2: 0.46 | P2: 1.21 | Q2: 0.98 | R2: 352 | S2: 20.35 | T2: 203 | U2: 11.74 | V2: 6.4 | W2: =(E2*60)/(D2*60) -> 15.964 | X2: 969.72 | Y2: 981.46 | Z2: 56.07 | AA2: 56.75 | AB2: 49.7 | AC2: 547.92 | AD2: 548.38 | AE2: 31.68 | AF2: 31.71 | AG2: 49.98 | AH2: 4.67 | AI2: 91.43 | AJ2: 96.1 | AK2: 25.95 | AL2: 46.32 | AM2: 1.5 | AN2: 2.68 | AO2: 35.9 | AQ2: RYAN.SUTER | AR2: D | AS2: MIN | AT2: 82 | AU2: 1748.09 | AV2: 4 | AW2: 9 | AX2: 9 | AY2: 18 | AZ2: 22 | BA2: 13 | BB2: 0.14 | BC2: 0.31 | BD2: 0.31 | BE2: 0.62 | BF2: 0.76 | BG2: 0.45 | BH2: 251 | BI2: 8.62 | BJ2: 122 | BK2: 4.19 | BL2: 3.28 | BM2: =AU2/AT2 -> 21.31817073 | BN2: 1582.49 | BO2: 1571.29 | BP2: 54.32 | BQ2: 53.93 | BR2: 50.18 | BS2: 883.85 | BT2: 790.58 | BU2: 30.34 | BV2: 27.14 | BW2: 52.78 | BX2: 7.57 | BY2: 92.9 | BZ2: 100.47 | CA2: 66.75 | CB2: 55.85 | CC2: 2.29 | CD2: 1.92 | CE2: 54.45
A3: PATRICK.KANE | B3: R | C3: CHI | D3: 82 | E3: 1282.94 | F3: 25 | G3: 21 | H3: 11 | I3: 32 | J3: 57 | K3: 46 | L3: 1.17 | M3: 0.98 | N3: 0.51 | O3: 1.5 | P3: 2.67 | Q3: 2.15 | R3: 301 | S3: 14.08 | T3: 188 | U3: 8.79 | V3: 13.3 | W3: 15.64560976 | X3: 1249.71 | Y3: 1144.79 | Z3: 58.45 | AA3: 53.54 | AB3: 52.19 | AC3: 671.76 | AD3: 652.56 | AE3: 31.42 | AF3: 30.52 | AG3: 50.72 | AH3: 10.04 | AI3: 91.93 | AJ3: 101.98 | AK3: 66.79 | AL3: 52.06 | AM3: 3.12 | AN3: 2.43 | AO3: 56.2 | AQ3: ERIK.KARLSSON | AR3: D | AS3: OTT | AT3: 82 | AU3: 1718.31 | AV3: 13 | AW3: 16 | AX3: 16 | AY3: 32 | AZ3: 45 | BA3: 29 | BB3: 0.45 | BC3: 0.56 | BD3: 0.56 | BE3: 1.12 | BF3: 1.57 | BG3: 1.01 | BH3: 402 | BI3: 14.04 | BJ3: 167 | BK3: 5.83 | BL3: 7.78 | BM3: =AU3/AT3 -> 20.955 | BN3: 1642.2 | BO3: 1607.6 | BP3: 57.34 | BQ3: 56.13 | BR3: 50.53 | BS3: 850.18 | BT3: 885.63 | BU3: 29.69 | BV3: 30.92 | BW3: 48.98 | BX3: 8.91 | BY3: 91.07 | BZ3: 99.98 | CA3: 76.41 | CB3: 78.19 | CC3: 2.67 | CD3: 2.73 | CE3: 49.42
A4: JOHN.TAVARES | B4: C | C4: NYI | D4: 78 | E4: 1195.88 | F4: 22 | G4: 20 | H4: 3 | I4: 23 | J4: 45 | K4: 42 | L4: 1.1 | M4: 1 | N4: 0.15 | O4: 1.15 | P4: 2.26 | Q4: 2.11 | R4: 296 | S4: 14.85 | T4: 161 | U4: 8.08 | V4: 13.66 | W4: 15.33179487 | X4: 1222.84 | Y4: 1142.01 | Z4: 61.35 | AA4: 57.3 | AB4: 51.71 | AC4: 622.47 | AD4: 623.26 | AE4: 31.23 | AF4: 31.27 | AG4: 49.97 | AH4: 8.56 | AI4: 93.1 | AJ4: 101.66 | AK4: 52.84 | AL4: 43.11 | AM4: 2.65 | AN4: 2.16 | AO4: 55.07 | AQ4: DREW.DOUGHTY | AR4: D | AS4: L.A | AT4: 82 | AU4: 1661.21 | AV4: 4 | AW4: 5 | AX4: 9 | AY4: 14 | AZ4: 18 | BA4: 9 | BB4: 0.14 | BC4: 0.18 | BD4: 0.33 | BE4: 0.51 | BF4: 0.65 | BG4: 0.33 | BH4: 285 | BI4: 10.29 | BJ4: 129 | BK4: 4.66 | BL4: 3.1 | BM4: =AU4/AT4 -> 20.25865854 | BN4: 1795.62 | BO4: 1220.33 | BP4: 64.85 | BQ4: 44.08 | BR4: 59.54 | BS4: 932.06 | BT4: 695.47 | BU4: 33.66 | BV4: 25.12 | BW4: 57.27 | BX4: 6.49 | BY4: 93.5 | BZ4: 100 | CA4: 60.66 | CB4: 46.21 | CC4: 2.19 | CD4: 1.67 | CE4: 56.76
A5: TAYLOR.HALL | B5: L | C5: EDM | D5: 82 | E5: 1234.1 | F5: 18 | G5: 24 | H5: 6 | I5: 30 | J5: 48 | K5: 42 | L5: 0.88 | M5: 1.17 | N5: 0.29 | O5: 1.46 | P5: 2.33 | Q5: 2.04 | R5: 356 | S5: 17.31 | T5: 215 | U5: 10.45 | V5: 8.37 | W5: 15.05 | X5: 1221.79 | Y5: 1178.38 | Z5: 59.4 | AA5: 57.29 | AB5: 50.9 | AC5: 662.98 | AD5: 628.44 | AE5: 32.23 | AF5: 30.55 | AG5: 51.34 | AH5: 8.63 | AI5: 91.59 | AJ5: 100.22 | AK5: 57.76 | AL5: 52.02 | AM5: 2.81 | AN5: 2.53 | AO5: 52.61 | AQ5: BRENT.BURNS | AR5: D | AS5: S.J | AT5: 82 | AU5: 1483.45 | AV5: 14 | AW5: 11 | AX5: 9 | AY5: 20 | AZ5: 34 | BA5: 25 | BB5: 0.57 | BC5: 0.44 | BD5: 0.36 | BE5: 0.81 | BF5: 1.38 | BG5: 1.01 | BH5: 498 | BI5: 20.14 | BJ5: 231 | BK5: 9.34 | BL5: 6.06 | BM5: =AU5/AT5 -> 18.09085366 | BN5: 1542.82 | BO5: 1353.25 | BP5: 62.4 | BQ5: 54.73 | BR5: 53.27 | BS5: 812.11 | BT5: 698.18 | BU5: 32.85 | BV5: 28.24 | BW5: 53.77 | BX5: 7.65 | BY5: 92.03 | BZ5: 99.69 | CA5: 62.53 | CB5: 56.13 | CC5: 2.53 | CD5: 2.27 | CE5: 52.7
A6: JAMES.NEAL | B6: L | C6: NSH | D6: 82 | E6: 1231.68 | F6: 24 | G6: 9 | H6: 4 | I6: 13 | J6: 37 | K6: 33 | L6: 1.17 | M6: 0.44 | N6: 0.19 | O6: 0.63 | P6: 1.8 | Q6: 1.61 | R6: 357 | S6: 17.39 | T6: 197 | U6: 9.6 | V6: 12.18 | W6: 15.0204878 | X6: 1211.1 | Y6: 1049.19 | Z6: 59 | AA6: 51.11 | AB6: 53.58 | AC6: 624.1 | AD6: 562.25 | AE6: 30.4 | AF6: 27.39 | AG6: 52.61 | AH6: 8.47 | AI6: 94.86 | AJ6: 103.32 | AK6: 52.67 | AL6: 28.84 | AM6: 2.57 | AN6: 1.4 | AO6: 64.62 | AQ6: RASMUS.RISTOLAINEN | AR6: D | AS6: BUF | AT6: 82 | AU6: 1476.37 | AV6: 4 | AW6: 7 | AX6: 7 | AY6: 14 | AZ6: 18 | BA6: 11 | BB6: 0.16 | BC6: 0.28 | BD6: 0.28 | BE6: 0.57 | BF6: 0.73 | BG6: 0.45 | BH6: 236 | BI6: 9.59 | BJ6: 121 | BK6: 4.92 | BL6: 3.31 | BM6: =AU6/AT6 -> 18.0045122 | BN6: 1202.9 | BO6: 1503.88 | BP6: 48.89 | BQ6: 61.12 | BR6: 44.44 | BS6: 663.91 | BT6: 788.77 | BU6: 26.98 | BV6: 32.06 | BW6: 45.7 | BX6: 6.55 | BY6: 92.27 | BZ6: 98.82 | CA6: 43.55 | CB6: 60.39 | CC6: 1.77 | CD6: 2.45 | CE6: 41.9
A7: JOHNNY.GAUDREAU | B7: L | C7: CGY | D7: 79 | E7: 1184.96 | F7: 18 | G7: 16 | H7: 11 | I7: 27 | J7: 45 | K7: 34 | L7: 0.91 | M7: 0.81 | N7: 0.56 | O7: 1.37 | P7: 2.28 | Q7: 1.72 | R7: 237 | S7: 12 | T7: 135 | U7: 6.84 | V7: 13.33 | W7: 14.99949367 | X7: 1089.84 | Y7: 1120.94 | Z7: 55.18 | AA7: 56.76 | AB7: 49.3 | AC7: 591.25 | AD7: 574.6 | AE7: 29.94 | AF7: 29.09 | AG7: 50.71 | AH7: 9.6 | AI7: 91.07 | AJ7: 100.66 | AK7: 55.86 | AL7: 50.71 | AM7: 2.83 | AN7: 2.57 | AO7: 52.42 | AQ7: ALEX.GOLIGOSKI | AR7: D | AS7: DAL | AT7: 82 | AU7: 1470.85 | AV7: 4 | AW7: 10 | AX7: 13 | AY7: 23 | AZ7: 27 | BA7: 14 | BB7: 0.16 | BC7: 0.41 | BD7: 0.53 | BE7: 0.94 | BF7: 1.1 | BG7: 0.57 | BH7: 241 | BI7: 9.83 | BJ7: 100 | BK7: 4.08 | BL7: 4 | BM7: =AU7/AT7 -> 17.93719512 | BN7: 1679.19 | BO7: 1445.94 | BP7: 68.5 | BQ7: 58.98 | BR7: 53.73 | BS7: 865.64 | BT7: 740.36 | BU7: 35.31 | BV7: 30.2 | BW7: 53.9 | BX7: 8.93 | BY7: 91.62 | BZ7: 100.55 | CA7: 77.41 | CB7: 61.7 | CC7: 3.16 | CD7: 2.52 | CE7: 55.65
A8: RYAN.O'REILLY | B8: C | C8: BUF | D8: 71 | E8: 1064.94 | F8: 9 | G8: 12 | H8: 4 | I8: 16 | J8: 25 | K8: 21 | L8: 0.51 | M8: 0.68 | N8: 0.23 | O8: 0.9 | P8: 1.41 | Q8: 1.18 | R8: 147 | S8: 8.28 | T8: 94 | U8: 5.3 | V8: 9.57 | W8: 14.99915493 | X8: 910.63 | Y8: 983.91 | Z8: 51.31 | AA8: 55.43 | AB8: 48.07 | AC8: 503.27 | AD8: 526.8 | AE8: 28.35 | AF8: 29.68 | AG8: 48.86 | AH8: 7.1 | AI8: 90.84 | AJ8: 97.94 | AK8: 36.13 | AL8: 48.2 | AM8: 2.04 | AN8: 2.72 | AO8: 42.84 | AQ8: NIKLAS.HJALMARSSON | AR8: D | AS8: CHI | AT8: 81 | AU8: 1467.24 | AV8: 2 | AW8: 2 | AX8: 8 | AY8: 10 | AZ8: 12 | BA8: 4 | BB8: 0.08 | BC8: 0.08 | BD8: 0.33 | BE8: 0.41 | BF8: 0.49 | BG8: 0.16 | BH8: 174 | BI8: 7.12 | BJ8: 72 | BK8: 2.94 | BL8: 2.78 | BM8: =AU8/AT8 -> 18.11407407 | BN8: 1366.22 | BO8: 1233.38 | BP8: 55.87 | BQ8: 50.44 | BR8: 52.56 | BS8: 746.56 | BT8: 649.6 | BU8: 30.53 | BV8: 26.56 | BW8: 53.47 | BX8: 6.28 | BY8: 92.24 | BZ8: 98.51 | CA8: 46.41 | CB8: 50.02 | CC8: 1.9 | CD8: 2.05 | CE8: 48.13
A9: PAVEL.DATSYUK | B9: C | C9: DET | D9: 66 | E9: 985.32 | F9: 6 | G9: 7 | H9: 9 | I9: 16 | J9: 22 | K9: 13 | L9: 0.37 | M9: 0.43 | N9: 0.55 | O9: 0.97 | P9: 1.34 | Q9: 0.79 | R9: 216 | S9: 13.15 | T9: 114 | U9: 6.94 | V9: 5.26 | W9: 14.92909091 | X9: 986.88 | Y9: 730.34 | Z9: 60.1 | AA9: 44.47 | AB9: 57.47 | AC9: 541.39 | AD9: 409.64 | AE9: 32.97 | AF9: 24.94 | AG9: 56.93 | AH9: 6.46 | AI9: 92.42 | AJ9: 98.88 | AK9: 34.8 | AL9: 30.46 | AM9: 2.12 | AN9: 1.85 | AO9: 53.33 | AQ9: MATT.NISKANEN | AR9: D | AS9: WSH | AT9: 82 | AU9: 1465.07 | AV9: 2 | AW9: 4 | AX9: 4 | AY9: 8 | AZ9: 10 | BA9: 6 | BB9: 0.08 | BC9: 0.16 | BD9: 0.16 | BE9: 0.33 | BF9: 0.41 | BG9: 0.25 | BH9: 252 | BI9: 10.32 | BJ9: 119 | BK9: 4.87 | BL9: 1.68 | BM9: =AU9/AT9 -> 17.86670732 | BN9: 1390.38 | BO9: 1296.47 | BP9: 56.94 | BQ9: 53.1 | BR9: 51.75 | BS9: 737.54 | BT9: 655.61 | BU9: 30.21 | BV9: 26.85 | BW9: 52.94 | BX9: 7.13 | BY9: 94.26 | BZ9: 101.39 | CA9: 52.47 | CB9: 38.6 | CC9: 2.15 | CD9: 1.58 | CE9: 57.62
A10: SIDNEY.CROSBY | B10: C | C10: PIT | D10: 80 | E10: 1188.12 | F10: 18 | G10: 21 | H10: 12 | I10: 33 | J10: 51 | K10: 39 | L10: 0.91 | M10: 1.06 | N10: 0.61 | O10: 1.67 | P10: 2.58 | Q10: 1.97 | R10: 297 | S10: 15 | T10: 158 | U10: 7.98 | V10: 11.39 | W10: 14.8515 | X10: 1291.29 | Y10: 1076.79 | Z10: 65.21 | AA10: 54.38 | AB10: 54.53 | AC10: 697.68 | AD10: 578.48 | AE10: 35.23 | AF10: 29.21 | AG10: 54.67 | AH10: 8.87 | AI10: 92.52 | AJ10: 101.39 | AK10: 61.64 | AL10: 43.24 | AM10: 3.11 | AN10: 2.18 | AO10: 58.77 | AQ10: FRANCOIS.BEAUCHEMIN | AR10: D | AS10: COL | AT10: 82 | AU10: 1461.96 | AV10: 6 | AW10: 2 | AX10: 11 | AY10: 13 | AZ10: 19 | BA10: 8 | BB10: 0.25 | BC10: 0.08 | BD10: 0.45 | BE10: 0.53 | BF10: 0.78 | BG10: 0.33 | BH10: 182 | BI10: 7.47 | BJ10: 85 | BK10: 3.49 | BL10: 7.06 | BM10: =AU10/AT10 -> 17.82878049 | BN10: 1209.82 | BO10: 1590.98 | BP10: 49.65 | BQ10: 65.29 | BR10: 43.2 | BS10: 686.31 | BT10: 790.87 | BU10: 28.17 | BV10: 32.46 | BW10: 46.46 | BX10: 6.85 | BY10: 93.13 | BZ10: 99.98 | CA10: 46.4 | CB10: 54.41 | CC10: 1.9 | CD10: 2.23 | CE10: 46.03
A11: ANZE.KOPITAR | B11: C | C11: L.A | D11: 81 | E11: 1196.86 | F11: 13 | G11: 18 | H11: 13 | I11: 31 | J11: 44 | K11: 31 | L11: 0.65 | M11: 0.9 | N11: 0.65 | O11: 1.55 | P11: 2.21 | Q11: 1.55 | R11: 201 | S11: 10.08 | T11: 108 | U11: 5.41 | V11: 12.04 | W11: 14.77604938 | X11: 1286.35 | Y11: 929.26 | Z11: 64.49 | AA11: 46.58 | AB11: 58.06 | AC11: 642.72 | AD11: 507.63 | AE11: 32.22 | AF11: 25.45 | AG11: 55.87 | AH11: 9.48 | AI11: 93.01 | AJ11: 102.49 | AK11: 60.51 | AL11: 36.35 | AM11: 3.03 | AN11: 1.82 | AO11: 62.47 | AQ11: DUSTIN.BYFUGLIEN | AR11: D | AS11: WPG | AT11: 81 | AU11: 1461.66 | AV11: 14 | AW11: 11 | AX11: 6 | AY11: 17 | AZ11: 31 | BA11: 25 | BB11: 0.57 | BC11: 0.45 | BD11: 0.25 | BE11: 0.7 | BF11: 1.27 | BG11: 1.03 | BH11: 299 | BI11: 12.27 | BJ11: 154 | BK11: 6.32 | BL11: 9.09 | BM11: =AU11/AT11 -> 18.04518519 | BN11: 1494 | BO11: 1299.66 | BP11: 61.33 | BQ11: 53.35 | BR11: 53.48 | BS11: 807.71 | BT11: 719.26 | BU11: 33.16 | BV11: 29.53 | BW11: 52.9 | BX11: 8.87 | BY11: 91.32 | BZ11: 100.18 | CA11: 71.61 | CB11: 62.15 | CC11: 2.94 | CD11: 2.55 | CE11: 53.54
A12: ALEX.OVECHKIN | B12: L | C12: WSH | D12: 79 | E12: 1167.21 | F12: 27 | G12: 2 | H12: 11 | I12: 13 | J12: 40 | K12: 29 | L12: 1.39 | M12: 0.1 | N12: 0.57 | O12: 0.67 | P12: 2.06 | Q12: 1.49 | R12: 452 | S12: 23.23 | T12: 231 | U12: 11.87 | V12: 11.69 | W12: 14.77481013 | X12: 1244.8 | Y12: 1063.63 | Z12: 63.99 | AA12: 54.68 | AB12: 53.92 | AC12: 650.04 | AD12: 520.52 | AE12: 33.42 | AF12: 26.76 | AG12: 55.53 | AH12: 9.22 | AI12: 93.51 | AJ12: 102.73 | AK12: 58.94 | AL12: 33.63 | AM12: 3.03 | AN12: 1.73 | AO12: 63.67 | AQ12: MARK.GIORDANO | AR12: D | AS12: CGY | AT12: 82 | AU12: 1460.97 | AV12: 10 | AW12: 12 | AX12: 6 | AY12: 18 | AZ12: 28 | BA12: 22 | BB12: 0.41 | BC12: 0.49 | BD12: 0.25 | BE12: 0.74 | BF12: 1.15 | BG12: 0.9 | BH12: 304 | BI12: 12.48 | BJ12: 137 | BK12: 5.63 | BL12: 7.3 | BM12: =AU12/AT12 -> 17.81670732 | BN12: 1346.57 | BO12: 1347.99 | BP12: 55.3 | BQ12: 55.36 | BR12: 49.97 | BS12: 700.65 | BT12: 674.56 | BU12: 28.77 | BV12: 27.7 | BW12: 50.95 | BX12: 8.63 | BY12: 89.9 | BZ12: 98.52 | CA12: 60.7 | CB12: 68.02 | CC12: 2.49 | CD12: 2.79 | CE12: 47.15
A13: TYLER.SEGUIN | B13: C | C13: DAL | D13: 72 | E13: 1059.58 | F13: 22 | G13: 11 | H13: 6 | I13: 17 | J13: 39 | K13: 33 | L13: 1.25 | M13: 0.62 | N13: 0.34 | O13: 0.96 | P13: 2.21 | Q13: 1.87 | R13: 310 | S13: 17.55 | T13: 164 | U13: 9.29 | V13: 13.41 | W13: 14.71638889 | X13: 1159.33 | Y13: 958.18 | Z13: 65.65 | AA13: 54.26 | AB13: 54.75 | AC13: 600.62 | AD13: 504.78 | AE13: 34.01 | AF13: 28.58 | AG13: 54.34 | AH13: 9.42 | AI13: 88.82 | AJ13: 98.24 | AK13: 56.51 | AL13: 54.93 | AM13: 3.2 | AN13: 3.11 | AO13: 50.71 | AQ13: ROMAN.JOSI | AR13: D | AS13: NSH | AT13: 81 | AU13: 1455.21 | AV13: 5 | AW13: 15 | AX13: 7 | AY13: 22 | AZ13: 27 | BA13: 20 | BB13: 0.21 | BC13: 0.62 | BD13: 0.29 | BE13: 0.91 | BF13: 1.11 | BG13: 0.82 | BH13: 268 | BI13: 11.05 | BJ13: 128 | BK13: 5.28 | BL13: 3.91 | BM13: =AU13/AT13 -> 17.96555556 | BN13: 1438.99 | BO13: 1425.84 | BP13: 59.33 | BQ13: 58.79 | BR13: 50.23 | BS13: 759.9 | BT13: 738.52 | BU13: 31.33 | BV13: 30.45 | BW13: 50.71 | BX13: 7.09 | BY13: 92.28 | BZ13: 99.36 | CA13: 53.55 | CB13: 56.4 | CC13: 2.21 | CD13: 2.33 | CE13: 48.71
A14: HENRIK.ZETTERBERG | B14: L | C14: DET | D14: 82 | E14: 1200.34 | F14: 9 | G14: 10 | H14: 3 | I14: 13 | J14: 22 | K14: 19 | L14: 0.45 | M14: 0.5 | N14: 0.15 | O14: 0.65 | P14: 1.1 | Q14: 0.95 | R14: 249 | S14: 12.45 | T14: 146 | U14: 7.3 | V14: 6.16 | W14: 14.63829268 | X14: 1071.65 | Y14: 1036.12 | Z14: 53.57 | AA14: 51.79 | AB14: 50.84 | AC14: 591.22 | AD14: 607.15 | AE14: 29.55 | AF14: 30.35 | AG14: 49.34 | AH14: 6.41 | AI14: 92.57 | AJ14: 98.98 | AK14: 37.96 | AL14: 44.85 | AM14: 1.9 | AN14: 2.24 | AO14: 45.84 | AQ14: NICK.LEDDY | AR14: D | AS14: NYI | AT14: 81 | AU14: 1453.4 | AV14: 2 | AW14: 8 | AX14: 8 | AY14: 16 | AZ14: 18 | BA14: 10 | BB14: 0.08 | BC14: 0.33 | BD14: 0.33 | BE14: 0.66 | BF14: 0.74 | BG14: 0.41 | BH14: 175 | BI14: 7.22 | BJ14: 85 | BK14: 3.51 | BL14: 2.35 | BM14: =AU14/AT14 -> 17.94320988 | BN14: 1390.23 | BO14: 1376.75 | BP14: 57.39 | BQ14: 56.84 | BR14: 50.24 | BS14: 722.55 | BT14: 754.93 | BU14: 29.83 | BV14: 31.17 | BW14: 48.9 | BX14: 7.51 | BY14: 92.06 | BZ14: 99.57 | CA14: 53.8 | CB14: 59.7 | CC14: 2.22 | CD14: 2.46 | CE14: 47.4
A15: KYLE.TURRIS | B15: C | C15: OTT | D15: 57 | E15: 834.15 | F15: 9 | G15: 5 | H15: 4 | I15: 9 | J15: 18 | K15: 14 | L15: 0.65 | M15: 0.36 | N15: 0.29 | O15: 0.65 | P15: 1.29 | Q15: 1.01 | R15: 149 | S15: 10.72 | T15: 87 | U15: 6.26 | V15: 10.34 | W15: 14.63421053 | X15: 773.35 | Y15: 810.47 | Z15: 55.63 | AA15: 58.3 | AB15: 48.83 | AC15: 391.59 | AD15: 447.65 | AE15: 28.17 | AF15: 32.2 | AG15: 46.66 | AH15: 7.07 | AI15: 91.87 | AJ15: 98.94 | AK15: 27.56 | AL15: 36.07 | AM15: 1.98 | AN15: 2.59 | AO15: 43.31 | AQ15: RON.HAINSEY | AR15: D | AS15: CAR | AT15: 81 | AU15: 1451.26 | AV15: 3 | AW15: 5 | AX15: 7 | AY15: 12 | AZ15: 15 | BA15: 8 | BB15: 0.12 | BC15: 0.21 | BD15: 0.29 | BE15: 0.5 | BF15: 0.62 | BG15: 0.33 | BH15: 216 | BI15: 8.93 | BJ15: 113 | BK15: 4.67 | BL15: 2.65 | BM15: =AU15/AT15 -> 17.91679012 | BN15: 1361.46 | BO15: 1281.37 | BP15: 56.29 | BQ15: 52.98 | BR15: 51.52 | BS15: 711.92 | BT15: 665.49 | BU15: 29.43 | BV15: 27.51 | BW15: 51.69 | BX15: 7.01 | BY15: 90.87 | BZ15: 97.88 | CA15: 49.69 | CB15: 61.43 | CC15: 2.05 | CD15: 2.54 | CE15: 44.71
A16: MATS.ZUCCARELLO | B16: C | C16: NYR | D16: 81 | E16: 1181.24 | F16: 18 | G16: 16 | H16: 5 | I16: 21 | J16: 39 | K16: 34 | L16: 0.91 | M16: 0.81 | N16: 0.25 | O16: 1.07 | P16: 1.98 | Q16: 1.73 | R16: 208 | S16: 10.57 | T16: 116 | U16: 5.89 | V16: 15.52 | W16: 14.58320988 | X16: 1075.6 | Y16: 1131.59 | Z16: 54.63 | AA16: 57.48 | AB16: 48.73 | AC16: 562.92 | AD16: 580.64 | AE16: 28.59 | AF16: 29.49 | AG16: 49.23 | AH16: 10.07 | AI16: 92.33 | AJ16: 102.41 | AK16: 55.57 | AL16: 45.34 | AM16: 2.82 | AN16: 2.3 | AO16: 55.07 | AQ16: NICK.HOLDEN | AR16: D | AS16: COL | AT16: 82 | AU16: 1449.56 | AV16: 5 | AW16: 5 | AX16: 7 | AY16: 12 | AZ16: 17 | BA16: 10 | BB16: 0.21 | BC16: 0.21 | BD16: 0.29 | BE16: 0.5 | BF16: 0.7 | BG16: 0.41 | BH16: 183 | BI16: 7.57 | BJ16: 87 | BK16: 3.6 | BL16: 5.75 | BM16: =AU16/AT16 -> 17.67756098 | BN16: 1253.76 | BO16: 1539.6 | BP16: 51.9 | BQ16: 63.73 | BR16: 44.88 | BS16: 681.16 | BT16: 813.09 | BU16: 28.19 | BV16: 33.66 | BW16: 45.59 | BX16: 8.66 | BY16: 92.05 | BZ16: 100.72 | CA16: 59 | CB16: 65.63 | CC16: 2.44 | CD16: 2.72 | CE16: 47.34
A17: ERIC.STAAL | B17: C | C17: CAR/NYR | D17: 83 | E17: 1205.23 | F17: 10 | G17: 9 | H17: 8 | I17: 17 | J17: 27 | K17: 19 | L17: 0.5 | M17: 0.45 | N17: 0.4 | O17: 0.85 | P17: 1.34 | Q17: 0.95 | R17: 304 | S17: 15.13 | T17: 156 | U17: 7.77 | V17: 6.41 | W17: 14.52084337 | X17: 1266.17 | Y17: 1033.13 | Z17: 63.03 | AA17: 51.43 | AB17: 55.07 | AC17: 634.23 | AD17: 544.03 | AE17: 31.57 | AF17: 27.08 | AG17: 53.83 | AH17: 6.9 | AI17: 92.28 | AJ17: 99.18 | AK17: 43.58 | AL17: 42.46 | AM17: 2.17 | AN17: 2.11 | AO17: 50.65 | AQ17: ADAM.LARSSON | AR17: D | AS17: N.J | AT17: 82 | AU17: 1434.41 | AV17: 1 | AW17: 5 | AX17: 7 | AY17: 12 | AZ17: 13 | BA17: 6 | BB17: 0.04 | BC17: 0.21 | BD17: 0.29 | BE17: 0.5 | BF17: 0.54 | BG17: 0.25 | BH17: 143 | BI17: 5.98 | BJ17: 58 | BK17: 2.43 | BL17: 1.72 | BM17: =AU17/AT17 -> 17.49280488 | BN17: 938.05 | BO17: 1169.74 | BP17: 39.24 | BQ17: 48.93 | BR17: 44.5 | BS17: 527.8 | BT17: 620.35 | BU17: 22.08 | BV17: 25.95 | BW17: 45.97 | BX17: 7.71 | BY17: 94.67 | BZ17: 102.38 | CA17: 41.21 | CB17: 32.83 | CC17: 1.72 | CD17: 1.37 | CE17: 55.66
A18: MARK.STONE | B18: R | C18: OTT | D18: 75 | E18: 1088.9 | F18: 12 | G18: 12 | H18: 10 | I18: 22 | J18: 34 | K18: 24 | L18: 0.66 | M18: 0.66 | N18: 0.55 | O18: 1.21 | P18: 1.87 | Q18: 1.32 | R18: 190 | S18: 10.47 | T18: 100 | U18: 5.51 | V18: 12 | W18: 14.51866667 | X18: 1074.43 | Y18: 1056.33 | Z18: 59.2 | AA18: 58.21 | AB18: 50.42 | AC18: 547.93 | AD18: 552.07 | AE18: 30.19 | AF18: 30.42 | AG18: 49.81 | AH18: 8.04 | AI18: 92.1 | AJ18: 100.13 | AK18: 44.89 | AL18: 43.47 | AM18: 2.47 | AN18: 2.4 | AO18: 50.8 | AQ18: ANDY.GREENE | AR18: D | AS18: N.J | AT18: 82 | AU18: 1429.4 | AV18: 1 | AW18: 4 | AX18: 2 | AY18: 6 | AZ18: 7 | BA18: 5 | BB18: 0.04 | BC18: 0.17 | BD18: 0.08 | BE18: 0.25 | BF18: 0.29 | BG18: 0.21 | BH18: 121 | BI18: 5.08 | BJ18: 52 | BK18: 2.18 | BL18: 1.92 | BM18: =AU18/AT18 -> 17.43170732 | BN18: 917.88 | BO18: 1200.35 | BP18: 38.53 | BQ18: 50.39 | BR18: 43.33 | BS18: 518.91 | BT18: 624.26 | BU18: 21.78 | BV18: 26.2 | BW18: 45.39 | BX18: 7.46 | BY18: 94.2 | BZ18: 101.66 | CA18: 39.41 | CB18: 35.9 | CC18: 1.65 | CD18: 1.51 | CE18: 52.33
A19: MIKE.CAMMALLERI | B19: L | C19: N.J | D19: 42 | E19: 608.7 | F19: 10 | G19: 14 | H19: 2 | I19: 16 | J19: 26 | K19: 24 | L19: 0.99 | M19: 1.38 | N19: 0.2 | O19: 1.58 | P19: 2.56 | Q19: 2.37 | R19: 92 | S19: 9.07 | T19: 64 | U19: 6.31 | V19: 15.62 | W19: 14.49285714 | X19: 452.86 | Y19: 473.87 | Z19: 44.64 | AA19: 46.71 | AB19: 48.87 | AC19: 264.93 | AD19: 271.68 | AE19: 26.11 | AF19: 26.78 | AG19: 49.37 | AH19: 12.41 | AI19: 92.91 | AJ19: 105.32 | AK19: 33.08 | AL19: 18.87 | AM19: 3.26 | AN19: 1.86 | AO19: 63.68 | AQ19: ZDENO.CHARA | AR19: D | AS19: BOS | AT19: 80 | AU19: 1424.92 | AV19: 6 | AW19: 8 | AX19: 8 | AY19: 16 | AZ19: 22 | BA19: 14 | BB19: 0.25 | BC19: 0.34 | BD19: 0.34 | BE19: 0.67 | BF19: 0.93 | BG19: 0.59 | BH19: 229 | BI19: 9.64 | BJ19: 111 | BK19: 4.67 | BL19: 5.41 | BM19: =AU19/AT19 -> 17.8115 | BN19: 1357.25 | BO19: 1345.37 | BP19: 57.15 | BQ19: 56.65 | BR19: 50.22 | BS19: 753.56 | BT19: 713.02 | BU19: 31.73 | BV19: 30.02 | BW19: 51.38 | BX19: 8.01 | BY19: 92.92 | BZ19: 100.93 | CA19: 60.28 | CB19: 51.14 | CC19: 2.54 | CD19: 2.15 | CE19: 54.1
A20: ARTEMI.PANARIN | B20: C | C20: CHI | D20: 80 | E20: 1157.59 | F20: 18 | G20: 11 | H20: 12 | I20: 23 | J20: 41 | K20: 29 | L20: 0.93 | M20: 0.57 | N20: 0.62 | O20: 1.19 | P20: 2.13 | Q20: 1.5 | R20: 253 | S20: 13.11 | T20: 144 | U20: 7.46 | V20: 12.5 | W20: 14.469875 | X20: 1137.14 | Y20: 1025.81 | Z20: 58.94 | AA20: 53.17 | AB20: 52.57 | AC20: 594.62 | AD20: 567.64 | AE20: 30.82 | AF20: 29.42 | AG20: 51.16 | AH20: 9.04 | AI20: 90.99 | AJ20: 100.03 | AK20: 53.07 | AL20: 51.07 | AM20: 2.75 | AN20: 2.65 | AO20: 50.96 | AQ20: MORGAN.RIELLY | AR20: D | AS20: TOR | AT20: 82 | AU20: 1413.92 | AV20: 4 | AW20: 6 | AX20: 8 | AY20: 14 | AZ20: 18 | BA20: 10 | BB20: 0.17 | BC20: 0.25 | BD20: 0.34 | BE20: 0.59 | BF20: 0.76 | BG20: 0.42 | BH20: 304 | BI20: 12.9 | BJ20: 114 | BK20: 4.84 | BL20: 3.51 | BM20: =AU20/AT20 -> 17.24292683 | BN20: 1392.34 | BO20: 1452.03 | BP20: 59.08 | BQ20: 61.62 | BR20: 48.95 | BS20: 693.06 | BT20: 809.74 | BU20: 29.41 | BV20: 34.36 | BW20: 46.12 | BX20: 6.49 | BY20: 91.41 | BZ20: 97.9 | CA20: 45.56 | CB20: 68.66 | CC20: 1.93 | CD20: 2.91 | CE20: 39.89
A21: TYLER.ENNIS | B21: C | C21: BUF | D21: 23 | E21: 332.43 | F21: 1 | G21: 2 | H21: 4 | I21: 6 | J21: 7 | K21: 3 | L21: 0.18 | M21: 0.36 | N21: 0.72 | O21: 1.08 | P21: 1.26 | Q21: 0.54 | R21: 70 | S21: 12.63 | T21: 38 | U21: 6.86 | V21: 2.63 | W21: 14.45347826 | X21: 273.5 | Y21: 345.82 | Z21: 49.36 | AA21: 62.42 | AB21: 44.16 | AC21: 155.01 | AD21: 179.91 | AE21: 27.98 | AF21: 32.47 | AG21: 46.28 | AH21: 4.46 | AI21: 91.91 | AJ21: 96.37 | AK21: 7.17 | AL21: 14.62 | AM21: 1.29 | AN21: 2.64 | AO21: 32.91 | AQ21: KARL.ALZNER | AR21: D | AS21: WSH | AT21: 82 | AU21: 1412.04 | AV21: 3 | AW21: 6 | AX21: 7 | AY21: 13 | AZ21: 16 | BA21: 9 | BB21: 0.13 | BC21: 0.25 | BD21: 0.3 | BE21: 0.55 | BF21: 0.68 | BG21: 0.38 | BH21: 169 | BI21: 7.18 | BJ21: 66 | BK21: 2.8 | BL21: 4.55 | BM21: =AU21/AT21 -> 17.22 | BN21: 1300.84 | BO21: 1291.72 | BP21: 55.27 | BQ21: 54.89 | BR21: 50.18 | BS21: 691.69 | BT21: 648.54 | BU21: 29.39 | BV21: 27.56 | BW21: 51.61 | BX21: 6.87 | BY21: 94.05 | BZ21: 100.92 | CA21: 47.34 | CB21: 39.49 | CC21: 2.01 | CD21: 1.68 | CE21: 54.53
A22: JACK.EICHEL | B22: C | C22: BUF | D22: 81 | E22: 1167.76 | F22: 12 | G22: 12 | H22: 5 | I22: 17 | J22: 29 | K22: 24 | L22: 0.62 | M22: 0.62 | N22: 0.26 | O22: 0.87 | P22: 1.49 | Q22: 1.23 | R22: 297 | S22: 15.26 | T22: 168 | U22: 8.63 | V22: 7.14 | W22: 14.41679012 | X22: 987.74 | Y22: 1171.47 | Z22: 50.75 | AA22: 60.19 | AB22: 45.75 | AC22: 535.21 | AD22: 668.7 | AE22: 27.5 | AF22: 34.36 | AG22: 44.46 | AH22: 7.2 | AI22: 92.32 | AJ22: 99.52 | AK22: 39.32 | AL22: 50.3 | AM22: 2.02 | AN22: 2.58 | AO22: 43.87 | AQ22: TYSON.BARRIE | AR22: D | AS22: COL | AT22: 78 | AU22: 1407.1 | AV22: 9 | AW22: 7 | AX22: 5 | AY22: 12 | AZ22: 21 | BA22: 16 | BB22: 0.38 | BC22: 0.3 | BD22: 0.21 | BE22: 0.51 | BF22: 0.9 | BG22: 0.68 | BH22: 227 | BI22: 9.68 | BJ22: 105 | BK22: 4.48 | BL22: 8.57 | BM22: =AU22/AT22 -> 18.03974359 | BN22: 1211.02 | BO22: 1503.95 | BP22: 51.64 | BQ22: 64.13 | BR22: 44.61 | BS22: 656.19 | BT22: 813.78 | BU22: 27.98 | BV22: 34.7 | BW22: 44.64 | BX22: 8.73 | BY22: 92.98 | BZ22: 101.71 | CA22: 57.92 | CB22: 57.85 | CC22: 2.47 | CD22: 2.47 | CE22: 50.03
A23: MILAN.LUCIC | B23: L | C23: L.A | D23: 81 | E23: 1165.79 | F23: 16 | G23: 18 | H23: 7 | I23: 25 | J23: 41 | K23: 34 | L23: 0.82 | M23: 0.93 | N23: 0.36 | O23: 1.29 | P23: 2.11 | Q23: 1.75 | R23: 217 | S23: 11.17 | T23: 100 | U23: 5.15 | V23: 16 | W23: 14.39246914 | X23: 1355.42 | Y23: 901.24 | Z23: 69.76 | AA23: 46.38 | AB23: 60.06 | AC23: 671.84 | AD23: 484.27 | AE23: 34.58 | AF23: 24.92 | AG23: 58.11 | AH23: 9.32 | AI23: 92.07 | AJ23: 101.4 | AK23: 62.28 | AL23: 39.23 | AM23: 3.21 | AN23: 2.02 | AO23: 61.36 | AQ23: JAKE.MUZZIN | AR23: D | AS23: L.A | AT23: 82 | AU23: 1389.01 | AV23: 7 | AW23: 7 | AX23: 7 | AY23: 14 | AZ23: 21 | BA23: 14 | BB23: 0.3 | BC23: 0.3 | BD23: 0.3 | BE23: 0.6 | BF23: 0.91 | BG23: 0.6 | BH23: 333 | BI23: 14.38 | BJ23: 157 | BK23: 6.78 | BL23: 4.46 | BM23: =AU23/AT23 -> 16.93914634 | BN23: 1581.92 | BO23: 1136.32 | BP23: 68.33 | BQ23: 49.08 | BR23: 58.2 | BS23: 799.03 | BT23: 596.43 | BU23: 34.52 | BV23: 25.76 | BW23: 57.26 | BX23: 6.11 | BY23: 91.89 | BZ23: 97.99 | CA23: 48.06 | CB23: 48.81 | CC23: 2.08 | CD23: 2.11 | CE23: 49.62
A24: MIKKO.KOIVU | B24: C | C24: MIN | D24: 82 | E24: 1173.21 | F24: 4 | G24: 13 | H24: 12 | I24: 25 | J24: 29 | K24: 17 | L24: 0.2 | M24: 0.66 | N24: 0.61 | O24: 1.28 | P24: 1.48 | Q24: 0.87 | R24: 196 | S24: 10.02 | T24: 98 | U24: 5.01 | V24: 4.08 | W24: 14.30743902 | X24: 1053.45 | Y24: 979.34 | Z24: 53.88 | AA24: 50.09 | AB24: 51.82 | AC24: 541.75 | AD24: 498.46 | AE24: 27.71 | AF24: 25.49 | AG24: 52.08 | AH24: 9.17 | AI24: 92.2 | AJ24: 101.37 | AK24: 49.51 | AL24: 39.04 | AM24: 2.53 | AN24: 2 | AO24: 55.91 | AQ24: SHEA.WEBER | AR24: D | AS24: NSH | AT24: 78 | AU24: 1388.57 | AV24: 4 | AW24: 9 | AX24: 7 | AY24: 16 | AZ24: 20 | BA24: 13 | BB24: 0.17 | BC24: 0.39 | BD24: 0.3 | BE24: 0.69 | BF24: 0.86 | BG24: 0.56 | BH24: 245 | BI24: 10.59 | BJ24: 114 | BK24: 4.93 | BL24: 3.51 | BM24: =AU24/AT24 -> 17.80217949 | BN24: 1386.18 | BO24: 1319.89 | BP24: 59.9 | BQ24: 57.03 | BR24: 51.22 | BS24: 728.21 | BT24: 678.26 | BU24: 31.47 | BV24: 29.31 | BW24: 51.78 | BX24: 6.84 | BY24: 91.45 | BZ24: 98.29 | CA24: 49.56 | CB24: 57.51 | CC24: 2.14 | CD24: 2.49 | CE24: 46.29
A25: LEON.DRAISAITL | B25: C | C25: EDM | D25: 72 | E25: 1028.31 | F25: 14 | G25: 10 | H25: 14 | I25: 24 | J25: 38 | K25: 24 | L25: 0.82 | M25: 0.58 | N25: 0.82 | O25: 1.4 | P25: 2.22 | Q25: 1.4 | R25: 163 | S25: 9.51 | T25: 102 | U25: 5.95 | V25: 13.73 | W25: 14.28208333 | X25: 1023.92 | Y25: 984.52 | Z25: 59.74 | AA25: 57.45 | AB25: 50.98 | AC25: 565.91 | AD25: 517.41 | AE25: 33.02 | AF25: 30.19 | AG25: 52.24 | AH25: 8 | AI25: 91.49 | AJ25: 99.49 | AK25: 45.86 | AL25: 43.13 | AM25: 2.68 | AN25: 2.52 | AO25: 51.53 | AQ25: TRAVIS.HAMONIC | AR25: D | AS25: NYI | AT25: 72 | AU25: 1378.82 | AV25: 4 | AW25: 5 | AX25: 7 | AY25: 12 | AZ25: 16 | BA25: 9 | BB25: 0.17 | BC25: 0.22 | BD25: 0.3 | BE25: 0.52 | BF25: 0.7 | BG25: 0.39 | BH25: 280 | BI25: 12.18 | BJ25: 123 | BK25: 5.35 | BL25: 3.25 | BM25: =AU25/AT25 -> 19.15027778 | BN25: 1339.54 | BO25: 1294.1 | BP25: 58.29 | BQ25: 56.31 | BR25: 50.86 | BS25: 697.31 | BT25: 664.82 | BU25: 30.34 | BV25: 28.93 | BW25: 51.19 | BX25: 7.51 | BY25: 91.43 | BZ25: 98.94 | CA25: 52.09 | CB25: 56.94 | CC25: 2.27 | CD25: 2.48 | CE25: 47.78
A26: ZACH.PARISE | B26: L | C26: MIN | D26: 70 | E26: 999.19 | F26: 15 | G26: 5 | H26: 7 | I26: 12 | J26: 27 | K26: 20 | L26: 0.9 | M26: 0.3 | N26: 0.42 | O26: 0.72 | P26: 1.62 | Q26: 1.2 | R26: 236 | S26: 14.17 | T26: 148 | U26: 8.89 | V26: 10.14 | W26: 14.27414286 | X26: 956.62 | Y26: 960.66 | Z26: 57.44 | AA26: 57.69 | AB26: 49.89 | AC26: 534.65 | AD26: 492.88 | AE26: 32.1 | AF26: 29.6 | AG26: 52.03 | AH26: 6.18 | AI26: 93.93 | AJ26: 100.11 | AK26: 33.07 | AL26: 29.84 | AM26: 1.99 | AN26: 1.79 | AO26: 52.57 | AQ26: JARED.SPURGEON | AR26: D | AS26: MIN | AT26: 77 | AU26: 1378.25 | AV26: 6 | AW26: 3 | AX26: 3 | AY26: 6 | AZ26: 12 | BA26: 9 | BB26: 0.26 | BC26: 0.13 | BD26: 0.13 | BE26: 0.26 | BF26: 0.52 | BG26: 0.39 | BH26: 189 | BI26: 8.23 | BJ26: 94 | BK26: 4.09 | BL26: 6.38 | BM26: =AU26/AT26 -> 17.89935065 | BN26: 1248.69 | BO26: 1244.59 | BP26: 54.36 | BQ26: 54.18 | BR26: 50.08 | BS26: 697.98 | BT26: 623.36 | BU26: 30.39 | BV26: 27.14 | BW26: 52.82 | BX26: 7.9 | BY26: 92.03 | BZ26: 99.93 | CA26: 54.97 | CB26: 49.58 | CC26: 2.39 | CD26: 2.16 | CE26: 52.58
A27: DAVID.KREJCI | B27: C | C27: BOS | D27: 72 | E27: 1026.45 | F27: 11 | G27: 21 | H27: 5 | I27: 26 | J27: 37 | K27: 32 | L27: 0.64 | M27: 1.23 | N27: 0.29 | O27: 1.52 | P27: 2.16 | Q27: 1.87 | R27: 147 | S27: 8.59 | T27: 84 | U27: 4.91 | V27: 13.1 | W27: 14.25625 | X27: 964.31 | Y27: 945.75 | Z27: 56.37 | AA27: 55.28 | AB27: 50.49 | AC27: 521.35 | AD27: 503.55 | AE27: 30.48 | AF27: 29.43 | AG27: 50.87 | AH27: 9.37 | AI27: 92.9 | AJ27: 102.27 | AK27: 48.67 | AL27: 36.49 | AM27: 2.85 | AN27: 2.13 | AO27: 57.15 | AQ27: RYAN.MURRAY | AR27: D | AS27: CBJ | AT27: 82 | AU27: 1374.4 | AV27: 3 | AW27: 4 | AX27: 5 | AY27: 9 | AZ27: 12 | BA27: 7 | BB27: 0.13 | BC27: 0.17 | BD27: 0.22 | BE27: 0.39 | BF27: 0.52 | BG27: 0.31 | BH27: 122 | BI27: 5.33 | BJ27: 51 | BK27: 2.23 | BL27: 5.88 | BM27: =AU27/AT27 -> 16.76097561 | BN27: 1203.75 | BO27: 1367.64 | BP27: 52.55 | BQ27: 59.7 | BR27: 46.81 | BS27: 671.92 | BT27: 690.82 | BU27: 29.33 | BV27: 30.16 | BW27: 49.31 | BX27: 8.22 | BY27: 91.53 | BZ27: 99.76 | CA27: 55.49 | CB27: 58.4 | CC27: 2.42 | CD27: 2.55 | CE27: 48.72
A28: RYAN.NUGENT-HOPKINS | B28: C | C28: EDM | D28: 55 | E28: 782.86 | F28: 6 | G28: 9 | H28: 4 | I28: 13 | J28: 19 | K28: 15 | L28: 0.46 | M28: 0.69 | N28: 0.31 | O28: 1 | P28: 1.46 | Q28: 1.15 | R28: 147 | S28: 11.27 | T28: 74 | U28: 5.67 | V28: 8.11 | W28: 14.23381818 | X28: 713.61 | Y28: 802.28 | Z28: 54.69 | AA28: 61.49 | AB28: 47.08 | AC28: 371.21 | AD28: 445.17 | AE28: 28.45 | AF28: 34.12 | AG28: 45.47 | AH28: 8.49 | AI28: 91.14 | AJ28: 99.62 | AK28: 31.7 | AL28: 38.77 | AM28: 2.43 | AN28: 2.97 | AO28: 44.99 | AQ28: ALEX.PIETRANGELO | AR28: D | AS28: STL | AT28: 73 | AU28: 1371.11 | AV28: 5 | AW28: 13 | AX28: 5 | AY28: 18 | AZ28: 23 | BA28: 18 | BB28: 0.22 | BC28: 0.57 | BD28: 0.22 | BE28: 0.79 | BF28: 1.01 | BG28: 0.79 | BH28: 239 | BI28: 10.46 | BJ28: 131 | BK28: 5.73 | BL28: 3.82 | BM28: =AU28/AT28 -> 18.78232877 | BN28: 1354.14 | BO28: 1278.87 | BP28: 59.26 | BQ28: 55.96 | BR28: 51.43 | BS28: 768.42 | BT28: 705.29 | BU28: 33.63 | BV28: 30.86 | BW28: 52.14 | BX28: 6.87 | BY28: 94.48 | BZ28: 101.35 | CA28: 52.9 | CB28: 39.72 | CC28: 2.31 | CD28: 1.74 | CE28: 57.11
A29: MATT.DUCHENE | B29: C | C29: COL | D29: 76 | E29: 1079.45 | F29: 21 | G29: 11 | H29: 8 | I29: 19 | J29: 40 | K29: 32 | L29: 1.17 | M29: 0.61 | N29: 0.44 | O29: 1.06 | P29: 2.22 | Q29: 1.78 | R29: 239 | S29: 13.28 | T29: 144 | U29: 8 | V29: 14.58 | W29: 14.20328947 | X29: 987.62 | Y29: 1196.18 | Z29: 54.9 | AA29: 66.49 | AB29: 45.22 | AC29: 543.26 | AD29: 643.14 | AE29: 30.2 | AF29: 35.75 | AG29: 45.79 | AH29: 8.46 | AI29: 92.96 | AJ29: 101.41 | AK29: 46.48 | AL29: 45.36 | AM29: 2.58 | AN29: 2.52 | AO29: 50.61 | AQ29: TREVOR.VAN RIEMSDYK | AR29: D | AS29: CHI | AT29: 82 | AU29: 1368.29 | AV29: 2 | AW29: 6 | AX29: 1 | AY29: 7 | AZ29: 9 | BA29: 8 | BB29: 0.09 | BC29: 0.26 | BD29: 0.04 | BE29: 0.31 | BF29: 0.39 | BG29: 0.35 | BH29: 164 | BI29: 7.19 | BJ29: 67 | BK29: 2.94 | BL29: 2.99 | BM29: =AU29/AT29 -> 16.68646341 | BN29: 1266.6 | BO29: 1255.44 | BP29: 55.54 | BQ29: 55.05 | BR29: 50.22 | BS29: 677.06 | BT29: 662.49 | BU29: 29.69 | BV29: 29.05 | BW29: 50.54 | BX29: 6.72 | BY29: 92.22 | BZ29: 98.93 | CA29: 44.33 | CB29: 51.34 | CC29: 1.94 | CD29: 2.25 | CE29: 46.34
A30: STEVEN.STAMKOS | B30: C | C30: T.B | D30: 77 | E30: 1092.87 | F30: 17 | G30: 10 | H30: 4 | I30: 14 | J30: 31 | K30: 27 | L30: 0.93 | M30: 0.55 | N30: 0.22 | O30: 0.77 | P30: 1.7 | Q30: 1.48 | R30: 230 | S30: 12.63 | T30: 120 | U30: 6.59 | V30: 14.17 | W30: 14.19311688 | X30: 1057.23 | Y30: 985.5 | Z30: 58.04 | AA30: 54.11 | AB30: 51.76 | AC30: 519.25 | AD30: 533.32 | AE30: 28.51 | AF30: 29.28 | AG30: 49.33 | AH30: 9.11 | AI30: 93.1 | AJ30: 102.21 | AK30: 47.19 | AL30: 37.35 | AM30: 2.59 | AN30: 2.05 | AO30: 55.82 | AQ30: BRIAN.CAMPBELL | AR30: D | AS30: FLA | AT30: 82 | AU30: 1367.92 | AV30: 3 | AW30: 7 | AX30: 9 | AY30: 16 | AZ30: 19 | BA30: 10 | BB30: 0.13 | BC30: 0.31 | BD30: 0.39 | BE30: 0.7 | BF30: 0.83 | BG30: 0.44 | BH30: 134 | BI30: 5.88 | BJ30: 66 | BK30: 2.89 | BL30: 4.55 | BM30: =AU30/AT30 -> 16.68195122 | BN30: 1201.99 | BO30: 1059.51 | BP30: 52.72 | BQ30: 46.47 | BR30: 53.15 | BS30: 698.61 | BT30: 610.04 | BU30: 30.64 | BV30: 26.76 | BW30: 53.38 | BX30: 9.94 | BY30: 93.81 | BZ30: 103.75 | CA30: 69.39 | CB30: 38.24 | CC30: 3.04 | CD30: 1.68 | CE30: 64.47
A31: JOE.PAVELSKI | B31: C | C31: S.J | D31: 82 | E31: 1160.74 | F31: 24 | G31: 12 | H31: 6 | I31: 18 | J31: 42 | K31: 36 | L31: 1.24 | M31: 0.62 | N31: 0.31 | O31: 0.93 | P31: 2.17 | Q31: 1.86 | R31: 258 | S31: 13.34 | T31: 138 | U31: 7.13 | V31: 17.39 | W31: 14.15536585 | X31: 1223.36 | Y31: 981.85 | Z31: 63.24 | AA31: 50.75 | AB31: 55.48 | AC31: 650.74 | AD31: 480.6 | AE31: 33.64 | AF31: 24.84 | AG31: 57.52 | AH31: 10.03 | AI31: 93.58 | AJ31: 103.61 | AK31: 65.13 | AL31: 31.06 | AM31: 3.37 | AN31: 1.61 | AO31: 67.71 | AQ31: ANDREI.MARKOV | AR31: D | AS31: MTL | AT31: 82 | AU31: 1367.41 | AV31: 1 | AW31: 16 | AX31: 7 | AY31: 23 | AZ31: 24 | BA31: 17 | BB31: 0.04 | BC31: 0.7 | BD31: 0.31 | BE31: 1.01 | BF31: 1.05 | BG31: 0.75 | BH31: 207 | BI31: 9.08 | BJ31: 73 | BK31: 3.2 | BL31: 1.37 | BM31: =AU31/AT31 -> 16.67573171 | BN31: 1334.64 | BO31: 1309.04 | BP31: 58.56 | BQ31: 57.44 | BR31: 50.48 | BS31: 702.21 | BT31: 730.59 | BU31: 30.81 | BV31: 32.06 | BW31: 49.01 | BX31: 8.11 | BY31: 92.71 | BZ31: 100.82 | CA31: 58.03 | CB31: 52.88 | CC31: 2.55 | CD31: 2.32 | CE31: 52.32
A32: MARK.SCHEIFELE | B32: C | C32: WPG | D32: 71 | E32: 1002.69 | F32: 18 | G32: 17 | H32: 8 | I32: 25 | J32: 43 | K32: 35 | L32: 1.08 | M32: 1.02 | N32: 0.48 | O32: 1.5 | P32: 2.57 | Q32: 2.09 | R32: 234 | S32: 14 | T32: 139 | U32: 8.32 | V32: 12.95 | W32: 14.12239437 | X32: 1048.05 | Y32: 909.68 | Z32: 62.71 | AA32: 54.43 | AB32: 53.53 | AC32: 558.54 | AD32: 485.76 | AE32: 33.42 | AF32: 29.07 | AG32: 53.48 | AH32: 10.18 | AI32: 91.91 | AJ32: 102.09 | AK32: 56.56 | AL32: 39.1 | AM32: 3.38 | AN32: 2.34 | AO32: 59.13 | AQ32: BRENT.SEABROOK | AR32: D | AS32: CHI | AT32: 81 | AU32: 1359.65 | AV32: 6 | AW32: 4 | AX32: 5 | AY32: 9 | AZ32: 15 | BA32: 10 | BB32: 0.26 | BC32: 0.18 | BD32: 0.22 | BE32: 0.4 | BF32: 0.66 | BG32: 0.44 | BH32: 228 | BI32: 10.06 | BJ32: 102 | BK32: 4.5 | BL32: 5.88 | BM32: =AU32/AT32 -> 16.78580247 | BN32: 1273.16 | BO32: 1374.24 | BP32: 56.18 | BQ32: 60.64 | BR32: 48.09 | BS32: 701.35 | BT32: 741.41 | BU32: 30.95 | BV32: 32.72 | BW32: 48.61 | BX32: 6.35 | BY32: 93.75 | BZ32: 100.1 | CA32: 43.71 | CB32: 46.12 | CC32: 1.93 | CD32: 2.04 | CE32: 48.66
A33: NAZEM.KADRI | B33: C | C33: TOR | D33: 76 | E33: 1072.55 | F33: 9 | G33: 9 | H33: 2 | I33: 11 | J33: 20 | K33: 18 | L33: 0.5 | M33: 0.5 | N33: 0.11 | O33: 0.62 | P33: 1.12 | Q33: 1.01 | R33: 342 | S33: 19.13 | T33: 199 | U33: 11.13 | V33: 4.52 | W33: 14.1125 | X33: 1122.12 | Y33: 1060.38 | Z33: 62.77 | AA33: 59.32 | AB33: 51.41 | AC33: 568.12 | AD33: 566.73 | AE33: 31.78 | AF33: 31.7 | AG33: 50.06 | AH33: 5.72 | AI33: 91.02 | AJ33: 96.74 | AK33: 33.08 | AL33: 50.19 | AM33: 1.85 | AN33: 2.81 | AO33: 39.73 | AQ33: JACOB.TROUBA | AR33: D | AS33: WPG | AT33: 81 | AU33: 1359.58 | AV33: 5 | AW33: 4 | AX33: 4 | AY33: 8 | AZ33: 13 | BA33: 9 | BB33: 0.22 | BC33: 0.18 | BD33: 0.18 | BE33: 0.35 | BF33: 0.57 | BG33: 0.4 | BH33: 222 | BI33: 9.8 | BJ33: 104 | BK33: 4.59 | BL33: 4.81 | BM33: =AU33/AT33 -> 16.78493827 | BN33: 1309.76 | BO33: 1242.64 | BP33: 57.8 | BQ33: 54.84 | BR33: 51.31 | BS33: 714.48 | BT33: 635.37 | BU33: 31.53 | BV33: 28.04 | BW33: 52.93 | BX33: 7.57 | BY33: 92.69 | BZ33: 100.26 | CA33: 54.27 | CB33: 46.31 | CC33: 2.39 | CD33: 2.04 | CE33: 53.96
A34: KYLE.OKPOSO | B34: R | C34: NYI | D34: 79 | E34: 1114.79 | F34: 11 | G34: 14 | H34: 9 | I34: 23 | J34: 34 | K34: 25 | L34: 0.59 | M34: 0.75 | N34: 0.48 | O34: 1.24 | P34: 1.83 | Q34: 1.35 | R34: 272 | S34: 14.64 | T34: 150 | U34: 8.07 | V34: 7.33 | W34: 14.11126582 | X34: 1057.35 | Y34: 1022.1 | Z34: 56.91 | AA34: 55.01 | AB34: 50.85 | AC34: 548.75 | AD34: 513.7 | AE34: 29.53 | AF34: 27.65 | AG34: 51.65 | AH34: 7.83 | AI34: 91.99 | AJ34: 99.82 | AK34: 43.27 | AL34: 40.83 | AM34: 2.33 | AN34: 2.2 | AO34: 51.45 | AQ34: ANDREJ.SEKERA | AR34: D | AS34: EDM | AT34: 81 | AU34: 1353.24 | AV34: 1 | AW34: 3 | AX34: 5 | AY34: 8 | AZ34: 9 | BA34: 4 | BB34: 0.04 | BC34: 0.13 | BD34: 0.22 | BE34: 0.35 | BF34: 0.4 | BG34: 0.18 | BH34: 241 | BI34: 10.69 | BJ34: 97 | BK34: 4.3 | BL34: 1.03 | BM34: =AU34/AT34 -> 16.70666667 | BN34: 1238.35 | BO34: 1344.25 | BP34: 54.91 | BQ34: 59.6 | BR34: 47.95 | BS34: 659.59 | BT34: 704.82 | BU34: 29.24 | BV34: 31.25 | BW34: 48.34 | BX34: 6.57 | BY34: 91.39 | BZ34: 97.96 | CA34: 43.7 | CB34: 60.27 | CC34: 1.94 | CD34: 2.67 | CE34: 42.03
A35: JORDAN.EBERLE | B35: C | C35: EDM | D35: 69 | E35: 972.86 | F35: 16 | G35: 8 | H35: 7 | I35: 15 | J35: 31 | K35: 24 | L35: 0.99 | M35: 0.49 | N35: 0.43 | O35: 0.93 | P35: 1.91 | Q35: 1.48 | R35: 217 | S35: 13.38 | T35: 120 | U35: 7.4 | V35: 13.33 | W35: 14.09942029 | X35: 971.89 | Y35: 954.04 | Z35: 59.94 | AA35: 58.84 | AB35: 50.46 | AC35: 530.03 | AD35: 527.84 | AE35: 32.69 | AF35: 32.55 | AG35: 50.1 | AH35: 7.48 | AI35: 90.79 | AJ35: 98.26 | AK35: 40.23 | AL35: 47.82 | AM35: 2.48 | AN35: 2.95 | AO35: 45.69 | AQ35: JOHNNY.ODUYA | AR35: D | AS35: DAL | AT35: 82 | AU35: 1349.25 | AV35: 3 | AW35: 8 | AX35: 6 | AY35: 14 | AZ35: 17 | BA35: 11 | BB35: 0.13 | BC35: 0.36 | BD35: 0.27 | BE35: 0.62 | BF35: 0.76 | BG35: 0.49 | BH35: 185 | BI35: 8.23 | BJ35: 60 | BK35: 2.67 | BL35: 5 | BM35: =AU35/AT35 -> 16.45426829 | BN35: 1297.21 | BO35: 1245.56 | BP35: 57.69 | BQ35: 55.39 | BR35: 51.02 | BS35: 650.9 | BT35: 638.86 | BU35: 28.95 | BV35: 28.41 | BW35: 50.47 | BX35: 6.93 | BY35: 91.95 | BZ35: 98.88 | CA35: 44.46 | CB35: 51.35 | CC35: 1.98 | CD35: 2.28 | CE35: 46.4
A36: EVGENI.MALKIN | B36: C | C36: PIT | D36: 57 | E36: 801.11 | F36: 13 | G36: 9 | H36: 3 | I36: 12 | J36: 25 | K36: 22 | L36: 0.97 | M36: 0.67 | N36: 0.22 | O36: 0.9 | P36: 1.87 | Q36: 1.65 | R36: 160 | S36: 11.98 | T36: 84 | U36: 6.29 | V36: 15.48 | W36: 14.0545614 | X36: 806.03 | Y36: 679.99 | Z36: 60.37 | AA36: 50.93 | AB36: 54.24 | AC36: 461.68 | AD36: 414.57 | AE36: 34.58 | AF36: 31.05 | AG36: 52.69 | AH36: 6.9 | AI36: 92.98 | AJ36: 99.87 | AK36: 31.75 | AL36: 29.65 | AM36: 2.38 | AN36: 2.22 | AO36: 51.71 | AQ36: JOHN.KLINGBERG | AR36: D | AS36: DAL | AT36: 76 | AU36: 1349 | AV36: 4 | AW36: 13 | AX36: 12 | AY36: 25 | AZ36: 29 | BA36: 17 | BB36: 0.18 | BC36: 0.58 | BD36: 0.53 | BE36: 1.11 | BF36: 1.29 | BG36: 0.76 | BH36: 261 | BI36: 11.61 | BJ36: 124 | BK36: 5.52 | BL36: 3.23 | BM36: =AU36/AT36 -> 17.75 | BN36: 1585.64 | BO36: 1258.79 | BP36: 70.53 | BQ36: 55.99 | BR36: 55.75 | BS36: 822.38 | BT36: 663.83 | BU36: 36.58 | BV36: 29.53 | BW36: 55.33 | BX36: 8.44 | BY36: 92.34 | BZ36: 100.78 | CA36: 69.6 | CB36: 50.46 | CC36: 3.1 | CD36: 2.24 | CE36: 57.97
A37: NATHAN.MACKINNON | B37: C | C37: COL | D37: 72 | E37: 1011.41 | F37: 10 | G37: 7 | H37: 11 | I37: 18 | J37: 28 | K37: 17 | L37: 0.59 | M37: 0.42 | N37: 0.65 | O37: 1.07 | P37: 1.66 | Q37: 1.01 | R37: 292 | S37: 17.32 | T37: 174 | U37: 10.32 | V37: 5.75 | W37: 14.04736111 | X37: 974.08 | Y37: 1112.45 | Z37: 57.79 | AA37: 65.99 | AB37: 46.68 | AC37: 558.14 | AD37: 581.15 | AE37: 33.11 | AF37: 34.48 | AG37: 48.99 | AH37: 8.12 | AI37: 92.92 | AJ37: 101.04 | AK37: 44.93 | AL37: 41.44 | AM37: 2.67 | AN37: 2.46 | AO37: 52.02 | AQ37: MATTIAS.EKHOLM | AR37: D | AS37: NSH | AT37: 82 | AU37: 1338.06 | AV37: 4 | AW37: 9 | AX37: 11 | AY37: 20 | AZ37: 24 | BA37: 13 | BB37: 0.18 | BC37: 0.4 | BD37: 0.49 | BE37: 0.9 | BF37: 1.08 | BG37: 0.58 | BH37: 200 | BI37: 8.97 | BJ37: 90 | BK37: 4.04 | BL37: 4.44 | BM37: =AU37/AT37 -> 16.31780488 | BN37: 1215.76 | BO37: 1038.83 | BP37: 54.52 | BQ37: 46.58 | BR37: 53.92 | BS37: 648.66 | BT37: 558.49 | BU37: 29.09 | BV37: 25.04 | BW37: 53.73 | BX37: 8.96 | BY37: 91.71 | BZ37: 100.68 | CA37: 57.78 | CB37: 46.26 | CC37: 2.59 | CD37: 2.07 | CE37: 55.54
A38: ALEX.STEEN | B38: C | C38: STL | D38: 67 | E38: 941.04 | F38: 12 | G38: 7 | H38: 6 | I38: 13 | J38: 25 | K38: 19 | L38: 0.77 | M38: 0.45 | N38: 0.38 | O38: 0.83 | P38: 1.59 | Q38: 1.21 | R38: 178 | S38: 11.35 | T38: 110 | U38: 7.01 | V38: 10.91 | W38: 14.04537313 | X38: 884.61 | Y38: 875.85 | Z38: 56.4 | AA38: 55.84 | AB38: 50.25 | AC38: 487.76 | AD38: 452.74 | AE38: 31.1 | AF38: 28.87 | AG38: 51.86 | AH38: 7.6 | AI38: 93.39 | AJ38: 100.99 | AK38: 36.95 | AL38: 30.15 | AM38: 2.36 | AN38: 1.92 | AO38: 55.06 | AQ38: PAUL.MARTIN | AR38: D | AS38: S.J | AT38: 78 | AU38: 1333.82 | AV38: 1 | AW38: 7 | AX38: 7 | AY38: 14 | AZ38: 15 | BA38: 8 | BB38: 0.04 | BC38: 0.31 | BD38: 0.31 | BE38: 0.63 | BF38: 0.67 | BG38: 0.36 | BH38: 110 | BI38: 4.95 | BJ38: 40 | BK38: 1.8 | BL38: 2.5 | BM38: =AU38/AT38 -> 17.10025641 | BN38: 1288.95 | BO38: 1193.67 | BP38: 57.98 | BQ38: 53.7 | BR38: 51.92 | BS38: 682.88 | BT38: 615.84 | BU38: 30.72 | BV38: 27.7 | BW38: 52.58 | BX38: 7.68 | BY38: 92.94 | BZ38: 100.62 | CA38: 52.37 | CB38: 44.43 | CC38: 2.36 | CD38: 2 | CE38: 54.1
A39: NICKLAS.BACKSTROM | B39: C | C39: WSH | D39: 75 | E39: 1052.02 | F39: 13 | G39: 17 | H39: 4 | I39: 21 | J39: 34 | K39: 30 | L39: 0.74 | M39: 0.97 | N39: 0.23 | O39: 1.2 | P39: 1.94 | Q39: 1.71 | R39: 168 | S39: 9.58 | T39: 95 | U39: 5.42 | V39: 13.68 | W39: 14.02693333 | X39: 1062.37 | Y39: 957.96 | Z39: 60.59 | AA39: 54.64 | AB39: 52.58 | AC39: 539.5 | AD39: 463.52 | AE39: 30.77 | AF39: 26.44 | AG39: 53.79 | AH39: 8.21 | AI39: 94.86 | AJ39: 103.07 | AK39: 44.37 | AL39: 24.34 | AM39: 2.53 | AN39: 1.39 | AO39: 64.58 | AQ39: KRIS.LETANG | AR39: D | AS39: PIT | AT39: 71 | AU39: 1333.01 | AV39: 8 | AW39: 6 | AX39: 11 | AY39: 17 | AZ39: 25 | BA39: 14 | BB39: 0.36 | BC39: 0.27 | BD39: 0.5 | BE39: 0.77 | BF39: 1.13 | BG39: 0.63 | BH39: 283 | BI39: 12.74 | BJ39: 141 | BK39: 6.35 | BL39: 5.67 | BM39: =AU39/AT39 -> 18.77478873 | BN39: 1429.21 | BO39: 1169.08 | BP39: 64.33 | BQ39: 52.62 | BR39: 55.01 | BS39: 766.29 | BT39: 614.03 | BU39: 34.49 | BV39: 27.64 | BW39: 55.52 | BX39: 6.79 | BY39: 91.91 | BZ39: 98.7 | CA39: 51.73 | CB39: 49.94 | CC39: 2.33 | CD39: 2.25 | CE39: 50.88
A40: PAUL.STASTNY | B40: C | C40: STL | D40: 64 | E40: 896.69 | F40: 8 | G40: 10 | H40: 11 | I40: 21 | J40: 29 | K40: 18 | L40: 0.54 | M40: 0.67 | N40: 0.74 | O40: 1.41 | P40: 1.94 | Q40: 1.2 | R40: 139 | S40: 9.3 | T40: 81 | U40: 5.42 | V40: 9.88 | W40: 14.01078125 | X40: 969.27 | Y40: 827.87 | Z40: 64.86 | AA40: 55.4 | AB40: 53.93 | AC40: 529.42 | AD40: 468.14 | AE40: 35.43 | AF40: 31.32 | AG40: 53.07 | AH40: 7.68 | AI40: 92.8 | AJ40: 100.47 | AK40: 40.15 | AL40: 34.19 | AM40: 2.69 | AN40: 2.29 | AO40: 54.01 | AQ40: KEITH.YANDLE | AR40: D | AS40: NYR | AT40: 82 | AU40: 1331.86 | AV40: 2 | AW40: 10 | AX40: 10 | AY40: 20 | AZ40: 22 | BA40: 12 | BB40: 0.09 | BC40: 0.45 | BD40: 0.45 | BE40: 0.9 | BF40: 0.99 | BG40: 0.54 | BH40: 237 | BI40: 10.68 | BJ40: 95 | BK40: 4.28 | BL40: 2.11 | BM40: =AU40/AT40 -> 16.24219512 | BN40: 1242.46 | BO40: 1192.65 | BP40: 55.97 | BQ40: 53.73 | BR40: 51.02 | BS40: 628.93 | BT40: 635.85 | BU40: 28.33 | BV40: 28.64 | BW40: 49.73 | BX40: 8.19 | BY40: 93.8 | BZ40: 101.98 | CA40: 50.26 | CB40: 39.92 | CC40: 2.26 | CD40: 1.8 | CE40: 55.74
A41: RYAN.GETZLAF | B41: C | C41: ANA | D41: 77 | E41: 1078.45 | F41: 4 | G41: 13 | H41: 12 | I41: 25 | J41: 29 | K41: 17 | L41: 0.22 | M41: 0.72 | N41: 0.67 | O41: 1.39 | P41: 1.61 | Q41: 0.95 | R41: 233 | S41: 12.96 | T41: 115 | U41: 6.4 | V41: 3.48 | W41: 14.00584416 | X41: 1100.86 | Y41: 896.37 | Z41: 61.25 | AA41: 49.87 | AB41: 55.12 | AC41: 559.54 | AD41: 453.65 | AE41: 31.13 | AF41: 25.24 | AG41: 55.23 | AH41: 7.18 | AI41: 92.75 | AJ41: 99.93 | AK41: 40.35 | AL41: 32.77 | AM41: 2.25 | AN41: 1.82 | AO41: 55.19 | AQ41: JUSTIN.BRAUN | AR41: D | AS41: S.J | AT41: 80 | AU41: 1330.03 | AV41: 2 | AW41: 10 | AX41: 8 | AY41: 18 | AZ41: 20 | BA41: 12 | BB41: 0.09 | BC41: 0.45 | BD41: 0.36 | BE41: 0.81 | BF41: 0.9 | BG41: 0.54 | BH41: 217 | BI41: 9.79 | BJ41: 102 | BK41: 4.6 | BL41: 1.96 | BM41: =AU41/AT41 -> 16.625375 | BN41: 1192.15 | BO41: 1092.14 | BP41: 53.78 | BQ41: 49.27 | BR41: 52.19 | BS41: 624.33 | BT41: 535.28 | BU41: 28.16 | BV41: 24.15 | BW41: 53.84 | BX41: 8.72 | BY41: 91.11 | BZ41: 99.83 | CA41: 54.34 | CB41: 47.9 | CC41: 2.45 | CD41: 2.16 | CE41: 53.15
A42: JONATHAN.TOEWS | B42: C | C42: CHI | D42: 80 | E42: 1119.58 | F42: 11 | G42: 12 | H42: 7 | I42: 19 | J42: 30 | K42: 23 | L42: 0.59 | M42: 0.64 | N42: 0.38 | O42: 1.02 | P42: 1.61 | Q42: 1.23 | R42: 195 | S42: 10.45 | T42: 127 | U42: 6.81 | V42: 8.66 | W42: 13.99475 | X42: 1107.09 | Y42: 1038.07 | Z42: 59.33 | AA42: 55.63 | AB42: 51.61 | AC42: 593.24 | AD42: 550.72 | AE42: 31.79 | AF42: 29.51 | AG42: 51.86 | AH42: 6.66 | AI42: 93 | AJ42: 99.65 | AK42: 38.48 | AL42: 38.47 | AM42: 2.06 | AN42: 2.06 | AO42: 50.01 | AQ42: HAMPUS.LINDHOLM | AR42: D | AS42: ANA | AT42: 80 | AU42: 1329.96 | AV42: 2 | AW42: 4 | AX42: 3 | AY42: 7 | AZ42: 9 | BA42: 6 | BB42: 0.09 | BC42: 0.18 | BD42: 0.14 | BE42: 0.32 | BF42: 0.41 | BG42: 0.27 | BH42: 204 | BI42: 9.2 | BJ42: 91 | BK42: 4.11 | BL42: 2.2 | BM42: =AU42/AT42 -> 16.6245 | BN42: 1379 | BO42: 999.96 | BP42: 62.21 | BQ42: 45.11 | BR42: 57.97 | BS42: 733.07 | BT42: 517.32 | BU42: 33.07 | BV42: 23.34 | BW42: 58.63 | BX42: 5.65 | BY42: 92.76 | BZ42: 98.41 | CA42: 41.05 | CB42: 37.7 | CC42: 1.85 | CD42: 1.7 | CE42: 52.13
A43: BLAKE.WHEELER | B43: R | C43: WPG | D43: 82 | E43: 1143.32 | F43: 16 | G43: 26 | H43: 6 | I43: 32 | J43: 48 | K43: 42 | L43: 0.84 | M43: 1.36 | N43: 0.31 | O43: 1.68 | P43: 2.52 | Q43: 2.2 | R43: 324 | S43: 17 | T43: 189 | U43: 9.92 | V43: 8.47 | W43: 13.94292683 | X43: 1214.12 | Y43: 1010.92 | Z43: 63.72 | AA43: 53.05 | AB43: 54.57 | AC43: 644.53 | AD43: 562.23 | AE43: 33.82 | AF43: 29.51 | AG43: 53.41 | AH43: 9.24 | AI43: 92.29 | AJ43: 101.54 | AK43: 59.81 | AL43: 42.51 | AM43: 3.14 | AN43: 2.23 | AO43: 58.45 | AQ43: JOSH.GORGES | AR43: D | AS43: BUF | AT43: 77 | AU43: 1321.82 | AV43: 2 | AW43: 2 | AX43: 8 | AY43: 10 | AZ43: 12 | BA43: 4 | BB43: 0.09 | BC43: 0.09 | BD43: 0.36 | BE43: 0.45 | BF43: 0.54 | BG43: 0.18 | BH43: 137 | BI43: 6.22 | BJ43: 57 | BK43: 2.59 | BL43: 3.51 | BM43: =AU43/AT43 -> 17.16649351 | BN43: 1077.8 | BO43: 1347.35 | BP43: 48.92 | BQ43: 61.16 | BR43: 44.44 | BS43: 588.38 | BT43: 717.53 | BU43: 26.71 | BV43: 32.57 | BW43: 45.06 | BX43: 6.23 | BY43: 92.91 | BZ43: 99.14 | CA43: 36.5 | CB43: 50.65 | CC43: 1.66 | CD43: 2.3 | CE43: 41.88
A44: CONNOR.MCDAVID | B44: C | C44: EDM | D44: 45 | E44: 627.18 | F44: 12 | G44: 9 | H44: 8 | I44: 17 | J44: 29 | K44: 21 | L44: 1.15 | M44: 0.86 | N44: 0.77 | O44: 1.63 | P44: 2.77 | Q44: 2.01 | R44: 110 | S44: 10.52 | T44: 76 | U44: 7.27 | V44: 15.79 | W44: 13.93733333 | X44: 625.04 | Y44: 604.81 | Z44: 59.79 | AA44: 57.86 | AB44: 50.82 | AC44: 350.71 | AD44: 323.92 | AE44: 33.55 | AF44: 30.99 | AG44: 51.99 | AH44: 10.17 | AI44: 88.99 | AJ44: 99.16 | AK44: 36.17 | AL44: 35.53 | AM44: 3.46 | AN44: 3.4 | AO44: 50.44 | AQ44: DANNY.DEKEYSER | AR44: D | AS44: DET | AT44: 78 | AU44: 1318.67 | AV44: 6 | AW44: 5 | AX44: 4 | AY44: 9 | AZ44: 15 | BA44: 11 | BB44: 0.27 | BC44: 0.23 | BD44: 0.18 | BE44: 0.41 | BF44: 0.68 | BG44: 0.5 | BH44: 131 | BI44: 5.96 | BJ44: 64 | BK44: 2.91 | BL44: 9.38 | BM44: =AU44/AT44 -> 16.90602564 | BN44: 1109.08 | BO44: 1161.49 | BP44: 50.46 | BQ44: 52.85 | BR44: 48.85 | BS44: 627.99 | BT44: 670.84 | BU44: 28.57 | BV44: 30.52 | BW44: 48.35 | BX44: 6.52 | BY44: 92.97 | BZ44: 99.49 | CA44: 41.08 | CB44: 47.04 | CC44: 1.87 | CD44: 2.14 | CE44: 46.62
A45: DERICK.BRASSARD | B45: C | C45: NYR | D45: 80 | E45: 1114.46 | F45: 16 | G45: 11 | H45: 4 | I45: 15 | J45: 31 | K45: 27 | L45: 0.86 | M45: 0.59 | N45: 0.22 | O45: 0.81 | P45: 1.67 | Q45: 1.45 | R45: 205 | S45: 11.04 | T45: 118 | U45: 6.35 | V45: 13.56 | W45: 13.93075 | X45: 1015.17 | Y45: 1095.09 | Z45: 54.65 | AA45: 58.96 | AB45: 48.11 | AC45: 520.3 | AD45: 551.24 | AE45: 28.01 | AF45: 29.68 | AG45: 48.56 | AH45: 9.73 | AI45: 93.74 | AJ45: 103.47 | AK45: 49.08 | AL45: 35.03 | AM45: 2.64 | AN45: 1.89 | AO45: 58.36 | AQ45: JAKE.GARDINER | AR45: D | AS45: TOR | AT45: 79 | AU45: 1318.14 | AV45: 5 | AW45: 5 | AX45: 5 | AY45: 10 | AZ45: 15 | BA45: 10 | BB45: 0.23 | BC45: 0.23 | BD45: 0.23 | BE45: 0.46 | BF45: 0.68 | BG45: 0.46 | BH45: 239 | BI45: 10.88 | BJ45: 92 | BK45: 4.19 | BL45: 5.43 | BM45: =AU45/AT45 -> 16.68531646 | BN45: 1328.6 | BO45: 1216.71 | BP45: 60.48 | BQ45: 55.38 | BR45: 52.2 | BS45: 689.43 | BT45: 681.14 | BU45: 31.38 | BV45: 31 | BW45: 50.3 | BX45: 5.99 | BY45: 92.07 | BZ45: 98.06 | CA45: 42.49 | CB45: 53.64 | CC45: 1.93 | CD45: 2.44 | CE45: 44.2
A46: JAMIE.BENN | B46: L | C46: DAL | D46: 82 | E46: 1138.3 | F46: 16 | G46: 13 | H46: 13 | I46: 26 | J46: 42 | K46: 29 | L46: 0.84 | M46: 0.69 | N46: 0.69 | O46: 1.37 | P46: 2.21 | Q46: 1.53 | R46: 281 | S46: 14.81 | T46: 159 | U46: 8.38 | V46: 10.06 | W46: 13.88170732 | X46: 1232.06 | Y46: 1068.6 | Z46: 64.94 | AA46: 56.33 | AB46: 53.55 | AC46: 636.9 | AD46: 556.52 | AE46: 33.57 | AF46: 29.33 | AG46: 53.37 | AH46: 8.91 | AI46: 89.51 | AJ46: 98.42 | AK46: 56.45 | AL46: 57.18 | AM46: 2.98 | AN46: 3.01 | AO46: 49.68 | AQ46: BRAYDEN.MCNABB | AR46: D | AS46: L.A | AT46: 81 | AU46: 1311.64 | AV46: 2 | AW46: 5 | AX46: 5 | AY46: 10 | AZ46: 12 | BA46: 7 | BB46: 0.09 | BC46: 0.23 | BD46: 0.23 | BE46: 0.46 | BF46: 0.55 | BG46: 0.32 | BH46: 217 | BI46: 9.93 | BJ46: 86 | BK46: 3.93 | BL46: 2.33 | BM46: =AU46/AT46 -> 16.19308642 | BN46: 1419.61 | BO46: 986.78 | BP46: 64.94 | BQ46: 45.14 | BR46: 58.99 | BS46: 736.45 | BT46: 557.89 | BU46: 33.69 | BV46: 25.52 | BW46: 56.9 | BX46: 6.32 | BY46: 93.35 | BZ46: 99.66 | CA46: 46.1 | CB46: 38.33 | CC46: 2.11 | CD46: 1.75 | CE46: 54.6
A47: DAVID.BACKES | B47: R | C47: STL | D47: 79 | E47: 1096.23 | F47: 8 | G47: 12 | H47: 5 | I47: 17 | J47: 25 | K47: 20 | L47: 0.44 | M47: 0.66 | N47: 0.27 | O47: 0.93 | P47: 1.37 | Q47: 1.09 | R47: 211 | S47: 11.55 | T47: 125 | U47: 6.84 | V47: 6.4 | W47: 13.87632911 | X47: 1035.22 | Y47: 958.79 | Z47: 56.66 | AA47: 52.48 | AB47: 51.92 | AC47: 587.83 | AD47: 504.46 | AE47: 32.17 | AF47: 27.61 | AG47: 53.82 | AH47: 6.02 | AI47: 93.91 | AJ47: 99.93 | AK47: 35.7 | AL47: 31.04 | AM47: 1.95 | AN47: 1.7 | AO47: 53.49 | AQ47: SETH.JONES | AR47: D | AS47: CBJ/NSH | AT47: 81 | AU47: 1311.12 | AV47: 2 | AW47: 9 | AX47: 6 | AY47: 15 | AZ47: 17 | BA47: 11 | BB47: 0.09 | BC47: 0.41 | BD47: 0.27 | BE47: 0.69 | BF47: 0.78 | BG47: 0.5 | BH47: 276 | BI47: 12.63 | BJ47: 124 | BK47: 5.67 | BL47: 1.61 | BM47: =AU47/AT47 -> 16.18666667 | BN47: 1338.64 | BO47: 1219.15 | BP47: 61.26 | BQ47: 55.79 | BR47: 52.34 | BS47: 707.26 | BT47: 628.15 | BU47: 32.37 | BV47: 28.75 | BW47: 52.96 | BX47: 5.87 | BY47: 91.81 | BZ47: 97.69 | CA47: 41.41 | CB47: 51.26 | CC47: 1.89 | CD47: 2.35 | CE47: 44.69
A48: EVGENY.KUZNETSOV | B48: C | C48: WSH | D48: 82 | E48: 1137.13 | F48: 11 | G48: 29 | H48: 11 | I48: 40 | J48: 51 | K48: 40 | L48: 0.58 | M48: 1.53 | N48: 0.58 | O48: 2.11 | P48: 2.69 | Q48: 2.11 | R48: 224 | S48: 11.82 | T48: 143 | U48: 7.55 | V48: 7.69 | W48: 13.86743902 | X48: 1152.54 | Y48: 1023.24 | Z48: 60.81 | AA48: 53.99 | AB48: 52.97 | AC48: 651.91 | AD48: 534.57 | AE48: 34.4 | AF48: 28.21 | AG48: 54.94 | AH48: 10.22 | AI48: 91.4 | AJ48: 101.62 | AK48: 65.19 | AL48: 45.61 | AM48: 3.44 | AN48: 2.41 | AO48: 58.83 | AQ48: TJ.BRODIE | AR48: D | AS48: CGY | AT48: 70 | AU48: 1309.89 | AV48: 3 | AW48: 12 | AX48: 14 | AY48: 26 | AZ48: 29 | BA48: 15 | BB48: 0.14 | BC48: 0.55 | BD48: 0.64 | BE48: 1.19 | BF48: 1.33 | BG48: 0.69 | BH48: 151 | BI48: 6.92 | BJ48: 60 | BK48: 2.75 | BL48: 5 | BM48: =AU48/AT48 -> 18.71271429 | BN48: 1199.41 | BO48: 1226.63 | BP48: 54.94 | BQ48: 56.19 | BR48: 49.44 | BS48: 644.79 | BT48: 613.15 | BU48: 29.53 | BV48: 28.09 | BW48: 51.26 | BX48: 9.43 | BY48: 90.76 | BZ48: 100.19 | CA48: 61.04 | CB48: 56.37 | CC48: 2.8 | CD48: 2.58 | CE48: 51.99
A49: SEAN.MONAHAN | B49: C | C49: CGY | D49: 81 | E49: 1122.18 | F49: 19 | G49: 11 | H49: 7 | I49: 18 | J49: 37 | K49: 30 | L49: 1.02 | M49: 0.59 | N49: 0.37 | O49: 0.96 | P49: 1.98 | Q49: 1.6 | R49: 230 | S49: 12.3 | T49: 134 | U49: 7.16 | V49: 14.18 | W49: 13.85407407 | X49: 1005.88 | Y49: 1094.04 | Z49: 53.78 | AA49: 58.5 | AB49: 47.9 | AC49: 545.6 | AD49: 557.5 | AE49: 29.17 | AF49: 29.81 | AG49: 49.46 | AH49: 10.2 | AI49: 90.43 | AJ49: 100.63 | AK49: 54.99 | AL49: 52.98 | AM49: 2.94 | AN49: 2.83 | AO49: 50.93 | AQ49: TOREY.KRUG | AR49: D | AS49: BOS | AT49: 81 | AU49: 1306.76 | AV49: 3 | AW49: 14 | AX49: 5 | AY49: 19 | AZ49: 22 | BA49: 17 | BB49: 0.14 | BC49: 0.64 | BD49: 0.23 | BE49: 0.87 | BF49: 1.01 | BG49: 0.78 | BH49: 297 | BI49: 13.64 | BJ49: 151 | BK49: 6.93 | BL49: 1.99 | BM49: =AU49/AT49 -> 16.13283951 | BN49: 1273 | BO49: 1205.3 | BP49: 58.45 | BQ49: 55.34 | BR49: 51.37 | BS49: 723.84 | BT49: 651.8 | BU49: 33.24 | BV49: 29.93 | BW49: 52.62 | BX49: 7.59 | BY49: 93.43 | BZ49: 101.01 | CA49: 54.93 | CB49: 43.33 | CC49: 2.52 | CD49: 1.99 | CE49: 55.9
A50: VLADIMIR.TARASENKO | B50: R | C50: STL | D50: 80 | E50: 1105.55 | F50: 22 | G50: 11 | H50: 10 | I50: 21 | J50: 43 | K50: 33 | L50: 1.19 | M50: 0.6 | N50: 0.54 | O50: 1.14 | P50: 2.33 | Q50: 1.79 | R50: 386 | S50: 20.95 | T50: 210 | U50: 11.4 | V50: 10.48 | W50: 13.819375 | X50: 1179.64 | Y50: 1002.65 | Z50: 64.02 | AA50: 54.42 | AB50: 54.06 | AC50: 635.17 | AD50: 548.79 | AE50: 34.47 | AF50: 29.78 | AG50: 53.65 | AH50: 8.48 | AI50: 92.78 | AJ50: 101.26 | AK50: 52.71 | AL50: 40.04 | AM50: 2.86 | AN50: 2.17 | AO50: 56.83 | AQ50: VICTOR.HEDMAN | AR50: D | AS50: T.B | AT50: 78 | AU50: 1301.15 | AV50: 7 | AW50: 12 | AX50: 9 | AY50: 21 | AZ50: 28 | BA50: 19 | BB50: 0.32 | BC50: 0.55 | BD50: 0.42 | BE50: 0.97 | BF50: 1.29 | BG50: 0.88 | BH50: 291 | BI50: 13.42 | BJ50: 130 | BK50: 5.99 | BL50: 5.38 | BM50: =AU50/AT50 -> 16.68141026 | BN50: 1407.63 | BO50: 1059.89 | BP50: 64.91 | BQ50: 48.87 | BR50: 57.05 | BS50: 733.48 | BT50: 573.98 | BU50: 33.82 | BV50: 26.47 | BW50: 56.1 | BX50: 8.25 | BY50: 93.73 | BZ50: 101.98 | CA50: 60.19 | CB50: 36.43 | CC50: 2.78 | CD50: 1.68 | CE50: 62.3
A51: JAMES.VAN RIEMSDYK | B51: L | C51: TOR | D51: 40 | E51: 551.78 | F51: 8 | G51: 5 | H51: 3 | I51: 8 | J51: 16 | K51: 13 | L51: 0.87 | M51: 0.54 | N51: 0.33 | O51: 0.87 | P51: 1.74 | Q51: 1.41 | R51: 156 | S51: 16.96 | T51: 88 | U51: 9.57 | V51: 9.09 | W51: 13.7945 | X51: 605.05 | Y51: 512.93 | Z51: 65.79 | AA51: 55.78 | AB51: 54.12 | AC51: 295.92 | AD51: 286.04 | AE51: 32.18 | AF51: 31.1 | AG51: 50.85 | AH51: 7.72 | AI51: 93.31 | AJ51: 101.03 | AK51: 23.19 | AL51: 19.04 | AM51: 2.52 | AN51: 2.07 | AO51: 54.92 | AQ51: DOUGIE.HAMILTON | AR51: D | AS51: CGY | AT51: 82 | AU51: 1296.42 | AV51: 6 | AW51: 5 | AX51: 11 | AY51: 16 | AZ51: 22 | BA51: 11 | BB51: 0.28 | BC51: 0.23 | BD51: 0.51 | BE51: 0.74 | BF51: 1.02 | BG51: 0.51 | BH51: 246 | BI51: 11.39 | BJ51: 127 | BK51: 5.88 | BL51: 4.72 | BM51: =AU51/AT51 -> 15.81 | BN51: 1233.47 | BO51: 1301.9 | BP51: 57.09 | BQ51: 60.25 | BR51: 48.65 | BS51: 674.53 | BT51: 659.78 | BU51: 31.22 | BV51: 30.54 | BW51: 50.55 | BX51: 6.49 | BY51: 91.41 | BZ51: 97.9 | CA51: 43.72 | CB51: 56.61 | CC51: 2.02 | CD51: 2.62 | CE51: 43.57
A52: CHARLIE.COYLE | B52: C | C52: MIN | D52: 82 | E52: 1127.92 | F52: 15 | G52: 8 | H52: 6 | I52: 14 | J52: 29 | K52: 23 | L52: 0.8 | M52: 0.43 | N52: 0.32 | O52: 0.74 | P52: 1.54 | Q52: 1.22 | R52: 183 | S52: 9.73 | T52: 112 | U52: 5.96 | V52: 13.39 | W52: 13.75512195 | X52: 962.82 | Y52: 1053.99 | Z52: 51.22 | AA52: 56.07 | AB52: 47.74 | AC52: 497.23 | AD52: 528.66 | AE52: 26.45 | AF52: 28.12 | AG52: 48.47 | AH52: 7.85 | AI52: 93.02 | AJ52: 100.87 | AK52: 38.26 | AL52: 36.73 | AM52: 2.04 | AN52: 1.95 | AO52: 51.02 | AQ52: OLIVER.EKMAN-LARSSON | AR52: D | AS52: ARI | AT52: 75 | AU52: 1295.36 | AV52: 7 | AW52: 7 | AX52: 8 | AY52: 15 | AZ52: 22 | BA52: 14 | BB52: 0.32 | BC52: 0.32 | BD52: 0.37 | BE52: 0.69 | BF52: 1.02 | BG52: 0.65 | BH52: 273 | BI52: 12.65 | BJ52: 119 | BK52: 5.51 | BL52: 5.88 | BM52: =AU52/AT52 -> 17.27146667 | BN52: 1200.24 | BO52: 1213.72 | BP52: 55.59 | BQ52: 56.22 | BR52: 49.72 | BS52: 648.07 | BT52: 644.01 | BU52: 30.02 | BV52: 29.83 | BW52: 50.16 | BX52: 9.62 | BY52: 91.25 | BZ52: 100.87 | CA52: 62.22 | CB52: 55.8 | CC52: 2.88 | CD52: 2.58 | CE52: 52.72
A53: MIKAEL.GRANLUND | B53: C | C53: MIN | D53: 82 | E53: 1125.29 | F53: 8 | G53: 16 | H53: 2 | I53: 18 | J53: 26 | K53: 24 | L53: 0.43 | M53: 0.85 | N53: 0.11 | O53: 0.96 | P53: 1.39 | Q53: 1.28 | R53: 192 | S53: 10.24 | T53: 114 | U53: 6.08 | V53: 7.02 | W53: 13.72304878 | X53: 1081.51 | Y53: 1072.33 | Z53: 57.67 | AA53: 57.18 | AB53: 50.21 | AC53: 597.14 | AD53: 570.64 | AE53: 31.84 | AF53: 30.43 | AG53: 51.13 | AH53: 5.56 | AI53: 92.25 | AJ53: 97.82 | AK53: 33.43 | AL53: 43.88 | AM53: 1.78 | AN53: 2.34 | AO53: 43.24 | AQ53: AARON.EKBLAD | AR53: D | AS53: FLA | AT53: 78 | AU53: 1295.02 | AV53: 9 | AW53: 6 | AX53: 8 | AY53: 14 | AZ53: 23 | BA53: 15 | BB53: 0.42 | BC53: 0.28 | BD53: 0.37 | BE53: 0.65 | BF53: 1.07 | BG53: 0.69 | BH53: 208 | BI53: 9.64 | BJ53: 120 | BK53: 5.56 | BL53: 7.5 | BM53: =AU53/AT53 -> 16.60282051 | BN53: 1071.97 | BO53: 1011.96 | BP53: 49.67 | BQ53: 46.89 | BR53: 51.44 | BS53: 625.66 | BT53: 567.47 | BU53: 28.99 | BV53: 26.29 | BW53: 52.44 | BX53: 9.03 | BY53: 92.52 | BZ53: 101.55 | CA53: 56.26 | CB53: 43.16 | CC53: 2.61 | CD53: 2 | CE53: 56.59
A54: COREY.PERRY | B54: R | C54: ANA | D54: 82 | E54: 1125.21 | F54: 20 | G54: 12 | H54: 3 | I54: 15 | J54: 35 | K54: 32 | L54: 1.07 | M54: 0.64 | N54: 0.16 | O54: 0.8 | P54: 1.87 | Q54: 1.71 | R54: 291 | S54: 15.52 | T54: 159 | U54: 8.48 | V54: 12.58 | W54: 13.72207317 | X54: 1088.94 | Y54: 1000.26 | Z54: 58.07 | AA54: 53.34 | AB54: 52.12 | AC54: 565.3 | AD54: 533.71 | AE54: 30.14 | AF54: 28.46 | AG54: 51.44 | AH54: 8.04 | AI54: 92.94 | AJ54: 100.97 | AK54: 44.68 | AL54: 38.12 | AM54: 2.38 | AN54: 2.03 | AO54: 53.96 | AQ54: JOHN-MICHAEL.LILES | AR54: D | AS54: BOS/CAR | AT54: 81 | AU54: 1287.93 | AV54: 4 | AW54: 7 | AX54: 4 | AY54: 11 | AZ54: 15 | BA54: 11 | BB54: 0.19 | BC54: 0.33 | BD54: 0.19 | BE54: 0.51 | BF54: 0.7 | BG54: 0.51 | BH54: 171 | BI54: 7.97 | BJ54: 82 | BK54: 3.82 | BL54: 4.88 | BM54: =AU54/AT54 -> 15.90037037 | BN54: 1181.13 | BO54: 1093.07 | BP54: 55.02 | BQ54: 50.92 | BR54: 51.94 | BS54: 615.41 | BT54: 584.86 | BU54: 28.67 | BV54: 27.25 | BW54: 51.27 | BX54: 6.97 | BY54: 91.69 | BZ54: 98.66 | CA54: 42.21 | CB54: 49.01 | CC54: 1.97 | CD54: 2.28 | CE54: 46.27
A55: PATRICK.SHARP | B55: R | C55: DAL | D55: 76 | E55: 1041.31 | F55: 12 | G55: 12 | H55: 3 | I55: 15 | J55: 27 | K55: 24 | L55: 0.69 | M55: 0.69 | N55: 0.17 | O55: 0.86 | P55: 1.56 | Q55: 1.38 | R55: 295 | S55: 17 | T55: 165 | U55: 9.51 | V55: 7.27 | W55: 13.70144737 | X55: 1138.35 | Y55: 972.13 | Z55: 65.59 | AA55: 56.01 | AB55: 53.94 | AC55: 580.36 | AD55: 499.12 | AE55: 33.44 | AF55: 28.76 | AG55: 53.76 | AH55: 7.75 | AI55: 90.78 | AJ55: 98.53 | AK55: 44.85 | AL55: 45.16 | AM55: 2.58 | AN55: 2.6 | AO55: 49.83 | AQ55: JAKE.MCCABE | AR55: D | AS55: BUF | AT55: 77 | AU55: 1283.12 | AV55: 3 | AW55: 5 | AX55: 3 | AY55: 8 | AZ55: 11 | BA55: 8 | BB55: 0.14 | BC55: 0.23 | BD55: 0.14 | BE55: 0.37 | BF55: 0.51 | BG55: 0.37 | BH55: 137 | BI55: 6.41 | BJ55: 58 | BK55: 2.71 | BL55: 5.17 | BM55: =AU55/AT55 -> 16.6638961 | BN55: 1057.35 | BO55: 1207.05 | BP55: 49.44 | BQ55: 56.44 | BR55: 46.69 | BS55: 610.48 | BT55: 653.7 | BU55: 28.55 | BV55: 30.57 | BW55: 48.29 | BX55: 6.48 | BY55: 93.19 | BZ55: 99.67 | CA55: 40.59 | CB55: 44.34 | CC55: 1.9 | CD55: 2.07 | CE55: 47.79
A56: NIKITA.KUCHEROV | B56: R | C56: T.B | D56: 77 | E56: 1054.9 | F56: 16 | G56: 11 | H56: 6 | I56: 17 | J56: 33 | K56: 27 | L56: 0.91 | M56: 0.63 | N56: 0.34 | O56: 0.97 | P56: 1.88 | Q56: 1.54 | R56: 267 | S56: 15.19 | T56: 135 | U56: 7.68 | V56: 11.85 | W56: 13.7 | X56: 1075.25 | Y56: 891.71 | Z56: 61.16 | AA56: 50.72 | AB56: 54.67 | AC56: 545.99 | AD56: 487.81 | AE56: 31.05 | AF56: 27.75 | AG56: 52.81 | AH56: 8.66 | AI56: 93.46 | AJ56: 102.11 | AK56: 47.59 | AL56: 32.03 | AM56: 2.71 | AN56: 1.82 | AO56: 59.78 | AQ56: JAY.BOUWMEESTER | AR56: D | AS56: STL | AT56: 72 | AU56: 1280.27 | AV56: 2 | AW56: 6 | AX56: 8 | AY56: 14 | AZ56: 16 | BA56: 8 | BB56: 0.09 | BC56: 0.28 | BD56: 0.37 | BE56: 0.66 | BF56: 0.75 | BG56: 0.37 | BH56: 208 | BI56: 9.75 | BJ56: 91 | BK56: 4.26 | BL56: 2.2 | BM56: =AU56/AT56 -> 17.78152778 | BN56: 1200.86 | BO56: 1186.55 | BP56: 56.28 | BQ56: 55.61 | BR56: 50.3 | BS56: 686.46 | BT56: 645.4 | BU56: 32.17 | BV56: 30.25 | BW56: 51.54 | BX56: 6.38 | BY56: 93.68 | BZ56: 100.06 | CA56: 44.11 | CB56: 41.41 | CC56: 2.07 | CD56: 1.94 | CE56: 51.57
A57: BRAD.MARCHAND | B57: C | C57: BOS | D57: 77 | E57: 1054.13 | F57: 19 | G57: 11 | H57: 6 | I57: 17 | J57: 36 | K57: 30 | L57: 1.08 | M57: 0.63 | N57: 0.34 | O57: 0.97 | P57: 2.05 | Q57: 1.71 | R57: 293 | S57: 16.68 | T57: 187 | U57: 10.64 | V57: 10.16 | W57: 13.69 | X57: 1165.52 | Y57: 948.53 | Z57: 66.34 | AA57: 53.99 | AB57: 55.13 | AC57: 673.99 | AD57: 518.98 | AE57: 38.36 | AF57: 29.54 | AG57: 56.5 | AH57: 8.01 | AI57: 93.06 | AJ57: 101.08 | AK57: 54.17 | AL57: 36.24 | AM57: 3.08 | AN57: 2.06 | AO57: 59.92 | AQ57: RYAN.ELLIS | AR57: D | AS57: NSH | AT57: 79 | AU57: 1276.89 | AV57: 6 | AW57: 7 | AX57: 7 | AY57: 14 | AZ57: 20 | BA57: 13 | BB57: 0.28 | BC57: 0.33 | BD57: 0.33 | BE57: 0.66 | BF57: 0.94 | BG57: 0.61 | BH57: 216 | BI57: 10.15 | BJ57: 106 | BK57: 4.98 | BL57: 5.66 | BM57: =AU57/AT57 -> 16.16316456 | BN57: 1234.2 | BO57: 1013.81 | BP57: 57.99 | BQ57: 47.64 | BR57: 54.9 | BS57: 653.12 | BT57: 548.93 | BU57: 30.69 | BV57: 25.79 | BW57: 54.33 | BX57: 8.77 | BY57: 91.88 | BZ57: 100.65 | CA57: 56.98 | CB57: 44.96 | CC57: 2.68 | CD57: 2.11 | CE57: 55.89
A58: PHIL.KESSEL | B58: C | C58: PIT | D58: 82 | E58: 1122.41 | F58: 19 | G58: 12 | H58: 6 | I58: 18 | J58: 37 | K58: 31 | L58: 1.02 | M58: 0.64 | N58: 0.32 | O58: 0.96 | P58: 1.98 | Q58: 1.66 | R58: 315 | S58: 16.84 | T58: 183 | U58: 9.78 | V58: 10.38 | W58: 13.68792683 | X58: 1161.94 | Y58: 992.15 | Z58: 62.11 | AA58: 53.04 | AB58: 53.94 | AC58: 651.54 | AD58: 564.34 | AE58: 34.83 | AF58: 30.17 | AG58: 53.59 | AH58: 8.28 | AI58: 92.91 | AJ58: 101.19 | AK58: 53.73 | AL58: 40.67 | AM58: 2.87 | AN58: 2.17 | AO58: 56.92 | AQ58: MATT.BARTKOWSKI | AR58: D | AS58: VAN | AT58: 80 | AU58: 1275.52 | AV58: 5 | AW58: 3 | AX58: 7 | AY58: 10 | AZ58: 15 | BA58: 8 | BB58: 0.24 | BC58: 0.14 | BD58: 0.33 | BE58: 0.47 | BF58: 0.71 | BG58: 0.38 | BH58: 185 | BI58: 8.7 | BJ58: 82 | BK58: 3.86 | BL58: 6.1 | BM58: =AU58/AT58 -> 15.944 | BN58: 1082.33 | BO58: 1309.98 | BP58: 50.91 | BQ58: 61.62 | BR58: 45.24 | BS58: 588.78 | BT58: 787.6 | BU58: 27.7 | BV58: 37.05 | BW58: 42.78 | BX58: 6.76 | BY58: 92.44 | BZ58: 99.19 | CA58: 39.99 | CB58: 58.9 | CC58: 1.88 | CD58: 2.77 | CE58: 40.44
A59: T.J..OSHIE | B59: C | C59: WSH | D59: 80 | E59: 1094.57 | F59: 12 | G59: 9 | H59: 10 | I59: 19 | J59: 31 | K59: 21 | L59: 0.66 | M59: 0.49 | N59: 0.55 | O59: 1.04 | P59: 1.7 | Q59: 1.15 | R59: 226 | S59: 12.39 | T59: 131 | U59: 7.18 | V59: 9.16 | W59: 13.682125 | X59: 1082.39 | Y59: 1012.08 | Z59: 59.33 | AA59: 55.48 | AB59: 51.68 | AC59: 574.55 | AD59: 482.51 | AE59: 31.49 | AF59: 26.45 | AG59: 54.35 | AH59: 8.64 | AI59: 94.02 | AJ59: 102.66 | AK59: 48.95 | AL59: 29 | AM59: 2.68 | AN59: 1.59 | AO59: 62.8 | AQ59: MARC.STAAL | AR59: D | AS59: NYR | AT59: 77 | AU59: 1274.02 | AV59: 2 | AW59: 5 | AX59: 8 | AY59: 13 | AZ59: 15 | BA59: 7 | BB59: 0.09 | BC59: 0.24 | BD59: 0.38 | BE59: 0.61 | BF59: 0.71 | BG59: 0.33 | BH59: 137 | BI59: 6.45 | BJ59: 60 | BK59: 2.83 | BL59: 3.33 | BM59: =AU59/AT59 -> 16.54571429 | BN59: 1069.94 | BO59: 1244.49 | BP59: 50.39 | BQ59: 58.61 | BR59: 46.23 | BS59: 559.27 | BT59: 650.61 | BU59: 26.34 | BV59: 30.64 | BW59: 46.23 | BX59: 7.82 | BY59: 93.34 | BZ59: 101.16 | CA59: 42.92 | CB59: 44.33 | CC59: 2.02 | CD59: 2.09 | CE59: 49.19
A60: CLAUDE.GIROUX | B60: R | C60: PHI | D60: 78 | E60: 1065.89 | F60: 13 | G60: 9 | H60: 9 | I60: 18 | J60: 31 | K60: 22 | L60: 0.73 | M60: 0.51 | N60: 0.51 | O60: 1.01 | P60: 1.75 | Q60: 1.24 | R60: 245 | S60: 13.79 | T60: 143 | U60: 8.05 | V60: 9.09 | W60: 13.66525641 | X60: 1102.44 | Y60: 1035.24 | Z60: 62.06 | AA60: 58.27 | AB60: 51.57 | AC60: 576.47 | AD60: 576.83 | AE60: 32.45 | AF60: 32.47 | AG60: 49.98 | AH60: 6.83 | AI60: 93.02 | AJ60: 99.85 | AK60: 39.69 | AL60: 39.91 | AM60: 2.23 | AN60: 2.25 | AO60: 49.87 | AQ60: BRIAN.DUMOULIN | AR60: D | AS60: PIT | AT60: 79 | AU60: 1256.76 | AV60: 0 | AW60: 7 | AX60: 7 | AY60: 14 | AZ60: 14 | BA60: 7 | BB60: 0 | BC60: 0.33 | BD60: 0.33 | BE60: 0.67 | BF60: 0.67 | BG60: 0.33 | BH60: 181 | BI60: 8.64 | BJ60: 89 | BK60: 4.25 | BL60: 0 | BM60: =AU60/AT60 -> 15.90835443 | BN60: 1204.94 | BO60: 1061.17 | BP60: 57.53 | BQ60: 50.66 | BR60: 53.17 | BS60: 695.47 | BT60: 604.98 | BU60: 33.2 | BV60: 28.88 | BW60: 53.48 | BX60: 7.35 | BY60: 93.36 | BZ60: 100.7 | CA60: 51.07 | CB60: 39.99 | CC60: 2.44 | CD60: 1.91 | CE60: 56.09
A61: DREW.STAFFORD | B61: R | C61: WPG | D61: 78 | E61: 1064.86 | F61: 12 | G61: 6 | H61: 6 | I61: 12 | J61: 24 | K61: 18 | L61: 0.68 | M61: 0.34 | N61: 0.34 | O61: 0.68 | P61: 1.35 | Q61: 1.01 | R61: 226 | S61: 12.73 | T61: 150 | U61: 8.45 | V61: 8 | W61: 13.65205128 | X61: 960.81 | Y61: 926.95 | Z61: 54.14 | AA61: 52.23 | AB61: 50.9 | AC61: 540.93 | AD61: 506.68 | AE61: 30.48 | AF61: 28.55 | AG61: 51.63 | AH61: 6.63 | AI61: 88.82 | AJ61: 95.45 | AK61: 35.28 | AL61: 56.7 | AM61: 1.99 | AN61: 3.19 | AO61: 38.36 | AQ61: CONNOR.MURPHY | AR61: D | AS61: ARI | AT61: 78 | AU61: 1251.83 | AV61: 4 | AW61: 4 | AX61: 5 | AY61: 9 | AZ61: 13 | BA61: 8 | BB61: 0.19 | BC61: 0.19 | BD61: 0.24 | BE61: 0.43 | BF61: 0.62 | BG61: 0.38 | BH61: 200 | BI61: 9.59 | BJ61: 86 | BK61: 4.12 | BL61: 4.65 | BM61: =AU61/AT61 -> 16.04910256 | BN61: 1097.98 | BO61: 1268.39 | BP61: 52.63 | BQ61: 60.79 | BR61: 46.4 | BS61: 583.71 | BT61: 686.76 | BU61: 27.98 | BV61: 32.92 | BW61: 45.94 | BX61: 8.36 | BY61: 93.55 | BZ61: 101.91 | CA61: 48.29 | CB61: 44.62 | CC61: 2.31 | CD61: 2.14 | CE61: 51.98
A62: JONATHAN.HUBERDEAU | B62: C | C62: FLA | D62: 76 | E62: 1036.48 | F62: 13 | G62: 17 | H62: 10 | I62: 27 | J62: 40 | K62: 30 | L62: 0.75 | M62: 0.98 | N62: 0.58 | O62: 1.56 | P62: 2.32 | Q62: 1.74 | R62: 196 | S62: 11.35 | T62: 132 | U62: 7.64 | V62: 9.85 | W62: 13.63789474 | X62: 894.18 | Y62: 948.04 | Z62: 51.76 | AA62: 54.88 | AB62: 48.54 | AC62: 547.04 | AD62: 520.26 | AE62: 31.67 | AF62: 30.12 | AG62: 51.25 | AH62: 10.5 | AI62: 92.6 | AJ62: 103.1 | AK62: 57.39 | AL62: 39.14 | AM62: 3.32 | AN62: 2.27 | AO62: 59.45 | AQ62: MARCO.SCANDELLA | AR62: D | AS62: MIN | AT62: 73 | AU62: 1249.44 | AV62: 3 | AW62: 7 | AX62: 7 | AY62: 14 | AZ62: 17 | BA62: 10 | BB62: 0.14 | BC62: 0.34 | BD62: 0.34 | BE62: 0.67 | BF62: 0.82 | BG62: 0.48 | BH62: 253 | BI62: 12.15 | BJ62: 106 | BK62: 5.09 | BL62: 2.83 | BM62: =AU62/AT62 -> 17.11561644 | BN62: 1042.78 | BO62: 1166 | BP62: 50.08 | BQ62: 55.99 | BR62: 47.21 | BS62: 565.64 | BT62: 607.47 | BU62: 27.16 | BV62: 29.17 | BW62: 48.22 | BX62: 8.11 | BY62: 94.08 | BZ62: 102.19 | CA62: 45.8 | CB62: 35.72 | CC62: 2.2 | CD62: 1.72 | CE62: 56.18
A63: ELIAS.LINDHOLM | B63: C | C63: CAR | D63: 82 | E63: 1116.07 | F63: 7 | G63: 6 | H63: 7 | I63: 13 | J63: 20 | K63: 13 | L63: 0.38 | M63: 0.32 | N63: 0.38 | O63: 0.7 | P63: 1.08 | Q63: 0.7 | R63: 222 | S63: 11.93 | T63: 131 | U63: 7.04 | V63: 5.34 | W63: 13.61060976 | X63: 1126.9 | Y63: 985.38 | Z63: 60.58 | AA63: 52.97 | AB63: 53.35 | AC63: 585.6 | AD63: 515.31 | AE63: 31.48 | AF63: 27.7 | AG63: 53.19 | AH63: 5.27 | AI63: 90.94 | AJ63: 96.22 | AK63: 30.7 | AL63: 47.33 | AM63: 1.65 | AN63: 2.54 | AO63: 39.35 | AQ63: COLTON.PARAYKO | AR63: D | AS63: STL | AT63: 79 | AU63: 1232.04 | AV63: 5 | AW63: 12 | AX63: 7 | AY63: 19 | AZ63: 24 | BA63: 17 | BB63: 0.24 | BC63: 0.58 | BD63: 0.34 | BE63: 0.93 | BF63: 1.17 | BG63: 0.83 | BH63: 273 | BI63: 13.3 | BJ63: 127 | BK63: 6.18 | BL63: 3.94 | BM63: =AU63/AT63 -> 15.59544304 | BN63: 1253.86 | BO63: 1012.69 | BP63: 61.06 | BQ63: 49.32 | BR63: 55.32 | BS63: 678.83 | BT63: 543.08 | BU63: 33.06 | BV63: 26.45 | BW63: 55.55 | BX63: 8.75 | BY63: 93.54 | BZ63: 102.3 | CA63: 58.88 | CB63: 35.18 | CC63: 2.87 | CD63: 1.71 | CE63: 62.6
A64: JAKUB.VORACEK | B64: R | C64: PHI | D64: 73 | E64: 992.72 | F64: 8 | G64: 13 | H64: 6 | I64: 19 | J64: 27 | K64: 21 | L64: 0.48 | M64: 0.79 | N64: 0.36 | O64: 1.15 | P64: 1.63 | Q64: 1.27 | R64: 213 | S64: 12.87 | T64: 119 | U64: 7.19 | V64: 6.72 | W64: 13.59890411 | X64: 978.1 | Y64: 930.34 | Z64: 59.12 | AA64: 56.23 | AB64: 51.25 | AC64: 497.08 | AD64: 509.68 | AE64: 30.04 | AF64: 30.81 | AG64: 49.37 | AH64: 7.11 | AI64: 93.64 | AJ64: 100.75 | AK64: 35.97 | AL64: 32.05 | AM64: 2.17 | AN64: 1.94 | AO64: 52.88 | AQ64: ALEXEI.EMELIN | AR64: D | AS64: MTL | AT64: 72 | AU64: 1228.56 | AV64: 0 | AW64: 3 | AX64: 8 | AY64: 11 | AZ64: 11 | BA64: 3 | BB64: 0 | BC64: 0.15 | BD64: 0.39 | BE64: 0.54 | BF64: 0.54 | BG64: 0.15 | BH64: 178 | BI64: 8.69 | BJ64: 61 | BK64: 2.98 | BL64: 0 | BM64: =AU64/AT64 -> 17.06333333 | BN64: 1164.99 | BO64: 1080.34 | BP64: 56.9 | BQ64: 52.76 | BR64: 51.89 | BS64: 621.44 | BT64: 572.74 | BU64: 30.35 | BV64: 27.97 | BW64: 52.04 | BX64: 5.51 | BY64: 91.78 | BZ64: 97.29 | CA64: 34.43 | CB64: 46.82 | CC64: 1.68 | CD64: 2.29 | CE64: 42.38
A65: ARTEM.ANISIMOV | B65: C | C65: CHI | D65: 77 | E65: 1045.64 | F65: 10 | G65: 7 | H65: 7 | I65: 14 | J65: 24 | K65: 17 | L65: 0.57 | M65: 0.4 | N65: 0.4 | O65: 0.8 | P65: 1.38 | Q65: 0.98 | R65: 167 | S65: 9.58 | T65: 91 | U65: 5.22 | V65: 10.99 | W65: 13.57974026 | X65: 994.15 | Y65: 976.95 | Z65: 57.05 | AA65: 56.06 | AB65: 50.44 | AC65: 529.52 | AD65: 553.45 | AE65: 30.38 | AF65: 31.76 | AG65: 48.9 | AH65: 8.76 | AI65: 91.92 | AJ65: 100.68 | AK65: 45.92 | AL65: 44.36 | AM65: 2.63 | AN65: 2.55 | AO65: 50.86 | AQ65: ROMAN.POLAK | AR65: D | AS65: S.J/TOR | AT65: 79 | AU65: 1225.57 | AV65: 1 | AW65: 8 | AX65: 7 | AY65: 15 | AZ65: 16 | BA65: 9 | BB65: 0.05 | BC65: 0.39 | BD65: 0.34 | BE65: 0.73 | BF65: 0.78 | BG65: 0.44 | BH65: 206 | BI65: 10.09 | BJ65: 83 | BK65: 4.06 | BL65: 1.2 | BM65: =AU65/AT65 -> 15.5135443 | BN65: 1117.96 | BO65: 1135.92 | BP65: 54.73 | BQ65: 55.61 | BR65: 49.6 | BS65: 562.7 | BT65: 600.57 | BU65: 27.55 | BV65: 29.4 | BW65: 48.37 | BX65: 6.57 | BY65: 93.77 | BZ65: 100.34 | CA65: 37.24 | CB65: 36.81 | CC65: 1.82 | CD65: 1.8 | CE65: 50.29
A66: MIKE.RIBEIRO | B66: C | C66: NSH | D66: 81 | E66: 1099.57 | F66: 5 | G66: 14 | H66: 15 | I66: 29 | J66: 34 | K66: 19 | L66: 0.27 | M66: 0.76 | N66: 0.82 | O66: 1.58 | P66: 1.86 | Q66: 1.04 | R66: 103 | S66: 5.62 | T66: 64 | U66: 3.49 | V66: 7.81 | W66: =(E66*60)/(D66*60) -> 13.57493827 | X66: 1152.06 | Y66: 878.35 | Z66: 62.86 | AA66: 47.93 | AB66: 56.74 | AC66: 601.72 | AD66: 520.81 | AE66: 32.83 | AF66: 28.42 | AG66: 53.6 | AH66: 8.99 | AI66: 92.5 | AJ66: 101.49 | AK66: 52.74 | AL66: 39.24 | AM66: 2.88 | AN66: 2.14 | AO66: 57.34 | AQ66: DAN.GIRARDI | AR66: D | AS66: NYR | AT66: 74 | AU66: 1225.16 | AV66: 1 | AW66: 6 | AX66: 7 | AY66: 13 | AZ66: 14 | BA66: 7 | BB66: 0.05 | BC66: 0.29 | BD66: 0.34 | BE66: 0.64 | BF66: 0.69 | BG66: 0.34 | BH66: 139 | BI66: 6.81 | BJ66: 71 | BK66: 3.48 | BL66: 1.41 | BM66: =AU66/AT66 -> 16.55621622 | BN66: 991.97 | BO66: 1325.41 | BP66: 48.58 | BQ66: 64.91 | BR66: 42.81 | BS66: 535.46 | BT66: 651.09 | BU66: 26.22 | BV66: 31.89 | BW66: 45.13 | BX66: 9.32 | BY66: 94.3 | BZ66: 103.62 | CA66: 49.54 | CB66: 37.67 | CC66: 2.43 | CD66: 1.84 | CE66: 56.81
A67: LOUI.ERIKSSON | B67: L | C67: BOS | D67: 82 | E67: 1111.08 | F67: 16 | G67: 9 | H67: 12 | I67: 21 | J67: 37 | K67: 25 | L67: 0.86 | M67: 0.49 | N67: 0.65 | O67: 1.13 | P67: 2 | Q67: 1.35 | R67: 171 | S67: 9.23 | T67: 122 | U67: 6.59 | V67: 13.11 | W67: 13.5497561 | X67: 1098.2 | Y67: 995.8 | Z67: 59.3 | AA67: 53.77 | AB67: 52.44 | AC67: 629.72 | AD67: 530.22 | AE67: 34.01 | AF67: 28.63 | AG67: 54.29 | AH67: 7.91 | AI67: 94.57 | AJ67: 102.48 | AK67: 49.58 | AL67: 29.15 | AM67: 2.68 | AN67: 1.57 | AO67: 62.98 | AQ67: CALVIN.DE HAAN | AR67: D | AS67: NYI | AT67: 72 | AU67: 1220.71 | AV67: 2 | AW67: 7 | AX67: 4 | AY67: 11 | AZ67: 13 | BA67: 9 | BB67: 0.1 | BC67: 0.34 | BD67: 0.2 | BE67: 0.54 | BF67: 0.64 | BG67: 0.44 | BH67: 186 | BI67: 9.14 | BJ67: 86 | BK67: 4.23 | BL67: 2.33 | BM67: =AU67/AT67 -> 16.95430556 | BN67: 1161.89 | BO67: 1124.01 | BP67: 57.11 | BQ67: 55.25 | BR67: 50.83 | BS67: 603.03 | BT67: 553.87 | BU67: 29.64 | BV67: 27.22 | BW67: 52.12 | BX67: 7.65 | BY67: 91.49 | BZ67: 99.14 | CA67: 46.01 | CB67: 47.5 | CC67: 2.26 | CD67: 2.33 | CE67: 49.2
A68: RYAN.KESLER | B68: C | C68: ANA | D68: 79 | E68: 1069.31 | F68: 10 | G68: 8 | H68: 7 | I68: 15 | J68: 25 | K68: 18 | L68: 0.56 | M68: 0.45 | N68: 0.39 | O68: 0.84 | P68: 1.4 | Q68: 1.01 | R68: 234 | S68: 13.13 | T68: 111 | U68: 6.23 | V68: 9.01 | W68: 13.53556962 | X68: 1062.02 | Y68: 921.11 | Z68: 59.59 | AA68: 51.68 | AB68: 53.55 | AC68: 550.98 | AD68: 470.6 | AE68: 30.92 | AF68: 26.41 | AG68: 53.93 | AH68: 6.11 | AI68: 92.23 | AJ68: 98.34 | AK68: 32.78 | AL68: 37.41 | AM68: 1.84 | AN68: 2.1 | AO68: 46.7 | AQ68: ALEC.MARTINEZ | AR68: D | AS68: L.A | AT68: 78 | AU68: 1220.07 | AV68: 5 | AW68: 5 | AX68: 3 | AY68: 8 | AZ68: 13 | BA68: 10 | BB68: 0.25 | BC68: 0.25 | BD68: 0.15 | BE68: 0.39 | BF68: 0.64 | BG68: 0.49 | BH68: 200 | BI68: 9.84 | BJ68: 70 | BK68: 3.44 | BL68: 7.14 | BM68: =AU68/AT68 -> 15.64192308 | BN68: 1294.19 | BO68: 1122.51 | BP68: 63.64 | BQ68: 55.2 | BR68: 53.55 | BS68: 628.38 | BT68: 556.4 | BU68: 30.9 | BV68: 27.36 | BW68: 53.04 | BX68: 6.99 | BY68: 93.96 | BZ68: 100.95 | CA68: 42.81 | CB68: 33.92 | CC68: 2.11 | CD68: 1.67 | CE68: 55.79
A69: MIKE.HOFFMAN | B69: C | C69: OTT | D69: 78 | E69: 1055.18 | F69: 17 | G69: 14 | H69: 8 | I69: 22 | J69: 39 | K69: 31 | L69: 0.97 | M69: 0.8 | N69: 0.45 | O69: 1.25 | P69: 2.22 | Q69: 1.76 | R69: 293 | S69: 16.66 | T69: 160 | U69: 9.1 | V69: 10.62 | W69: 13.52794872 | X69: 965.89 | Y69: 1033.92 | Z69: 54.92 | AA69: 58.79 | AB69: 48.3 | AC69: 505.09 | AD69: 578.93 | AE69: 28.72 | AF69: 32.92 | AG69: 46.59 | AH69: 9.55 | AI69: 92.67 | AJ69: 102.22 | AK69: 48.64 | AL69: 41.97 | AM69: 2.77 | AN69: 2.39 | AO69: 53.68 | AQ69: TYLER.MYERS | AR69: D | AS69: WPG | AT69: 73 | AU69: 1218.59 | AV69: 8 | AW69: 4 | AX69: 9 | AY69: 13 | AZ69: 21 | BA69: 12 | BB69: 0.39 | BC69: 0.2 | BD69: 0.44 | BE69: 0.64 | BF69: 1.03 | BG69: 0.59 | BH69: 206 | BI69: 10.14 | BJ69: 88 | BK69: 4.33 | BL69: 9.09 | BM69: =AU69/AT69 -> 16.6930137 | BN69: 1143.47 | BO69: 1078.1 | BP69: 56.3 | BQ69: 53.08 | BR69: 51.47 | BS69: 607.9 | BT69: 598.36 | BU69: 29.93 | BV69: 29.46 | BW69: 50.4 | BX69: 7.06 | BY69: 93.2 | BZ69: 100.26 | CA69: 43.25 | CB69: 40.06 | CC69: 2.13 | CD69: 1.97 | CE69: 51.91
A70: MATT.BELESKEY | B70: L | C70: BOS | D70: 80 | E70: 1081.59 | F70: 12 | G70: 9 | H70: 8 | I70: 17 | J70: 29 | K70: 21 | L70: 0.67 | M70: 0.5 | N70: 0.44 | O70: 0.94 | P70: 1.61 | Q70: 1.16 | R70: 321 | S70: 17.81 | T70: 144 | U70: 7.99 | V70: 8.33 | W70: 13.519875 | X70: 1077.4 | Y70: 1032.05 | Z70: 59.77 | AA70: 57.25 | AB70: 51.08 | AC70: 587.14 | AD70: 546.81 | AE70: 32.57 | AF70: 30.33 | AG70: 51.78 | AH70: 8.21 | AI70: 93.26 | AJ70: 101.47 | AK70: 47.98 | AL70: 37.89 | AM70: 2.66 | AN70: 2.1 | AO70: 55.88 | AQ70: ERIK.JOHNSON | AR70: D | AS70: COL | AT70: 73 | AU70: 1216.33 | AV70: 6 | AW70: 6 | AX70: 5 | AY70: 11 | AZ70: 17 | BA70: 12 | BB70: 0.3 | BC70: 0.3 | BD70: 0.25 | BE70: 0.54 | BF70: 0.84 | BG70: 0.59 | BH70: 228 | BI70: 11.25 | BJ70: 133 | BK70: 6.56 | BL70: 4.51 | BM70: =AU70/AT70 -> 16.66205479 | BN70: 1043.93 | BO70: 1318.95 | BP70: 51.5 | BQ70: 65.06 | BR70: 44.18 | BS70: 606.69 | BT70: 653.14 | BU70: 29.93 | BV70: 32.22 | BW70: 48.16 | BX70: 6.57 | BY70: 92.04 | BZ70: 98.6 | CA70: 39.71 | CB70: 52.19 | CC70: 1.96 | CD70: 2.57 | CE70: 43.21
A71: BOONE.JENNER | B71: C | C71: CBJ | D71: 82 | E71: 1107.03 | F71: 19 | G71: 7 | H71: 5 | I71: 12 | J71: 31 | K71: 26 | L71: 1.03 | M71: 0.38 | N71: 0.27 | O71: 0.65 | P71: 1.68 | Q71: 1.41 | R71: 270 | S71: 14.63 | T71: 173 | U71: 9.38 | V71: 10.98 | W71: 13.50036585 | X71: 977.05 | Y71: 1148.79 | Z71: 52.96 | AA71: 62.26 | AB71: 45.96 | AC71: 559.43 | AD71: 600.79 | AE71: 30.32 | AF71: 32.56 | AG71: 48.22 | AH71: 7.19 | AI71: 91.44 | AJ71: 98.64 | AK71: 40.99 | AL71: 51.49 | AM71: 2.22 | AN71: 2.79 | AO71: 44.32 | AQ71: TREVOR.DALEY | AR71: D | AS71: CHI/PIT | AT71: 82 | AU71: 1215 | AV71: 5 | AW71: 5 | AX71: 8 | AY71: 13 | AZ71: 18 | BA71: 10 | BB71: 0.25 | BC71: 0.25 | BD71: 0.4 | BE71: 0.64 | BF71: 0.89 | BG71: 0.49 | BH71: 220 | BI71: 10.86 | BJ71: 108 | BK71: 5.33 | BL71: 4.63 | BM71: =AU71/AT71 -> 14.81707317 | BN71: 1252.62 | BO71: 1044.01 | BP71: 61.86 | BQ71: 51.56 | BR71: 54.54 | BS71: 677.67 | BT71: 593.35 | BU71: 33.47 | BV71: 29.3 | BW71: 53.32 | BX71: 7.59 | BY71: 93.42 | BZ71: 101.01 | CA71: 50.54 | CB71: 39.18 | CC71: 2.5 | CD71: 1.94 | CE71: 56.33
A72: JORDAN.STAAL | B72: C | C72: CAR | D72: 82 | E72: 1105.49 | F72: 9 | G72: 13 | H72: 4 | I72: 17 | J72: 26 | K72: 22 | L72: 0.49 | M72: 0.71 | N72: 0.22 | O72: 0.92 | P72: 1.41 | Q72: 1.19 | R72: 195 | S72: 10.58 | T72: 100 | U72: 5.43 | V72: 9 | W72: 13.48158537 | X72: 1032.94 | Y72: 894.99 | Z72: 56.06 | AA72: 48.58 | AB72: 53.58 | AC72: 531.05 | AD72: 481.16 | AE72: 28.82 | AF72: 26.11 | AG72: 52.46 | AH72: 6.99 | AI72: 92.75 | AJ72: 99.75 | AK72: 36.71 | AL72: 35.58 | AM72: 1.99 | AN72: 1.93 | AO72: 50.78 | AQ72: MICHAEL.STONE | AR72: D | AS72: ARI | AT72: 75 | AU72: 1213.39 | AV72: 5 | AW72: 5 | AX72: 8 | AY72: 13 | AZ72: 18 | BA72: 10 | BB72: 0.25 | BC72: 0.25 | BD72: 0.4 | BE72: 0.64 | BF72: 0.89 | BG72: 0.49 | BH72: 255 | BI72: 12.61 | BJ72: 110 | BK72: 5.44 | BL72: 4.55 | BM72: =AU72/AT72 -> 16.17853333 | BN72: 1085.89 | BO72: 1243.39 | BP72: 53.7 | BQ72: 61.48 | BR72: 46.62 | BS72: 556.35 | BT72: 677.73 | BU72: 27.51 | BV72: 33.51 | BW72: 45.08 | BX72: 7.27 | BY72: 93.3 | BZ72: 100.57 | CA72: 40.37 | CB72: 44.83 | CC72: 2 | CD72: 2.22 | CE72: 47.38
A73: JAROMIR.JAGR | B73: R | C73: FLA | D73: 79 | E73: 1064.68 | F73: 20 | G73: 16 | H73: 14 | I73: 30 | J73: 50 | K73: 36 | L73: 1.13 | M73: 0.9 | N73: 0.79 | O73: 1.69 | P73: 2.82 | Q73: 2.03 | R73: 181 | S73: 10.2 | T73: 101 | U73: 5.69 | V73: 19.8 | W73: 13.47696203 | X73: 958.89 | Y73: 919.51 | Z73: 54.04 | AA73: 51.82 | AB73: 51.05 | AC73: 570.21 | AD73: 506.2 | AE73: 32.13 | AF73: 28.53 | AG73: 52.97 | AH73: 11.86 | AI73: 92.01 | AJ73: 103.87 | AK73: 67.24 | AL73: 41.37 | AM73: 3.79 | AN73: 2.33 | AO73: 61.91 | AQ73: DUNCAN.KEITH | AR73: D | AS73: CHI | AT73: 67 | AU73: 1210.7 | AV73: 4 | AW73: 7 | AX73: 7 | AY73: 14 | AZ73: 18 | BA73: 11 | BB73: 0.2 | BC73: 0.35 | BD73: 0.35 | BE73: 0.69 | BF73: 0.89 | BG73: 0.55 | BH73: 208 | BI73: 10.31 | BJ73: 96 | BK73: 4.76 | BL73: 4.17 | BM73: =AU73/AT73 -> 18.07014925 | BN73: 1184.63 | BO73: 1044.56 | BP73: 58.71 | BQ73: 51.77 | BR73: 53.14 | BS73: 623.35 | BT73: 564.34 | BU73: 30.89 | BV73: 27.97 | BW73: 52.48 | BX73: 6.7 | BY73: 92.99 | BZ73: 99.69 | CA73: 41.46 | CB73: 39.37 | CC73: 2.05 | CD73: 1.95 | CE73: 51.29
A74: ALEKSANDER.BARKOV | B74: C | C74: FLA | D74: 66 | E74: 888.38 | F74: 17 | G74: 11 | H74: 7 | I74: 18 | J74: 35 | K74: 28 | L74: 1.15 | M74: 0.74 | N74: 0.47 | O74: 1.22 | P74: 2.36 | Q74: 1.89 | R74: 182 | S74: 12.29 | T74: 122 | U74: 8.24 | V74: 13.93 | W74: 13.46030303 | X74: 772.16 | Y74: 800.98 | Z74: 52.15 | AA74: 54.1 | AB74: 49.08 | AC74: 459.31 | AD74: 447.2 | AE74: 31.02 | AF74: 30.2 | AG74: 50.67 | AH74: 11.01 | AI74: 92.75 | AJ74: 103.76 | AK74: 50.29 | AL74: 33.3 | AM74: 3.4 | AN74: 2.25 | AO74: 60.16 | AQ74: RYAN.MCDONAGH | AR74: D | AS74: NYR | AT74: 73 | AU74: 1208.38 | AV74: 7 | AW74: 9 | AX74: 7 | AY74: 16 | AZ74: 23 | BA74: 16 | BB74: 0.35 | BC74: 0.45 | BD74: 0.35 | BE74: 0.79 | BF74: 1.14 | BG74: 0.79 | BH74: 187 | BI74: 9.29 | BJ74: 81 | BK74: 4.02 | BL74: 8.64 | BM74: =AU74/AT74 -> 16.55315068 | BN74: 1069.9 | BO74: 1149.89 | BP74: 53.12 | BQ74: 57.1 | BR74: 48.2 | BS74: 587.2 | BT74: 566.67 | BU74: 29.16 | BV74: 28.14 | BW74: 50.89 | BX74: 11.57 | BY74: 92.36 | BZ74: 103.93 | CA74: 67.93 | CB74: 43.59 | CC74: 3.37 | CD74: 2.16 | CE74: 60.91
A75: RYAN.JOHANSEN | B75: C | C75: CBJ/NSH | D75: 80 | E75: 1075.96 | F75: 10 | G75: 13 | H75: 11 | I75: 24 | J75: 34 | K75: 23 | L75: 0.56 | M75: 0.72 | N75: 0.61 | O75: 1.34 | P75: 1.9 | Q75: 1.28 | R75: 198 | S75: 11.04 | T75: 121 | U75: 6.75 | V75: 8.26 | W75: 13.4495 | X75: 966.28 | Y75: 980.8 | Z75: 53.88 | AA75: 54.69 | AB75: 49.63 | AC75: 534.33 | AD75: 509.81 | AE75: 29.8 | AF75: 28.43 | AG75: 51.17 | AH75: 8.53 | AI75: 93.52 | AJ75: 102.05 | AK75: 45.82 | AL75: 32.71 | AM75: 2.55 | AN75: 1.82 | AO75: 58.35 | AQ75: MARC.METHOT | AR75: D | AS75: OTT | AT75: 69 | AU75: 1205.47 | AV75: 4 | AW75: 2 | AX75: 4 | AY75: 6 | AZ75: 10 | BA75: 6 | BB75: 0.2 | BC75: 0.1 | BD75: 0.2 | BE75: 0.3 | BF75: 0.5 | BG75: 0.3 | BH75: 122 | BI75: 6.07 | BJ75: 69 | BK75: 3.43 | BL75: 5.8 | BM75: =AU75/AT75 -> 17.47057971 | BN75: 1019.24 | BO75: 1190.08 | BP75: 50.73 | BQ75: 59.23 | BR75: 46.13 | BS75: 540.38 | BT75: 659.92 | BU75: 26.9 | BV75: 32.85 | BW75: 45.02 | BX75: 9.58 | BY75: 92.35 | BZ75: 101.93 | CA75: 51.86 | CB75: 49.65 | CC75: 2.58 | CD75: 2.47 | CE75: 51.09
A76: GABRIEL.LANDESKOG | B76: L | C76: COL | D76: 75 | E76: 1007.63 | F76: 13 | G76: 8 | H76: 10 | I76: 18 | J76: 31 | K76: 21 | L76: 0.77 | M76: 0.48 | N76: 0.6 | O76: 1.07 | P76: 1.85 | Q76: 1.25 | R76: 181 | S76: 10.78 | T76: 121 | U76: 7.21 | V76: 10.74 | W76: 13.43506667 | X76: 882.13 | Y76: 1062.62 | Z76: 52.53 | AA76: 63.27 | AB76: 45.36 | AC76: 506.76 | AD76: 526.61 | AE76: 30.18 | AF76: 31.36 | AG76: 49.04 | AH76: 7.87 | AI76: 92.51 | AJ76: 100.39 | AK76: 39.93 | AL76: 39.52 | AM76: 2.38 | AN76: 2.35 | AO76: 50.26 | AQ76: RADKO.GUDAS | AR76: D | AS76: PHI | AT76: 76 | AU76: 1205.32 | AV76: 5 | AW76: 5 | AX76: 3 | AY76: 8 | AZ76: 13 | BA76: 10 | BB76: 0.25 | BC76: 0.25 | BD76: 0.15 | BE76: 0.4 | BF76: 0.65 | BG76: 0.5 | BH76: 312 | BI76: 15.53 | BJ76: 137 | BK76: 6.82 | BL76: 3.65 | BM76: =AU76/AT76 -> 15.85947368 | BN76: 1291.59 | BO76: 1117.48 | BP76: 64.29 | BQ76: 55.63 | BR76: 53.61 | BS76: 655.29 | BT76: 600.68 | BU76: 32.62 | BV76: 29.9 | BW76: 52.17 | BX76: 5.81 | BY76: 92.64 | BZ76: 98.45 | CA76: 38 | CB76: 43.55 | CC76: 1.89 | CD76: 2.17 | CE76: 46.59
A77: JASON.ZUCKER | B77: L | C77: MIN | D77: 71 | E77: 952.87 | F77: 11 | G77: 5 | H77: 2 | I77: 7 | J77: 18 | K77: 16 | L77: 0.69 | M77: 0.31 | N77: 0.13 | O77: 0.44 | P77: 1.13 | Q77: 1.01 | R77: 236 | S77: 14.86 | T77: 136 | U77: 8.56 | V77: 8.09 | W77: 13.42070423 | X77: 807.09 | Y77: 855.29 | Z77: 50.82 | AA77: 53.86 | AB77: 48.55 | AC77: 408.49 | AD77: 442.25 | AE77: 25.72 | AF77: 27.85 | AG77: 48.02 | AH77: 7.51 | AI77: 92.05 | AJ77: 99.55 | AK77: 30.63 | AL77: 34.94 | AM77: 1.93 | AN77: 2.2 | AO77: 46.72 | AQ77: P.K..SUBBAN | AR77: D | AS77: MTL | AT77: 68 | AU77: 1204.59 | AV77: 4 | AW77: 12 | AX77: 9 | AY77: 21 | AZ77: 25 | BA77: 16 | BB77: 0.2 | BC77: 0.6 | BD77: 0.45 | BE77: 1.05 | BF77: 1.25 | BG77: 0.8 | BH77: 203 | BI77: 10.11 | BJ77: 100 | BK77: 4.98 | BL77: 4 | BM77: =AU77/AT77 -> 17.71455882 | BN77: 1241.15 | BO77: 1135.09 | BP77: 61.82 | BQ77: 56.54 | BR77: 52.23 | BS77: 666.68 | BT77: 641.12 | BU77: 33.21 | BV77: 31.93 | BW77: 50.98 | BX77: 9.38 | BY77: 91.88 | BZ77: 101.25 | CA77: 63.92 | CB77: 52.05 | CC77: 3.18 | CD77: 2.59 | CE77: 55.12
A78: TOMAS.HERTL | B78: C | C78: S.J | D78: 81 | E78: 1086.78 | F78: 17 | G78: 10 | H78: 10 | I78: 20 | J78: 37 | K78: 27 | L78: 0.94 | M78: 0.55 | N78: 0.55 | O78: 1.1 | P78: 2.04 | Q78: 1.49 | R78: 297 | S78: 16.4 | T78: 175 | U78: 9.66 | V78: 9.71 | W78: 13.41703704 | X78: 1180.97 | Y78: 896.58 | Z78: 65.2 | AA78: 49.5 | AB78: 56.84 | AC78: 617.55 | AD78: 452.03 | AE78: 34.09 | AF78: 24.96 | AG78: 57.74 | AH78: 8.94 | AI78: 91.67 | AJ78: 100.61 | AK78: 54.89 | AL78: 38.18 | AM78: 3.03 | AN78: 2.11 | AO78: 58.98 | AQ78: TOBIAS.ENSTROM | AR78: D | AS78: WPG | AT78: 72 | AU78: 1199.65 | AV78: 2 | AW78: 3 | AX78: 9 | AY78: 12 | AZ78: 14 | BA78: 5 | BB78: 0.1 | BC78: 0.15 | BD78: 0.45 | BE78: 0.6 | BF78: 0.7 | BG78: 0.25 | BH78: 102 | BI78: 5.1 | BJ78: 42 | BK78: 2.1 | BL78: 4.76 | BM78: =AU78/AT78 -> 16.66180556 | BN78: 1072.6 | BO78: 1016.06 | BP78: 53.65 | BQ78: 50.82 | BR78: 51.35 | BS78: 576.51 | BT78: 580.71 | BU78: 28.83 | BV78: 29.04 | BW78: 49.82 | BX78: 8.1 | BY78: 92.68 | BZ78: 100.79 | CA78: 46.68 | CB78: 42.42 | CC78: 2.33 | CD78: 2.12 | CE78: 52.39
A79: FILIP.FORSBERG | B79: C | C79: NSH | D79: 82 | E79: 1098.56 | F79: 21 | G79: 9 | H79: 4 | I79: 13 | J79: 34 | K79: 30 | L79: 1.15 | M79: 0.49 | N79: 0.22 | O79: 0.71 | P79: 1.86 | Q79: 1.64 | R79: 351 | S79: 19.17 | T79: 170 | U79: 9.28 | V79: 12.35 | W79: 13.39707317 | X79: 1201.77 | Y79: 926.11 | Z79: 65.64 | AA79: 50.58 | AB79: 56.48 | AC79: 619.87 | AD79: 512.7 | AE79: 33.86 | AF79: 28 | AG79: 54.73 | AH79: 8.71 | AI79: 91.84 | AJ79: 100.55 | AK79: 53.32 | AL79: 41.75 | AM79: 2.91 | AN79: 2.28 | AO79: 56.09 | AQ79: JONAS.BRODIN | AR79: D | AS79: MIN | AT79: 68 | AU79: 1198.51 | AV79: 2 | AW79: 3 | AX79: 1 | AY79: 4 | AZ79: 6 | BA79: 5 | BB79: 0.1 | BC79: 0.15 | BD79: 0.05 | BE79: 0.2 | BF79: 0.3 | BG79: 0.25 | BH79: 137 | BI79: 6.86 | BJ79: 55 | BK79: 2.75 | BL79: 3.64 | BM79: =AU79/AT79 -> 17.62514706 | BN79: 929.13 | BO79: 1115.8 | BP79: 46.51 | BQ79: 55.86 | BR79: 45.44 | BS79: 471.17 | BT79: 550.16 | BU79: 23.59 | BV79: 27.54 | BW79: 46.13 | BX79: 6.4 | BY79: 93.66 | BZ79: 100.06 | CA79: 29.75 | CB79: 35.1 | CC79: 1.49 | CD79: 1.76 | CE79: 45.87
A80: BRIAN.GIONTA | B80: R | C80: BUF | D80: 79 | E80: 1056.76 | F80: 9 | G80: 13 | H80: 3 | I80: 16 | J80: 25 | K80: 22 | L80: 0.51 | M80: 0.74 | N80: 0.17 | O80: 0.91 | P80: 1.42 | Q80: 1.25 | R80: 222 | S80: 12.6 | T80: 134 | U80: 7.61 | V80: 6.72 | W80: 13.37670886 | X80: 904.31 | Y80: 1069.46 | Z80: 51.34 | AA80: 60.72 | AB80: 45.82 | AC80: 502.82 | AD80: 568.3 | AE80: 28.55 | AF80: 32.27 | AG80: 46.94 | AH80: 6.71 | AI80: 93.38 | AJ80: 100.09 | AK80: 34.3 | AL80: 36.68 | AM80: 1.95 | AN80: 2.08 | AO80: 48.32 | AQ80: DMITRY.ORLOV | AR80: D | AS80: WSH | AT80: 82 | AU80: 1190.28 | AV80: 8 | AW80: 9 | AX80: 8 | AY80: 17 | AZ80: 25 | BA80: 17 | BB80: 0.4 | BC80: 0.45 | BD80: 0.4 | BE80: 0.86 | BF80: 1.26 | BG80: 0.86 | BH80: 180 | BI80: 9.07 | BJ80: 82 | BK80: 4.13 | BL80: 9.76 | BM80: =AU80/AT80 -> 14.51560976 | BN80: 1190.11 | BO80: 1015.33 | BP80: 59.99 | BQ80: 51.18 | BR80: 53.96 | BS80: 613.16 | BT80: 547.42 | BU80: 30.91 | BV80: 27.59 | BW80: 52.83 | BX80: 9.9 | BY80: 91.45 | BZ80: 101.36 | CA80: 59.49 | CB80: 47.55 | CC80: 3 | CD80: 2.4 | CE80: 55.58
A81: MIKKEL.BOEDKER | B81: L | C81: ARI/COL | D81: 80 | E81: 1069.83 | F81: 10 | G81: 10 | H81: 4 | I81: 14 | J81: 24 | K81: 20 | L81: 0.56 | M81: 0.56 | N81: 0.22 | O81: 0.79 | P81: 1.35 | Q81: 1.12 | R81: 186 | S81: 10.43 | T81: 107 | U81: 6 | V81: 9.35 | W81: 13.372875 | X81: 924.35 | Y81: 1132.54 | Z81: 51.84 | AA81: 63.52 | AB81: 44.94 | AC81: 491.78 | AD81: 618.31 | AE81: 27.58 | AF81: 34.68 | AG81: 44.3 | AH81: 6.87 | AI81: 90.3 | AJ81: 97.16 | AK81: 33.87 | AL81: 59.23 | AM81: 1.9 | AN81: 3.32 | AO81: 36.38 | AQ81: JOHNNY.BOYCHUK | AR81: D | AS81: NYI | AT81: 70 | AU81: 1188.34 | AV81: 8 | AW81: 6 | AX81: 6 | AY81: 12 | AZ81: 20 | BA81: 14 | BB81: 0.4 | BC81: 0.3 | BD81: 0.3 | BE81: 0.61 | BF81: 1.01 | BG81: 0.71 | BH81: 296 | BI81: 14.95 | BJ81: 128 | BK81: 6.46 | BL81: 6.25 | BM81: =AU81/AT81 -> 16.97628571 | BN81: 1111.67 | BO81: 1150.47 | BP81: 56.13 | BQ81: 58.09 | BR81: 49.14 | BS81: 580.87 | BT81: 589.88 | BU81: 29.33 | BV81: 29.78 | BW81: 49.62 | BX81: 8.35 | BY81: 94.12 | BZ81: 102.47 | CA81: 48.19 | CB81: 35.46 | CC81: 2.43 | CD81: 1.79 | CE81: 57.61
A82: SEAN.COUTURIER | B82: C | C82: PHI | D82: 63 | E82: 841.89 | F82: 8 | G82: 14 | H82: 7 | I82: 21 | J82: 29 | K82: 22 | L82: 0.57 | M82: 1 | N82: 0.5 | O82: 1.5 | P82: 2.07 | Q82: 1.57 | R82: 145 | S82: 10.33 | T82: 80 | U82: 5.7 | V82: 10 | W82: 13.36333333 | X82: 855.33 | Y82: 737.66 | Z82: 60.96 | AA82: 52.57 | AB82: 53.69 | AC82: 416.13 | AD82: 402.61 | AE82: 29.66 | AF82: 28.69 | AG82: 50.83 | AH82: 9.05 | AI82: 92.95 | AJ82: 101.99 | AK82: 38.06 | AL82: 28.28 | AM82: 2.71 | AN82: 2.02 | AO82: 57.37 | AQ82: DMITRY.KULIKOV | AR82: D | AS82: FLA | AT82: 74 | AU82: 1181.71 | AV82: 1 | AW82: 6 | AX82: 4 | AY82: 10 | AZ82: 11 | BA82: 7 | BB82: 0.05 | BC82: 0.3 | BD82: 0.2 | BE82: 0.51 | BF82: 0.56 | BG82: 0.36 | BH82: 151 | BI82: 7.67 | BJ82: 77 | BK82: 3.91 | BL82: 1.3 | BM82: =AU82/AT82 -> 15.96905405 | BN82: 932.9 | BO82: 1015.17 | BP82: 47.37 | BQ82: 51.54 | BR82: 47.89 | BS82: 528.54 | BT82: 559.64 | BU82: 26.84 | BV82: 28.42 | BW82: 48.57 | BX82: 8.38 | BY82: 92.46 | BZ82: 100.84 | CA82: 43.98 | CB82: 43.02 | CC82: 2.23 | CD82: 2.18 | CE82: 50.55
A83: PATRICE.BERGERON | B83: C | C83: BOS | D83: 80 | E83: 1068.82 | F83: 18 | G83: 5 | H83: 10 | I83: 15 | J83: 33 | K83: 23 | L83: 1.01 | M83: 0.28 | N83: 0.56 | O83: 0.84 | P83: 1.85 | Q83: 1.29 | R83: 294 | S83: 16.5 | T83: 186 | U83: 10.44 | V83: 9.68 | W83: 13.36025 | X83: 1135.62 | Y83: 896.68 | Z83: 63.75 | AA83: 50.34 | AB83: 55.88 | AC83: 644.89 | AD83: 496.61 | AE83: 36.2 | AF83: 27.88 | AG83: 56.5 | AH83: 7.28 | AI83: 92.53 | AJ83: 99.8 | AK83: 47.13 | AL83: 37.33 | AM83: 2.65 | AN83: 2.1 | AO83: 55.8 | AQ83: DION.PHANEUF | AR83: D | AS83: OTT/TOR | AT83: 71 | AU83: 1169.79 | AV83: 3 | AW83: 7 | AX83: 5 | AY83: 12 | AZ83: 15 | BA83: 10 | BB83: 0.15 | BC83: 0.36 | BD83: 0.26 | BE83: 0.62 | BF83: 0.77 | BG83: 0.51 | BH83: 226 | BI83: 11.59 | BJ83: 98 | BK83: 5.03 | BL83: 3.06 | BM83: =AU83/AT83 -> 16.47591549 | BN83: 1155.45 | BO83: 1167.38 | BP83: 59.26 | BQ83: 59.88 | BR83: 49.74 | BS83: 591.52 | BT83: 653.8 | BU83: 30.34 | BV83: 33.53 | BW83: 47.5 | BX83: 5.81 | BY83: 93.16 | BZ83: 98.97 | CA83: 35.42 | CB83: 43.9 | CC83: 1.82 | CD83: 2.25 | CE83: 44.66
A84: JOE.THORNTON | B84: C | C84: S.J | D84: 82 | E84: 1094.74 | F84: 8 | G84: 17 | H84: 19 | I84: 36 | J84: 44 | K84: 25 | L84: 0.44 | M84: 0.93 | N84: 1.04 | O84: 1.97 | P84: 2.41 | Q84: 1.37 | R84: 126 | S84: 6.91 | T84: 76 | U84: 4.17 | V84: 10.53 | W84: 13.3504878 | X84: 1155.97 | Y84: 892.41 | Z84: 63.36 | AA84: 48.91 | AB84: 56.43 | AC84: 618.8 | AD84: 436.89 | AE84: 33.91 | AF84: 23.95 | AG84: 58.62 | AH84: 10.39 | AI84: 93.85 | AJ84: 104.24 | AK84: 64.24 | AL84: 27.33 | AM84: 3.52 | AN84: 1.5 | AO84: 70.16 | AQ84: KEVIN.BIEKSA | AR84: D | AS84: ANA | AT84: 71 | AU84: 1169.11 | AV84: 1 | AW84: 4 | AX84: 2 | AY84: 6 | AZ84: 7 | BA84: 5 | BB84: 0.05 | BC84: 0.21 | BD84: 0.1 | BE84: 0.31 | BF84: 0.36 | BG84: 0.26 | BH84: 209 | BI84: 10.73 | BJ84: 87 | BK84: 4.46 | BL84: 1.15 | BM84: =AU84/AT84 -> 16.46633803 | BN84: 1159.55 | BO84: 1104 | BP84: 59.51 | BQ84: 56.66 | BR84: 51.23 | BS84: 601.95 | BT84: 591.19 | BU84: 30.89 | BV84: 30.34 | BW84: 50.45 | BX84: 5.88 | BY84: 92.26 | BZ84: 98.14 | CA84: 34.86 | CB84: 45.7 | CC84: 1.79 | CD84: 2.35 | CE84: 43.27
A85: JASON.POMINVILLE | B85: R | C85: MIN | D85: 75 | E85: 999.86 | F85: 7 | G85: 6 | H85: 11 | I85: 17 | J85: 24 | K85: 13 | L85: 0.42 | M85: 0.36 | N85: 0.66 | O85: 1.02 | P85: 1.44 | Q85: 0.78 | R85: 233 | S85: 13.98 | T85: 156 | U85: 9.36 | V85: 4.49 | W85: 13.33146667 | X85: 1001.67 | Y85: 931.42 | Z85: 60.11 | AA85: 55.89 | AB85: 51.82 | AC85: 569.46 | AD85: 471.29 | AE85: 34.17 | AF85: 28.28 | AG85: 54.72 | AH85: 6.87 | AI85: 94.26 | AJ85: 101.12 | AK85: 38.66 | AL85: 26.91 | AM85: 2.32 | AN85: 1.61 | AO85: 58.96 | AQ85: DARNELL.NURSE | AR85: D | AS85: EDM | AT85: 69 | AU85: 1166.12 | AV85: 3 | AW85: 2 | AX85: 1 | AY85: 3 | AZ85: 6 | BA85: 5 | BB85: 0.15 | BC85: 0.1 | BD85: 0.05 | BE85: 0.15 | BF85: 0.31 | BG85: 0.26 | BH85: 228 | BI85: 11.73 | BJ85: 112 | BK85: 5.76 | BL85: 2.68 | BM85: =AU85/AT85 -> 16.90028986 | BN85: 997.72 | BO85: 1224.45 | BP85: 51.34 | BQ85: 63 | BR85: 44.9 | BS85: 514.46 | BT85: 640.85 | BU85: 26.47 | BV85: 32.97 | BW85: 44.53 | BX85: 7.66 | BY85: 91.15 | BZ85: 98.82 | CA85: 39.64 | CB85: 56.72 | CC85: 2.04 | CD85: 2.92 | CE85: 41.14
A86: CHRIS.KUNITZ | B86: L | C86: PIT | D86: 80 | E86: 1065.53 | F86: 15 | G86: 10 | H86: 6 | I86: 16 | J86: 31 | K86: 25 | L86: 0.84 | M86: 0.56 | N86: 0.34 | O86: 0.9 | P86: 1.75 | Q86: 1.41 | R86: 233 | S86: 13.12 | T86: 127 | U86: 7.15 | V86: 11.81 | W86: 13.319125 | X86: 1177.93 | Y86: 939.11 | Z86: 66.33 | AA86: 52.88 | AB86: 55.64 | AC86: 645.35 | AD86: 498.23 | AE86: 36.34 | AF86: 28.06 | AG86: 56.43 | AH86: 9.27 | AI86: 93.94 | AJ86: 103.21 | AK86: 60.04 | AL86: 30.05 | AM86: 3.38 | AN86: 1.69 | AO86: 66.65 | AQ86: KEVIN.SHATTENKIRK | AR86: D | AS86: STL | AT86: 72 | AU86: 1162.15 | AV86: 5 | AW86: 4 | AX86: 1 | AY86: 5 | AZ86: 10 | BA86: 9 | BB86: 0.26 | BC86: 0.21 | BD86: 0.05 | BE86: 0.26 | BF86: 0.52 | BG86: 0.46 | BH86: 230 | BI86: 11.87 | BJ86: 119 | BK86: 6.14 | BL86: 4.2 | BM86: =AU86/AT86 -> 16.14097222 | BN86: 1081.88 | BO86: 972.09 | BP86: 55.86 | BQ86: 50.19 | BR86: 52.67 | BS86: 577.99 | BT86: 518.62 | BU86: 29.84 | BV86: 26.78 | BW86: 52.71 | BX86: 6.45 | BY86: 91.57 | BZ86: 98.02 | CA86: 36.73 | CB86: 44.13 | CC86: 1.9 | CD86: 2.28 | CE86: 45.43
A87: JEFF.SKINNER | B87: C | C87: CAR | D87: 82 | E87: 1091.64 | F87: 20 | G87: 17 | H87: 2 | I87: 19 | J87: 39 | K87: 37 | L87: 1.1 | M87: 0.93 | N87: 0.11 | O87: 1.04 | P87: 2.14 | Q87: 2.03 | R87: 333 | S87: 18.3 | T87: 194 | U87: 10.66 | V87: 10.31 | W87: 13.31268293 | X87: 1028.03 | Y87: 990.93 | Z87: 56.5 | AA87: 54.46 | AB87: 50.92 | AC87: 547.81 | AD87: 537.33 | AE87: 30.11 | AF87: 29.53 | AG87: 50.48 | AH87: 8.76 | AI87: 91.88 | AJ87: 100.64 | AK87: 48.3 | AL87: 44.36 | AM87: 2.65 | AN87: 2.44 | AO87: 52.12 | AQ87: NOAH.HANIFIN | AR87: D | AS87: CAR | AT87: 79 | AU87: 1161.88 | AV87: 3 | AW87: 9 | AX87: 0 | AY87: 9 | AZ87: 12 | BA87: 12 | BB87: 0.15 | BC87: 0.46 | BD87: 0 | BE87: 0.46 | BF87: 0.62 | BG87: 0.62 | BH87: 194 | BI87: 10.02 | BJ87: 81 | BK87: 4.18 | BL87: 3.7 | BM87: =AU87/AT87 -> 14.70734177 | BN87: 1052.61 | BO87: 1073.07 | BP87: 54.36 | BQ87: 55.41 | BR87: 49.52 | BS87: 550.72 | BT87: 566.37 | BU87: 28.44 | BV87: 29.25 | BW87: 49.3 | BX87: 7.59 | BY87: 91.5 | BZ87: 99.1 | CA87: 41.93 | CB87: 48.21 | CC87: 2.17 | CD87: 2.49 | CE87: 46.51
A88: NICK.FOLIGNO | B88: L | C88: CBJ | D88: 72 | E88: 956.46 | F88: 11 | G88: 5 | H88: 5 | I88: 10 | J88: 21 | K88: 16 | L88: 0.69 | M88: 0.31 | N88: 0.31 | O88: 0.63 | P88: 1.32 | Q88: 1 | R88: 196 | S88: 12.3 | T88: 121 | U88: 7.59 | V88: 9.09 | W88: 13.28416667 | X88: 881.47 | Y88: 828.93 | Z88: 55.3 | AA88: 52 | AB88: 51.54 | AC88: 478.68 | AD88: 459.06 | AE88: 30.03 | AF88: 28.8 | AG88: 51.05 | AH88: 6.44 | AI88: 92.34 | AJ88: 98.79 | AK88: 31.26 | AL88: 35.42 | AM88: 1.96 | AN88: 2.22 | AO88: 46.88 | AQ88: KEVIN.KLEIN | AR88: D | AS88: NYR | AT88: 69 | AU88: 1154.72 | AV88: 7 | AW88: 3 | AX88: 11 | AY88: 14 | AZ88: 21 | BA88: 10 | BB88: 0.36 | BC88: 0.16 | BD88: 0.57 | BE88: 0.73 | BF88: 1.09 | BG88: 0.52 | BH88: 139 | BI88: 7.22 | BJ88: 60 | BK88: 3.12 | BL88: 11.67 | BM88: =AU88/AT88 -> 16.73507246 | BN88: 1032.33 | BO88: 1055.11 | BP88: 53.64 | BQ88: 54.82 | BR88: 49.45 | BS88: 555.73 | BT88: 552.15 | BU88: 28.88 | BV88: 28.69 | BW88: 50.16 | BX88: 9.17 | BY88: 93.57 | BZ88: 102.75 | CA88: 49.63 | CB88: 36.23 | CC88: 2.58 | CD88: 1.88 | CE88: 57.8
A89: KYLE.PALMIERI | B89: C | C89: N.J | D89: 82 | E89: 1087.17 | F89: 16 | G89: 8 | H89: 6 | I89: 14 | J89: 30 | K89: 24 | L89: 0.88 | M89: 0.44 | N89: 0.33 | O89: 0.77 | P89: 1.66 | Q89: 1.32 | R89: 220 | S89: 12.14 | T89: 121 | U89: 6.68 | V89: 13.22 | W89: 13.25817073 | X89: 764.98 | Y89: 939.08 | Z89: 42.22 | AA89: 51.83 | AB89: 44.89 | AC89: 428.66 | AD89: 518.38 | AE89: 23.66 | AF89: 28.61 | AG89: 45.26 | AH89: 7.83 | AI89: 95.14 | AJ89: 102.97 | AK89: 34.62 | AL89: 24.71 | AM89: 1.91 | AN89: 1.36 | AO89: 58.35 | AQ89: ZACH.BOGOSIAN | AR89: D | AS89: BUF | AT89: 64 | AU89: 1153.38 | AV89: 2 | AW89: 2 | AX89: 7 | AY89: 9 | AZ89: 11 | BA89: 4 | BB89: 0.1 | BC89: 0.1 | BD89: 0.36 | BE89: 0.47 | BF89: 0.57 | BG89: 0.21 | BH89: 161 | BI89: 8.38 | BJ89: 88 | BK89: 4.58 | BL89: 2.27 | BM89: =AU89/AT89 -> 18.0215625 | BN89: 960.15 | BO89: 1143.23 | BP89: 49.95 | BQ89: 59.47 | BR89: 45.65 | BS89: 546.19 | BT89: 622.68 | BU89: 28.41 | BV89: 32.39 | BW89: 46.73 | BX89: 7.59 | BY89: 92.03 | BZ89: 99.63 | CA89: 42.33 | CB89: 48.89 | CC89: 2.2 | CD89: 2.54 | CE89: 46.41
A90: DANIEL.SEDIN | B90: L | C90: VAN | D90: 82 | E90: 1087.03 | F90: 16 | G90: 13 | H90: 5 | I90: 18 | J90: 34 | K90: 29 | L90: 0.88 | M90: 0.72 | N90: 0.28 | O90: 0.99 | P90: 1.88 | Q90: 1.6 | R90: 274 | S90: 15.12 | T90: 176 | U90: 9.71 | V90: 9.09 | W90: 13.25646341 | X90: 935.88 | Y90: 970.76 | Z90: 51.66 | AA90: 53.58 | AB90: 49.09 | AC90: 526.79 | AD90: 546.59 | AE90: 29.08 | AF90: 30.17 | AG90: 49.08 | AH90: 8.75 | AI90: 94.27 | AJ90: 103.02 | AK90: 46.53 | AL90: 31.73 | AM90: 2.57 | AN90: 1.75 | AO90: 59.46 | AQ90: BEN.HUTTON | AR90: D | AS90: VAN | AT90: 75 | AU90: 1152.87 | AV90: 1 | AW90: 9 | AX90: 6 | AY90: 15 | AZ90: 16 | BA90: 10 | BB90: 0.05 | BC90: 0.47 | BD90: 0.31 | BE90: 0.78 | BF90: 0.83 | BG90: 0.52 | BH90: 153 | BI90: 7.96 | BJ90: 70 | BK90: 3.64 | BL90: 1.43 | BM90: =AU90/AT90 -> 15.3716 | BN90: 959.77 | BO90: 1132.8 | BP90: 49.95 | BQ90: 58.96 | BR90: 45.87 | BS90: 523.32 | BT90: 629.51 | BU90: 27.24 | BV90: 32.76 | BW90: 45.39 | BX90: 5.93 | BY90: 93.09 | BZ90: 99.01 | CA90: 31.58 | CB90: 43.11 | CC90: 1.64 | CD90: 2.24 | CE90: 42.28
A91: BRANDON.DUBINSKY | B91: C | C91: CBJ | D91: 75 | E91: 993.65 | F91: 11 | G91: 16 | H91: 6 | I91: 22 | J91: 33 | K91: 27 | L91: 0.66 | M91: 0.97 | N91: 0.36 | O91: 1.33 | P91: 1.99 | Q91: 1.63 | R91: 202 | S91: 12.2 | T91: 110 | U91: 6.64 | V91: 10 | W91: 13.24866667 | X91: 970.58 | Y91: 1004.12 | Z91: 58.61 | AA91: 60.63 | AB91: 49.15 | AC91: 526.78 | AD91: 542.36 | AE91: 31.81 | AF91: 32.75 | AG91: 49.27 | AH91: 7.85 | AI91: 90.09 | AJ91: 97.94 | AK91: 41.74 | AL91: 53.47 | AM91: 2.52 | AN91: 3.23 | AO91: 43.84 | AQ91: MARC-EDOUARD.VLASIC | AR91: D | AS91: S.J | AT91: 67 | AU91: 1152 | AV91: 6 | AW91: 6 | AX91: 11 | AY91: 17 | AZ91: 23 | BA91: 12 | BB91: 0.31 | BC91: 0.31 | BD91: 0.57 | BE91: 0.89 | BF91: 1.2 | BG91: 0.62 | BH91: 195 | BI91: 10.16 | BJ91: 81 | BK91: 4.22 | BL91: 7.41 | BM91: =AU91/AT91 -> 17.19402985 | BN91: 1083.88 | BO91: 948.31 | BP91: 56.45 | BQ91: 49.39 | BR91: 53.34 | BS91: 559.2 | BT91: 477.35 | BU91: 29.12 | BV91: 24.86 | BW91: 53.95 | BX91: 9.93 | BY91: 91.15 | BZ91: 101.08 | CA91: 55.18 | CB91: 42.95 | CC91: 2.87 | CD91: 2.24 | CE91: 56.23
A92: BRANDON.SAAD | B92: L | C92: CBJ | D92: 78 | E92: 1032.25 | F92: 20 | G92: 9 | H92: 9 | I92: 18 | J92: 38 | K92: 29 | L92: 1.16 | M92: 0.52 | N92: 0.52 | O92: 1.05 | P92: 2.21 | Q92: 1.69 | R92: 298 | S92: 17.32 | T92: 174 | U92: 10.11 | V92: 11.49 | W92: 13.23397436 | X92: 989.6 | Y92: 1014.26 | Z92: 57.52 | AA92: 58.95 | AB92: 49.38 | AC92: 528.61 | AD92: 522.47 | AE92: 30.73 | AF92: 30.37 | AG92: 50.29 | AH92: 9.53 | AI92: 92.46 | AJ92: 101.99 | AK92: 50.89 | AL92: 39.7 | AM92: 2.96 | AN92: 2.31 | AO92: 56.18 | AQ92: ANTON.STRALMAN | AR92: D | AS92: T.B | AT92: 73 | AU92: 1146.52 | AV92: 7 | AW92: 3 | AX92: 7 | AY92: 10 | AZ92: 17 | BA92: 10 | BB92: 0.37 | BC92: 0.16 | BD92: 0.37 | BE92: 0.52 | BF92: 0.89 | BG92: 0.52 | BH92: 187 | BI92: 9.79 | BJ92: 98 | BK92: 5.13 | BL92: 7.14 | BM92: =AU92/AT92 -> 15.70575342 | BN92: 1126.68 | BO92: 906.91 | BP92: 58.96 | BQ92: 47.46 | BR92: 55.4 | BS92: 622.72 | BT92: 488.97 | BU92: 32.59 | BV92: 25.59 | BW92: 56.02 | BX92: 6.63 | BY92: 94.91 | BZ92: 101.54 | CA92: 41.02 | CB92: 25.12 | CC92: 2.15 | CD92: 1.31 | CE92: 62.02
A93: HENRIK.SEDIN | B93: C | C93: VAN | D93: 74 | E93: 979.01 | F93: 4 | G93: 17 | H93: 8 | I93: 25 | J93: 29 | K93: 21 | L93: 0.25 | M93: 1.04 | N93: 0.49 | O93: 1.53 | P93: 1.78 | Q93: 1.29 | R93: 104 | S93: 6.37 | T93: 67 | U93: 4.11 | V93: 5.97 | W93: 13.22986486 | X93: 849.8 | Y93: 889.18 | Z93: 52.08 | AA93: 54.49 | AB93: 48.87 | AC93: 461.23 | AD93: 500.87 | AE93: 28.27 | AF93: 30.7 | AG93: 47.94 | AH93: 7.99 | AI93: 93.72 | AJ93: 101.72 | AK93: 37.09 | AL93: 31.59 | AM93: 2.27 | AN93: 1.94 | AO93: 54.01 | AQ93: CODY.CECI | AR93: D | AS93: OTT | AT93: 75 | AU93: 1143.62 | AV93: 8 | AW93: 6 | AX93: 5 | AY93: 11 | AZ93: 19 | BA93: 14 | BB93: 0.42 | BC93: 0.31 | BD93: 0.26 | BE93: 0.58 | BF93: 1 | BG93: 0.73 | BH93: 201 | BI93: 10.55 | BJ93: 101 | BK93: 5.3 | BL93: 7.92 | BM93: =AU93/AT93 -> 15.24826667 | BN93: 924.35 | BO93: 1188.37 | BP93: 48.5 | BQ93: 62.35 | BR93: 43.75 | BS93: 485.46 | BT93: 657.48 | BU93: 25.47 | BV93: 34.49 | BW93: 42.47 | BX93: 7.94 | BY93: 94.62 | BZ93: 102.57 | CA93: 39.38 | CB93: 34.77 | CC93: 2.07 | CD93: 1.82 | CE93: 53.11
A94: PATRIC.HORNQVIST | B94: R | C94: PIT | D94: 82 | E94: 1084.65 | F94: 12 | G94: 11 | H94: 11 | I94: 22 | J94: 34 | K94: 23 | L94: 0.66 | M94: 0.61 | N94: 0.61 | O94: 1.22 | P94: 1.88 | Q94: 1.27 | R94: 311 | S94: 17.2 | T94: 200 | U94: 11.06 | V94: 6 | W94: 13.22743902 | X94: 1178.87 | Y94: 917.09 | Z94: 65.21 | AA94: 50.73 | AB94: 56.24 | AC94: 638.06 | AD94: 500.4 | AE94: 35.3 | AF94: 27.68 | AG94: 56.05 | AH94: 7.81 | AI94: 93.59 | AJ94: 101.4 | AK94: 49.7 | AL94: 31.86 | AM94: 2.75 | AN94: 1.76 | AO94: 60.94 | AQ94: CHRIS.TANEV | AR94: D | AS94: VAN | AT94: 69 | AU94: 1143.6 | AV94: 1 | AW94: 4 | AX94: 6 | AY94: 10 | AZ94: 11 | BA94: 5 | BB94: 0.05 | BC94: 0.21 | BD94: 0.31 | BE94: 0.52 | BF94: 0.58 | BG94: 0.26 | BH94: 80 | BI94: 4.2 | BJ94: 32 | BK94: 1.68 | BL94: 3.12 | BM94: =AU94/AT94 -> 16.57391304 | BN94: 956.06 | BO94: 985.53 | BP94: 50.16 | BQ94: 51.71 | BR94: 49.24 | BS94: 535.02 | BT94: 487.99 | BU94: 28.07 | BV94: 25.6 | BW94: 52.3 | BX94: 6.17 | BY94: 91.13 | BZ94: 97.3 | CA94: 33.34 | CB94: 43.54 | CC94: 1.75 | CD94: 2.28 | CE94: 43.37
A95: TRAVIS.ZAJAC | B95: C | C95: N.J | D95: 74 | E95: 978.6 | F95: 5 | G95: 8 | H95: 7 | I95: 15 | J95: 20 | K95: 13 | L95: 0.31 | M95: 0.49 | N95: 0.43 | O95: 0.92 | P95: 1.23 | Q95: 0.8 | R95: 132 | S95: 8.09 | T95: 80 | U95: 4.9 | V95: 6.25 | W95: 13.22432432 | X95: 712.27 | Y95: 874.09 | Z95: 43.67 | AA95: 53.59 | AB95: 44.9 | AC95: 398.18 | AD95: 486.88 | AE95: 24.41 | AF95: 29.85 | AG95: 44.99 | AH95: 7.71 | AI95: 94 | AJ95: 101.71 | AK95: 31.44 | AL95: 28.6 | AM95: 1.93 | AN95: 1.75 | AO95: 52.37 | AQ95: NICK.SCHULTZ | AR95: D | AS95: PHI | AT95: 81 | AU95: 1140.78 | AV95: 1 | AW95: 2 | AX95: 6 | AY95: 8 | AZ95: 9 | BA95: 3 | BB95: 0.05 | BC95: 0.11 | BD95: 0.32 | BE95: 0.42 | BF95: 0.47 | BG95: 0.16 | BH95: 146 | BI95: 7.68 | BJ95: 60 | BK95: 3.16 | BL95: 1.67 | BM95: =AU95/AT95 -> 14.0837037 | BN95: 981.15 | BO95: 1135.1 | BP95: 51.6 | BQ95: 59.7 | BR95: 46.36 | BS95: 501.87 | BT95: 585.51 | BU95: 26.4 | BV95: 30.8 | BW95: 46.15 | BX95: 7.28 | BY95: 93.1 | BZ95: 100.39 | CA95: 37.31 | CB95: 39.75 | CC95: 1.96 | CD95: 2.09 | CE95: 48.42
A96: JOAKIM.NORDSTROM | B96: C | C96: CAR | D96: 71 | E96: 938.64 | F96: 9 | G96: 8 | H96: 6 | I96: 14 | J96: 23 | K96: 17 | L96: 0.58 | M96: 0.51 | N96: 0.38 | O96: 0.89 | P96: 1.47 | Q96: 1.09 | R96: 163 | S96: 10.42 | T96: 78 | U96: 4.99 | V96: 11.54 | W96: 13.22028169 | X96: 811.71 | Y96: 822.97 | Z96: 51.89 | AA96: 52.61 | AB96: 49.66 | AC96: 415.42 | AD96: 437.16 | AE96: 26.55 | AF96: 27.94 | AG96: 48.72 | AH96: 6.78 | AI96: 92.69 | AJ96: 99.47 | AK96: 27.54 | AL96: 32.52 | AM96: 1.76 | AN96: 2.08 | AO96: 45.86 | AQ96: NATE.SCHMIDT | AR96: D | AS96: WSH | AT96: 72 | AU96: 1137.81 | AV96: 1 | AW96: 7 | AX96: 6 | AY96: 13 | AZ96: 14 | BA96: 8 | BB96: 0.05 | BC96: 0.37 | BD96: 0.32 | BE96: 0.69 | BF96: 0.74 | BG96: 0.42 | BH96: 170 | BI96: 8.96 | BJ96: 73 | BK96: 3.85 | BL96: 1.37 | BM96: =AU96/AT96 -> 15.80291667 | BN96: 1101.11 | BO96: 1061.31 | BP96: 58.06 | BQ96: 55.97 | BR96: 50.92 | BS96: 581.31 | BT96: 532.61 | BU96: 30.65 | BV96: 28.09 | BW96: 52.19 | BX96: 7.45 | BY96: 93.81 | BZ96: 101.26 | CA96: 42.55 | CB96: 32.83 | CC96: 2.24 | CD96: 1.73 | CE96: 56.45
A97: TYLER.BOZAK | B97: C | C97: TOR | D97: 57 | E97: 753.13 | F97: 7 | G97: 9 | H97: 4 | I97: 13 | J97: 20 | K97: 16 | L97: 0.56 | M97: 0.72 | N97: 0.32 | O97: 1.04 | P97: 1.59 | Q97: 1.27 | R97: 122 | S97: 9.72 | T97: 69 | U97: 5.5 | V97: 10.14 | W97: 13.21280702 | X97: 789 | Y97: 772.62 | Z97: 62.86 | AA97: 61.55 | AB97: 50.52 | AC97: 395.71 | AD97: 437.79 | AE97: 31.53 | AF97: 34.88 | AG97: 47.48 | AH97: 6.7 | AI97: 92.36 | AJ97: 99.06 | AK97: 27.14 | AL97: 32.81 | AM97: 2.16 | AN97: 2.61 | AO97: 45.27 | AQ97: BRENDEN.DILLON | AR97: D | AS97: S.J | AT97: 76 | AU97: 1137.72 | AV97: 2 | AW97: 5 | AX97: 4 | AY97: 9 | AZ97: 11 | BA97: 7 | BB97: 0.11 | BC97: 0.26 | BD97: 0.21 | BE97: 0.47 | BF97: 0.58 | BG97: 0.37 | BH97: 201 | BI97: 10.6 | BJ97: 89 | BK97: 4.69 | BL97: 2.25 | BM97: =AU97/AT97 -> 14.97 | BN97: 1052.14 | BO97: 1068.37 | BP97: 55.49 | BQ97: 56.34 | BR97: 49.62 | BS97: 547.84 | BT97: 518.44 | BU97: 28.89 | BV97: 27.34 | BW97: 51.38 | BX97: 6.78 | BY97: 93.46 | BZ97: 100.24 | CA97: 37.41 | CB97: 33.8 | CC97: 1.97 | CD97: 1.78 | CE97: 52.53
A98: VINCENT.TROCHECK | B98: C | C98: FLA | D98: 76 | E98: 1003.92 | F98: 19 | G98: 13 | H98: 5 | I98: 18 | J98: 37 | K98: 32 | L98: 1.14 | M98: 0.78 | N98: 0.3 | O98: 1.08 | P98: 2.21 | Q98: 1.91 | R98: 215 | S98: 12.85 | T98: 123 | U98: 7.35 | V98: 15.45 | W98: 13.20947368 | X98: 899.95 | Y98: 821.18 | Z98: 53.79 | AA98: 49.08 | AB98: 52.29 | AC98: 504.07 | AD98: 466.86 | AE98: 30.13 | AF98: 27.9 | AG98: 51.92 | AH98: 10.04 | AI98: 93.43 | AJ98: 103.47 | AK98: 49.94 | AL98: 30.64 | AM98: 2.98 | AN98: 1.83 | AO98: 61.98 | AQ98: KRIS.RUSSELL | AR98: D | AS98: CGY/DAL | AT98: 62 | AU98: 1134.75 | AV98: 1 | AW98: 4 | AX98: 7 | AY98: 11 | AZ98: 12 | BA98: 5 | BB98: 0.05 | BC98: 0.21 | BD98: 0.37 | BE98: 0.58 | BF98: 0.63 | BG98: 0.26 | BH98: 141 | BI98: 7.46 | BJ98: 51 | BK98: 2.7 | BL98: 1.96 | BM98: =AU98/AT98 -> 18.30241935 | BN98: 969.55 | BO98: 1206.94 | BP98: 51.27 | BQ98: 63.82 | BR98: 44.55 | BS98: 509.23 | BT98: 592.28 | BU98: 26.93 | BV98: 31.32 | BW98: 46.23 | BX98: 10.24 | BY98: 90.29 | BZ98: 100.53 | CA98: 51.85 | CB98: 57.2 | CC98: 2.74 | CD98: 3.02 | CE98: 47.54
A99: TEDDY.PURCELL | B99: R | C99: EDM/FLA | D99: 76 | E99: 1003.19 | F99: 10 | G99: 8 | H99: 11 | I99: 19 | J99: 29 | K99: 18 | L99: 0.6 | M99: 0.48 | N99: 0.66 | O99: 1.14 | P99: 1.73 | Q99: 1.08 | R99: 225 | S99: 13.46 | T99: 115 | U99: 6.88 | V99: 8.7 | W99: 13.19986842 | X99: 922.25 | Y99: 909.15 | Z99: 55.16 | AA99: 54.38 | AB99: 50.36 | AC99: 483.1 | AD99: 482.41 | AE99: 28.89 | AF99: 28.85 | AG99: 50.04 | AH99: 8.4 | AI99: 90.74 | AJ99: 99.14 | AK99: 40.47 | AL99: 43.69 | AM99: 2.42 | AN99: 2.61 | AO99: 48.09 | AQ99: MIKE.GREEN | AR99: D | AS99: DET | AT99: 74 | AU99: 1134.26 | AV99: 2 | AW99: 4 | AX99: 6 | AY99: 10 | AZ99: 12 | BA99: 6 | BB99: 0.11 | BC99: 0.21 | BD99: 0.32 | BE99: 0.53 | BF99: 0.63 | BG99: 0.32 | BH99: 159 | BI99: 8.41 | BJ99: 84 | BK99: 4.44 | BL99: 2.38 | BM99: =AU99/AT99 -> 15.32783784 | BN99: 1095.11 | BO99: 903.39 | BP99: 57.93 | BQ99: 47.79 | BR99: 54.8 | BS99: 608.84 | BT99: 539.93 | BU99: 32.21 | BV99: 28.56 | BW99: 53 | BX99: 6.72 | BY99: 91.74 | BZ99: 98.47 | CA99: 41.47 | CB99: 43.99 | CC99: 2.19 | CD99: 2.33 | CE99: 48.52
A100: ADAM.HENRIQUE | B100: C | C100: N.J | D100: 80 | E100: 1054.44 | F100: 18 | G100: 1 | H100: 10 | I100: 11 | J100: 29 | K100: 19 | L100: 1.02 | M100: 0.06 | N100: 0.57 | O100: 0.63 | P100: 1.65 | Q100: 1.08 | R100: 160 | S100: 9.1 | T100: 101 | U100: 5.75 | V100: 17.82 | W100: 13.1805 | X100: 737.24 | Y100: 879.86 | Z100: 41.95 | AA100: 50.07 | AB100: 45.59 | AC100: 419.08 | AD100: 480.42 | AE100: 23.85 | AF100: 27.34 | AG100: 46.59 | AH100: 11.14 | AI100: 92.26 | AJ100: 103.4 | AK100: 46.91 | AL100: 37.16 | AM100: 2.67 | AN100: 2.11 | AO100: 55.8 | AQ100: JUSTIN.FAULK | AR100: D | AS100: CAR | AT100: 64 | AU100: 1126.47 | AV100: 4 | AW100: 5 | AX100: 6 | AY100: 11 | AZ100: 15 | BA100: 9 | BB100: 0.21 | BC100: 0.27 | BD100: 0.32 | BE100: 0.59 | BF100: 0.8 | BG100: 0.48 | BH100: 219 | BI100: 11.66 | BJ100: 96 | BK100: 5.11 | BL100: 4.17 | BM100: =AU100/AT100 -> 17.60109375 | BN100: 1112.81 | BO100: 1007.12 | BP100: 59.27 | BQ100: 53.64 | BR100: 52.49 | BS100: 583.11 | BT100: 559.92 | BU100: 31.06 | BV100: 29.82 | BW100: 51.01 | BX100: 6.7 | BY100: 90.44 | BZ100: 97.14 | CA100: 38.73 | CB100: 54.23 | CC100: 2.06 | CD100: 2.89 | CE100: 41.67
A101: OLIVER.BJORKSTRAND | B101: R | C101: CBJ | D101: 12 | E101: 158.03 | F101: 4 | G101: 2 | H101: 2 | I101: 4 | J101: 8 | K101: 6 | L101: 1.52 | M101: 0.76 | N101: 0.76 | O101: 1.52 | P101: 3.04 | Q101: 2.28 | R101: 42 | S101: 15.95 | T101: 25 | U101: 9.49 | V101: 16 | W101: 13.16916667 | X101: 150.93 | Y101: 155.09 | Z101: 57.3 | AA101: 58.89 | AB101: 49.32 | AC101: 81.73 | AD101: 75.9 | AE101: 31.03 | AF101: 28.82 | AG101: 51.85 | AH101: 10.98 | AI101: 94.74 | AJ101: 105.71 | AK101: 9.04 | AL101: 4.16 | AM101: 3.43 | AN101: 1.58 | AO101: 68.49 | AQ101: DAN.BOYLE | AR101: D | AS101: NYR | AT101: 74 | AU101: 1121.1 | AV101: 5 | AW101: 2 | AX101: 4 | AY101: 6 | AZ101: 11 | BA101: 7 | BB101: 0.27 | BC101: 0.11 | BD101: 0.21 | BE101: 0.32 | BF101: 0.59 | BG101: 0.37 | BH101: 118 | BI101: 6.32 | BJ101: 60 | BK101: 3.21 | BL101: 8.33 | BM101: =AU101/AT101 -> 15.15 | BN101: 1045.43 | BO101: 1020.72 | BP101: 55.95 | BQ101: 54.63 | BR101: 50.6 | BS101: 546.23 | BT101: 536.65 | BU101: 29.23 | BV101: 28.72 | BW101: 50.44 | BX101: 8.69 | BY101: 92.46 | BZ101: 101.15 | CA101: 47 | CB101: 40.81 | CC101: 2.52 | CD101: 2.18 | CE101: 53.52
A102: JOSH.BAILEY | B102: C | C102: NYI | D102: 81 | E102: 1066.33 | F102: 6 | G102: 8 | H102: 9 | I102: 17 | J102: 23 | K102: 14 | L102: 0.34 | M102: 0.45 | N102: 0.51 | O102: 0.96 | P102: 1.29 | Q102: 0.79 | R102: 158 | S102: 8.89 | T102: 87 | U102: 4.9 | V102: 6.9 | W102: 13.1645679 | X102: 1003.78 | Y102: 1031.18 | Z102: 56.48 | AA102: 58.02 | AB102: 49.33 | AC102: 496.27 | AD102: 548.17 | AE102: 27.92 | AF102: 30.84 | AG102: 47.52 | AH102: 7.26 | AI102: 91.8 | AJ102: 99.06 | AK102: 36.21 | AL102: 44.94 | AM102: 2.04 | AN102: 2.53 | AO102: 44.62 | AQ102: JOSH.MANSON | AR102: D | AS102: ANA | AT102: 71 | AU102: 1120.07 | AV102: 4 | AW102: 3 | AX102: 7 | AY102: 10 | AZ102: 14 | BA102: 7 | BB102: 0.21 | BC102: 0.16 | BD102: 0.37 | BE102: 0.54 | BF102: 0.75 | BG102: 0.37 | BH102: 151 | BI102: 8.09 | BJ102: 77 | BK102: 4.12 | BL102: 5.19 | BM102: =AU102/AT102 -> 15.7756338 | BN102: 1102.74 | BO102: 815.06 | BP102: 59.07 | BQ102: 43.66 | BR102: 57.5 | BS102: 600.27 | BT102: 418.37 | BU102: 32.16 | BV102: 22.41 | BW102: 58.93 | BX102: 6.76 | BY102: 92.2 | BZ102: 98.96 | CA102: 40.19 | CB102: 32.88 | CC102: 2.15 | CD102: 1.76 | CE102: 55
A103: JEFF.CARTER | B103: C | C103: L.A | D103: 77 | E103: 1012.95 | F103: 9 | G103: 13 | H103: 11 | I103: 24 | J103: 33 | K103: 22 | L103: 0.53 | M103: 0.77 | N103: 0.65 | O103: 1.42 | P103: 1.95 | Q103: 1.3 | R103: 323 | S103: 19.13 | T103: 171 | U103: 10.13 | V103: 5.26 | W103: 13.15519481 | X103: 1164.3 | Y103: 889.64 | Z103: 68.97 | AA103: 52.7 | AB103: 56.69 | AC103: 600.74 | AD103: 481.52 | AE103: 35.58 | AF103: 28.52 | AG103: 55.51 | AH103: 6.86 | AI103: 92.83 | AJ103: 99.68 | AK103: 40.39 | AL103: 35.02 | AM103: 2.39 | AN103: 2.07 | AO103: 53.56 | AQ103: CAM.FOWLER | AR103: D | AS103: ANA | AT103: 69 | AU103: 1116.91 | AV103: 2 | AW103: 4 | AX103: 3 | AY103: 7 | AZ103: 9 | BA103: 6 | BB103: 0.11 | BC103: 0.21 | BD103: 0.16 | BE103: 0.38 | BF103: 0.48 | BG103: 0.32 | BH103: 135 | BI103: 7.25 | BJ103: 61 | BK103: 3.28 | BL103: 3.28 | BM103: =AU103/AT103 -> 16.18710145 | BN103: 1038.51 | BO103: 1060.99 | BP103: 55.79 | BQ103: 57 | BR103: 49.46 | BS103: 545.35 | BT103: 556.79 | BU103: 29.3 | BV103: 29.91 | BW103: 49.48 | BX103: 7.25 | BY103: 91.3 | BZ103: 98.55 | CA103: 38.99 | CB103: 48.64 | CC103: 2.09 | CD103: 2.61 | CE103: 44.49
A104: JANNIK.HANSEN | B104: R | C104: VAN | D104: 67 | E104: 881.35 | F104: 18 | G104: 11 | H104: 4 | I104: 15 | J104: 33 | K104: 29 | L104: 1.23 | M104: 0.75 | N104: 0.27 | O104: 1.02 | P104: 2.25 | Q104: 1.97 | R104: 151 | S104: 10.28 | T104: 95 | U104: 6.47 | V104: 18.95 | W104: 13.15447761 | X104: 709.63 | Y104: 788.4 | Z104: 48.31 | AA104: 53.67 | AB104: 47.37 | AC104: 398.69 | AD104: 445.98 | AE104: 27.14 | AF104: 30.36 | AG104: 47.2 | AH104: 11.22 | AI104: 93.68 | AJ104: 104.9 | AK104: 45.55 | AL104: 28.14 | AM104: 3.1 | AN104: 1.92 | AO104: 61.81 | AQ104: MATT.DUMBA | AR104: D | AS104: MIN | AT104: 81 | AU104: 1111.65 | AV104: 4 | AW104: 5 | AX104: 5 | AY104: 10 | AZ104: 14 | BA104: 9 | BB104: 0.22 | BC104: 0.27 | BD104: 0.27 | BE104: 0.54 | BF104: 0.76 | BG104: 0.49 | BH104: 204 | BI104: 11.01 | BJ104: 87 | BK104: 4.7 | BL104: 4.6 | BM104: =AU104/AT104 -> 13.72407407 | BN104: 970.56 | BO104: 1070.08 | BP104: 52.38 | BQ104: 57.76 | BR104: 47.56 | BS104: 510.69 | BT104: 552.71 | BU104: 27.56 | BV104: 29.83 | BW104: 48.02 | BX104: 9.57 | BY104: 92.56 | BZ104: 102.13 | CA104: 48.87 | CB104: 40.81 | CC104: 2.64 | CD104: 2.2 | CE104: 54.49
A105: ANDREW.LADD | B105: L | C105: CHI/WPG | D105: 78 | E105: 1025.39 | F105: 11 | G105: 6 | H105: 9 | I105: 15 | J105: 26 | K105: 17 | L105: 0.64 | M105: 0.35 | N105: 0.53 | O105: 0.88 | P105: 1.52 | Q105: 0.99 | R105: 243 | S105: 14.22 | T105: 126 | U105: 7.37 | V105: 8.73 | W105: 13.14602564 | X105: 981.53 | Y105: 962.45 | Z105: 57.43 | AA105: 56.32 | AB105: 50.49 | AC105: 505.35 | AD105: 514.13 | AE105: 29.57 | AF105: 30.08 | AG105: 49.57 | AH105: 7.58 | AI105: 92.56 | AJ105: 100.15 | AK105: 38.24 | AL105: 37.61 | AM105: 2.24 | AN105: 2.2 | AO105: 50.42 | AQ105: KEVAN.MILLER | AR105: D | AS105: BOS | AT105: 71 | AU105: 1107.22 | AV105: 5 | AW105: 6 | AX105: 6 | AY105: 12 | AZ105: 17 | BA105: 11 | BB105: 0.27 | BC105: 0.33 | BD105: 0.33 | BE105: 0.65 | BF105: 0.92 | BG105: 0.6 | BH105: 140 | BI105: 7.59 | BJ105: 61 | BK105: 3.31 | BL105: 8.2 | BM105: =AU105/AT105 -> 15.59464789 | BN105: 1022.11 | BO105: 1008.98 | BP105: 55.39 | BQ105: 54.68 | BR105: 50.32 | BS105: 567.85 | BT105: 533.33 | BU105: 30.77 | BV105: 28.9 | BW105: 51.57 | BX105: 8.85 | BY105: 92.32 | BZ105: 101.17 | CA105: 50.29 | CB105: 41.74 | CC105: 2.73 | CD105: 2.26 | CE105: 54.64
A106: DYLAN.LARKIN | B106: C | C106: DET | D106: 80 | E106: 1050.87 | F106: 18 | G106: 12 | H106: 6 | I106: 18 | J106: 36 | K106: 30 | L106: 1.03 | M106: 0.69 | N106: 0.34 | O106: 1.03 | P106: 2.06 | Q106: 1.71 | R106: 303 | S106: 17.3 | T106: 171 | U106: 9.76 | V106: 10.53 | W106: 13.135875 | X106: 1007.71 | Y106: 935.22 | Z106: 57.54 | AA106: 53.4 | AB106: 51.87 | AC106: 540.57 | AD106: 563.84 | AE106: 30.86 | AF106: 32.19 | AG106: 48.95 | AH106: 8.7 | AI106: 93.39 | AJ106: 102.1 | AK106: 47.41 | AL106: 37.26 | AM106: 2.71 | AN106: 2.13 | AO106: 55.99 | AQ106: DAVID.SAVARD | AR106: D | AS106: CBJ | AT106: 65 | AU106: 1100.36 | AV106: 3 | AW106: 7 | AX106: 7 | AY106: 14 | AZ106: 17 | BA106: 10 | BB106: 0.16 | BC106: 0.38 | BD106: 0.38 | BE106: 0.76 | BF106: 0.93 | BG106: 0.55 | BH106: 191 | BI106: 10.41 | BJ106: 87 | BK106: 4.74 | BL106: 3.45 | BM106: =AU106/AT106 -> 16.92861538 | BN106: 962.44 | BO106: 1100.63 | BP106: 52.48 | BQ106: 60.01 | BR106: 46.65 | BS106: 522.57 | BT106: 586.33 | BU106: 28.49 | BV106: 31.97 | BW106: 47.13 | BX106: 7.91 | BY106: 92.39 | BZ106: 100.3 | CA106: 42.39 | CB106: 44.25 | CC106: 2.31 | CD106: 2.41 | CE106: 48.93
A107: RYAN.STROME | B107: C | C107: NYI | D107: 71 | E107: 932.23 | F107: 5 | G107: 10 | H107: 6 | I107: 16 | J107: 21 | K107: 15 | L107: 0.32 | M107: 0.64 | N107: 0.39 | O107: 1.03 | P107: 1.35 | Q107: 0.97 | R107: 186 | S107: 11.97 | T107: 112 | U107: 7.21 | V107: 4.46 | W107: 13.13 | X107: 951.18 | Y107: 940.53 | Z107: 61.22 | AA107: 60.53 | AB107: 50.28 | AC107: 507.5 | AD107: 507.93 | AE107: 32.66 | AF107: 32.69 | AG107: 49.98 | AH107: 7.92 | AI107: 91.29 | AJ107: 99.21 | AK107: 39.26 | AL107: 44.38 | AM107: 2.53 | AN107: 2.86 | AO107: 46.94 | AQ107: BRAYDON.COBURN | AR107: D | AS107: T.B | AT107: 80 | AU107: 1098.41 | AV107: 1 | AW107: 3 | AX107: 5 | AY107: 8 | AZ107: 9 | BA107: 4 | BB107: 0.05 | BC107: 0.16 | BD107: 0.27 | BE107: 0.44 | BF107: 0.49 | BG107: 0.22 | BH107: 185 | BI107: 10.11 | BJ107: 89 | BK107: 4.86 | BL107: 1.12 | BM107: =AU107/AT107 -> 13.730125 | BN107: 997.97 | BO107: 939.3 | BP107: 54.51 | BQ107: 51.31 | BR107: 51.51 | BS107: 522.61 | BT107: 534.21 | BU107: 28.55 | BV107: 29.18 | BW107: 49.45 | BX107: 8.74 | BY107: 92.38 | BZ107: 101.12 | CA107: 44.98 | CB107: 40.99 | CC107: 2.46 | CD107: 2.24 | CE107: 52.32
A108: BRYAN.LITTLE | B108: C | C108: WPG | D108: 57 | E108: 748.35 | F108: 12 | G108: 7 | H108: 5 | I108: 12 | J108: 24 | K108: 19 | L108: 0.96 | M108: 0.56 | N108: 0.4 | O108: 0.96 | P108: 1.92 | Q108: 1.52 | R108: 143 | S108: 11.47 | T108: 88 | U108: 7.06 | V108: 13.64 | W108: 13.12894737 | X108: 793.13 | Y108: 681.49 | Z108: 63.59 | AA108: 54.64 | AB108: 53.79 | AC108: 427.45 | AD108: 393.23 | AE108: 34.27 | AF108: 31.53 | AG108: 52.08 | AH108: 7.73 | AI108: 91.52 | AJ108: 99.25 | AK108: 33.26 | AL108: 32.62 | AM108: 2.67 | AN108: 2.62 | AO108: 50.49 | AQ108: OLLI.MAATTA | AR108: D | AS108: PIT | AT108: 67 | AU108: 1096.82 | AV108: 6 | AW108: 6 | AX108: 5 | AY108: 11 | AZ108: 17 | BA108: 12 | BB108: 0.33 | BC108: 0.33 | BD108: 0.27 | BE108: 0.6 | BF108: 0.93 | BG108: 0.66 | BH108: 169 | BI108: 9.24 | BJ108: 88 | BK108: 4.81 | BL108: 6.82 | BM108: =AU108/AT108 -> 16.37044776 | BN108: 1057.41 | BO108: 975.13 | BP108: 57.84 | BQ108: 53.34 | BR108: 52.02 | BS108: 587.25 | BT108: 538.01 | BU108: 32.12 | BV108: 29.43 | BW108: 52.19 | BX108: 10.15 | BY108: 93.43 | BZ108: 103.59 | CA108: 59.71 | CB108: 35.25 | CC108: 3.27 | CD108: 1.93 | CE108: 62.88
A109: NIKITA.SOSHNIKOV | B109: R | C109: TOR | D109: 11 | E109: 144.3 | F109: 1 | G109: 1 | H109: 2 | I109: 3 | J109: 4 | K109: 2 | L109: 0.42 | M109: 0.42 | N109: 0.83 | O109: 1.25 | P109: 1.66 | Q109: 0.83 | R109: 45 | S109: 18.71 | T109: 27 | U109: 11.23 | V109: 3.7 | W109: 13.11818182 | X109: 154.11 | Y109: 143.43 | Z109: 64.08 | AA109: 59.64 | AB109: 51.8 | AC109: 76.01 | AD109: 63.7 | AE109: 31.6 | AF109: 26.49 | AG109: 54.4 | AH109: 5.13 | AI109: 87.1 | AJ109: 92.22 | AK109: 3.97 | AL109: 8.12 | AM109: 1.65 | AN109: 3.38 | AO109: 32.85 | AQ109: ANDREJ.SUSTR | AR109: D | AS109: T.B | AT109: 77 | AU109: 1093.61 | AV109: 4 | AW109: 4 | AX109: 12 | AY109: 16 | AZ109: 20 | BA109: 8 | BB109: 0.22 | BC109: 0.22 | BD109: 0.66 | BE109: 0.88 | BF109: 1.1 | BG109: 0.44 | BH109: 134 | BI109: 7.35 | BJ109: 60 | BK109: 3.29 | BL109: 6.67 | BM109: =AU109/AT109 -> 14.20272727 | BN109: 993.64 | BO109: 970.91 | BP109: 54.52 | BQ109: 53.27 | BR109: 50.58 | BS109: 496.62 | BT109: 546.04 | BU109: 27.25 | BV109: 29.96 | BW109: 47.63 | BX109: 9.55 | BY109: 91.49 | BZ109: 101.04 | CA109: 47.54 | CB109: 46.82 | CC109: 2.61 | CD109: 2.57 | CE109: 50.38
A110: ALEX.KILLORN | B110: C | C110: T.B | D110: 81 | E110: 1060.96 | F110: 7 | G110: 14 | H110: 6 | I110: 20 | J110: 27 | K110: 21 | L110: 0.4 | M110: 0.79 | N110: 0.34 | O110: 1.13 | P110: 1.53 | Q110: 1.19 | R110: 216 | S110: 12.22 | T110: 111 | U110: 6.28 | V110: 6.31 | W110: 13.0982716 | X110: 1035.57 | Y110: 900.9 | Z110: 58.56 | AA110: 50.95 | AB110: 53.48 | AC110: 536.34 | AD110: 494.52 | AE110: 30.33 | AF110: 27.97 | AG110: 52.03 | AH110: 9.01 | AI110: 92.94 | AJ110: 101.95 | AK110: 48.34 | AL110: 35.25 | AM110: 2.73 | AN110: 1.99 | AO110: 57.83 | AQ110: JOHN.MOORE | AR110: D | AS110: N.J | AT110: 73 | AU110: 1089.1 | AV110: 1 | AW110: 3 | AX110: 6 | AY110: 9 | AZ110: 10 | BA110: 4 | BB110: 0.06 | BC110: 0.17 | BD110: 0.33 | BE110: 0.5 | BF110: 0.55 | BG110: 0.22 | BH110: 167 | BI110: 9.2 | BJ110: 72 | BK110: 3.97 | BL110: 1.39 | BM110: =AU110/AT110 -> 14.91917808 | BN110: 793.11 | BO110: 1027.41 | BP110: 43.69 | BQ110: 56.6 | BR110: 43.57 | BS110: 435.7 | BT110: 589.67 | BU110: 24 | BV110: 32.49 | BW110: 42.49 | BX110: 7.76 | BY110: 91.98 | BZ110: 99.74 | CA110: 33.67 | CB110: 47.24 | CC110: 1.86 | CD110: 2.6 | CE110: 41.62
A111: SAM.REINHART | B111: C | C111: BUF | D111: 79 | E111: 1034.68 | F111: 13 | G111: 10 | H111: 6 | I111: 16 | J111: 29 | K111: 23 | L111: 0.75 | M111: 0.58 | N111: 0.35 | O111: 0.93 | P111: 1.68 | Q111: 1.33 | R111: 208 | S111: 12.06 | T111: 123 | U111: 7.13 | V111: 10.57 | W111: 13.09721519 | X111: 938.34 | Y111: 928.25 | Z111: 54.41 | AA111: 53.83 | AB111: 50.27 | AC111: 521.97 | AD111: 523.02 | AE111: 30.27 | AF111: 30.33 | AG111: 49.95 | AH111: 6.99 | AI111: 92.25 | AJ111: 99.24 | AK111: 36.97 | AL111: 40.22 | AM111: 2.14 | AN111: 2.33 | AO111: 47.89 | AQ111: BRETT.PESCE | AR111: D | AS111: CAR | AT111: 69 | AU111: 1086.27 | AV111: 3 | AW111: 1 | AX111: 6 | AY111: 7 | AZ111: 10 | BA111: 4 | BB111: 0.17 | BC111: 0.06 | BD111: 0.33 | BE111: 0.39 | BF111: 0.55 | BG111: 0.22 | BH111: 147 | BI111: 8.12 | BJ111: 71 | BK111: 3.92 | BL111: 4.23 | BM111: =AU111/AT111 -> 15.74304348 | BN111: 947.63 | BO111: 924.64 | BP111: 52.34 | BQ111: 51.07 | BR111: 50.61 | BS111: 484.21 | BT111: 487.13 | BU111: 26.75 | BV111: 26.91 | BW111: 49.85 | BX111: 5.79 | BY111: 93.05 | BZ111: 98.83 | CA111: 27.73 | CB111: 34.38 | CC111: 1.53 | CD111: 1.9 | CE111: 44.65
A112: PATRICK.MARLEAU | B112: C | C112: S.J | D112: 82 | E112: 1073.93 | F112: 12 | G112: 7 | H112: 2 | I112: 9 | J112: 21 | K112: 19 | L112: 0.67 | M112: 0.39 | N112: 0.11 | O112: 0.5 | P112: 1.17 | Q112: 1.06 | R112: 221 | S112: 12.35 | T112: 136 | U112: 7.6 | V112: 8.82 | W112: 13.09670732 | X112: 989.22 | Y112: 967.24 | Z112: 55.27 | AA112: 54.04 | AB112: 50.56 | AC112: 511.27 | AD112: 489.67 | AE112: 28.56 | AF112: 27.36 | AG112: 51.08 | AH112: 6.67 | AI112: 90.93 | AJ112: 97.59 | AK112: 34.58 | AL112: 44.78 | AM112: 1.93 | AN112: 2.5 | AO112: 43.57 | AQ112: DAMON.SEVERSON | AR112: D | AS112: N.J | AT112: 72 | AU112: 1079.72 | AV112: 1 | AW112: 7 | AX112: 7 | AY112: 14 | AZ112: 15 | BA112: 8 | BB112: 0.06 | BC112: 0.39 | BD112: 0.39 | BE112: 0.78 | BF112: 0.83 | BG112: 0.44 | BH112: 149 | BI112: 8.28 | BJ112: 70 | BK112: 3.89 | BL112: 1.43 | BM112: =AU112/AT112 -> 14.99611111 | BN112: 841.54 | BO112: 896.48 | BP112: 46.76 | BQ112: 49.82 | BR112: 48.42 | BS112: 454.83 | BT112: 518.4 | BU112: 25.27 | BV112: 28.81 | BW112: 46.73 | BX112: 8.04 | BY112: 91.8 | BZ112: 99.84 | CA112: 36.58 | CB112: 42.42 | CC112: 2.03 | CD112: 2.36 | CE112: 46.3
A113: VICTOR.RASK | B113: C | C113: CAR | D113: 80 | E113: 1047.12 | F113: 14 | G113: 5 | H113: 7 | I113: 12 | J113: 26 | K113: 19 | L113: 0.8 | M113: 0.29 | N113: 0.4 | O113: 0.69 | P113: 1.49 | Q113: 1.09 | R113: 210 | S113: 12.03 | T113: 117 | U113: 6.7 | V113: 11.97 | W113: 13.089 | X113: 964.08 | Y113: 987.37 | Z113: 55.24 | AA113: 56.58 | AB113: 49.4 | AC113: 533.25 | AD113: 533.17 | AE113: 30.56 | AF113: 30.55 | AG113: 50 | AH113: 7.84 | AI113: 91.4 | AJ113: 99.24 | AK113: 42 | AL113: 45.82 | AM113: 2.41 | AN113: 2.63 | AO113: 47.82 | AQ113: JASON.GARRISON | AR113: D | AS113: T.B | AT113: 72 | AU113: 1070.9 | AV113: 4 | AW113: 4 | AX113: 2 | AY113: 6 | AZ113: 10 | BA113: 8 | BB113: 0.22 | BC113: 0.22 | BD113: 0.11 | BE113: 0.34 | BF113: 0.56 | BG113: 0.45 | BH113: 160 | BI113: 8.96 | BJ113: 78 | BK113: 4.37 | BL113: 5.13 | BM113: =AU113/AT113 -> 14.87361111 | BN113: 963.09 | BO113: 950.35 | BP113: 53.96 | BQ113: 53.25 | BR113: 50.33 | BS113: 486.42 | BT113: 489.68 | BU113: 27.25 | BV113: 27.44 | BW113: 49.83 | BX113: 7.85 | BY113: 91.89 | BZ113: 99.74 | CA113: 38.23 | CB113: 39.85 | CC113: 2.14 | CD113: 2.23 | CE113: 48.97
A114: BOBBY.RYAN | B114: R | C114: OTT | D114: 81 | E114: 1059.52 | F114: 12 | G114: 16 | H114: 4 | I114: 20 | J114: 32 | K114: 28 | L114: 0.68 | M114: 0.91 | N114: 0.23 | O114: 1.13 | P114: 1.81 | Q114: 1.59 | R114: 232 | S114: 13.14 | T114: 129 | U114: 7.31 | V114: 9.3 | W114: 13.08049383 | X114: 904.22 | Y114: 1088.05 | Z114: 51.21 | AA114: 61.62 | AB114: 45.39 | AC114: 474.4 | AD114: 626.11 | AE114: 26.86 | AF114: 35.46 | AG114: 43.11 | AH114: 9.56 | AI114: 92.23 | AJ114: 101.8 | AK114: 45.92 | AL114: 47.92 | AM114: 2.6 | AN114: 2.71 | AO114: 48.93 | AQ114: SAMI.VATANEN | AR114: D | AS114: ANA | AT114: 71 | AU114: 1069.7 | AV114: 5 | AW114: 7 | AX114: 2 | AY114: 9 | AZ114: 14 | BA114: 12 | BB114: 0.28 | BC114: 0.39 | BD114: 0.11 | BE114: 0.5 | BF114: 0.79 | BG114: 0.67 | BH114: 160 | BI114: 8.97 | BJ114: 73 | BK114: 4.09 | BL114: 6.85 | BM114: =AU114/AT114 -> 15.06619718 | BN114: 1028.25 | BO114: 989.64 | BP114: 57.68 | BQ114: 55.51 | BR114: 50.96 | BS114: 521.5 | BT114: 515.09 | BU114: 29.25 | BV114: 28.89 | BW114: 50.31 | BX114: 6.98 | BY114: 92.86 | BZ114: 99.83 | CA114: 36.1 | CB114: 37.47 | CC114: 2.03 | CD114: 2.1 | CE114: 49.07
A115: PHILLIP.DI GIUSEPPE | B115: L | C115: CAR | D115: 41 | E115: 535.57 | F115: 6 | G115: 7 | H115: 3 | I115: 10 | J115: 16 | K115: 13 | L115: 0.67 | M115: 0.78 | N115: 0.34 | O115: 1.12 | P115: 1.79 | Q115: 1.46 | R115: 109 | S115: 12.21 | T115: 60 | U115: 6.72 | V115: 10 | W115: 13.06268293 | X115: 490.29 | Y115: 521.16 | Z115: 54.93 | AA115: 58.39 | AB115: 48.47 | AC115: 266.94 | AD115: 295.55 | AE115: 29.9 | AF115: 33.11 | AG115: 47.46 | AH115: 9.09 | AI115: 92.98 | AJ115: 102.07 | AK115: 24.42 | AL115: 20.88 | AM115: 2.74 | AN115: 2.34 | AO115: 53.9 | AQ115: JONATHAN.ERICSSON | AR115: D | AS115: DET | AT115: 71 | AU115: 1061.98 | AV115: 3 | AW115: 6 | AX115: 6 | AY115: 12 | AZ115: 15 | BA115: 9 | BB115: 0.17 | BC115: 0.34 | BD115: 0.34 | BE115: 0.68 | BF115: 0.85 | BG115: 0.51 | BH115: 145 | BI115: 8.19 | BJ115: 63 | BK115: 3.56 | BL115: 4.76 | BM115: =AU115/AT115 -> 14.95746479 | BN115: 914.48 | BO115: 924.32 | BP115: 51.67 | BQ115: 52.22 | BR115: 49.73 | BS115: 491.26 | BT115: 562.66 | BU115: 27.76 | BV115: 31.79 | BW115: 46.61 | BX115: 8.4 | BY115: 93.29 | BZ115: 101.69 | CA115: 40.66 | CB115: 38.19 | CC115: 2.3 | CD115: 2.16 | CE115: 51.56
A116: LEE.STEMPNIAK | B116: R | C116: BOS/N.J | D116: 82 | E116: 1071.06 | F116: 12 | G116: 7 | H116: 13 | I116: 20 | J116: 32 | K116: 19 | L116: 0.67 | M116: 0.39 | N116: 0.73 | O116: 1.12 | P116: 1.79 | Q116: 1.06 | R116: 197 | S116: 11.04 | T116: 109 | U116: 6.11 | V116: 11.01 | W116: 13.06170732 | X116: 877.2 | Y116: 939.26 | Z116: 49.14 | AA116: 52.62 | AB116: 48.29 | AC116: 482.16 | AD116: 511.19 | AE116: 27.01 | AF116: 28.64 | AG116: 48.54 | AH116: 9.69 | AI116: 91.91 | AJ116: 101.6 | AK116: 46.8 | AL116: 40.82 | AM116: 2.62 | AN116: 2.29 | AO116: 53.41 | AQ116: JACCOB.SLAVIN | AR116: D | AS116: CAR | AT116: 63 | AU116: 1058.43 | AV116: 2 | AW116: 2 | AX116: 8 | AY116: 10 | AZ116: 12 | BA116: 4 | BB116: 0.11 | BC116: 0.11 | BD116: 0.45 | BE116: 0.57 | BF116: 0.68 | BG116: 0.23 | BH116: 152 | BI116: 8.62 | BJ116: 71 | BK116: 4.02 | BL116: 2.82 | BM116: =AU116/AT116 -> 16.80047619 | BN116: 1003.73 | BO116: 961.87 | BP116: 56.9 | BQ116: 54.53 | BR116: 51.06 | BS116: 537.6 | BT116: 494.77 | BU116: 30.48 | BV116: 28.05 | BW116: 52.07 | BX116: 6.92 | BY116: 92.14 | BZ116: 99.05 | CA116: 37.2 | CB116: 39.25 | CC116: 2.11 | CD116: 2.23 | CE116: 48.66
A117: JEAN-GABRIEL.PAGEAU | B117: C | C117: OTT | D117: 82 | E117: 1069.14 | F117: 8 | G117: 11 | H117: 7 | I117: 18 | J117: 26 | K117: 19 | L117: 0.45 | M117: 0.62 | N117: 0.39 | O117: 1.01 | P117: 1.46 | Q117: 1.07 | R117: 175 | S117: 9.82 | T117: 102 | U117: 5.72 | V117: 7.84 | W117: 13.03829268 | X117: 912.9 | Y117: 1065.33 | Z117: 51.23 | AA117: 59.79 | AB117: 46.15 | AC117: 475.61 | AD117: 555.97 | AE117: 26.69 | AF117: 31.2 | AG117: 46.1 | AH117: 8.7 | AI117: 93.27 | AJ117: 101.97 | AK117: 42.2 | AL117: 37.31 | AM117: 2.37 | AN117: 2.09 | AO117: 53.07 | AQ117: CARL.GUNNARSSON | AR117: D | AS117: STL | AT117: 72 | AU117: 1043.06 | AV117: 2 | AW117: 2 | AX117: 3 | AY117: 5 | AZ117: 7 | BA117: 4 | BB117: 0.12 | BC117: 0.12 | BD117: 0.17 | BE117: 0.29 | BF117: 0.4 | BG117: 0.23 | BH117: 109 | BI117: 6.27 | BJ117: 48 | BK117: 2.76 | BL117: 4.17 | BM117: =AU117/AT117 -> 14.48694444 | BN117: 903.1 | BO117: 885.74 | BP117: 51.95 | BQ117: 50.95 | BR117: 50.49 | BS117: 502.79 | BT117: 475.6 | BU117: 28.92 | BV117: 27.36 | BW117: 51.39 | BX117: 8.06 | BY117: 92.32 | BZ117: 100.39 | CA117: 40.04 | CB117: 36.4 | CC117: 2.3 | CD117: 2.09 | CE117: 52.38
A118: MAX.PACIORETTY | B118: L | C118: MTL | D118: 82 | E118: 1067.88 | F118: 17 | G118: 13 | H118: 8 | I118: 21 | J118: 38 | K118: 30 | L118: 0.96 | M118: 0.73 | N118: 0.45 | O118: 1.18 | P118: 2.14 | Q118: 1.69 | R118: 389 | S118: 21.86 | T118: 225 | U118: 12.64 | V118: 7.56 | W118: 13.02292683 | X118: 1197.64 | Y118: 970.18 | Z118: 67.29 | AA118: 54.51 | AB118: 55.25 | AC118: 649.51 | AD118: 530.35 | AE118: 36.49 | AF118: 29.8 | AG118: 55.05 | AH118: 7.52 | AI118: 90.51 | AJ118: 98.03 | AK118: 49.29 | AL118: 50.16 | AM118: 2.77 | AN118: 2.82 | AO118: 49.56 | AQ118: JACK.JOHNSON | AR118: D | AS118: CBJ | AT118: 60 | AU118: 1042.57 | AV118: 3 | AW118: 2 | AX118: 1 | AY118: 3 | AZ118: 6 | BA118: 5 | BB118: 0.17 | BC118: 0.12 | BD118: 0.06 | BE118: 0.17 | BF118: 0.35 | BG118: 0.29 | BH118: 144 | BI118: 8.29 | BJ118: 64 | BK118: 3.68 | BL118: 4.69 | BM118: =AU118/AT118 -> 17.37616667 | BN118: 909.2 | BO118: 1058.95 | BP118: 52.32 | BQ118: 60.94 | BR118: 46.2 | BS118: 510.43 | BT118: 573.91 | BU118: 29.38 | BV118: 33.03 | BW118: 47.07 | BX118: 6.21 | BY118: 92.96 | BZ118: 99.17 | CA118: 32.27 | CB118: 40.37 | CC118: 1.86 | CD118: 2.32 | CE118: 44.43
A119: TOMAS.PLEKANEC | B119: C | C119: MTL | D119: 82 | E119: 1065.92 | F119: 8 | G119: 14 | H119: 13 | I119: 27 | J119: 35 | K119: 22 | L119: 0.45 | M119: 0.79 | N119: 0.73 | O119: 1.52 | P119: 1.97 | Q119: 1.24 | R119: 208 | S119: 11.71 | T119: 119 | U119: 6.7 | V119: 6.72 | W119: 12.99902439 | X119: 1076.97 | Y119: 973.68 | Z119: 60.62 | AA119: 54.81 | AB119: 52.52 | AC119: 569.81 | AD119: 541.61 | AE119: 32.07 | AF119: 30.49 | AG119: 51.27 | AH119: 8.23 | AI119: 92.75 | AJ119: 100.98 | AK119: 47.17 | AL119: 39.22 | AM119: 2.65 | AN119: 2.21 | AO119: 54.6 | AQ119: LUKE.SCHENN | AR119: D | AS119: L.A/PHI | AT119: 72 | AU119: 1041.9 | AV119: 3 | AW119: 3 | AX119: 9 | AY119: 12 | AZ119: 15 | BA119: 6 | BB119: 0.17 | BC119: 0.17 | BD119: 0.52 | BE119: 0.69 | BF119: 0.86 | BG119: 0.35 | BH119: 187 | BI119: 10.77 | BJ119: 68 | BK119: 3.92 | BL119: 4.41 | BM119: =AU119/AT119 -> 14.47083333 | BN119: 998.68 | BO119: 989.13 | BP119: 57.51 | BQ119: 56.96 | BR119: 50.24 | BS119: 494.28 | BT119: 544.61 | BU119: 28.46 | BV119: 31.36 | BW119: 47.58 | BX119: 9.11 | BY119: 91.65 | BZ119: 100.76 | CA119: 44.74 | CB119: 44.74 | CC119: 2.58 | CD119: 2.58 | CE119: 49.99
A120: CARL.HAGELIN | B120: L | C120: ANA/PIT | D120: 80 | E120: 1039.43 | F120: 14 | G120: 12 | H120: 10 | I120: 22 | J120: 36 | K120: 26 | L120: 0.81 | M120: 0.69 | N120: 0.58 | O120: 1.27 | P120: 2.08 | Q120: 1.5 | R120: 258 | S120: 14.89 | T120: 153 | U120: 8.83 | V120: 9.15 | W120: 12.992875 | X120: 1119.1 | Y120: 872.4 | Z120: 64.6 | AA120: 50.36 | AB120: 56.19 | AC120: 633.64 | AD120: 456.95 | AE120: 36.58 | AF120: 26.38 | AG120: 58.1 | AH120: 7.94 | AI120: 91.27 | AJ120: 99.2 | AK120: 49.56 | AL120: 40.54 | AM120: 2.86 | AN120: 2.34 | AO120: 55.01 | AQ120: MATT.HUNWICK | AR120: D | AS120: TOR | AT120: 60 | AU120: 1027.37 | AV120: 2 | AW120: 3 | AX120: 2 | AY120: 5 | AZ120: 7 | BA120: 5 | BB120: 0.12 | BC120: 0.18 | BD120: 0.12 | BE120: 0.29 | BF120: 0.41 | BG120: 0.29 | BH120: 165 | BI120: 9.64 | BJ120: 65 | BK120: 3.8 | BL120: 3.08 | BM120: =AU120/AT120 -> 17.12283333 | BN120: 957.5 | BO120: 1101.23 | BP120: 55.92 | BQ120: 64.31 | BR120: 46.51 | BS120: 487.76 | BT120: 597.89 | BU120: 28.49 | BV120: 34.92 | BW120: 44.93 | BX120: 5.85 | BY120: 92.07 | BZ120: 97.92 | CA120: 29.07 | CB120: 47.02 | CC120: 1.7 | CD120: 2.75 | CE120: 38.21
A121: MICHAEL.FROLIK | B121: R | C121: CGY | D121: 64 | E121: 830.32 | F121: 12 | G121: 5 | H121: 8 | I121: 13 | J121: 25 | K121: 17 | L121: 0.87 | M121: 0.36 | N121: 0.58 | O121: 0.94 | P121: 1.81 | Q121: 1.23 | R121: 242 | S121: 17.49 | T121: 138 | U121: 9.97 | V121: 8.7 | W121: 12.97375 | X121: 853.5 | Y121: 817.31 | Z121: 61.67 | AA121: 59.06 | AB121: 51.08 | AC121: 443.2 | AD121: 393.91 | AE121: 32.03 | AF121: 28.46 | AG121: 52.94 | AH121: 7.85 | AI121: 90.31 | AJ121: 98.15 | AK121: 35.38 | AL121: 38.01 | AM121: 2.56 | AN121: 2.75 | AO121: 48.2 | AQ121: BEN.LOVEJOY | AR121: D | AS121: PIT | AT121: 66 | AU121: 1009.38 | AV121: 4 | AW121: 1 | AX121: 3 | AY121: 4 | AZ121: 8 | BA121: 5 | BB121: 0.24 | BC121: 0.06 | BD121: 0.18 | BE121: 0.24 | BF121: 0.48 | BG121: 0.3 | BH121: 165 | BI121: 9.81 | BJ121: 84 | BK121: 4.99 | BL121: 4.76 | BM121: =AU121/AT121 -> 15.29363636 | BN121: 962.59 | BO121: 911.64 | BP121: 57.22 | BQ121: 54.19 | BR121: 51.36 | BS121: 552.05 | BT121: 505.28 | BU121: 32.82 | BV121: 30.03 | BW121: 52.21 | BX121: 7.07 | BY121: 93.07 | BZ121: 100.13 | CA121: 39.13 | CB121: 34.89 | CC121: 2.33 | CD121: 2.07 | CE121: 52.86
A122: DUSTIN.BROWN | B122: L | C122: L.A | D122: 82 | E122: 1061.79 | F122: 8 | G122: 8 | H122: 5 | I122: 13 | J122: 21 | K122: 16 | L122: 0.45 | M122: 0.45 | N122: 0.28 | O122: 0.73 | P122: 1.19 | Q122: 0.9 | R122: 334 | S122: 18.87 | T122: 196 | U122: 11.08 | V122: 4.08 | W122: 12.94865854 | X122: 1165.56 | Y122: 811.03 | Z122: 65.86 | AA122: 45.83 | AB122: 58.97 | AC122: 599.39 | AD122: 458.95 | AE122: 33.87 | AF122: 25.93 | AG122: 56.63 | AH122: 4.74 | AI122: 92.86 | AJ122: 97.59 | AK122: 27.97 | AL122: 33.13 | AM122: 1.58 | AN122: 1.87 | AO122: 45.78 | AQ122: MARK.FAYNE | AR122: D | AS122: EDM | AT122: 69 | AU122: 1002.99 | AV122: 2 | AW122: 1 | AX122: 3 | AY122: 4 | AZ122: 6 | BA122: 3 | BB122: 0.12 | BC122: 0.06 | BD122: 0.18 | BE122: 0.24 | BF122: 0.36 | BG122: 0.18 | BH122: 130 | BI122: 7.78 | BJ122: 59 | BK122: 3.53 | BL122: 3.39 | BM122: =AU122/AT122 -> 14.53608696 | BN122: 926.24 | BO122: 979.21 | BP122: 55.41 | BQ122: 58.58 | BR122: 48.61 | BS122: 479.05 | BT122: 522.31 | BU122: 28.66 | BV122: 31.25 | BW122: 47.84 | BX122: 7.42 | BY122: 91.33 | BZ122: 98.75 | CA122: 35.88 | CB122: 44.69 | CC122: 2.15 | CD122: 2.67 | CE122: 44.54
A123: J.T..MILLER | B123: C | C123: NYR | D123: 82 | E123: 1060.42 | F123: 17 | G123: 11 | H123: 6 | I123: 17 | J123: 34 | K123: 28 | L123: 0.96 | M123: 0.62 | N123: 0.34 | O123: 0.96 | P123: 1.92 | Q123: 1.58 | R123: 210 | S123: 11.88 | T123: 115 | U123: 6.51 | V123: 14.78 | W123: 12.93195122 | X123: 967.92 | Y123: 957.85 | Z123: 54.77 | AA123: 54.2 | AB123: 50.26 | AC123: 490.29 | AD123: 465.41 | AE123: 27.74 | AF123: 26.33 | AG123: 51.3 | AH123: 9.26 | AI123: 92.36 | AJ123: 101.62 | AK123: 45.49 | AL123: 35.87 | AM123: 2.57 | AN123: 2.03 | AO123: 55.91 | AQ123: ERIK.GUDBRANSON | AR123: D | AS123: FLA | AT123: 64 | AU123: 996.26 | AV123: 2 | AW123: 2 | AX123: 4 | AY123: 6 | AZ123: 8 | BA123: 4 | BB123: 0.12 | BC123: 0.12 | BD123: 0.24 | BE123: 0.36 | BF123: 0.48 | BG123: 0.24 | BH123: 140 | BI123: 8.43 | BJ123: 66 | BK123: 3.97 | BL123: 3.03 | BM123: =AU123/AT123 -> 15.5665625 | BN123: 814.49 | BO123: 913.47 | BP123: 49.05 | BQ123: 55.01 | BR123: 47.14 | BS123: 472.11 | BT123: 529.05 | BU123: 28.43 | BV123: 31.86 | BW123: 47.16 | BX123: 7.73 | BY123: 93.47 | BZ123: 101.2 | CA123: 36.47 | CB123: 35.2 | CC123: 2.2 | CD123: 2.12 | CE123: 50.89
A124: NINO.NIEDERREITER | B124: R | C124: MIN | D124: 82 | E124: 1060.08 | F124: 16 | G124: 10 | H124: 9 | I124: 19 | J124: 35 | K124: 26 | L124: 0.91 | M124: 0.57 | N124: 0.51 | O124: 1.08 | P124: 1.98 | Q124: 1.47 | R124: 224 | S124: 12.68 | T124: 132 | U124: 7.47 | V124: 12.12 | W124: 12.92780488 | X124: 1015.61 | Y124: 845.24 | Z124: 57.48 | AA124: 47.84 | AB124: 54.58 | AC124: 553.41 | AD124: 438.36 | AE124: 31.32 | AF124: 24.81 | AG124: 55.8 | AH124: 8.86 | AI124: 91.84 | AJ124: 100.7 | AK124: 49.16 | AL124: 35.84 | AM124: 2.78 | AN124: 2.03 | AO124: 57.84 | AQ124: NIKLAS.KRONWALL | AR124: D | AS124: DET | AT124: 64 | AU124: 981.81 | AV124: 2 | AW124: 3 | AX124: 4 | AY124: 7 | AZ124: 9 | BA124: 5 | BB124: 0.12 | BC124: 0.18 | BD124: 0.24 | BE124: 0.43 | BF124: 0.55 | BG124: 0.31 | BH124: 77 | BI124: 4.71 | BJ124: 32 | BK124: 1.96 | BL124: 6.25 | BM124: =AU124/AT124 -> 15.34078125 | BN124: 873.84 | BO124: 879.92 | BP124: 53.4 | BQ124: 53.77 | BR124: 49.83 | BS124: 456.7 | BT124: 530.25 | BU124: 27.91 | BV124: 32.4 | BW124: 46.27 | BX124: 5.7 | BY124: 92.29 | BZ124: 97.99 | CA124: 25.9 | CB124: 40.82 | CC124: 1.58 | CD124: 2.49 | CE124: 38.82
A125: TYLER.TOFFOLI | B125: C | C125: L.A | D125: 82 | E125: 1059.75 | F125: 20 | G125: 9 | H125: 7 | I125: 16 | J125: 36 | K125: 29 | L125: 1.13 | M125: 0.51 | N125: 0.4 | O125: 0.91 | P125: 2.04 | Q125: 1.64 | R125: 328 | S125: 18.57 | T125: 161 | U125: 9.12 | V125: 12.42 | W125: 12.92378049 | X125: 1276.59 | Y125: 847.55 | Z125: 72.28 | AA125: 47.99 | AB125: 60.1 | AC125: 611.48 | AD125: 465.81 | AE125: 34.62 | AF125: 26.37 | AG125: 56.76 | AH125: 9.11 | AI125: 93.88 | AJ125: 102.99 | AK125: 54.93 | AL125: 29.13 | AM125: 3.11 | AN125: 1.65 | AO125: 65.35 | AQ125: IAN.COLE | AR125: D | AS125: PIT | AT125: 70 | AU125: 980.54 | AV125: 0 | AW125: 3 | AX125: 6 | AY125: 9 | AZ125: 9 | BA125: 3 | BB125: 0 | BC125: 0.18 | BD125: 0.37 | BE125: 0.55 | BF125: 0.55 | BG125: 0.18 | BH125: 134 | BI125: 8.2 | BJ125: 66 | BK125: 4.04 | BL125: 0 | BM125: =AU125/AT125 -> 14.00771429 | BN125: 933.34 | BO125: 906.14 | BP125: 57.11 | BQ125: 55.45 | BR125: 50.74 | BS125: 515.33 | BT125: 486.85 | BU125: 31.53 | BV125: 29.79 | BW125: 51.42 | BX125: 6.1 | BY125: 92.43 | BZ125: 98.54 | CA125: 30.74 | CB125: 37.22 | CC125: 1.88 | CD125: 2.28 | CE125: 45.23
A126: NIKOLAJ.EHLERS | B126: L | C126: WPG | D126: 72 | E126: 929.52 | F126: 10 | G126: 10 | H126: 4 | I126: 14 | J126: 24 | K126: 20 | L126: 0.65 | M126: 0.65 | N126: 0.26 | O126: 0.9 | P126: 1.55 | Q126: 1.29 | R126: 249 | S126: 16.07 | T126: 137 | U126: 8.84 | V126: 7.3 | W126: 12.91 | X126: 947.86 | Y126: 826.14 | Z126: 61.18 | AA126: 53.33 | AB126: 53.43 | AC126: 504.15 | AD126: 437.36 | AE126: 32.54 | AF126: 28.23 | AG126: 53.55 | AH126: 8.17 | AI126: 92.4 | AJ126: 100.56 | AK126: 41.37 | AL126: 32.98 | AM126: 2.67 | AN126: 2.13 | AO126: 55.64 | AQ126: DENNIS.SEIDENBERG | AR126: D | AS126: BOS | AT126: 61 | AU126: 978.2 | AV126: 1 | AW126: 6 | AX126: 4 | AY126: 10 | AZ126: 11 | BA126: 7 | BB126: 0.06 | BC126: 0.37 | BD126: 0.25 | BE126: 0.61 | BF126: 0.67 | BG126: 0.43 | BH126: 119 | BI126: 7.3 | BJ126: 57 | BK126: 3.5 | BL126: 1.75 | BM126: =AU126/AT126 -> 16.03606557 | BN126: 871.48 | BO126: 975.13 | BP126: 53.45 | BQ126: 59.81 | BR126: 47.19 | BS126: 512.48 | BT126: 515.4 | BU126: 31.43 | BV126: 31.61 | BW126: 49.86 | BX126: 7.6 | BY126: 92.23 | BZ126: 99.84 | CA126: 39.02 | CB126: 40.46 | CC126: 2.39 | CD126: 2.48 | CE126: 49.1
A127: MARCUS.JOHANSSON | B127: C | C127: WSH | D127: 74 | E127: 955.08 | F127: 10 | G127: 10 | H127: 8 | I127: 18 | J127: 28 | K127: 20 | L127: 0.63 | M127: 0.63 | N127: 0.5 | O127: 1.13 | P127: 1.76 | Q127: 1.26 | R127: 165 | S127: 10.37 | T127: 98 | U127: 6.16 | V127: 10.2 | W127: 12.90648649 | X127: 877.94 | Y127: 872.64 | Z127: 55.15 | AA127: 54.82 | AB127: 50.15 | AC127: 476.56 | AD127: 431.77 | AE127: 29.94 | AF127: 27.12 | AG127: 52.47 | AH127: 8.35 | AI127: 93.59 | AJ127: 101.94 | AK127: 38.97 | AL127: 28.43 | AM127: 2.45 | AN127: 1.79 | AO127: 57.81 | AQ127: JASON.DEMERS | AR127: D | AS127: DAL | AT127: 62 | AU127: 975.8 | AV127: 2 | AW127: 9 | AX127: 4 | AY127: 13 | AZ127: 15 | BA127: 11 | BB127: 0.12 | BC127: 0.55 | BD127: 0.25 | BE127: 0.8 | BF127: 0.92 | BG127: 0.68 | BH127: 178 | BI127: 10.94 | BJ127: 73 | BK127: 4.49 | BL127: 2.74 | BM127: =AU127/AT127 -> 15.73870968 | BN127: 1034.75 | BO127: 865.76 | BP127: 63.62 | BQ127: 53.23 | BR127: 54.45 | BS127: 512.77 | BT127: 440.24 | BU127: 31.53 | BV127: 27.07 | BW127: 53.81 | BX127: 6.84 | BY127: 92.81 | BZ127: 99.64 | CA127: 34.34 | CB127: 31.22 | CC127: 2.11 | CD127: 1.92 | CE127: 52.38
A128: JOHAN.LARSSON | B128: L | C128: BUF | D128: 74 | E128: 954.18 | F128: 8 | G128: 2 | H128: 2 | I128: 4 | J128: 12 | K128: 10 | L128: 0.5 | M128: 0.13 | N128: 0.13 | O128: 0.25 | P128: 0.75 | Q128: 0.63 | R128: 156 | S128: 9.81 | T128: 74 | U128: 4.65 | V128: 10.81 | W128: 12.89432432 | X128: 801.5 | Y128: 929.54 | Z128: 50.4 | AA128: 58.45 | AB128: 46.3 | AC128: 422.37 | AD128: 514.54 | AE128: 26.56 | AF128: 32.35 | AG128: 45.08 | AH128: 5.87 | AI128: 94.69 | AJ128: 100.55 | AK128: 25.3 | AL128: 27.33 | AM128: 1.59 | AN128: 1.72 | AO128: 48.08 | AQ128: MARK.STREIT | AR128: D | AS128: PHI | AT128: 62 | AU128: 975.44 | AV128: 4 | AW128: 2 | AX128: 7 | AY128: 9 | AZ128: 13 | BA128: 6 | BB128: 0.25 | BC128: 0.12 | BD128: 0.43 | BE128: 0.55 | BF128: 0.8 | BG128: 0.37 | BH128: 129 | BI128: 7.93 | BJ128: 65 | BK128: 4 | BL128: 6.15 | BM128: =AU128/AT128 -> 15.73290323 | BN128: 908.15 | BO128: 971.55 | BP128: 55.86 | BQ128: 59.76 | BR128: 48.31 | BS128: 471.84 | BT128: 514.59 | BU128: 29.02 | BV128: 31.65 | BW128: 47.83 | BX128: 7.37 | BY128: 94.3 | BZ128: 101.67 | CA128: 34.83 | CB128: 28.75 | CC128: 2.14 | CD128: 1.77 | CE128: 54.78
A129: KRIS.VERSTEEG | B129: R | C129: CAR/L.A | D129: 77 | E129: 992.77 | F129: 12 | G129: 8 | H129: 7 | I129: 15 | J129: 27 | K129: 20 | L129: 0.73 | M129: 0.48 | N129: 0.42 | O129: 0.91 | P129: 1.63 | Q129: 1.21 | R129: 225 | S129: 13.6 | T129: 127 | U129: 7.68 | V129: 9.45 | W129: 12.89311688 | X129: 1074.94 | Y129: 807.95 | Z129: 64.97 | AA129: 48.83 | AB129: 57.09 | AC129: 539.47 | AD129: 412.59 | AE129: 32.6 | AF129: 24.94 | AG129: 56.66 | AH129: 6.69 | AI129: 92.07 | AJ129: 98.76 | AK129: 35.79 | AL129: 33.4 | AM129: 2.16 | AN129: 2.02 | AO129: 51.72 | AQ129: NATHAN.BEAULIEU | AR129: D | AS129: MTL | AT129: 64 | AU129: 949.51 | AV129: 1 | AW129: 7 | AX129: 7 | AY129: 14 | AZ129: 15 | BA129: 8 | BB129: 0.06 | BC129: 0.44 | BD129: 0.44 | BE129: 0.88 | BF129: 0.95 | BG129: 0.51 | BH129: 119 | BI129: 7.52 | BJ129: 63 | BK129: 3.98 | BL129: 1.59 | BM129: =AU129/AT129 -> 14.83609375 | BN129: 896.19 | BO129: 876.87 | BP129: 56.63 | BQ129: 55.41 | BR129: 50.54 | BS129: 471.57 | BT129: 456.66 | BU129: 29.8 | BV129: 28.86 | BW129: 50.8 | BX129: 7.19 | BY129: 91.39 | BZ129: 98.58 | CA129: 34.23 | CB129: 39.28 | CC129: 2.16 | CD129: 2.48 | CE129: 46.57
A130: BLAKE.COMEAU | B130: L | C130: COL | D130: 81 | E130: 1044.32 | F130: 6 | G130: 9 | H130: 6 | I130: 15 | J130: 21 | K130: 15 | L130: 0.34 | M130: 0.52 | N130: 0.34 | O130: 0.86 | P130: 1.21 | Q130: 0.86 | R130: 198 | S130: 11.38 | T130: 110 | U130: 6.32 | V130: 5.45 | W130: =(E130*60)/(D130*60) -> 12.89283951 | X130: 856.96 | Y130: 992.93 | Z130: 49.24 | AA130: 57.05 | AB130: 46.32 | AC130: 475.16 | AD130: 498.99 | AE130: 27.3 | AF130: 28.67 | AG130: 48.78 | AH130: 6.5 | AI130: 93.19 | AJ130: 99.69 | AK130: 30.9 | AL130: 34.3 | AM130: 1.78 | AN130: 1.97 | AO130: 47.39 | AQ130: ALEX.PETROVIC | AR130: D | AS130: FLA | AT130: 66 | AU130: 944.61 | AV130: 2 | AW130: 8 | AX130: 6 | AY130: 14 | AZ130: 16 | BA130: 10 | BB130: 0.13 | BC130: 0.51 | BD130: 0.38 | BE130: 0.89 | BF130: 1.02 | BG130: 0.64 | BH130: 110 | BI130: 6.99 | BJ130: 52 | BK130: 3.3 | BL130: 3.85 | BM130: =AU130/AT130 -> 14.31227273 | BN130: 793.58 | BO130: 821.24 | BP130: 50.41 | BQ130: 52.16 | BR130: 49.14 | BS130: 438.4 | BT130: 463.46 | BU130: 27.85 | BV130: 29.44 | BW130: 48.61 | BX130: 10.09 | BY130: 93.56 | BZ130: 103.65 | CA130: 43.61 | CB130: 29.79 | CC130: 2.77 | CD130: 1.89 | CE130: 59.41
A131: JADEN.SCHWARTZ | B131: C | C131: STL | D131: 33 | E131: 425.17 | F131: 5 | G131: 5 | H131: 3 | I131: 8 | J131: 13 | K131: 10 | L131: 0.71 | M131: 0.71 | N131: 0.42 | O131: 1.13 | P131: 1.83 | Q131: 1.41 | R131: 74 | S131: 10.44 | T131: 42 | U131: 5.93 | V131: 11.9 | W131: 12.88393939 | X131: 446.45 | Y131: 357.9 | Z131: 63 | AA131: 50.51 | AB131: 55.5 | AC131: 227.27 | AD131: 200.7 | AE131: 32.07 | AF131: 28.32 | AG131: 53.1 | AH131: 8.22 | AI131: 94.12 | AJ131: 102.34 | AK131: 18.3 | AL131: 11.81 | AM131: 2.58 | AN131: 1.67 | AO131: 60.78 | AQ131: JOHN.CARLSON | AR131: D | AS131: WSH | AT131: 56 | AU131: 944.6 | AV131: 5 | AW131: 10 | AX131: 6 | AY131: 16 | AZ131: 21 | BA131: 15 | BB131: 0.32 | BC131: 0.64 | BD131: 0.38 | BE131: 1.02 | BF131: 1.33 | BG131: 0.95 | BH131: 168 | BI131: 10.67 | BJ131: 84 | BK131: 5.34 | BL131: 5.95 | BM131: =AU131/AT131 -> 16.86785714 | BN131: 932.99 | BO131: 893.55 | BP131: 59.26 | BQ131: 56.76 | BR131: 51.08 | BS131: 516.11 | BT131: 441.23 | BU131: 32.78 | BV131: 28.03 | BW131: 53.91 | BX131: 8.04 | BY131: 93.48 | BZ131: 101.52 | CA131: 41.04 | CB131: 28.62 | CC131: 2.61 | CD131: 1.82 | CE131: 58.92
A132: SHANE.DOAN | B132: R | C132: ARI | D132: 72 | E132: 927.56 | F132: 14 | G132: 9 | H132: 4 | I132: 13 | J132: 27 | K132: 23 | L132: 0.91 | M132: 0.58 | N132: 0.26 | O132: 0.84 | P132: 1.75 | Q132: 1.49 | R132: 190 | S132: 12.29 | T132: 108 | U132: 6.99 | V132: 12.96 | W132: 12.88277778 | X132: 845.74 | Y132: 952.75 | Z132: 54.71 | AA132: 61.63 | AB132: 47.03 | AC132: 440.59 | AD132: 517.98 | AE132: 28.5 | AF132: 33.51 | AG132: 45.96 | AH132: 9.19 | AI132: 93.41 | AJ132: 102.6 | AK132: 40.61 | AL132: 34.08 | AM132: 2.63 | AN132: 2.2 | AO132: 54.37 | AQ132: SHAYNE.GOSTISBEHERE | AR132: D | AS132: PHI | AT132: 64 | AU132: 943.99 | AV132: 7 | AW132: 8 | AX132: 4 | AY132: 12 | AZ132: 19 | BA132: 15 | BB132: 0.44 | BC132: 0.51 | BD132: 0.25 | BE132: 0.76 | BF132: 1.21 | BG132: 0.95 | BH132: 172 | BI132: 10.93 | BJ132: 74 | BK132: 4.7 | BL132: 9.46 | BM132: =AU132/AT132 -> 14.74984375 | BN132: 898.1 | BO132: 909.73 | BP132: 57.08 | BQ132: 57.82 | BR132: 49.68 | BS132: 465.64 | BT132: 466.24 | BU132: 29.6 | BV132: 29.63 | BW132: 49.97 | BX132: 9.57 | BY132: 93.56 | BZ132: 103.14 | CA132: 44.88 | CB132: 29.79 | CC132: 2.85 | CD132: 1.89 | CE132: 60.1
A133: CHRIS.KREIDER | B133: C | C133: NYR | D133: 79 | E133: 1017.66 | F133: 15 | G133: 12 | H133: 3 | I133: 15 | J133: 30 | K133: 27 | L133: 0.88 | M133: 0.71 | N133: 0.18 | O133: 0.88 | P133: 1.77 | Q133: 1.59 | R133: 223 | S133: 13.15 | T133: 121 | U133: 7.13 | V133: 12.4 | W133: 12.88177215 | X133: 963.44 | Y133: 946.4 | Z133: 56.8 | AA133: 55.8 | AB133: 50.45 | AC133: 510.14 | AD133: 481.04 | AE133: 30.08 | AF133: 28.36 | AG133: 51.47 | AH133: 10.36 | AI133: 92.64 | AJ133: 103 | AK133: 52.4 | AL133: 35.83 | AM133: 3.09 | AN133: 2.11 | AO133: 59.39 | AQ133: DAVID.SCHLEMKO | AR133: D | AS133: N.J | AT133: 67 | AU133: 939.49 | AV133: 5 | AW133: 2 | AX133: 0 | AY133: 2 | AZ133: 7 | BA133: 7 | BB133: 0.32 | BC133: 0.13 | BD133: 0 | BE133: 0.13 | BF133: 0.45 | BG133: 0.45 | BH133: 125 | BI133: 7.98 | BJ133: 72 | BK133: 4.6 | BL133: 6.94 | BM133: =AU133/AT133 -> 14.02223881 | BN133: 708.29 | BO133: 748.33 | BP133: 45.23 | BQ133: 47.79 | BR133: 48.63 | BS133: 391.97 | BT133: 418.64 | BU133: 25.03 | BV133: 26.74 | BW133: 48.36 | BX133: 7.07 | BY133: 90.07 | BZ133: 97.14 | CA133: 28.15 | CB133: 41 | CC133: 1.8 | CD133: 2.62 | CE133: 40.71
A134: RICKARD.RAKELL | B134: R | C134: ANA | D134: 72 | E134: 927.11 | F134: 14 | G134: 10 | H134: 6 | I134: 16 | J134: 30 | K134: 24 | L134: 0.91 | M134: 0.65 | N134: 0.39 | O134: 1.04 | P134: 1.94 | Q134: 1.55 | R134: 243 | S134: 15.73 | T134: 138 | U134: 8.93 | V134: 10.14 | W134: 12.87652778 | X134: 902.89 | Y134: 783.92 | Z134: 58.43 | AA134: 50.73 | AB134: 53.53 | AC134: 499.93 | AD134: 419.09 | AE134: 32.35 | AF134: 27.12 | AG134: 54.4 | AH134: 8.65 | AI134: 91.25 | AJ134: 99.9 | AK134: 42.49 | AL134: 36.83 | AM134: 2.75 | AN134: 2.38 | AO134: 53.57 | AQ134: ADAM.MCQUAID | AR134: D | AS134: BOS | AT134: 64 | AU134: 939.41 | AV134: 1 | AW134: 3 | AX134: 3 | AY134: 6 | AZ134: 7 | BA134: 4 | BB134: 0.06 | BC134: 0.19 | BD134: 0.19 | BE134: 0.38 | BF134: 0.45 | BG134: 0.26 | BH134: 104 | BI134: 6.64 | BJ134: 42 | BK134: 2.68 | BL134: 2.38 | BM134: =AU134/AT134 -> 14.67828125 | BN134: 854.4 | BO134: 886.16 | BP134: 54.57 | BQ134: 56.6 | BR134: 49.09 | BS134: 475.28 | BT134: 470.38 | BU134: 30.36 | BV134: 30.04 | BW134: 50.26 | BX134: 6.34 | BY134: 93.63 | BZ134: 99.97 | CA134: 29.68 | CB134: 30 | CC134: 1.9 | CD134: 1.92 | CE134: 49.73
A135: JUSTIN.WILLIAMS | B135: R | C135: WSH | D135: 82 | E135: 1054.5 | F135: 15 | G135: 11 | H135: 9 | I135: 20 | J135: 35 | K135: 26 | L135: 0.85 | M135: 0.63 | N135: 0.51 | O135: 1.14 | P135: 1.99 | Q135: 1.48 | R135: 261 | S135: 14.85 | T135: 162 | U135: 9.22 | V135: 9.26 | W135: 12.8597561 | X135: 1112.06 | Y135: 960.96 | Z135: 63.28 | AA135: 54.68 | AB135: 53.64 | AC135: 615.29 | AD135: 508.46 | AE135: 35.01 | AF135: 28.93 | AG135: 54.75 | AH135: 9.27 | AI135: 91.12 | AJ135: 100.39 | AK135: 56.31 | AL135: 44.95 | AM135: 3.2 | AN135: 2.56 | AO135: 55.61 | AQ135: DAN.HAMHUIS | AR135: D | AS135: VAN | AT135: 58 | AU135: 939.26 | AV135: 1 | AW135: 5 | AX135: 3 | AY135: 8 | AZ135: 9 | BA135: 6 | BB135: 0.06 | BC135: 0.32 | BD135: 0.19 | BE135: 0.51 | BF135: 0.57 | BG135: 0.38 | BH135: 137 | BI135: 8.75 | BJ135: 58 | BK135: 3.71 | BL135: 1.72 | BM135: =AU135/AT135 -> 16.19413793 | BN135: 838.84 | BO135: 863.35 | BP135: 53.59 | BQ135: 55.15 | BR135: 49.28 | BS135: 462.62 | BT135: 508.43 | BU135: 29.55 | BV135: 32.48 | BW135: 47.64 | BX135: 6.42 | BY135: 92.35 | BZ135: 98.78 | CA135: 29.58 | CB135: 38.55 | CC135: 1.89 | CD135: 2.46 | CE135: 43.42
A136: DEREK.STEPAN | B136: C | C136: NYR | D136: 72 | E136: 923.59 | F136: 13 | G136: 13 | H136: 8 | I136: 21 | J136: 34 | K136: 26 | L136: 0.84 | M136: 0.84 | N136: 0.52 | O136: 1.36 | P136: 2.21 | Q136: 1.69 | R136: 215 | S136: 13.97 | T136: 134 | U136: 8.71 | V136: 9.7 | W136: 12.82763889 | X136: 859.87 | Y136: 863.01 | Z136: 55.86 | AA136: 56.06 | AB136: 49.91 | AC136: 442.3 | AD136: 443.17 | AE136: 28.73 | AF136: 28.79 | AG136: 49.95 | AH136: 10.57 | AI136: 92.24 | AJ136: 102.81 | AK136: 46.53 | AL136: 34.8 | AM136: 3.02 | AN136: 2.26 | AO136: 57.21 | AQ136: DERYK.ENGELLAND | AR136: D | AS136: CGY | AT136: 69 | AU136: 935.38 | AV136: 3 | AW136: 2 | AX136: 6 | AY136: 8 | AZ136: 11 | BA136: 5 | BB136: 0.19 | BC136: 0.13 | BD136: 0.38 | BE136: 0.51 | BF136: 0.71 | BG136: 0.32 | BH136: 143 | BI136: 9.17 | BJ136: 70 | BK136: 4.49 | BL136: 4.29 | BM136: =AU136/AT136 -> 13.55623188 | BN136: 797.85 | BO136: 962.87 | BP136: 51.18 | BQ136: 61.76 | BR136: 45.31 | BS136: 442 | BT136: 483.03 | BU136: 28.35 | BV136: 30.98 | BW136: 47.78 | BX136: 8.39 | BY136: 92.48 | BZ136: 100.87 | CA136: 37.27 | CB136: 36.48 | CC136: 2.39 | CD136: 2.34 | CE136: 50.54
A137: VALTTERI.FILPPULA | B137: C | C137: T.B | D137: 76 | E137: 973.41 | F137: 5 | G137: 8 | H137: 4 | I137: 12 | J137: 17 | K137: 13 | L137: 0.31 | M137: 0.49 | N137: 0.25 | O137: 0.74 | P137: 1.05 | Q137: 0.8 | R137: 114 | S137: 7.03 | T137: 75 | U137: 4.62 | V137: 6.67 | W137: 12.80802632 | X137: 920.99 | Y137: 870.66 | Z137: 56.77 | AA137: 53.67 | AB137: 51.4 | AC137: 500.8 | AD137: 472.78 | AE137: 30.87 | AF137: 29.14 | AG137: 51.44 | AH137: 5.43 | AI137: 93.01 | AJ137: 98.44 | AK137: 26.97 | AL137: 32.95 | AM137: 1.66 | AN137: 2.03 | AO137: 45.01 | AQ137: ALEXEY.MARCHENKO | AR137: D | AS137: DET | AT137: 66 | AU137: 935.15 | AV137: 2 | AW137: 4 | AX137: 4 | AY137: 8 | AZ137: 10 | BA137: 6 | BB137: 0.13 | BC137: 0.26 | BD137: 0.26 | BE137: 0.51 | BF137: 0.64 | BG137: 0.38 | BH137: 106 | BI137: 6.8 | BJ137: 39 | BK137: 2.5 | BL137: 5.13 | BM137: =AU137/AT137 -> 14.16893939 | BN137: 834.38 | BO137: 784.61 | BP137: 53.53 | BQ137: 50.34 | BR137: 51.54 | BS137: 431.79 | BT137: 474.91 | BU137: 27.7 | BV137: 30.47 | BW137: 47.62 | BX137: 7.23 | BY137: 93.1 | BZ137: 100.32 | CA137: 31.19 | CB137: 33.02 | CC137: 2 | CD137: 2.12 | CE137: 48.58
A138: BRENDAN.GALLAGHER | B138: R | C138: MTL | D138: 53 | E138: 678.74 | F138: 10 | G138: 7 | H138: 7 | I138: 14 | J138: 24 | K138: 17 | L138: 0.88 | M138: 0.62 | N138: 0.62 | O138: 1.24 | P138: 2.12 | Q138: 1.5 | R138: 214 | S138: 18.92 | T138: 128 | U138: 11.32 | V138: 7.81 | W138: 12.80641509 | X138: 774.19 | Y138: 603.85 | Z138: 68.44 | AA138: 53.38 | AB138: 56.18 | AC138: 408.49 | AD138: 338.36 | AE138: 36.11 | AF138: 29.91 | AG138: 54.7 | AH138: 9.14 | AI138: 93.49 | AJ138: 102.63 | AK138: 37.13 | AL138: 21.9 | AM138: 3.28 | AN138: 1.94 | AO138: 62.91 | AQ138: BRENDAN.SMITH | AR138: D | AS138: DET | AT138: 63 | AU138: 932.93 | AV138: 2 | AW138: 6 | AX138: 4 | AY138: 10 | AZ138: 12 | BA138: 8 | BB138: 0.13 | BC138: 0.39 | BD138: 0.26 | BE138: 0.64 | BF138: 0.77 | BG138: 0.51 | BH138: 149 | BI138: 9.58 | BJ138: 68 | BK138: 4.37 | BL138: 2.94 | BM138: =AU138/AT138 -> 14.8084127 | BN138: 920.94 | BO138: 696.69 | BP138: 59.23 | BQ138: 44.81 | BR138: 56.93 | BS138: 502.12 | BT138: 412.98 | BU138: 32.29 | BV138: 26.56 | BW138: 54.87 | BX138: 7.75 | BY138: 92.21 | BZ138: 99.97 | CA138: 39.16 | CB138: 32.13 | CC138: 2.52 | CD138: 2.07 | CE138: 54.93
A139: JUSTIN.ABDELKADER | B139: L | C139: DET | D139: 82 | E139: 1049.75 | F139: 11 | G139: 9 | H139: 5 | I139: 14 | J139: 25 | K139: 20 | L139: 0.63 | M139: 0.51 | N139: 0.29 | O139: 0.8 | P139: 1.43 | Q139: 1.14 | R139: 171 | S139: 9.77 | T139: 110 | U139: 6.29 | V139: 10 | W139: 12.80182927 | X139: 901.51 | Y139: 915.03 | Z139: 51.53 | AA139: 52.3 | AB139: 49.63 | AC139: 504.32 | AD139: 538.8 | AE139: 28.82 | AF139: 30.8 | AG139: 48.35 | AH139: 6.72 | AI139: 92.19 | AJ139: 98.91 | AK139: 34.13 | AL139: 42.05 | AM139: 1.95 | AN139: 2.4 | AO139: 44.8 | AQ139: BEN.CHIAROT | AR139: D | AS139: WPG | AT139: 70 | AU139: 932.08 | AV139: 1 | AW139: 2 | AX139: 7 | AY139: 9 | AZ139: 10 | BA139: 3 | BB139: 0.06 | BC139: 0.13 | BD139: 0.45 | BE139: 0.58 | BF139: 0.64 | BG139: 0.19 | BH139: 161 | BI139: 10.36 | BJ139: 74 | BK139: 4.76 | BL139: 1.35 | BM139: =AU139/AT139 -> 13.31542857 | BN139: 844.42 | BO139: 873.37 | BP139: 54.36 | BQ139: 56.22 | BR139: 49.16 | BS139: 428.4 | BT139: 459.57 | BU139: 27.58 | BV139: 29.58 | BW139: 48.24 | BX139: 7.26 | BY139: 90.83 | BZ139: 98.09 | CA139: 30.91 | CB139: 42.1 | CC139: 1.99 | CD139: 2.71 | CE139: 42.34
A140: MARIAN.HOSSA | B140: R | C140: CHI | D140: 64 | E140: 819.3 | F140: 6 | G140: 7 | H140: 4 | I140: 11 | J140: 17 | K140: 13 | L140: 0.44 | M140: 0.51 | N140: 0.29 | O140: 0.81 | P140: 1.24 | Q140: 0.95 | R140: 234 | S140: 17.14 | T140: 145 | U140: 10.62 | V140: 4.14 | W140: 12.8015625 | X140: 825 | Y140: 729.53 | Z140: 60.42 | AA140: 53.43 | AB140: 53.07 | AC140: 444.68 | AD140: 393.02 | AE140: 32.57 | AF140: 28.78 | AG140: 53.08 | AH140: 5.68 | AI140: 94.22 | AJ140: 99.9 | AK140: 24.58 | AL140: 22.68 | AM140: 1.8 | AN140: 1.66 | AO140: 52.01 | AQ140: BARRET.JACKMAN | AR140: D | AS140: NSH | AT140: 73 | AU140: 928.01 | AV140: 1 | AW140: 1 | AX140: 2 | AY140: 3 | AZ140: 4 | BA140: 2 | BB140: 0.06 | BC140: 0.06 | BD140: 0.13 | BE140: 0.19 | BF140: 0.26 | BG140: 0.13 | BH140: 129 | BI140: 8.34 | BJ140: 64 | BK140: 4.14 | BL140: 1.56 | BM140: =AU140/AT140 -> 12.71246575 | BN140: 904.5 | BO140: 708.85 | BP140: 58.48 | BQ140: 45.83 | BR140: 56.06 | BS140: 477 | BT140: 366.71 | BU140: 30.84 | BV140: 23.71 | BW140: 56.54 | BX140: 5.89 | BY140: 92.74 | BZ140: 98.64 | CA140: 27.91 | CB140: 27.34 | CC140: 1.8 | CD140: 1.77 | CE140: 50.52
A141: JAKOB.SILFVERBERG | B141: R | C141: ANA | D141: 82 | E141: 1046.46 | F141: 14 | G141: 8 | H141: 4 | I141: 12 | J141: 26 | K141: 22 | L141: 0.8 | M141: 0.46 | N141: 0.23 | O141: 0.69 | P141: 1.49 | Q141: 1.26 | R141: 312 | S141: 17.89 | T141: 183 | U141: 10.49 | V141: 7.65 | W141: 12.76170732 | X141: 1068.84 | Y141: 873.41 | Z141: 61.28 | AA141: 50.08 | AB141: 55.03 | AC141: 559.22 | AD141: 452.95 | AE141: 32.06 | AF141: 25.97 | AG141: 55.25 | AH141: 6 | AI141: 91.94 | AJ141: 97.94 | AK141: 32.93 | AL141: 37.1 | AM141: 1.89 | AN141: 2.13 | AO141: 47.03 | AQ141: ZBYNEK.MICHALEK | AR141: D | AS141: ARI | AT141: 70 | AU141: 926.73 | AV141: 2 | AW141: 1 | AX141: 3 | AY141: 4 | AZ141: 6 | BA141: 3 | BB141: 0.13 | BC141: 0.06 | BD141: 0.19 | BE141: 0.26 | BF141: 0.39 | BG141: 0.19 | BH141: 126 | BI141: 8.16 | BJ141: 65 | BK141: 4.21 | BL141: 3.08 | BM141: =AU141/AT141 -> 13.239 | BN141: 738.41 | BO141: 948.86 | BP141: 47.81 | BQ141: 61.43 | BR141: 43.76 | BS141: 388.61 | BT141: 458.47 | BU141: 25.16 | BV141: 29.68 | BW141: 45.88 | BX141: 8.76 | BY141: 92.09 | BZ141: 100.85 | CA141: 34.95 | CB141: 34.95 | CC141: 2.26 | CD141: 2.26 | CE141: 50
A142: LEO.KOMAROV | B142: C | C142: TOR | D142: 67 | E142: 854.56 | F142: 10 | G142: 4 | H142: 8 | I142: 12 | J142: 22 | K142: 14 | L142: 0.7 | M142: 0.28 | N142: 0.56 | O142: 0.84 | P142: 1.54 | Q142: 0.98 | R142: 147 | S142: 10.32 | T142: 83 | U142: 5.83 | V142: 12.05 | W142: 12.75462687 | X142: 885.83 | Y142: 802.41 | Z142: 62.2 | AA142: 56.34 | AB142: 52.47 | AC142: 448.23 | AD142: 436.25 | AE142: 31.47 | AF142: 30.63 | AG142: 50.68 | AH142: 5.75 | AI142: 90.7 | AJ142: 96.45 | AK142: 26.25 | AL142: 39.78 | AM142: 1.84 | AN142: 2.79 | AO142: 39.75 | AQ142: MICHAEL.DEL ZOTTO | AR142: D | AS142: PHI | AT142: 52 | AU142: 919.71 | AV142: 2 | AW142: 1 | AX142: 4 | AY142: 5 | AZ142: 7 | BA142: 3 | BB142: 0.13 | BC142: 0.07 | BD142: 0.26 | BE142: 0.33 | BF142: 0.46 | BG142: 0.2 | BH142: 173 | BI142: 11.29 | BJ142: 76 | BK142: 4.96 | BL142: 2.63 | BM142: =AU142/AT142 -> 17.68673077 | BN142: 916.33 | BO142: 899.16 | BP142: 59.78 | BQ142: 58.66 | BR142: 50.47 | BS142: 471.95 | BT142: 501.03 | BU142: 30.79 | BV142: 32.69 | BW142: 48.51 | BX142: 4.57 | BY142: 93.05 | BZ142: 97.62 | CA142: 21.86 | CB142: 33.91 | CC142: 1.43 | CD142: 2.21 | CE142: 39.2
A143: CARL.SODERBERG | B143: C | C143: COL | D143: 82 | E143: 1045.76 | F143: 4 | G143: 15 | H143: 8 | I143: 23 | J143: 27 | K143: 19 | L143: 0.23 | M143: 0.86 | N143: 0.46 | O143: 1.32 | P143: 1.55 | Q143: 1.09 | R143: 183 | S143: 10.5 | T143: 110 | U143: 6.31 | V143: 3.64 | W143: 12.75317073 | X143: 860.4 | Y143: 1049.68 | Z143: 49.37 | AA143: 60.22 | AB143: 45.05 | AC143: 487.08 | AD143: 523.05 | AE143: 27.95 | AF143: 30.01 | AG143: 48.22 | AH143: 7.8 | AI143: 92.53 | AJ143: 100.33 | AK143: 38.01 | AL143: 39.31 | AM143: 2.18 | AN143: 2.26 | AO143: 49.16 | AQ143: DALTON.PROUT | AR143: D | AS143: CBJ | AT143: 64 | AU143: 918.88 | AV143: 2 | AW143: 4 | AX143: 2 | AY143: 6 | AZ143: 8 | BA143: 6 | BB143: 0.13 | BC143: 0.26 | BD143: 0.13 | BE143: 0.39 | BF143: 0.52 | BG143: 0.39 | BH143: 147 | BI143: 9.6 | BJ143: 66 | BK143: 4.31 | BL143: 3.03 | BM143: =AU143/AT143 -> 14.3575 | BN143: 782.06 | BO143: 822.2 | BP143: 51.07 | BQ143: 53.69 | BR143: 48.75 | BS143: 430.89 | BT143: 444.88 | BU143: 28.14 | BV143: 29.05 | BW143: 49.2 | BX143: 7.18 | BY143: 91.14 | BZ143: 98.31 | CA143: 31.1 | CB143: 39.57 | CC143: 2.03 | CD143: 2.58 | CE143: 44.01
A144: MATHIEU.PERREAULT | B144: C | C144: WPG | D144: 71 | E144: 905.05 | F144: 3 | G144: 7 | H144: 14 | I144: 21 | J144: 24 | K144: 10 | L144: 0.2 | M144: 0.46 | N144: 0.93 | O144: 1.39 | P144: 1.59 | Q144: 0.66 | R144: 191 | S144: 12.66 | T144: 96 | U144: 6.36 | V144: 3.12 | W144: 12.7471831 | X144: 970.66 | Y144: 738.86 | Z144: 64.35 | AA144: 48.98 | AB144: 56.78 | AC144: 503.83 | AD144: 403.63 | AE144: 33.4 | AF144: 26.76 | AG144: 55.52 | AH144: 7.75 | AI144: 90 | AJ144: 97.75 | AK144: 38.6 | AL144: 41.03 | AM144: 2.56 | AN144: 2.72 | AO144: 48.47 | AQ144: JUSTIN.SCHULTZ | AR144: D | AS144: EDM/PIT | AT144: 63 | AU144: 917.8 | AV144: 2 | AW144: 3 | AX144: 5 | AY144: 8 | AZ144: 10 | BA144: 5 | BB144: 0.13 | BC144: 0.2 | BD144: 0.33 | BE144: 0.52 | BF144: 0.65 | BG144: 0.33 | BH144: 122 | BI144: 7.98 | BJ144: 56 | BK144: 3.66 | BL144: 3.57 | BM144: =AU144/AT144 -> 14.56825397 | BN144: 837.31 | BO144: 873.59 | BP144: 54.74 | BQ144: 57.11 | BR144: 48.94 | BS144: 456.43 | BT144: 460.56 | BU144: 29.84 | BV144: 30.11 | BW144: 49.77 | BX144: 8.13 | BY144: 90.83 | BZ144: 98.96 | CA144: 37.23 | CB144: 42.27 | CC144: 2.43 | CD144: 2.76 | CE144: 46.84
A145: DAVID.DESHARNAIS | B145: C | C145: MTL | D145: 65 | E145: 828.35 | F145: 7 | G145: 9 | H145: 6 | I145: 15 | J145: 22 | K145: 16 | L145: 0.51 | M145: 0.65 | N145: 0.43 | O145: 1.09 | P145: 1.59 | Q145: 1.16 | R145: 115 | S145: 8.33 | T145: 73 | U145: 5.29 | V145: 9.59 | W145: 12.74384615 | X145: 778.77 | Y145: 750.57 | Z145: 56.41 | AA145: 54.37 | AB145: 50.92 | AC145: 424.95 | AD145: 411.14 | AE145: 30.78 | AF145: 29.78 | AG145: 50.83 | AH145: 6.79 | AI145: 92.68 | AJ145: 99.47 | AK145: 29.42 | AL145: 29.71 | AM145: 2.13 | AN145: 2.15 | AO145: 49.76 | AQ145: KEVIN.CONNAUTON | AR145: D | AS145: ARI/CBJ | AT145: 65 | AU145: 915.3 | AV145: 5 | AW145: 1 | AX145: 6 | AY145: 7 | AZ145: 12 | BA145: 6 | BB145: 0.33 | BC145: 0.07 | BD145: 0.39 | BE145: 0.46 | BF145: 0.79 | BG145: 0.39 | BH145: 188 | BI145: 12.32 | BJ145: 90 | BK145: 5.9 | BL145: 5.56 | BM145: =AU145/AT145 -> 14.08153846 | BN145: 831.78 | BO145: 964.54 | BP145: 54.53 | BQ145: 63.23 | BR145: 46.3 | BS145: 446.7 | BT145: 518.56 | BU145: 29.28 | BV145: 33.99 | BW145: 46.28 | BX145: 8.37 | BY145: 94.55 | BZ145: 102.92 | CA145: 37.84 | CB145: 27.74 | CC145: 2.48 | CD145: 1.82 | CE145: 57.7
A146: HUNTER.SHINKARUK | B146: C | C146: CGY/VAN | D146: 8 | E146: 101.95 | F146: 1 | G146: 0 | H146: 0 | I146: 0 | J146: 1 | K146: 1 | L146: 0.59 | M146: 0 | N146: 0 | O146: 0 | P146: 0.59 | Q146: 0.59 | R146: 21 | S146: 12.36 | T146: 11 | U146: 6.47 | V146: 9.09 | W146: 12.74375 | X146: 84.87 | Y146: 87.75 | Z146: 49.95 | AA146: 51.64 | AB146: 49.17 | AC146: 44.92 | AD146: 38.26 | AE146: 26.44 | AF146: 22.52 | AG146: 54.01 | AH146: 2.22 | AI146: 87.18 | AJ146: 89.4 | AK146: 0.93 | AL146: 4.96 | AM146: 0.55 | AN146: 2.92 | AO146: 15.85 | AQ146: ALEX.EDLER | AR146: D | AS146: VAN | AT146: 52 | AU146: 903.56 | AV146: 3 | AW146: 2 | AX146: 5 | AY146: 7 | AZ146: 10 | BA146: 5 | BB146: 0.2 | BC146: 0.13 | BD146: 0.33 | BE146: 0.46 | BF146: 0.66 | BG146: 0.33 | BH146: 152 | BI146: 10.09 | BJ146: 73 | BK146: 4.85 | BL146: 4.11 | BM146: =AU146/AT146 -> 17.37615385 | BN146: 720.8 | BO146: 802.7 | BP146: 47.86 | BQ146: 53.3 | BR146: 47.31 | BS146: 424.67 | BT146: 401.12 | BU146: 28.2 | BV146: 26.64 | BW146: 51.43 | BX146: 8.33 | BY146: 91.27 | BZ146: 99.61 | CA146: 35.37 | CB146: 35.56 | CC146: 2.35 | CD146: 2.36 | CE146: 49.87
A147: DAVID.PASTRNAK | B147: R | C147: BOS | D147: 51 | E147: 649.38 | F147: 14 | G147: 5 | H147: 4 | I147: 9 | J147: 23 | K147: 19 | L147: 1.29 | M147: 0.46 | N147: 0.37 | O147: 0.83 | P147: 2.13 | Q147: 1.76 | R147: 155 | S147: 14.32 | T147: 96 | U147: 8.87 | V147: 14.58 | W147: 12.73294118 | X147: 655.7 | Y147: 617.26 | Z147: 60.58 | AA147: 57.03 | AB147: 51.51 | AC147: 329.41 | AD147: 330.09 | AE147: 30.44 | AF147: 30.5 | AG147: 49.95 | AH147: 8.79 | AI147: 92.73 | AJ147: 101.52 | AK147: 29.07 | AL147: 24.44 | AM147: 2.69 | AN147: 2.26 | AO147: 54.33 | AQ147: FEDOR.TYUTIN | AR147: D | AS147: CBJ | AT147: 61 | AU147: 903.13 | AV147: 1 | AW147: 2 | AX147: 0 | AY147: 2 | AZ147: 3 | BA147: 3 | BB147: 0.07 | BC147: 0.13 | BD147: 0 | BE147: 0.13 | BF147: 0.2 | BG147: 0.2 | BH147: 72 | BI147: 4.78 | BJ147: 23 | BK147: 1.53 | BL147: 4.35 | BM147: =AU147/AT147 -> 14.80540984 | BN147: 767.44 | BO147: 757.9 | BP147: 50.99 | BQ147: 50.35 | BR147: 50.31 | BS147: 401.06 | BT147: 413.25 | BU147: 26.64 | BV147: 27.45 | BW147: 49.25 | BX147: 6.93 | BY147: 90.93 | BZ147: 97.86 | CA147: 28.1 | CB147: 37.41 | CC147: 1.87 | CD147: 2.49 | CE147: 42.89
A148: BROCK.NELSON | B148: C | C148: NYI | D148: 81 | E148: 1031.07 | F148: 21 | G148: 4 | H148: 6 | I148: 10 | J148: 31 | K148: 25 | L148: 1.22 | M148: 0.23 | N148: 0.35 | O148: 0.58 | P148: 1.8 | Q148: 1.45 | R148: 244 | S148: 14.2 | T148: 134 | U148: 7.8 | V148: 15.67 | W148: 12.72925926 | X148: 954.34 | Y148: 993.54 | Z148: 55.53 | AA148: 57.82 | AB148: 48.99 | AC148: 502.9 | AD148: 517.23 | AE148: 29.26 | AF148: 30.1 | AG148: 49.3 | AH148: 8.42 | AI148: 92.87 | AJ148: 101.29 | AK148: 41.8 | AL148: 37.26 | AM148: 2.43 | AN148: 2.17 | AO148: 52.87 | AQ148: MATT.CARLE | AR148: D | AS148: T.B | AT148: 64 | AU148: 902.51 | AV148: 2 | AW148: 2 | AX148: 3 | AY148: 5 | AZ148: 7 | BA148: 4 | BB148: 0.13 | BC148: 0.13 | BD148: 0.2 | BE148: 0.33 | BF148: 0.47 | BG148: 0.27 | BH148: 104 | BI148: 6.91 | BJ148: 47 | BK148: 3.12 | BL148: 4.26 | BM148: =AU148/AT148 -> 14.10171875 | BN148: 794.74 | BO148: 852.95 | BP148: 52.84 | BQ148: 56.7 | BR148: 48.23 | BS148: 432.3 | BT148: 427.35 | BU148: 28.74 | BV148: 28.41 | BW148: 50.29 | BX148: 7.66 | BY148: 92.84 | BZ148: 100.5 | CA148: 33.45 | CB148: 31.01 | CC148: 2.22 | CD148: 2.06 | CE148: 51.89
A149: JOSEPH.BLANDISI | B149: C | C149: N.J | D149: 41 | E149: 521.41 | F149: 1 | G149: 7 | H149: 2 | I149: 9 | J149: 10 | K149: 8 | L149: 0.12 | M149: 0.81 | N149: 0.23 | O149: 1.04 | P149: 1.15 | Q149: 0.92 | R149: 65 | S149: 7.48 | T149: 33 | U149: 3.8 | V149: 3.03 | W149: 12.71731707 | X149: 376.33 | Y149: 454.2 | Z149: 43.3 | AA149: 52.27 | AB149: 45.31 | AC149: 200.68 | AD149: 237.89 | AE149: 23.09 | AF149: 27.37 | AG149: 45.76 | AH149: 6.93 | AI149: 89.96 | AJ149: 96.89 | AK149: 13.93 | AL149: 23.83 | AM149: 1.6 | AN149: 2.74 | AO149: 36.88 | AQ149: JOEL.EDMUNDSON | AR149: D | AS149: STL | AT149: 67 | AU149: 893.95 | AV149: 1 | AW149: 4 | AX149: 4 | AY149: 8 | AZ149: 9 | BA149: 5 | BB149: 0.07 | BC149: 0.27 | BD149: 0.27 | BE149: 0.54 | BF149: 0.6 | BG149: 0.34 | BH149: 186 | BI149: 12.48 | BJ149: 90 | BK149: 6.04 | BL149: 1.11 | BM149: =AU149/AT149 -> 13.34253731 | BN149: 904.92 | BO149: 755.53 | BP149: 60.74 | BQ149: 50.71 | BR149: 54.5 | BS149: 468.34 | BT149: 428.88 | BU149: 31.43 | BV149: 28.79 | BW149: 52.2 | BX149: 5.68 | BY149: 93.07 | BZ149: 98.75 | CA149: 26.5 | CB149: 30.09 | CC149: 1.78 | CD149: 2.02 | CE149: 46.82
A150: BRAD.RICHARDSON | B150: R | C150: ARI | D150: 82 | E150: 1041.97 | F150: 9 | G150: 9 | H150: 6 | I150: 15 | J150: 24 | K150: 18 | L150: 0.52 | M150: 0.52 | N150: 0.35 | O150: 0.86 | P150: 1.38 | Q150: 1.04 | R150: 181 | S150: 10.42 | T150: 103 | U150: 5.93 | V150: 8.74 | W150: 12.70695122 | X150: 901.28 | Y150: 1092.08 | Z150: 51.9 | AA150: 62.89 | AB150: 45.21 | AC150: 448.52 | AD150: 591.93 | AE150: 25.83 | AF150: 34.09 | AG150: 43.11 | AH150: 8.65 | AI150: 95.08 | AJ150: 103.72 | AK150: 38.75 | AL150: 29.15 | AM150: 2.23 | AN150: 1.68 | AO150: 57.07 | AQ150: MARTIN.MARINCIN | AR150: D | AS150: TOR | AT150: 65 | AU150: 892.16 | AV150: 1 | AW150: 3 | AX150: 1 | AY150: 4 | AZ150: 5 | BA150: 4 | BB150: 0.07 | BC150: 0.2 | BD150: 0.07 | BE150: 0.27 | BF150: 0.34 | BG150: 0.27 | BH150: 173 | BI150: 11.63 | BJ150: 51 | BK150: 3.43 | BL150: 1.96 | BM150: =AU150/AT150 -> 13.72553846 | BN150: 861.95 | BO150: 787.45 | BP150: 57.97 | BQ150: 52.96 | BR150: 52.26 | BS150: 402.1 | BT150: 438.86 | BU150: 27.04 | BV150: 29.51 | BW150: 47.81 | BX150: 6.85 | BY150: 91.61 | BZ150: 98.45 | CA150: 27.97 | CB150: 35.74 | CC150: 1.88 | CD150: 2.4 | CE150: 43.9
A151: ANDREJ.NESTRASIL | B151: C | C151: CAR | D151: 55 | E151: 698.85 | F151: 5 | G151: 8 | H151: 5 | I151: 13 | J151: 18 | K151: 13 | L151: 0.43 | M151: 0.69 | N151: 0.43 | O151: 1.12 | P151: 1.55 | Q151: 1.12 | R151: 173 | S151: 14.85 | T151: 91 | U151: 7.81 | V151: 5.49 | W151: 12.70636364 | X151: 685.2 | Y151: 544.53 | Z151: 58.83 | AA151: 46.75 | AB151: 55.72 | AC151: 329.75 | AD151: 286.04 | AE151: 28.31 | AF151: 24.56 | AG151: 53.55 | AH151: 8.62 | AI151: 91.35 | AJ151: 99.96 | AK151: 27.58 | AL151: 25.39 | AM151: 2.37 | AN151: 2.18 | AO151: 52.07 | AQ151: KLAS.DAHLBECK | AR151: D | AS151: ARI | AT151: 71 | AU151: 883.63 | AV151: 2 | AW151: 1 | AX151: 4 | AY151: 5 | AZ151: 7 | BA151: 3 | BB151: 0.14 | BC151: 0.07 | BD151: 0.27 | BE151: 0.34 | BF151: 0.48 | BG151: 0.2 | BH151: 129 | BI151: 8.76 | BJ151: 59 | BK151: 4.01 | BL151: 3.39 | BM151: =AU151/AT151 -> 12.44549296 | BN151: 709.81 | BO151: 867.81 | BP151: 48.2 | BQ151: 58.93 | BR151: 44.99 | BS151: 357.26 | BT151: 421.63 | BU151: 24.26 | BV151: 28.63 | BW151: 45.87 | BX151: 6.44 | BY151: 92.07 | BZ151: 98.51 | CA151: 23.7 | CB151: 32.76 | CC151: 1.61 | CD151: 2.22 | CE151: 41.97
A152: JOEL.WARD | B152: R | C152: S.J | D152: 79 | E152: 1003.75 | F152: 12 | G152: 8 | H152: 6 | I152: 14 | J152: 26 | K152: 20 | L152: 0.72 | M152: 0.48 | N152: 0.36 | O152: 0.84 | P152: 1.55 | Q152: 1.2 | R152: 174 | S152: 10.4 | T152: 102 | U152: 6.1 | V152: 11.76 | W152: 12.7056962 | X152: 938.31 | Y152: 849.78 | Z152: 56.09 | AA152: 50.8 | AB152: 52.48 | AC152: 486.95 | AD152: 436.16 | AE152: 29.11 | AF152: 26.07 | AG152: 52.75 | AH152: 7.19 | AI152: 91.12 | AJ152: 98.3 | AK152: 35.36 | AL152: 39.54 | AM152: 2.11 | AN152: 2.36 | AO152: 47.21 | AQ152: THOMAS.HICKEY | AR152: D | AS152: NYI | AT152: 62 | AU152: 868.01 | AV152: 4 | AW152: 7 | AX152: 4 | AY152: 11 | AZ152: 15 | BA152: 11 | BB152: 0.28 | BC152: 0.48 | BD152: 0.28 | BE152: 0.76 | BF152: 1.04 | BG152: 0.76 | BH152: 133 | BI152: 9.19 | BJ152: 48 | BK152: 3.32 | BL152: 8.33 | BM152: =AU152/AT152 -> 14.00016129 | BN152: 783.62 | BO152: 831.24 | BP152: 54.17 | BQ152: 57.46 | BR152: 48.53 | BS152: 400.12 | BT152: 438.26 | BU152: 27.66 | BV152: 30.29 | BW152: 47.73 | BX152: 9.5 | BY152: 93.68 | BZ152: 103.18 | CA152: 38.01 | CB152: 27.55 | CC152: 2.63 | CD152: 1.9 | CE152: 57.98
A153: BENOIT.POULIOT | B153: L | C153: EDM | D153: 55 | E153: 698.74 | F153: 7 | G153: 11 | H153: 6 | I153: 17 | J153: 24 | K153: 18 | L153: 0.6 | M153: 0.94 | N153: 0.52 | O153: 1.46 | P153: 2.06 | Q153: 1.55 | R153: 121 | S153: 10.39 | T153: 72 | U153: 6.18 | V153: 9.72 | W153: 12.70436364 | X153: 651.66 | Y153: 653 | Z153: 55.96 | AA153: 56.07 | AB153: 49.95 | AC153: 341.45 | AD153: 368.18 | AE153: 29.32 | AF153: 31.62 | AG153: 48.12 | AH153: 8.62 | AI153: 89.78 | AJ153: 98.4 | AK153: 29.83 | AL153: 36.8 | AM153: 2.56 | AN153: 3.16 | AO153: 44.77 | AQ153: ROB.SCUDERI | AR153: D | AS153: CHI/L.A/PIT | AT153: 63 | AU153: 850.09 | AV153: 0 | AW153: 4 | AX153: 5 | AY153: 9 | AZ153: 9 | BA153: 4 | BB153: 0 | BC153: 0.28 | BD153: 0.35 | BE153: 0.64 | BF153: 0.64 | BG153: 0.28 | BH153: 68 | BI153: 4.8 | BJ153: 33 | BK153: 2.33 | BL153: 0 | BM153: =AU153/AT153 -> 13.49349206 | BN153: 720.26 | BO153: 780.12 | BP153: 50.84 | BQ153: 55.06 | BR153: 48.01 | BS153: 400 | BT153: 425.33 | BU153: 28.23 | BV153: 30.02 | BW153: 48.47 | BX153: 8.04 | BY153: 93.19 | BZ153: 101.23 | CA153: 32.21 | CB153: 29.38 | CC153: 2.27 | CD153: 2.07 | CE153: 52.29
A154: TROY.BROUWER | B154: R | C154: STL | D154: 82 | E154: 1041.12 | F154: 8 | G154: 8 | H154: 9 | I154: 17 | J154: 25 | K154: 16 | L154: 0.46 | M154: 0.46 | N154: 0.52 | O154: 0.98 | P154: 1.44 | Q154: 0.92 | R154: 191 | S154: 11.01 | T154: 109 | U154: 6.28 | V154: 7.34 | W154: 12.69658537 | X154: 965.28 | Y154: 968.03 | Z154: 55.63 | AA154: 55.79 | AB154: 49.93 | AC154: 532.66 | AD154: 510.7 | AE154: 30.7 | AF154: 29.43 | AG154: 51.05 | AH154: 7.05 | AI154: 93.93 | AJ154: 100.98 | AK154: 37.5 | AL154: 31.14 | AM154: 2.16 | AN154: 1.79 | AO154: 54.63 | AQ154: JORDIE.BENN | AR154: D | AS154: DAL | AT154: 64 | AU154: 828.33 | AV154: 2 | AW154: 5 | AX154: 3 | AY154: 8 | AZ154: 10 | BA154: 7 | BB154: 0.14 | BC154: 0.36 | BD154: 0.22 | BE154: 0.58 | BF154: 0.72 | BG154: 0.51 | BH154: 114 | BI154: 8.26 | BJ154: 52 | BK154: 3.77 | BL154: 3.85 | BM154: =AU154/AT154 -> 12.94265625 | BN154: 775.99 | BO154: 795.83 | BP154: 56.21 | BQ154: 57.65 | BR154: 49.37 | BS154: 410.07 | BT154: 402.91 | BU154: 29.7 | BV154: 29.18 | BW154: 50.44 | BX154: 8.58 | BY154: 91.44 | BZ154: 100.02 | CA154: 35.27 | CB154: 34.3 | CC154: 2.55 | CD154: 2.48 | CE154: 50.69
A155: WAYNE.SIMMONDS | B155: R | C155: PHI | D155: 81 | E155: 1026.78 | F155: 15 | G155: 11 | H155: 7 | I155: 18 | J155: 33 | K155: 26 | L155: 0.88 | M155: 0.64 | N155: 0.41 | O155: 1.05 | P155: 1.93 | Q155: 1.52 | R155: 285 | S155: 16.65 | T155: 162 | U155: 9.47 | V155: 9.26 | W155: 12.6762963 | X155: 1086.69 | Y155: 984.54 | Z155: 63.5 | AA155: 57.53 | AB155: 52.47 | AC155: 555.97 | AD155: 518.37 | AE155: 32.49 | AF155: 30.29 | AG155: 51.75 | AH155: 8.36 | AI155: 91.84 | AJ155: 100.21 | AK155: 46.85 | AL155: 41.63 | AM155: 2.74 | AN155: 2.43 | AO155: 52.95 | AQ155: MARK.STUART | AR155: D | AS155: WPG | AT155: 64 | AU155: 825.41 | AV155: 0 | AW155: 0 | AX155: 1 | AY155: 1 | AZ155: 1 | BA155: 0 | BB155: 0 | BC155: 0 | BD155: 0.07 | BE155: 0.07 | BF155: 0.07 | BG155: 0 | BH155: 101 | BI155: 7.34 | BJ155: 36 | BK155: 2.62 | BL155: 0 | BM155: =AU155/AT155 -> 12.89703125 | BN155: 688.64 | BO155: 780.54 | BP155: 50.06 | BQ155: 56.74 | BR155: 46.87 | BS155: 361.84 | BT155: 388.48 | BU155: 26.3 | BV155: 28.24 | BW155: 48.22 | BX155: 6.41 | BY155: 91.45 | BZ155: 97.86 | CA155: 22.88 | CB155: 33.24 | CC155: 1.66 | CD155: 2.42 | CE155: 40.77
A156: PATRIK.BERGLUND | B156: C | C156: STL | D156: 42 | E156: 532.23 | F156: 6 | G156: 2 | H156: 3 | I156: 5 | J156: 11 | K156: 8 | L156: 0.68 | M156: 0.23 | N156: 0.34 | O156: 0.56 | P156: 1.24 | Q156: 0.9 | R156: 107 | S156: 12.06 | T156: 64 | U156: 7.21 | V156: 9.38 | W156: 12.67214286 | X156: 504.62 | Y156: 450.31 | Z156: 56.89 | AA156: 50.76 | AB156: 52.84 | AC156: 283.22 | AD156: 237.75 | AE156: 31.93 | AF156: 26.8 | AG156: 54.36 | AH156: 7.22 | AI156: 94.21 | AJ156: 101.44 | AK156: 20.5 | AL156: 14.02 | AM156: 2.31 | AN156: 1.58 | AO156: 59.39 | AQ156: JEFF.PETRY | AR156: D | AS156: MTL | AT156: 51 | AU156: 816.78 | AV156: 4 | AW156: 2 | AX156: 2 | AY156: 4 | AZ156: 8 | BA156: 6 | BB156: 0.29 | BC156: 0.15 | BD156: 0.15 | BE156: 0.29 | BF156: 0.59 | BG156: 0.44 | BH156: 190 | BI156: 13.96 | BJ156: 83 | BK156: 6.1 | BL156: 4.82 | BM156: =AU156/AT156 -> 16.01529412 | BN156: 836.42 | BO156: 688.32 | BP156: 61.44 | BQ156: 50.56 | BR156: 54.86 | BS156: 432.74 | BT156: 366.65 | BU156: 31.79 | BV156: 26.93 | BW156: 54.13 | BX156: 5.61 | BY156: 91.6 | BZ156: 97.21 | CA156: 24.07 | CB156: 30.67 | CC156: 1.77 | CD156: 2.25 | CE156: 43.98
A157: CALLE.JARNKROK | B157: C | C157: NSH | D157: 81 | E157: 1023.79 | F157: 11 | G157: 5 | H157: 7 | I157: 12 | J157: 23 | K157: 16 | L157: 0.64 | M157: 0.29 | N157: 0.41 | O157: 0.7 | P157: 1.35 | Q157: 0.94 | R157: 164 | S157: 9.61 | T157: 100 | U157: 5.86 | V157: 11 | W157: 12.63938272 | X157: 950.89 | Y157: 883.63 | Z157: 55.73 | AA157: 51.79 | AB157: 51.83 | AC157: 545.03 | AD157: 477.87 | AE157: 31.94 | AF157: 28.01 | AG157: 53.28 | AH157: 7.34 | AI157: 91.82 | AJ157: 99.16 | AK157: 39.75 | AL157: 38.72 | AM157: 2.33 | AN157: 2.27 | AO157: 50.66 | AQ157: NICKLAS.GROSSMANN | AR157: D | AS157: ARI | AT157: 58 | AU157: 816.08 | AV157: 3 | AW157: 2 | AX157: 2 | AY157: 4 | AZ157: 7 | BA157: 5 | BB157: 0.22 | BC157: 0.15 | BD157: 0.15 | BE157: 0.29 | BF157: 0.51 | BG157: 0.37 | BH157: 85 | BI157: 6.25 | BJ157: 38 | BK157: 2.79 | BL157: 7.89 | BM157: =AU157/AT157 -> 14.07034483 | BN157: 661.05 | BO157: 835.18 | BP157: 48.6 | BQ157: 61.4 | BR157: 44.18 | BS157: 342.64 | BT157: 452.45 | BU157: 25.19 | BV157: 33.27 | BW157: 43.09 | BX157: 6.12 | BY157: 94.22 | BZ157: 100.34 | CA157: 21.12 | CB157: 26.29 | CC157: 1.55 | CD157: 1.93 | CE157: 44.56
A158: REILLY.SMITH | B158: R | C158: FLA | D158: 82 | E158: 1035.66 | F158: 17 | G158: 9 | H158: 7 | I158: 16 | J158: 33 | K158: 26 | L158: 0.98 | M158: 0.52 | N158: 0.41 | O158: 0.93 | P158: 1.91 | Q158: 1.51 | R158: 212 | S158: 12.28 | T158: 125 | U158: 7.24 | V158: 13.6 | W158: 12.63 | X158: 931.03 | Y158: 830.73 | Z158: 53.94 | AA158: 48.13 | AB158: 52.85 | AC158: 529.08 | AD158: 479.43 | AE158: 30.65 | AF158: 27.78 | AG158: 52.46 | AH158: 9.14 | AI158: 94.43 | AJ158: 103.58 | AK158: 48.28 | AL158: 26.65 | AM158: 2.8 | AN158: 1.54 | AO158: 64.44 | AQ158: BRANDON.MANNING | AR158: D | AS158: PHI | AT158: 56 | AU158: 813.69 | AV158: 1 | AW158: 2 | AX158: 4 | AY158: 6 | AZ158: 7 | BA158: 3 | BB158: 0.07 | BC158: 0.15 | BD158: 0.29 | BE158: 0.44 | BF158: 0.52 | BG158: 0.22 | BH158: 143 | BI158: 10.54 | BJ158: 63 | BK158: 4.65 | BL158: 1.59 | BM158: =AU158/AT158 -> 14.53017857 | BN158: 841.25 | BO158: 791.65 | BP158: 62.03 | BQ158: 58.37 | BR158: 51.52 | BS158: 422.15 | BT158: 442.92 | BU158: 31.13 | BV158: 32.66 | BW158: 48.8 | BX158: 5.2 | BY158: 95.24 | BZ158: 100.44 | CA158: 22.02 | CB158: 21.13 | CC158: 1.62 | CD158: 1.56 | CE158: 51.04
A159: TOBIAS.LINDBERG | B159: R | C159: TOR | D159: 6 | E159: 75.64 | F159: 0 | G159: 1 | H159: 1 | I159: 2 | J159: 2 | K159: 1 | L159: 0 | M159: 0.79 | N159: 0.79 | O159: 1.59 | P159: 1.59 | Q159: 0.79 | R159: 21 | S159: 16.66 | T159: 10 | U159: 7.93 | V159: 0 | W159: 12.60666667 | X159: 69.78 | Y159: 79.3 | Z159: 55.35 | AA159: 62.9 | AB159: 46.81 | AC159: 29.64 | AD159: 47.05 | AE159: 23.51 | AF159: 37.33 | AG159: 38.65 | AH159: 9.68 | AI159: 95.56 | AJ159: 105.23 | AK159: 3.16 | AL159: 2.06 | AM159: 2.5 | AN159: 1.63 | AO159: 60.56 | AQ159: JYRKI.JOKIPAKKA | AR159: D | AS159: CGY/DAL | AT159: 58 | AU159: 811.82 | AV159: 2 | AW159: 6 | AX159: 4 | AY159: 10 | AZ159: 12 | BA159: 8 | BB159: 0.15 | BC159: 0.44 | BD159: 0.3 | BE159: 0.74 | BF159: 0.89 | BG159: 0.59 | BH159: 94 | BI159: 6.95 | BJ159: 42 | BK159: 3.1 | BL159: 4.76 | BM159: =AU159/AT159 -> 13.99689655 | BN159: 730.8 | BO159: 728.75 | BP159: 54.01 | BQ159: 53.86 | BR159: 50.07 | BS159: 364.78 | BT159: 361.02 | BU159: 26.96 | BV159: 26.68 | BW159: 50.26 | BX159: 9.75 | BY159: 91.53 | BZ159: 101.28 | CA159: 35.3 | CB159: 30.98 | CC159: 2.61 | CD159: 2.29 | CE159: 53.26
A160: MIKA.ZIBANEJAD | B160: C | C160: OTT | D160: 81 | E160: 1020.97 | F160: 15 | G160: 10 | H160: 8 | I160: 18 | J160: 33 | K160: 25 | L160: 0.88 | M160: 0.59 | N160: 0.47 | O160: 1.06 | P160: 1.94 | Q160: 1.47 | R160: 208 | S160: 12.22 | T160: 122 | U160: 7.17 | V160: 12.3 | W160: 12.6045679 | X160: 951.86 | Y160: 1064.44 | Z160: 55.94 | AA160: 62.55 | AB160: 47.21 | AC160: 511.26 | AD160: 593.69 | AE160: 30.05 | AF160: 34.89 | AG160: 46.27 | AH160: 9.39 | AI160: 93.03 | AJ160: 102.41 | AK160: 48.75 | AL160: 40.54 | AM160: 2.87 | AN160: 2.38 | AO160: 54.6 | AQ160: CHRIS.WIDEMAN | AR160: D | AS160: OTT | AT160: 64 | AU160: 808.18 | AV160: 5 | AW160: 2 | AX160: 2 | AY160: 4 | AZ160: 9 | BA160: 7 | BB160: 0.37 | BC160: 0.15 | BD160: 0.15 | BE160: 0.3 | BF160: 0.67 | BG160: 0.52 | BH160: 160 | BI160: 11.88 | BJ160: 76 | BK160: 5.64 | BL160: 6.58 | BM160: =AU160/AT160 -> 12.6278125 | BN160: 705.3 | BO160: 863.65 | BP160: 52.36 | BQ160: 64.12 | BR160: 44.95 | BS160: 379.56 | BT160: 449.81 | BU160: 28.18 | BV160: 33.39 | BW160: 45.76 | BX160: 8.31 | BY160: 93.71 | BZ160: 102.02 | CA160: 32.15 | CB160: 27.88 | CC160: 2.39 | CD160: 2.07 | CE160: 53.56
A161: WILLIAM.NYLANDER | B161: C | C161: TOR | D161: 22 | E161: 277.28 | F161: 4 | G161: 4 | H161: 0 | I161: 4 | J161: 8 | K161: 8 | L161: 0.87 | M161: 0.87 | N161: 0 | O161: 0.87 | P161: 1.73 | Q161: 1.73 | R161: 55 | S161: 11.9 | T161: 26 | U161: 5.63 | V161: 15.38 | W161: 12.60363636 | X161: 275.16 | Y161: 249.3 | Z161: 59.54 | AA161: 53.95 | AB161: 52.46 | AC161: 129.32 | AD161: 144.07 | AE161: 27.98 | AF161: 31.18 | AG161: 47.3 | AH161: 6.77 | AI161: 94.33 | AJ161: 101.09 | AK161: 8.75 | AL161: 8.16 | AM161: 1.89 | AN161: 1.76 | AO161: 51.76 | AQ161: PATRICK.WIERCIOCH | AR161: D | AS161: OTT | AT161: 52 | AU161: 798.06 | AV161: 0 | AW161: 1 | AX161: 1 | AY161: 2 | AZ161: 2 | BA161: 1 | BB161: 0 | BC161: 0.08 | BD161: 0.08 | BE161: 0.15 | BF161: 0.15 | BG161: 0.08 | BH161: 118 | BI161: 8.87 | BJ161: 48 | BK161: 3.61 | BL161: 0 | BM161: =AU161/AT161 -> 15.34730769 | BN161: 718.34 | BO161: 807.96 | BP161: 54.01 | BQ161: 60.74 | BR161: 47.06 | BS161: 386.99 | BT161: 437.69 | BU161: 29.09 | BV161: 32.91 | BW161: 46.93 | BX161: 7.05 | BY161: 93.94 | BZ161: 100.99 | CA161: 27.73 | CB161: 25.81 | CC161: 2.08 | CD161: 1.94 | CE161: 51.79
A162: ONDREJ.PALAT | B162: L | C162: T.B | D162: 62 | E162: 781.3 | F162: 12 | G162: 11 | H162: 3 | I162: 14 | J162: 26 | K162: 23 | L162: 0.92 | M162: 0.84 | N162: 0.23 | O162: 1.08 | P162: 2 | Q162: 1.77 | R162: 167 | S162: 12.82 | T162: 88 | U162: 6.76 | V162: 13.64 | W162: 12.6016129 | X162: 759.31 | Y162: 696.05 | Z162: 58.31 | AA162: 53.45 | AB162: 52.17 | AC162: 407.38 | AD162: 394.18 | AE162: 31.28 | AF162: 30.27 | AG162: 50.82 | AH162: 9.7 | AI162: 93.5 | AJ162: 103.2 | AK162: 39.49 | AL162: 26.2 | AM162: 3.03 | AN162: 2.01 | AO162: 60.12 | AQ162: ERIC.GRYBA | AR162: D | AS162: EDM | AT162: 53 | AU162: 796.07 | AV162: 1 | AW162: 2 | AX162: 3 | AY162: 5 | AZ162: 6 | BA162: 3 | BB162: 0.08 | BC162: 0.15 | BD162: 0.23 | BE162: 0.38 | BF162: 0.45 | BG162: 0.23 | BH162: 141 | BI162: 10.63 | BJ162: 57 | BK162: 4.3 | BL162: 1.75 | BM162: =AU162/AT162 -> 15.02018868 | BN162: 735.74 | BO162: 771.99 | BP162: 55.45 | BQ162: 58.18 | BR162: 48.8 | BS162: 373.52 | BT162: 399.21 | BU162: 28.15 | BV162: 30.09 | BW162: 48.34 | BX162: 6.86 | BY162: 92.68 | BZ162: 99.54 | CA162: 26.16 | CB162: 28.71 | CC162: 1.97 | CD162: 2.16 | CE162: 47.68
A163: BRAYDEN.SCHENN | B163: C | C163: PHI | D163: 80 | E163: 1007.37 | F163: 14 | G163: 11 | H163: 8 | I163: 19 | J163: 33 | K163: 25 | L163: 0.83 | M163: 0.66 | N163: 0.48 | O163: 1.13 | P163: 1.97 | Q163: 1.49 | R163: 215 | S163: 12.81 | T163: 116 | U163: 6.91 | V163: 12.07 | W163: 12.592125 | X163: 994.58 | Y163: 1003.4 | Z163: 59.24 | AA163: 59.76 | AB163: 49.78 | AC163: 528.38 | AD163: 557.9 | AE163: 31.47 | AF163: 33.23 | AG163: 48.64 | AH163: 8.07 | AI163: 94.58 | AJ163: 102.64 | AK163: 42.82 | AL163: 29.87 | AM163: 2.55 | AN163: 1.78 | AO163: 58.91 | AQ163: CODY.FRANSON | AR163: D | AS163: BUF | AT163: 59 | AU163: 792.35 | AV163: 3 | AW163: 1 | AX163: 5 | AY163: 6 | AZ163: 9 | BA163: 4 | BB163: 0.23 | BC163: 0.08 | BD163: 0.38 | BE163: 0.45 | BF163: 0.68 | BG163: 0.3 | BH163: 125 | BI163: 9.47 | BJ163: 61 | BK163: 4.62 | BL163: 4.92 | BM163: =AU163/AT163 -> 13.42966102 | BN163: 663.07 | BO163: 687.02 | BP163: 50.21 | BQ163: 52.02 | BR163: 49.11 | BS163: 371.62 | BT163: 396.01 | BU163: 28.14 | BV163: 29.99 | BW163: 48.41 | BX163: 5.05 | BY163: 93.57 | BZ163: 98.63 | CA163: 19.26 | CB163: 25.34 | CC163: 1.46 | CD163: 1.92 | CE163: 43.19
A164: ALEX.BURMISTROV | B164: C | C164: WPG | D164: 81 | E164: 1018.33 | F164: 5 | G164: 5 | H164: 7 | I164: 12 | J164: 17 | K164: 10 | L164: 0.29 | M164: 0.29 | N164: 0.41 | O164: 0.71 | P164: 1 | Q164: 0.59 | R164: 182 | S164: 10.72 | T164: 89 | U164: 5.24 | V164: 5.62 | W164: 12.57197531 | X164: 849.25 | Y164: 922.07 | Z164: 50.04 | AA164: 54.33 | AB164: 47.94 | AC164: 475.63 | AD164: 499.33 | AE164: 28.02 | AF164: 29.42 | AG164: 48.78 | AH164: 5.29 | AI164: 91.5 | AJ164: 96.78 | AK164: 25.13 | AL164: 42.29 | AM164: 1.48 | AN164: 2.49 | AO164: 37.28 | AQ164: MARK.PYSYK | AR164: D | AS164: BUF | AT164: 55 | AU164: 779.68 | AV164: 1 | AW164: 4 | AX164: 3 | AY164: 7 | AZ164: 8 | BA164: 5 | BB164: 0.08 | BC164: 0.31 | BD164: 0.23 | BE164: 0.54 | BF164: 0.62 | BG164: 0.38 | BH164: 89 | BI164: 6.85 | BJ164: 40 | BK164: 3.08 | BL164: 2.5 | BM164: =AU164/AT164 -> 14.176 | BN164: 716.54 | BO164: 688.41 | BP164: 55.14 | BQ164: 52.98 | BR164: 51 | BS164: 375.56 | BT164: 367.4 | BU164: 28.9 | BV164: 28.27 | BW164: 50.55 | BX164: 7.43 | BY164: 92.27 | BZ164: 99.69 | CA164: 28.43 | CB164: 27.84 | CC164: 2.19 | CD164: 2.14 | CE164: 50.53
A165: ZACH.HYMAN | B165: C | C165: TOR | D165: 16 | E165: 200.64 | F165: 3 | G165: 0 | H165: 0 | I165: 0 | J165: 3 | K165: 3 | L165: 0.9 | M165: 0 | N165: 0 | O165: 0 | P165: 0.9 | Q165: 0.9 | R165: 60 | S165: 17.94 | T165: 32 | U165: 9.57 | V165: 9.38 | W165: 12.54 | X165: 209.19 | Y165: 174.67 | Z165: 62.56 | AA165: 52.23 | AB165: 54.5 | AC165: 96.74 | AD165: 93.65 | AE165: 28.93 | AF165: 28.01 | AG165: 50.81 | AH165: 6.12 | AI165: 92.31 | AJ165: 98.43 | AK165: 5.8 | AL165: 7.17 | AM165: 1.74 | AN165: 2.14 | AO165: 44.74 | AQ165: BRANDON.DAVIDSON | AR165: D | AS165: EDM | AT165: 51 | AU165: 777.24 | AV165: 2 | AW165: 2 | AX165: 4 | AY165: 6 | AZ165: 8 | BA165: 4 | BB165: 0.15 | BC165: 0.15 | BD165: 0.31 | BE165: 0.46 | BF165: 0.62 | BG165: 0.31 | BH165: 141 | BI165: 10.88 | BJ165: 53 | BK165: 4.09 | BL165: 3.77 | BM165: =AU165/AT165 -> 15.24 | BN165: 718.11 | BO165: 679.06 | BP165: 55.44 | BQ165: 52.42 | BR165: 51.4 | BS165: 375.05 | BT165: 361.8 | BU165: 28.95 | BV165: 27.93 | BW165: 50.9 | BX165: 7.16 | BY165: 93.3 | BZ165: 100.46 | CA165: 27.15 | CB165: 24.01 | CC165: 2.1 | CD165: 1.85 | CE165: 53.08
A166: JIRI.HUDLER | B166: R | C166: CGY/FLA | D166: 72 | E166: 902.02 | F166: 12 | G166: 14 | H166: 6 | I166: 20 | J166: 32 | K166: 26 | L166: 0.8 | M166: 0.93 | N166: 0.4 | O166: 1.33 | P166: 2.13 | Q166: 1.73 | R166: 130 | S166: 8.65 | T166: 73 | U166: 4.86 | V166: 16.44 | W166: 12.52805556 | X166: 772.12 | Y166: 823.11 | Z166: 51.36 | AA166: 54.75 | AB166: 48.4 | AC166: 397.7 | AD166: 438.05 | AE166: 26.45 | AF166: 29.14 | AG166: 47.59 | AH166: 11.28 | AI166: 89.45 | AJ166: 100.73 | AK166: 44.42 | AL166: 45.75 | AM166: 2.95 | AN166: 3.04 | AO166: 49.26 | AQ166: DENNIS.WIDEMAN | AR166: D | AS166: CGY | AT166: 51 | AU166: 772.98 | AV166: 0 | AW166: 4 | AX166: 5 | AY166: 9 | AZ166: 9 | BA166: 4 | BB166: 0 | BC166: 0.31 | BD166: 0.39 | BE166: 0.7 | BF166: 0.7 | BG166: 0.31 | BH166: 112 | BI166: 8.69 | BJ166: 45 | BK166: 3.49 | BL166: 0 | BM166: =AU166/AT166 -> 15.15647059 | BN166: 651.42 | BO166: 830.33 | BP166: 50.56 | BQ166: 64.45 | BR166: 43.96 | BS166: 340.18 | BT166: 419.67 | BU166: 26.41 | BV166: 32.58 | BW166: 44.77 | BX166: 7.58 | BY166: 92.03 | BZ166: 99.61 | CA166: 25.62 | CB166: 33.49 | CC166: 1.99 | CD166: 2.6 | CE166: 43.34
A167: SAM.BENNETT | B167: C | C167: CGY | D167: 77 | E167: 964.62 | F167: 14 | G167: 9 | H167: 4 | I167: 13 | J167: 27 | K167: 23 | L167: 0.87 | M167: 0.56 | N167: 0.25 | O167: 0.81 | P167: 1.68 | Q167: 1.43 | R167: 195 | S167: 12.13 | T167: 106 | U167: 6.59 | V167: 13.21 | W167: 12.52753247 | X167: 884.36 | Y167: 940.4 | Z167: 55.01 | AA167: 58.49 | AB167: 48.46 | AC167: 454.96 | AD167: 481.13 | AE167: 28.3 | AF167: 29.93 | AG167: 48.6 | AH167: 8.59 | AI167: 91.88 | AJ167: 100.47 | AK167: 39.78 | AL167: 38.54 | AM167: 2.47 | AN167: 2.4 | AO167: 50.79 | AQ167: KYLE.QUINCEY | AR167: D | AS167: DET | AT167: 47 | AU167: 771.42 | AV167: 1 | AW167: 0 | AX167: 6 | AY167: 6 | AZ167: 7 | BA167: 1 | BB167: 0.08 | BC167: 0 | BD167: 0.47 | BE167: 0.47 | BF167: 0.54 | BG167: 0.08 | BH167: 107 | BI167: 8.32 | BJ167: 58 | BK167: 4.51 | BL167: 1.72 | BM167: =AU167/AT167 -> 16.41319149 | BN167: 662.14 | BO167: 702.9 | BP167: 51.5 | BQ167: 54.67 | BR167: 48.51 | BS167: 370.2 | BT167: 394.39 | BU167: 28.79 | BV167: 30.67 | BW167: 48.42 | BX167: 7.24 | BY167: 92.31 | BZ167: 99.55 | CA167: 27.38 | CB167: 29.8 | CC167: 2.13 | CD167: 2.32 | CE167: 47.88
A168: ALEX.GALCHENYUK | B168: C | C168: MTL | D168: 82 | E168: 1027.08 | F168: 19 | G168: 9 | H168: 8 | I168: 17 | J168: 36 | K168: 28 | L168: 1.11 | M168: 0.53 | N168: 0.47 | O168: 0.99 | P168: 2.1 | Q168: 1.64 | R168: 250 | S168: 14.6 | T168: 148 | U168: 8.65 | V168: 12.84 | W168: 12.52536585 | X168: 1087.44 | Y168: 972.88 | Z168: 63.53 | AA168: 56.83 | AB168: 52.78 | AC168: 572.62 | AD168: 511.16 | AE168: 33.45 | AF168: 29.86 | AG168: 52.84 | AH168: 9.06 | AI168: 91.32 | AJ168: 100.38 | AK168: 52.23 | AL168: 43.86 | AM168: 3.05 | AN168: 2.56 | AO168: 54.36 | AQ168: ALEX.BIEGA | AR168: D | AS168: VAN | AT168: 51 | AU168: 753.45 | AV168: 0 | AW168: 3 | AX168: 4 | AY168: 7 | AZ168: 7 | BA168: 3 | BB168: 0 | BC168: 0.24 | BD168: 0.32 | BE168: 0.56 | BF168: 0.56 | BG168: 0.24 | BH168: 114 | BI168: 9.08 | BJ168: 61 | BK168: 4.86 | BL168: 0 | BM168: =AU168/AT168 -> 14.77352941 | BN168: 656.44 | BO168: 753.25 | BP168: 52.27 | BQ168: 59.98 | BR168: 46.57 | BS168: 368.17 | BT168: 453.48 | BU168: 29.32 | BV168: 36.11 | BW168: 44.81 | BX168: 7.03 | BY168: 92.68 | BZ168: 99.71 | CA168: 26.16 | CB168: 33.32 | CC168: 2.08 | CD168: 2.65 | CE168: 43.98
A169: RYAN.CALLAHAN | B169: R | C169: T.B | D169: 73 | E169: 914.19 | F169: 7 | G169: 8 | H169: 6 | I169: 14 | J169: 21 | K169: 15 | L169: 0.46 | M169: 0.53 | N169: 0.39 | O169: 0.92 | P169: 1.38 | Q169: 0.98 | R169: 228 | S169: 14.96 | T169: 131 | U169: 8.6 | V169: 5.34 | W169: 12.52315068 | X169: 850.9 | Y169: 805.51 | Z169: 55.85 | AA169: 52.87 | AB169: 51.37 | AC169: 452.02 | AD169: 434.29 | AE169: 29.67 | AF169: 28.5 | AG169: 51 | AH169: 7.37 | AI169: 92.48 | AJ169: 99.85 | AK169: 33.15 | AL169: 32.97 | AM169: 2.18 | AN169: 2.16 | AO169: 50.13 | AQ169: MARK.BOROWIECKI | AR169: D | AS169: OTT | AT169: 63 | AU169: 747.08 | AV169: 0 | AW169: 1 | AX169: 0 | AY169: 1 | AZ169: 1 | BA169: 1 | BB169: 0 | BC169: 0.08 | BD169: 0 | BE169: 0.08 | BF169: 0.08 | BG169: 0.08 | BH169: 56 | BI169: 4.5 | BJ169: 25 | BK169: 2.01 | BL169: 0 | BM169: =AU169/AT169 -> 11.8584127 | BN169: 611.86 | BO169: 764.92 | BP169: 49.14 | BQ169: 61.43 | BR169: 44.44 | BS169: 310.47 | BT169: 411.94 | BU169: 24.93 | BV169: 33.08 | BW169: 42.98 | BX169: 5.73 | BY169: 93.15 | BZ169: 98.89 | CA169: 18.07 | CB169: 28.01 | CC169: 1.45 | CD169: 2.25 | CE169: 39.22
A170: TYLER.JOHNSON | B170: C | C170: T.B | D170: 69 | E170: 863.81 | F170: 10 | G170: 11 | H170: 2 | I170: 13 | J170: 23 | K170: 21 | L170: 0.69 | M170: 0.76 | N170: 0.14 | O170: 0.9 | P170: 1.6 | Q170: 1.46 | R170: 205 | S170: 14.24 | T170: 124 | U170: 8.61 | V170: 8.06 | W170: 12.51898551 | X170: 852.16 | Y170: 767.15 | Z170: 59.19 | AA170: 53.29 | AB170: 52.62 | AC170: 453.7 | AD170: 427.55 | AE170: 31.51 | AF170: 29.7 | AG170: 51.48 | AH170: 8.85 | AI170: 93.5 | AJ170: 102.35 | AK170: 40.24 | AL170: 28.24 | AM170: 2.8 | AN170: 1.96 | AO170: 58.77 | AQ170: MICHAL.ROZSIVAL | AR170: D | AS170: CHI | AT170: 51 | AU170: 732.58 | AV170: 0 | AW170: 6 | AX170: 3 | AY170: 9 | AZ170: 9 | BA170: 6 | BB170: 0 | BC170: 0.49 | BD170: 0.25 | BE170: 0.74 | BF170: 0.74 | BG170: 0.49 | BH170: 80 | BI170: 6.55 | BJ170: 33 | BK170: 2.7 | BL170: 0 | BM170: =AU170/AT170 -> 14.36431373 | BN170: 680.08 | BO170: 660.34 | BP170: 55.7 | BQ170: 54.08 | BR170: 50.74 | BS170: 362.25 | BT170: 394.9 | BU170: 29.67 | BV170: 32.34 | BW170: 47.84 | BX170: 8.15 | BY170: 93.25 | BZ170: 101.4 | CA170: 29.18 | CB170: 27.21 | CC170: 2.39 | CD170: 2.23 | CE170: 51.75
A171: CAM.ATKINSON | B171: R | C171: CBJ | D171: 81 | E171: 1013.49 | F171: 17 | G171: 11 | H171: 5 | I171: 16 | J171: 33 | K171: 28 | L171: 1.01 | M171: 0.65 | N171: 0.3 | O171: 0.95 | P171: 1.95 | Q171: 1.66 | R171: 269 | S171: 15.93 | T171: 164 | U171: 9.71 | V171: 10.37 | W171: 12.51222222 | X171: 957.67 | Y171: 992.07 | Z171: 56.7 | AA171: 58.73 | AB171: 49.12 | AC171: 543.64 | AD171: 527.89 | AE171: 32.18 | AF171: 31.25 | AG171: 50.74 | AH171: 8.17 | AI171: 90.21 | AJ171: 98.38 | AK171: 44.74 | AL171: 51.19 | AM171: 2.65 | AN171: 3.03 | AO171: 46.64 | AQ171: NIKITA.NESTEROV | AR171: D | AS171: T.B | AT171: 57 | AU171: 724.31 | AV171: 1 | AW171: 2 | AX171: 2 | AY171: 4 | AZ171: 5 | BA171: 3 | BB171: 0.08 | BC171: 0.17 | BD171: 0.17 | BE171: 0.33 | BF171: 0.41 | BG171: 0.25 | BH171: 108 | BI171: 8.95 | BJ171: 46 | BK171: 3.81 | BL171: 2.17 | BM171: =AU171/AT171 -> 12.70719298 | BN171: 667.04 | BO171: 642.86 | BP171: 55.26 | BQ171: 53.25 | BR171: 50.92 | BS171: 345.36 | BT171: 376.46 | BU171: 28.61 | BV171: 31.19 | BW171: 47.85 | BX171: 6.78 | BY171: 93.46 | BZ171: 100.24 | CA171: 23.16 | CB171: 25.16 | CC171: 1.92 | CD171: 2.08 | CE171: 47.93
A172: BRANDON.SUTTER | B172: C | C172: VAN | D172: 20 | E172: 250.21 | F172: 3 | G172: 0 | H172: 3 | I172: 3 | J172: 6 | K172: 3 | L172: 0.72 | M172: 0 | N172: 0.72 | O172: 0.72 | P172: 1.44 | Q172: 0.72 | R172: 43 | S172: 10.31 | T172: 29 | U172: 6.95 | V172: 10.34 | W172: 12.5105 | X172: 209 | Y172: 200.7 | Z172: 50.12 | AA172: 48.13 | AB172: 51.01 | AC172: 113.94 | AD172: 109.2 | AE172: 27.32 | AF172: 26.19 | AG172: 51.06 | AH172: 9.01 | AI172: 95.41 | AJ172: 104.42 | AK172: 10.27 | AL172: 5.18 | AM172: 2.46 | AN172: 1.24 | AO172: 66.5 | AQ172: WILLIE.MITCHELL | AR172: D | AS172: FLA | AT172: 46 | AU172: 715.24 | AV172: 1 | AW172: 0 | AX172: 4 | AY172: 4 | AZ172: 5 | BA172: 1 | BB172: 0.08 | BC172: 0 | BD172: 0.34 | BE172: 0.34 | BF172: 0.42 | BG172: 0.08 | BH172: 74 | BI172: 6.21 | BJ172: 31 | BK172: 2.6 | BL172: 3.23 | BM172: =AU172/AT172 -> 15.54869565 | BN172: 530.37 | BO172: 693.56 | BP172: 44.49 | BQ172: 58.18 | BR172: 43.33 | BS172: 305.74 | BT172: 402.16 | BU172: 25.65 | BV172: 33.74 | BW172: 43.19 | BX172: 8.97 | BY172: 92.84 | BZ172: 101.81 | CA172: 27.18 | CB172: 29.17 | CC172: 2.28 | CD172: 2.45 | CE172: 48.23
A173: RICK.NASH | B173: L | C173: NYR | D173: 60 | E173: 749.83 | F173: 8 | G173: 8 | H173: 7 | I173: 15 | J173: 23 | K173: 16 | L173: 0.64 | M173: 0.64 | N173: 0.56 | O173: 1.2 | P173: 1.84 | Q173: 1.28 | R173: 245 | S173: 19.6 | T173: 129 | U173: 10.32 | V173: 6.2 | W173: 12.49716667 | X173: 701.79 | Y173: 766.69 | Z173: 56.16 | AA173: 61.35 | AB173: 47.79 | AC173: 352.93 | AD173: 395.31 | AE173: 28.24 | AF173: 31.63 | AG173: 47.17 | AH173: 9.97 | AI173: 93.48 | AJ173: 103.46 | AK173: 34.74 | AL173: 25.78 | AM173: 2.78 | AN173: 2.06 | AO173: 57.4 | AQ173: BRIAN.STRAIT | AR173: D | AS173: NYI | AT173: 52 | AU173: 694.86 | AV173: 1 | AW173: 0 | AX173: 4 | AY173: 4 | AZ173: 5 | BA173: 1 | BB173: 0.09 | BC173: 0 | BD173: 0.35 | BE173: 0.35 | BF173: 0.43 | BG173: 0.09 | BH173: 108 | BI173: 9.33 | BJ173: 42 | BK173: 3.63 | BL173: 2.38 | BM173: =AU173/AT173 -> 13.36269231 | BN173: 612.56 | BO173: 683.61 | BP173: 52.89 | BQ173: 59.03 | BR173: 47.26 | BS173: 314 | BT173: 370.05 | BU173: 27.11 | BV173: 31.95 | BW173: 45.9 | BX173: 7.32 | BY173: 93.5 | BZ173: 100.82 | CA173: 22.53 | CB173: 23.92 | CC173: 1.95 | CD173: 2.07 | CE173: 48.5
A174: MICHAEL.RAFFL | B174: L | C174: PHI | D174: 82 | E174: 1024.44 | F174: 12 | G174: 8 | H174: 8 | I174: 16 | J174: 28 | K174: 20 | L174: 0.7 | M174: 0.47 | N174: 0.47 | O174: 0.94 | P174: 1.64 | Q174: 1.17 | R174: 211 | S174: 12.36 | T174: 118 | U174: 6.91 | V174: 10.17 | W174: 12.49317073 | X174: 1028.64 | Y174: 877.65 | Z174: 60.25 | AA174: 51.4 | AB174: 53.96 | AC174: 515.87 | AD174: 498.4 | AE174: 30.21 | AF174: 29.19 | AG174: 50.86 | AH174: 8.29 | AI174: 93.51 | AJ174: 101.79 | AK174: 43.14 | AL174: 32.18 | AM174: 2.53 | AN174: 1.88 | AO174: 57.28 | AQ174: JON.MERRILL | AR174: D | AS174: N.J | AT174: 47 | AU174: 687.74 | AV174: 1 | AW174: 2 | AX174: 1 | AY174: 3 | AZ174: 4 | BA174: 3 | BB174: 0.09 | BC174: 0.17 | BD174: 0.09 | BE174: 0.26 | BF174: 0.35 | BG174: 0.26 | BH174: 52 | BI174: 4.54 | BJ174: 27 | BK174: 2.36 | BL174: 3.7 | BM174: =AU174/AT174 -> 14.63276596 | BN174: 492.03 | BO174: 592.33 | BP174: 42.93 | BQ174: 51.68 | BR174: 45.38 | BS174: 270.06 | BT174: 333.74 | BU174: 23.56 | BV174: 29.12 | BW174: 44.73 | BX174: 7.66 | BY174: 89.2 | BZ174: 96.86 | CA174: 21.12 | CB174: 35.4 | CC174: 1.84 | CD174: 3.09 | CE174: 37.37
A175: VALERI.NICHUSHKIN | B175: R | C175: DAL | D175: 79 | E175: 985.49 | F175: 8 | G175: 9 | H175: 10 | I175: 19 | J175: 27 | K175: 17 | L175: 0.49 | M175: 0.55 | N175: 0.61 | O175: 1.16 | P175: 1.64 | Q175: 1.04 | R175: 221 | S175: 13.46 | T175: 128 | U175: 7.79 | V175: 6.25 | W175: 12.47455696 | X175: 997.27 | Y175: 911.91 | Z175: 60.72 | AA175: 55.52 | AB175: 52.24 | AC175: 512.34 | AD175: 473.37 | AE175: 31.19 | AF175: 28.82 | AG175: 51.98 | AH175: 7.99 | AI175: 92.65 | AJ175: 100.64 | AK175: 41.09 | AL175: 34.85 | AM175: 2.5 | AN175: 2.12 | AO175: 54.11 | AQ175: MAREK.ZIDLICKY | AR175: D | AS175: NYI | AT175: 53 | AU175: 686.59 | AV175: 4 | AW175: 4 | AX175: 4 | AY175: 8 | AZ175: 12 | BA175: 8 | BB175: 0.35 | BC175: 0.35 | BD175: 0.35 | BE175: 0.7 | BF175: 1.05 | BG175: 0.7 | BH175: 64 | BI175: 5.59 | BJ175: 33 | BK175: 2.88 | BL175: 12.12 | BM175: =AU175/AT175 -> 12.9545283 | BN175: 641.56 | BO175: 655.3 | BP175: 56.06 | BQ175: 57.27 | BR175: 49.47 | BS175: 325.48 | BT175: 351.1 | BU175: 28.44 | BV175: 30.68 | BW175: 48.11 | BX175: 8.36 | BY175: 94.87 | BZ175: 103.23 | CA175: 26.77 | CB175: 18.02 | CC175: 2.34 | CD175: 1.57 | CE175: 59.77
A176: JASON.SPEZZA | B176: C | C176: DAL | D176: 75 | E176: 934.21 | F176: 21 | G176: 9 | H176: 4 | I176: 13 | J176: 34 | K176: 30 | L176: 1.35 | M176: 0.58 | N176: 0.26 | O176: 0.83 | P176: 2.18 | Q176: 1.93 | R176: 302 | S176: 19.4 | T176: 158 | U176: 10.15 | V176: 13.29 | W176: 12.45613333 | X176: 1087.13 | Y176: 907.26 | Z176: 69.82 | AA176: 58.27 | AB176: 54.51 | AC176: 561.85 | AD176: 456.55 | AE176: 36.09 | AF176: 29.32 | AG176: 55.17 | AH176: 7.66 | AI176: 93.41 | AJ176: 101.07 | AK176: 42.72 | AL176: 30.66 | AM176: 2.74 | AN176: 1.97 | AO176: 58.21 | AQ176: BROOKS.ORPIK | AR176: D | AS176: WSH | AT176: 41 | AU176: 679.91 | AV176: 3 | AW176: 2 | AX176: 5 | AY176: 7 | AZ176: 10 | BA176: 5 | BB176: 0.26 | BC176: 0.18 | BD176: 0.44 | BE176: 0.62 | BF176: 0.88 | BG176: 0.44 | BH176: 79 | BI176: 6.97 | BJ176: 29 | BK176: 2.56 | BL176: 10.34 | BM176: =AU176/AT176 -> 16.58317073 | BN176: 697.14 | BO176: 637.9 | BP176: 61.52 | BQ176: 56.29 | BR176: 52.22 | BS176: 386.94 | BT176: 332.05 | BU176: 34.15 | BV176: 29.3 | BW176: 53.82 | BX176: 10.03 | BY176: 90.88 | BZ176: 100.91 | CA176: 38.53 | CB176: 30.03 | CC176: 3.4 | CD176: 2.65 | CE176: 56.2
A177: PIERRE-ALEX.PARENTEAU | B177: R | C177: TOR | D177: 77 | E177: 958.48 | F177: 12 | G177: 8 | H177: 8 | I177: 16 | J177: 28 | K177: 20 | L177: 0.75 | M177: 0.5 | N177: 0.5 | O177: 1 | P177: 1.75 | Q177: 1.25 | R177: 205 | S177: 12.83 | T177: 118 | U177: 7.39 | V177: 10.17 | W177: 12.44779221 | X177: 999.82 | Y177: 898.9 | Z177: 62.59 | AA177: 56.27 | AB177: 52.66 | AC177: 513.7 | AD177: 516.09 | AE177: 32.16 | AF177: 32.31 | AG177: 49.88 | AH177: 7.46 | AI177: 92.91 | AJ177: 100.37 | AK177: 39.03 | AL177: 35.73 | AM177: 2.44 | AN177: 2.24 | AO177: 52.21 | AQ177: EVGENY.MEDVEDEV | AR177: D | AS177: PHI | AT177: 45 | AU177: 679.07 | AV177: 2 | AW177: 3 | AX177: 2 | AY177: 5 | AZ177: 7 | BA177: 5 | BB177: 0.18 | BC177: 0.27 | BD177: 0.18 | BE177: 0.44 | BF177: 0.62 | BG177: 0.44 | BH177: 140 | BI177: 12.37 | BJ177: 49 | BK177: 4.33 | BL177: 4.08 | BM177: =AU177/AT177 -> 15.09044444 | BN177: 677.82 | BO177: 608.97 | BP177: 59.89 | BQ177: 53.81 | BR177: 52.68 | BS177: 343.3 | BT177: 346.44 | BU177: 30.33 | BV177: 30.61 | BW177: 49.77 | BX177: 8.41 | BY177: 93.06 | BZ177: 101.47 | CA177: 29.22 | CB177: 23.93 | CC177: 2.58 | CD177: 2.11 | CE177: 54.98
A178: CODY.EAKIN | B178: C | C178: DAL | D178: 82 | E178: 1020.7 | F178: 8 | G178: 10 | H178: 6 | I178: 16 | J178: 24 | K178: 18 | L178: 0.47 | M178: 0.59 | N178: 0.35 | O178: 0.94 | P178: 1.41 | Q178: 1.06 | R178: 173 | S178: 10.17 | T178: 99 | U178: 5.82 | V178: 8.08 | W178: 12.44756098 | X178: 991.11 | Y178: 1005.77 | Z178: 58.26 | AA178: 59.12 | AB178: 49.63 | AC178: 507.5 | AD178: 495.55 | AE178: 29.83 | AF178: 29.13 | AG178: 50.6 | AH178: 7.54 | AI178: 91.8 | AJ178: 99.34 | AK178: 37.78 | AL178: 40.91 | AM178: 2.22 | AN178: 2.4 | AO178: 48.02 | AQ178: YANNICK.WEBER | AR178: D | AS178: VAN | AT178: 45 | AU178: 666.28 | AV178: 0 | AW178: 2 | AX178: 0 | AY178: 2 | AZ178: 2 | BA178: 2 | BB178: 0 | BC178: 0.18 | BD178: 0 | BE178: 0.18 | BF178: 0.18 | BG178: 0.18 | BH178: 99 | BI178: 8.92 | BJ178: 36 | BK178: 3.24 | BL178: 0 | BM178: =AU178/AT178 -> 14.80622222 | BN178: 560.58 | BO178: 617.31 | BP178: 50.48 | BQ178: 55.59 | BR178: 47.59 | BS178: 292.5 | BT178: 358.3 | BU178: 26.34 | BV178: 32.27 | BW178: 44.94 | BX178: 6.83 | BY178: 91.93 | BZ178: 98.76 | CA178: 20.17 | CB178: 28.48 | CC178: 1.82 | CD178: 2.56 | CE178: 41.46
A179: MATTIAS.JANMARK | B179: C | C179: DAL | D179: 73 | E179: 907.11 | F179: 12 | G179: 9 | H179: 4 | I179: 13 | J179: 25 | K179: 21 | L179: 0.79 | M179: 0.6 | N179: 0.26 | O179: 0.86 | P179: 1.65 | Q179: 1.39 | R179: 187 | S179: 12.37 | T179: 97 | U179: 6.42 | V179: 12.37 | W179: 12.42616438 | X179: 968.16 | Y179: 816.65 | Z179: 64.04 | AA179: 54.02 | AB179: 54.24 | AC179: 510.87 | AD179: 444.5 | AE179: 33.79 | AF179: 29.4 | AG179: 53.47 | AH179: 8.68 | AI179: 92.43 | AJ179: 101.11 | AK179: 44.42 | AL179: 33.95 | AM179: 2.94 | AN179: 2.25 | AO179: 56.68 | AQ179: CLAYTON.STONER | AR179: D | AS179: ANA | AT179: 50 | AU179: 661.11 | AV179: 0 | AW179: 1 | AX179: 3 | AY179: 4 | AZ179: 4 | BA179: 1 | BB179: 0 | BC179: 0.09 | BD179: 0.27 | BE179: 0.36 | BF179: 0.36 | BG179: 0.09 | BH179: 68 | BI179: 6.17 | BJ179: 29 | BK179: 2.63 | BL179: 0 | BM179: =AU179/AT179 -> 13.2222 | BN179: 589.41 | BO179: 538.3 | BP179: 53.49 | BQ179: 48.85 | BR179: 52.27 | BS179: 305.57 | BT179: 282.98 | BU179: 27.73 | BV179: 25.68 | BW179: 51.92 | BX179: 6.31 | BY179: 93.73 | BZ179: 100.04 | CA179: 18.89 | CB179: 18.24 | CC179: 1.71 | CD179: 1.66 | CE179: 50.87
A180: MARTIN.HANZAL | B180: C | C180: ARI | D180: 64 | E180: 792.78 | F180: 10 | G180: 7 | H180: 9 | I180: 16 | J180: 26 | K180: 17 | L180: 0.76 | M180: 0.53 | N180: 0.68 | O180: 1.21 | P180: 1.97 | Q180: 1.29 | R180: 162 | S180: 12.26 | T180: 100 | U180: 7.57 | V180: 10 | W180: 12.3871875 | X180: 762.07 | Y180: 777.88 | Z180: 57.68 | AA180: 58.87 | AB180: 49.49 | AC180: 384.47 | AD180: 409.38 | AE180: 29.1 | AF180: 30.98 | AG180: 48.43 | AH180: 9.04 | AI180: 92.84 | AJ180: 101.88 | AK180: 35.25 | AL180: 28.49 | AM180: 2.67 | AN180: 2.16 | AO180: 55.3 | AQ180: TAYLOR.CHORNEY | AR180: D | AS180: WSH | AT180: 55 | AU180: 645.86 | AV180: 1 | AW180: 3 | AX180: 2 | AY180: 5 | AZ180: 6 | BA180: 4 | BB180: 0.09 | BC180: 0.28 | BD180: 0.19 | BE180: 0.46 | BF180: 0.56 | BG180: 0.37 | BH180: 78 | BI180: 7.25 | BJ180: 28 | BK180: 2.6 | BL180: 3.57 | BM180: =AU180/AT180 -> 11.74290909 | BN180: 580.86 | BO180: 576.49 | BP180: 53.96 | BQ180: 53.56 | BR180: 50.19 | BS180: 298.08 | BT180: 297.25 | BU180: 27.69 | BV180: 27.61 | BW180: 50.07 | BX180: 11.03 | BY180: 92.48 | BZ180: 103.52 | CA180: 32.39 | CB180: 22.7 | CC180: 3.01 | CD180: 2.11 | CE180: 58.79
A181: DAVID.PERRON | B181: L | C181: ANA/PIT | D181: 71 | E181: 879.05 | F181: 7 | G181: 8 | H181: 5 | I181: 13 | J181: 20 | K181: 15 | L181: 0.48 | M181: 0.55 | N181: 0.34 | O181: 0.89 | P181: 1.37 | Q181: 1.02 | R181: 185 | S181: 12.63 | T181: 117 | U181: 7.99 | V181: 5.98 | W181: 12.38098592 | X181: 860.44 | Y181: 792.42 | Z181: 58.73 | AA181: 54.09 | AB181: 52.06 | AC181: 474.01 | AD181: 436.09 | AE181: 32.35 | AF181: 29.77 | AG181: 52.08 | AH181: 6.77 | AI181: 91.76 | AJ181: 98.53 | AK181: 32.61 | AL181: 36.23 | AM181: 2.23 | AN181: 2.47 | AO181: 47.38 | AQ181: TOM.GILBERT | AR181: D | AS181: MTL | AT181: 45 | AU181: 641.42 | AV181: 1 | AW181: 0 | AX181: 0 | AY181: 0 | AZ181: 1 | BA181: 1 | BB181: 0.09 | BC181: 0 | BD181: 0 | BE181: 0 | BF181: 0.09 | BG181: 0.09 | BH181: 72 | BI181: 6.74 | BJ181: 32 | BK181: 2.99 | BL181: 3.12 | BM181: =AU181/AT181 -> 14.25377778 | BN181: 578.22 | BO181: 587 | BP181: 54.09 | BQ181: 54.91 | BR181: 49.62 | BS181: 326.73 | BT181: 293.2 | BU181: 30.56 | BV181: 27.43 | BW181: 52.7 | BX181: 5.61 | BY181: 92.91 | BZ181: 98.51 | CA181: 18.17 | CB181: 21.05 | CC181: 1.7 | CD181: 1.97 | CE181: 46.33
A182: SCOTT.HARTNELL | B182: L | C182: CBJ | D182: 79 | E182: 976.62 | F182: 10 | G182: 13 | H182: 10 | I182: 23 | J182: 33 | K182: 23 | L182: 0.61 | M182: 0.8 | N182: 0.61 | O182: 1.41 | P182: 2.03 | Q182: 1.41 | R182: 177 | S182: 10.87 | T182: 113 | U182: 6.94 | V182: 8.85 | W182: 12.36227848 | X182: 906.81 | Y182: 937.25 | Z182: 55.71 | AA182: 57.58 | AB182: 49.17 | AC182: 489.15 | AD182: 496.81 | AE182: 30.05 | AF182: 30.52 | AG182: 49.61 | AH182: 8.91 | AI182: 90.74 | AJ182: 99.65 | AK182: 44.28 | AL182: 46.11 | AM182: 2.72 | AN182: 2.83 | AO182: 48.99 | AQ182: CHRISTIAN.EHRHOFF | AR182: D | AS182: CHI/L.A | AT182: 48 | AU182: 622.89 | AV182: 2 | AW182: 0 | AX182: 2 | AY182: 2 | AZ182: 4 | BA182: 2 | BB182: 0.19 | BC182: 0 | BD182: 0.19 | BE182: 0.19 | BF182: 0.39 | BG182: 0.19 | BH182: 133 | BI182: 12.81 | BJ182: 61 | BK182: 5.88 | BL182: 3.28 | BM182: =AU182/AT182 -> 12.976875 | BN182: 612.42 | BO182: 505.28 | BP182: 58.99 | BQ182: 48.67 | BR182: 54.79 | BS182: 303.4 | BT182: 279.21 | BU182: 29.22 | BV182: 26.89 | BW182: 52.08 | BX182: 5.35 | BY182: 91.07 | BZ182: 96.42 | CA182: 16.45 | CB182: 24.93 | CC182: 1.58 | CD182: 2.4 | CE182: 39.75
A183: MARIAN.GABORIK | B183: R | C183: L.A | D183: 54 | E183: 667.12 | F183: 8 | G183: 5 | H183: 1 | I183: 6 | J183: 14 | K183: 13 | L183: 0.72 | M183: 0.45 | N183: 0.09 | O183: 0.54 | P183: 1.26 | Q183: 1.17 | R183: 176 | S183: 15.83 | T183: 116 | U183: 10.43 | V183: 6.9 | W183: 12.35407407 | X183: 698.74 | Y183: 518.38 | Z183: 62.84 | AA183: 46.62 | AB183: 57.41 | AC183: 377.71 | AD183: 271.58 | AE183: 33.97 | AF183: 24.43 | AG183: 58.17 | AH183: 5.11 | AI183: 89.74 | AJ183: 94.85 | AK183: 19.4 | AL183: 28.07 | AM183: 1.75 | AN183: 2.52 | AO183: 40.87 | AQ183: STEVEN.KAMPFER | AR183: D | AS183: FLA | AT183: 47 | AU183: 619.45 | AV183: 0 | AW183: 0 | AX183: 3 | AY183: 3 | AZ183: 3 | BA183: 0 | BB183: 0 | BC183: 0 | BD183: 0.29 | BE183: 0.29 | BF183: 0.29 | BG183: 0 | BH183: 91 | BI183: 8.81 | BJ183: 51 | BK183: 4.94 | BL183: 0 | BM183: =AU183/AT183 -> 13.17978723 | BN183: 520.99 | BO183: 559.96 | BP183: 50.46 | BQ183: 54.24 | BR183: 48.2 | BS183: 299.52 | BT183: 306.59 | BU183: 29.01 | BV183: 29.7 | BW183: 49.42 | BX183: 6.44 | BY183: 94.84 | BZ183: 101.28 | CA183: 19.63 | CB183: 15.88 | CC183: 1.9 | CD183: 1.54 | CE183: 55.28
A184: TOMAS.FLEISCHMANN | B184: L | C184: CHI/MTL | D184: 76 | E184: 938.8 | F184: 13 | G184: 7 | H184: 2 | I184: 9 | J184: 22 | K184: 20 | L184: 0.83 | M184: 0.45 | N184: 0.13 | O184: 0.58 | P184: 1.41 | Q184: 1.28 | R184: 186 | S184: 11.89 | T184: 108 | U184: 6.9 | V184: 12.04 | W184: 12.35263158 | X184: 857.23 | Y184: 839.68 | Z184: 54.79 | AA184: 53.67 | AB184: 50.52 | AC184: 459.22 | AD184: 450.18 | AE184: 29.35 | AF184: 28.77 | AG184: 50.5 | AH184: 7.49 | AI184: 90.71 | AJ184: 98.2 | AK184: 34.62 | AL184: 41.62 | AM184: 2.21 | AN184: 2.66 | AO184: 45.41 | AQ184: MIKE.WEBER | AR184: D | AS184: BUF/WSH | AT184: 45 | AU184: 615.53 | AV184: 1 | AW184: 3 | AX184: 1 | AY184: 4 | AZ184: 5 | BA184: 4 | BB184: 0.1 | BC184: 0.29 | BD184: 0.1 | BE184: 0.39 | BF184: 0.49 | BG184: 0.39 | BH184: 76 | BI184: 7.41 | BJ184: 39 | BK184: 3.8 | BL184: 2.56 | BM184: =AU184/AT184 -> 13.67844444 | BN184: 497.51 | BO184: 535.53 | BP184: 48.5 | BQ184: 52.2 | BR184: 48.16 | BS184: 279.39 | BT184: 291.82 | BU184: 27.23 | BV184: 28.45 | BW184: 48.91 | BX184: 5.9 | BY184: 94.04 | BZ184: 99.94 | CA184: 17.11 | CB184: 17.52 | CC184: 1.67 | CD184: 1.71 | CE184: 49.41
A185: EMERSON.ETEM | B185: R | C185: NYR/VAN | D185: 58 | E185: 716.29 | F185: 6 | G185: 6 | H185: 2 | I185: 8 | J185: 14 | K185: 12 | L185: 0.5 | M185: 0.5 | N185: 0.17 | O185: 0.67 | P185: 1.17 | Q185: 1.01 | R185: 172 | S185: 14.41 | T185: 93 | U185: 7.79 | V185: 6.45 | W185: 12.34982759 | X185: 622.22 | Y185: 745.96 | Z185: 52.12 | AA185: 62.49 | AB185: 45.48 | AC185: 349.79 | AD185: 403.68 | AE185: 29.3 | AF185: 33.81 | AG185: 46.42 | AH185: 6.8 | AI185: 91.54 | AJ185: 98.34 | AK185: 23.65 | AL185: 33.84 | AM185: 1.98 | AN185: 2.83 | AO185: 41.14 | AQ185: LUCA.SBISA | AR185: D | AS185: VAN | AT185: 41 | AU185: 611.1 | AV185: 1 | AW185: 1 | AX185: 3 | AY185: 4 | AZ185: 5 | BA185: 2 | BB185: 0.1 | BC185: 0.1 | BD185: 0.29 | BE185: 0.39 | BF185: 0.49 | BG185: 0.2 | BH185: 69 | BI185: 6.77 | BJ185: 28 | BK185: 2.75 | BL185: 3.57 | BM185: =AU185/AT185 -> 14.90487805 | BN185: 487.96 | BO185: 597.43 | BP185: 47.91 | BQ185: 58.66 | BR185: 44.96 | BS185: 274.76 | BT185: 327.69 | BU185: 26.98 | BV185: 32.17 | BW185: 45.61 | BX185: 8.12 | BY185: 94.55 | BZ185: 102.66 | CA185: 22.22 | CB185: 17.83 | CC185: 2.18 | CD185: 1.75 | CE185: 55.47
A186: MATT.CALVERT | B186: L | C186: CBJ | D186: 73 | E186: 900.62 | F186: 9 | G186: 8 | H186: 5 | I186: 13 | J186: 22 | K186: 17 | L186: 0.6 | M186: 0.53 | N186: 0.33 | O186: 0.87 | P186: 1.47 | Q186: 1.13 | R186: 168 | S186: 11.19 | T186: 105 | U186: 7 | V186: 8.57 | W186: 12.33726027 | X186: 752.74 | Y186: 852.58 | Z186: 50.15 | AA186: 56.8 | AB186: 46.89 | AC186: 424.31 | AD186: 459.32 | AE186: 28.27 | AF186: 30.6 | AG186: 48.02 | AH186: 7.8 | AI186: 93.64 | AJ186: 101.44 | AK186: 33.29 | AL186: 29.22 | AM186: 2.22 | AN186: 1.95 | AO186: 53.26 | AQ186: JAKUB.KINDL | AR186: D | AS186: DET/FLA | AT186: 44 | AU186: 596.25 | AV186: 1 | AW186: 1 | AX186: 3 | AY186: 4 | AZ186: 5 | BA186: 2 | BB186: 0.1 | BC186: 0.1 | BD186: 0.3 | BE186: 0.4 | BF186: 0.5 | BG186: 0.2 | BH186: 115 | BI186: 11.57 | BJ186: 53 | BK186: 5.33 | BL186: 1.89 | BM186: =AU186/AT186 -> 13.55113636 | BN186: 587.96 | BO186: 474.4 | BP186: 59.17 | BQ186: 47.74 | BR186: 55.34 | BS186: 325.4 | BT186: 276.72 | BU186: 32.74 | BV186: 27.85 | BW186: 54.04 | BX186: 8.36 | BY186: 93.82 | BZ186: 102.18 | CA186: 26.68 | CB186: 16.82 | CC186: 2.68 | CD186: 1.69 | CE186: 61.33
A187: ZEMGUS.GIRGENSONS | B187: C | C187: BUF | D187: 71 | E187: 875.77 | F187: 5 | G187: 7 | H187: 2 | I187: 9 | J187: 14 | K187: 12 | L187: 0.34 | M187: 0.48 | N187: 0.14 | O187: 0.62 | P187: 0.96 | Q187: 0.82 | R187: 158 | S187: 10.82 | T187: 96 | U187: 6.58 | V187: 5.21 | W187: 12.33478873 | X187: 721.08 | Y187: 769.02 | Z187: 49.4 | AA187: 52.69 | AB187: 48.39 | AC187: 384.76 | AD187: 405.51 | AE187: 26.36 | AF187: 27.78 | AG187: 48.69 | AH187: 5.91 | AI187: 95.02 | AJ187: 100.94 | AK187: 23.61 | AL187: 19.81 | AM187: 1.62 | AN187: 1.36 | AO187: 54.39 | AQ187: ZACH.TROTMAN | AR187: D | AS187: BOS | AT187: 38 | AU187: 595.67 | AV187: 2 | AW187: 1 | AX187: 3 | AY187: 4 | AZ187: 6 | BA187: 3 | BB187: 0.2 | BC187: 0.1 | BD187: 0.3 | BE187: 0.4 | BF187: 0.6 | BG187: 0.3 | BH187: 113 | BI187: 11.38 | BJ187: 58 | BK187: 5.84 | BL187: 3.45 | BM187: =AU187/AT187 -> 15.67552632 | BN187: 578.27 | BO187: 589.75 | BP187: 58.25 | BQ187: 59.4 | BR187: 49.51 | BS187: 338.15 | BT187: 317.49 | BU187: 34.06 | BV187: 31.98 | BW187: 51.57 | BX187: 8.21 | BY187: 91.67 | BZ187: 99.87 | CA187: 27.49 | CB187: 26.8 | CC187: 2.77 | CD187: 2.7 | CE187: 50.64
A188: THOMAS.VANEK | B188: L | C188: MIN | D188: 74 | E188: 912.68 | F188: 10 | G188: 12 | H188: 2 | I188: 14 | J188: 24 | K188: 22 | L188: 0.66 | M188: 0.79 | N188: 0.13 | O188: 0.92 | P188: 1.58 | Q188: 1.45 | R188: 178 | S188: 11.7 | T188: 99 | U188: 6.51 | V188: 10.1 | W188: 12.33351351 | X188: 771.05 | Y188: 901.88 | Z188: 50.69 | AA188: 59.29 | AB188: 46.09 | AC188: 400.87 | AD188: 469.61 | AE188: 26.35 | AF188: 30.87 | AG188: 46.05 | AH188: 8.29 | AI188: 92.95 | AJ188: 101.24 | AK188: 32.74 | AL188: 33.1 | AM188: 2.15 | AN188: 2.18 | AO188: 49.73 | AQ188: CODY.GOLOUBEF | AR188: D | AS188: CBJ | AT188: 43 | AU188: 590.9 | AV188: 1 | AW188: 1 | AX188: 6 | AY188: 7 | AZ188: 8 | BA188: 2 | BB188: 0.1 | BC188: 0.1 | BD188: 0.61 | BE188: 0.71 | BF188: 0.81 | BG188: 0.2 | BH188: 95 | BI188: 9.65 | BJ188: 40 | BK188: 4.06 | BL188: 2.5 | BM188: =AU188/AT188 -> 13.74186047 | BN188: 525.81 | BO188: 602.13 | BP188: 53.39 | BQ188: 61.14 | BR188: 46.62 | BS188: 281.79 | BT188: 319.71 | BU188: 28.61 | BV188: 32.46 | BW188: 46.85 | BX188: 7.69 | BY188: 93.69 | BZ188: 101.38 | CA188: 21.62 | CB188: 20.12 | CC188: 2.2 | CD188: 2.04 | CE188: 51.79
A189: PATRICK.BROWN | B189: C | C189: CAR | D189: 7 | E189: 86.33 | F189: 1 | G189: 0 | H189: 1 | I189: 1 | J189: 2 | K189: 1 | L189: 0.7 | M189: 0 | N189: 0.7 | O189: 0.7 | P189: 1.39 | Q189: 0.7 | R189: 13 | S189: 9.04 | T189: 8 | U189: 5.56 | V189: 12.5 | W189: 12.33285714 | X189: 74.66 | Y189: 75.76 | Z189: 51.89 | AA189: 52.65 | AB189: 49.64 | AC189: 38.18 | AD189: 33.2 | AE189: 26.54 | AF189: 23.08 | AG189: 53.49 | AH189: 15.79 | AI189: 93.94 | AJ189: 109.73 | AK189: 5.76 | AL189: 2.09 | AM189: 4 | AN189: 1.45 | AO189: 73.37 | AQ189: COLIN.MILLER | AR189: D | AS189: BOS | AT189: 42 | AU189: 570.9 | AV189: 3 | AW189: 3 | AX189: 4 | AY189: 7 | AZ189: 10 | BA189: 6 | BB189: 0.32 | BC189: 0.32 | BD189: 0.42 | BE189: 0.74 | BF189: 1.05 | BG189: 0.63 | BH189: 108 | BI189: 11.35 | BJ189: 48 | BK189: 5.04 | BL189: 6.25 | BM189: =AU189/AT189 -> 13.59285714 | BN189: 556.66 | BO189: 502.55 | BP189: 58.5 | BQ189: 52.82 | BR189: 52.55 | BS189: 317.28 | BT189: 265.97 | BU189: 33.35 | BV189: 27.95 | BW189: 54.4 | BX189: 7.64 | BY189: 92.13 | BZ189: 99.78 | CA189: 24.07 | CB189: 21.45 | CC189: 2.53 | CD189: 2.25 | CE189: 52.88
A190: JOE.COLBORNE | B190: C | C190: CGY | D190: 73 | E190: 899.57 | F190: 13 | G190: 13 | H190: 9 | I190: 22 | J190: 35 | K190: 26 | L190: 0.87 | M190: 0.87 | N190: 0.6 | O190: 1.47 | P190: 2.33 | Q190: 1.73 | R190: 118 | S190: 7.87 | T190: 73 | U190: 4.87 | V190: 17.81 | W190: 12.32287671 | X190: 801.49 | Y190: 869.19 | Z190: 53.46 | AA190: 57.97 | AB190: 47.97 | AC190: 425.4 | AD190: 446.71 | AE190: 28.37 | AF190: 29.8 | AG190: 48.78 | AH190: 10.3 | AI190: 89.89 | AJ190: 100.19 | AK190: 43.98 | AL190: 44.78 | AM190: 2.93 | AN190: 2.99 | AO190: 49.55 | AQ190: GREG.PATERYN | AR190: D | AS190: MTL | AT190: 38 | AU190: 553.44 | AV190: 0 | AW190: 5 | AX190: 1 | AY190: 6 | AZ190: 6 | BA190: 5 | BB190: 0 | BC190: 0.54 | BD190: 0.11 | BE190: 0.65 | BF190: 0.65 | BG190: 0.54 | BH190: 80 | BI190: 8.67 | BJ190: 31 | BK190: 3.36 | BL190: 0 | BM190: =AU190/AT190 -> 14.56421053 | BN190: 474.44 | BO190: 493.19 | BP190: 51.44 | BQ190: 53.47 | BR190: 49.03 | BS190: 250.79 | BT190: 256.9 | BU190: 27.19 | BV190: 27.85 | BW190: 49.4 | BX190: 6.69 | BY190: 90.12 | BZ190: 96.81 | CA190: 16.8 | CB190: 25.08 | CC190: 1.82 | CD190: 2.72 | CE190: 40.12
A191: MAX.DOMI | B191: C | C191: ARI | D191: 81 | E191: 997 | F191: 13 | G191: 14 | H191: 5 | I191: 19 | J191: 32 | K191: 27 | L191: 0.78 | M191: 0.84 | N191: 0.3 | O191: 1.14 | P191: 1.93 | Q191: 1.62 | R191: 201 | S191: 12.1 | T191: 103 | U191: 6.2 | V191: 12.62 | W191: 12.30864198 | X191: 892.15 | Y191: 1051.02 | Z191: 53.69 | AA191: 63.25 | AB191: 45.91 | AC191: 475.52 | AD191: 560.5 | AE191: 28.62 | AF191: 33.73 | AG191: 45.9 | AH191: 9.43 | AI191: 94.4 | AJ191: 103.84 | AK191: 44.59 | AL191: 30.99 | AM191: 2.68 | AN191: 1.86 | AO191: 58.99 | AQ191: ERIK.GUSTAFSSON | AR191: D | AS191: CHI | AT191: 41 | AU191: 543.52 | AV191: 0 | AW191: 6 | AX191: 7 | AY191: 13 | AZ191: 13 | BA191: 6 | BB191: 0 | BC191: 0.66 | BD191: 0.77 | BE191: 1.44 | BF191: 1.44 | BG191: 0.66 | BH191: 112 | BI191: 12.36 | BJ191: 50 | BK191: 5.52 | BL191: 0 | BM191: =AU191/AT191 -> 13.25658537 | BN191: 576.91 | BO191: 483.02 | BP191: 63.69 | BQ191: 53.32 | BR191: 54.43 | BS191: 313.71 | BT191: 273.24 | BU191: 34.63 | BV191: 30.16 | BW191: 53.45 | BX191: 9.03 | BY191: 93.82 | BZ191: 102.85 | CA191: 27.8 | CB191: 16.85 | CC191: 3.07 | CD191: 1.86 | CE191: 62.26
A192: CRAIG.SMITH | B192: C | C192: NSH | D192: 82 | E192: 1008.28 | F192: 19 | G192: 12 | H192: 1 | I192: 13 | J192: 32 | K192: 31 | L192: 1.13 | M192: 0.71 | N192: 0.06 | O192: 0.77 | P192: 1.9 | Q192: 1.84 | R192: 290 | S192: 17.26 | T192: 168 | U192: 10 | V192: 11.31 | W192: 12.29609756 | X192: 1078.11 | Y192: 822.4 | Z192: 64.16 | AA192: 48.94 | AB192: 56.73 | AC192: 571.6 | AD192: 467.41 | AE192: 34.01 | AF192: 27.81 | AG192: 55.01 | AH192: 8.76 | AI192: 91.47 | AJ192: 100.23 | AK192: 49.08 | AL192: 40.13 | AM192: 2.92 | AN192: 2.39 | AO192: 55.02 | AQ192: DYLAN.DEMELO | AR192: D | AS192: S.J | AT192: 45 | AU192: 539.26 | AV192: 0 | AW192: 0 | AX192: 0 | AY192: 0 | AZ192: 0 | BA192: 0 | BB192: 0 | BC192: 0 | BD192: 0 | BE192: 0 | BF192: 0 | BG192: 0 | BH192: 80 | BI192: 8.9 | BJ192: 33 | BK192: 3.67 | BL192: 0 | BM192: =AU192/AT192 -> 11.98355556 | BN192: 479.58 | BO192: 428.02 | BP192: 53.36 | BQ192: 47.62 | BR192: 52.84 | BS192: 257.7 | BT192: 204.69 | BU192: 28.67 | BV192: 22.77 | BW192: 55.73 | BX192: 5.47 | BY192: 92.72 | BZ192: 98.19 | CA192: 14.01 | CB192: 15.29 | CC192: 1.56 | CD192: 1.7 | CE192: 47.81
A193: MIKAEL.BACKLUND | B193: C | C193: CGY | D193: 82 | E193: 1007.6 | F193: 12 | G193: 12 | H193: 6 | I193: 18 | J193: 30 | K193: 24 | L193: 0.71 | M193: 0.71 | N193: 0.36 | O193: 1.07 | P193: 1.79 | Q193: 1.43 | R193: 203 | S193: 12.09 | T193: 114 | U193: 6.79 | V193: 10.53 | W193: 12.28780488 | X193: 1001.16 | Y193: 927.58 | Z193: 59.62 | AA193: 55.23 | AB193: 51.91 | AC193: 544.56 | AD193: 426.82 | AE193: 32.43 | AF193: 25.42 | AG193: 56.06 | AH193: 8.58 | AI193: 91.51 | AJ193: 100.09 | AK193: 47.29 | AL193: 36.23 | AM193: 2.82 | AN193: 2.16 | AO193: 56.62 | AQ193: NATE.PROSSER | AR193: D | AS193: MIN | AT193: 54 | AU193: 534.94 | AV193: 0 | AW193: 0 | AX193: 2 | AY193: 2 | AZ193: 2 | BA193: 0 | BB193: 0 | BC193: 0 | BD193: 0.22 | BE193: 0.22 | BF193: 0.22 | BG193: 0 | BH193: 42 | BI193: 4.71 | BJ193: 18 | BK193: 2.02 | BL193: 0 | BM193: =AU193/AT193 -> 9.906296296 | BN193: 427.36 | BO193: 499.69 | BP193: 47.93 | BQ193: 56.05 | BR193: 46.1 | BS193: 239.7 | BT193: 225.89 | BU193: 26.89 | BV193: 25.34 | BW193: 51.48 | BX193: 5.08 | BY193: 93.83 | BZ193: 98.92 | CA193: 11.96 | CB193: 13.91 | CC193: 1.34 | CD193: 1.56 | CE193: 46.24
A194: ALEX.TANGUAY | B194: L | C194: ARI/COL | D194: 70 | E194: 860.01 | F194: 7 | G194: 13 | H194: 5 | I194: 18 | J194: 25 | K194: 20 | L194: 0.49 | M194: 0.91 | N194: 0.35 | O194: 1.26 | P194: 1.74 | Q194: 1.4 | R194: 93 | S194: 6.49 | T194: 54 | U194: 3.77 | V194: 12.96 | W194: =(E194*60)/(D194*60) -> 12.28585714 | X194: 792.95 | Y194: 951.31 | Z194: 55.32 | AA194: 66.37 | AB194: 45.46 | AC194: 456.87 | AD194: 488.09 | AE194: 31.87 | AF194: 34.05 | AG194: 48.35 | AH194: 8.77 | AI194: 94.05 | AJ194: 102.82 | AK194: 39.85 | AL194: 29.22 | AM194: 2.78 | AN194: 2.04 | AO194: 57.69 | AQ194: PATRIK.NEMETH | AR194: D | AS194: DAL | AT194: 38 | AU194: 524.63 | AV194: 0 | AW194: 3 | AX194: 4 | AY194: 7 | AZ194: 7 | BA194: 3 | BB194: 0 | BC194: 0.34 | BD194: 0.46 | BE194: 0.8 | BF194: 0.8 | BG194: 0.34 | BH194: 79 | BI194: 9.03 | BJ194: 34 | BK194: 3.89 | BL194: 0 | BM194: =AU194/AT194 -> 13.80605263 | BN194: 524.21 | BO194: 494.39 | BP194: 59.95 | BQ194: 56.54 | BR194: 51.46 | BS194: 271.34 | BT194: 251.87 | BU194: 31.03 | BV194: 28.81 | BW194: 51.86 | BX194: 5.49 | BY194: 93.63 | BZ194: 99.12 | CA194: 15.11 | CB194: 16.13 | CC194: 1.73 | CD194: 1.85 | CE194: 48.36
A195: MIKHAIL.GRABOVSKI | B195: C | C195: NYI | D195: 58 | E195: 711.82 | F195: 7 | G195: 5 | H195: 8 | I195: 13 | J195: 20 | K195: 12 | L195: 0.59 | M195: 0.42 | N195: 0.67 | O195: 1.1 | P195: 1.69 | Q195: 1.01 | R195: 135 | S195: 11.38 | T195: 71 | U195: 5.98 | V195: 9.86 | W195: 12.27275862 | X195: 704.42 | Y195: 707.35 | Z195: 59.38 | AA195: 59.62 | AB195: 49.9 | AC195: 365.04 | AD195: 370.73 | AE195: 30.77 | AF195: 31.25 | AG195: 49.61 | AH195: 8.56 | AI195: 92.47 | AJ195: 101.04 | AK195: 31 | AL195: 28.1 | AM195: 2.61 | AN195: 2.37 | AO195: 52.45 | AQ195: JARED.COWEN | AR195: D | AS195: OTT | AT195: 37 | AU195: 523.99 | AV195: 0 | AW195: 2 | AX195: 2 | AY195: 4 | AZ195: 4 | BA195: 2 | BB195: 0 | BC195: 0.23 | BD195: 0.23 | BE195: 0.46 | BF195: 0.46 | BG195: 0.23 | BH195: 63 | BI195: 7.21 | BJ195: 23 | BK195: 2.63 | BL195: 0 | BM195: =AU195/AT195 -> 14.16189189 | BN195: 411.29 | BO195: 560.28 | BP195: 47.1 | BQ195: 64.16 | BR195: 42.33 | BS195: 212.63 | BT195: 296.04 | BU195: 24.35 | BV195: 33.9 | BW195: 41.8 | BX195: 9.39 | BY195: 93.54 | BZ195: 102.93 | CA195: 20.03 | CB195: 19.22 | CC195: 2.29 | CD195: 2.2 | CE195: 51.03
A196: COLIN.WILSON | B196: C | C196: NSH | D196: 64 | E196: 784.12 | F196: 3 | G196: 10 | H196: 6 | I196: 16 | J196: 19 | K196: 13 | L196: 0.23 | M196: 0.77 | N196: 0.46 | O196: 1.22 | P196: 1.45 | Q196: 0.99 | R196: 153 | S196: 11.71 | T196: 86 | U196: 6.58 | V196: 3.49 | W196: 12.251875 | X196: 756.93 | Y196: 676.39 | Z196: 57.92 | AA196: 51.76 | AB196: 52.81 | AC196: 404.97 | AD196: 353.36 | AE196: 30.99 | AF196: 27.04 | AG196: 53.4 | AH196: 7.18 | AI196: 91.83 | AJ196: 99.01 | AK196: 28.84 | AL196: 29.04 | AM196: 2.21 | AN196: 2.22 | AO196: 49.83 | AQ196: SIMON.DESPRES | AR196: D | AS196: ANA | AT196: 32 | AU196: 518.28 | AV196: 0 | AW196: 0 | AX196: 1 | AY196: 1 | AZ196: 1 | BA196: 0 | BB196: 0 | BC196: 0 | BD196: 0.12 | BE196: 0.12 | BF196: 0.12 | BG196: 0 | BH196: 61 | BI196: 7.06 | BJ196: 27 | BK196: 3.13 | BL196: 0 | BM196: =AU196/AT196 -> 16.19625 | BN196: 481.59 | BO196: 473.55 | BP196: 55.75 | BQ196: 54.82 | BR196: 50.42 | BS196: 243.04 | BT196: 241.78 | BU196: 28.14 | BV196: 27.99 | BW196: 50.13 | BX196: 7.56 | BY196: 91.94 | BZ196: 99.5 | CA196: 18.34 | CB196: 19.73 | CC196: 2.12 | CD196: 2.28 | CE196: 48.17
A197: SVEN.ANDRIGHETTO | B197: R | C197: MTL | D197: 44 | E197: 539.01 | F197: 6 | G197: 4 | H197: 4 | I197: 8 | J197: 14 | K197: 10 | L197: 0.67 | M197: 0.45 | N197: 0.45 | O197: 0.89 | P197: 1.56 | Q197: 1.11 | R197: 113 | S197: 12.58 | T197: 63 | U197: 7.01 | V197: 9.52 | W197: 12.25022727 | X197: 541.4 | Y197: 494.29 | Z197: 60.27 | AA197: 55.02 | AB197: 52.27 | AC197: 287.51 | AD197: 270.18 | AE197: 32 | AF197: 30.07 | AG197: 51.55 | AH197: 8.28 | AI197: 93.23 | AJ197: 101.51 | AK197: 24.18 | AL197: 17.91 | AM197: 2.69 | AN197: 1.99 | AO197: 57.45 | AQ197: RYAN.MURPHY | AR197: D | AS197: CAR | AT197: 35 | AU197: 512.95 | AV197: 0 | AW197: 3 | AX197: 4 | AY197: 7 | AZ197: 7 | BA197: 3 | BB197: 0 | BC197: 0.35 | BD197: 0.47 | BE197: 0.82 | BF197: 0.82 | BG197: 0.35 | BH197: 80 | BI197: 9.36 | BJ197: 35 | BK197: 4.09 | BL197: 0 | BM197: =AU197/AT197 -> 14.65571429 | BN197: 457.78 | BO197: 443.02 | BP197: 53.55 | BQ197: 51.82 | BR197: 50.82 | BS197: 239.68 | BT197: 221.38 | BU197: 28.04 | BV197: 25.89 | BW197: 51.98 | BX197: 7.44 | BY197: 91.78 | BZ197: 99.22 | CA197: 17.9 | CB197: 17.94 | CC197: 2.09 | CD197: 2.1 | CE197: 49.95
A198: JUSSI.JOKINEN | B198: L | C198: FLA | D198: 81 | E198: 989.96 | F198: 11 | G198: 14 | H198: 13 | I198: 27 | J198: 38 | K198: 25 | L198: 0.67 | M198: 0.85 | N198: 0.79 | O198: 1.64 | P198: 2.3 | Q198: 1.52 | R198: 168 | S198: 10.18 | T198: 108 | U198: 6.55 | V198: 10.19 | W198: 12.2217284 | X198: 918.18 | Y198: 781.73 | Z198: 55.65 | AA198: 47.38 | AB198: 54.01 | AC198: 529.75 | AD198: 425.45 | AE198: 32.11 | AF198: 25.79 | AG198: 55.46 | AH198: 10.06 | AI198: 93.5 | AJ198: 103.56 | AK198: 52.87 | AL198: 27.46 | AM198: 3.2 | AN198: 1.66 | AO198: 65.82 | AQ198: MICHAL.JORDAN | AR198: D | AS198: CAR | AT198: 36 | AU198: 512.25 | AV198: 1 | AW198: 0 | AX198: 0 | AY198: 0 | AZ198: 1 | BA198: 1 | BB198: 0.12 | BC198: 0 | BD198: 0 | BE198: 0 | BF198: 0.12 | BG198: 0.12 | BH198: 75 | BI198: 8.78 | BJ198: 35 | BK198: 4.1 | BL198: 2.86 | BM198: =AU198/AT198 -> 14.22916667 | BN198: 449.91 | BO198: 417.63 | BP198: 52.7 | BQ198: 48.92 | BR198: 51.86 | BS198: 235.96 | BT198: 240.04 | BU198: 27.64 | BV198: 28.12 | BW198: 49.57 | BX198: 7.14 | BY198: 90.46 | BZ198: 97.6 | CA198: 16.85 | CB198: 23.1 | CC198: 1.97 | CD198: 2.71 | CE198: 42.18
A199: JAROME.IGINLA | B199: R | C199: COL | D199: 82 | E199: 998.98 | F199: 8 | G199: 12 | H199: 6 | I199: 18 | J199: 26 | K199: 20 | L199: 0.48 | M199: 0.72 | N199: 0.36 | O199: 1.08 | P199: 1.56 | Q199: 1.2 | R199: 192 | S199: 11.53 | T199: 104 | U199: 6.25 | V199: 7.69 | W199: 12.18268293 | X199: 802.39 | Y199: 1103.11 | Z199: 48.19 | AA199: 66.25 | AB199: 42.11 | AC199: 435.26 | AD199: 556.29 | AE199: 26.14 | AF199: 33.41 | AG199: 43.9 | AH199: 8.01 | AI199: 92.07 | AJ199: 100.08 | AK199: 35.16 | AL199: 44.44 | AM199: 2.11 | AN199: 2.67 | AO199: 44.17 | AQ199: FRANK.CORRADO | AR199: D | AS199: TOR | AT199: 39 | AU199: 495.89 | AV199: 1 | AW199: 1 | AX199: 3 | AY199: 4 | AZ199: 5 | BA199: 2 | BB199: 0.12 | BC199: 0.12 | BD199: 0.36 | BE199: 0.48 | BF199: 0.6 | BG199: 0.24 | BH199: 93 | BI199: 11.25 | BJ199: 36 | BK199: 4.36 | BL199: 2.78 | BM199: =AU199/AT199 -> 12.71512821 | BN199: 497.05 | BO199: 441.38 | BP199: 60.14 | BQ199: 53.41 | BR199: 52.97 | BS199: 249.8 | BT199: 255.91 | BU199: 30.22 | BV199: 30.96 | BW199: 49.4 | BX199: 6.64 | BY199: 88.66 | BZ199: 95.3 | CA199: 16.67 | CB199: 28.36 | CC199: 2.02 | CD199: 3.43 | CE199: 37.02
A200: KEVIN.FIALA | B200: L | C200: NSH | D200: 5 | E200: 60.78 | F200: 1 | G200: 0 | H200: 0 | I200: 0 | J200: 1 | K200: 1 | L200: 0.99 | M200: 0 | N200: 0 | O200: 0 | P200: 0.99 | Q200: 0.99 | R200: 17 | S200: 16.78 | T200: 10 | U200: 9.87 | V200: 10 | W200: 12.156 | X200: 74.14 | Y200: 54.1 | Z200: 73.19 | AA200: 53.41 | AB200: 57.81 | AC200: 33.72 | AD200: 30.52 | AE200: 33.29 | AF200: 30.13 | AG200: 52.49 | AH200: 3.03 | AI200: 96.67 | AJ200: 99.7 | AK200: 1.07 | AL200: 0.98 | AM200: 1.05 | AN200: 0.97 | AO200: 52.15 | AQ200: CARLO.COLAIACOVO | AR200: D | AS200: BUF | AT200: 36 | AU200: 494.48 | AV200: 1 | AW200: 1 | AX200: 1 | AY200: 2 | AZ200: 3 | BA200: 2 | BB200: 0.12 | BC200: 0.12 | BD200: 0.12 | BE200: 0.24 | BF200: 0.36 | BG200: 0.24 | BH200: 55 | BI200: 6.67 | BJ200: 26 | BK200: 3.15 | BL200: 3.85 | BM200: =AU200/AT200 -> 13.73555556 | BN200: 409.89 | BO200: 461.06 | BP200: 49.74 | BQ200: 55.95 | BR200: 47.06 | BS200: 216.55 | BT200: 242.03 | BU200: 26.28 | BV200: 29.37 | BW200: 47.22 | BX200: 6.42 | BY200: 89.41 | BZ200: 95.83 | CA200: 14.44 | CB200: 24.93 | CC200: 1.75 | CD200: 3.03 | CE200: 36.67
... 316 more rows

Sheet 5v4
B1: Player | C1: Pos | D1: Team | E1: GP | F1: TOI | G1: G | H1: A1 | I1: A2 | J1: A | K1: P | L1: P1 | M1: G60 | N1: A160 | O1: A260 | P1: A60 | Q1: P60 | R1: P160 | S1: iCF | T1: iCF60 | U1: iSF | V1: iSF60 | W1: iSh% | X1: CF | Y1: CF60 | Z1: CF% | AA1: CSh% | AB1: CSv% | AC1: SF | AD1: SF60 | AE1: SF% | AF1: Sh% | AG1: Sv% | AH1: PDO | AI1: GF | AJ1: GF60 | AK1: GF% | AM1: Player | AN1: Pos | AO1: Team | AP1: GP | AQ1: TOI | AR1: G | AS1: A1 | AT1: A2 | AU1: A | AV1: P | AW1: P1 | AX1: G60 | AY1: A160 | AZ1: A260 | BA1: A60 | BB1: P60 | BC1: P160 | BD1: iCF | BE1: iCF60 | BF1: iCSh% | BG1: iSF | BH1: iSF60 | BI1: iSh% | BJ1: CF | BK1: CF60 | BL1: CF% | BM1: CSh% | BN1: CSv% | BO1: SF | BP1: SF60 | BQ1: SA60 | BR1: SF% | BS1: Sh% | BT1: Sv% | BU1: PDO | BV1: GF | BW1: GF60 | BX1: GF%
B2: ALEX.OVECHKIN | C2: L | D2: WSH | E2: 79 | F2: 319.66 | G2: 18 | H2: 3 | I2: 1 | J2: 4 | K2: 22 | L2: 21 | M2: 3.38 | N2: 0.56 | O2: 0.19 | P2: 0.75 | Q2: 4.13 | R2: 3.94 | S2: 250 | T2: 46.92 | U2: 128 | V2: 24.03 | W2: 14.06 | X2: 595 | Y2: 111.68 | Z2: 90.7 | AA2: 7.39 | AB2: 91.8 | AC2: 324 | AD2: 60.81 | AE2: 88.28 | AF2: 13.58 | AG2: 88.37 | AH2: 101.95 | AI2: 44 | AJ2: 8.26 | AK2: 89.8 | AM2: OLIVER.EKMAN-LARSSON | AN2: D | AO2: ARI | AP2: 75 | AQ2: 370.93 | AR2: 10 | AS2: 5 | AT2: 8 | AU2: 13 | AV2: 23 | AW2: 15 | AX2: 1.62 | AY2: 0.81 | AZ2: 1.29 | BA2: 2.1 | BB2: 3.72 | BC2: 2.43 | BD2: 191 | BE2: 30.9 | BF2: 5.24 | BG2: 88 | BH2: 14.23 | BI2: 11.36 | BJ2: 605 | BK2: 97.86 | BL2: 88.06 | BM2: 5.79 | BN2: 90.24 | BO2: 316 | BP2: 51.11 | BQ2: 9.71 | BR2: 84.04 | BS2: 11.08 | BT2: 86.67 | BU2: 97.74 | BV2: 35 | BW2: 5.66 | BX2: 81.4
B3: MIKKEL.BOEDKER | C3: L | D3: ARI/COL | E3: 80 | F3: 302.43 | G3: 1 | H3: 7 | I3: 6 | J3: 13 | K3: 14 | L3: 8 | M3: 0.2 | N3: 1.39 | O3: 1.19 | P3: 2.58 | Q3: 2.78 | R3: 1.59 | S3: 100 | T3: 19.84 | U3: 43 | V3: 8.53 | W3: 2.33 | X3: 505 | Y3: 100.19 | Z3: 87.98 | AA3: 4.95 | AB3: 92.75 | AC3: 257 | AD3: 50.99 | AE3: 83.17 | AF3: 9.73 | AG3: 90.38 | AH3: 100.11 | AI3: 25 | AJ3: 4.96 | AK3: 83.33 | AM3: ERIK.KARLSSON | AN3: D | AO3: OTT | AP3: 82 | AQ3: 357.15 | AR3: 1 | AS3: 13 | AT3: 10 | AU3: 23 | AV3: 24 | AW3: 14 | AX3: 0.17 | AY3: 2.18 | AZ3: 1.68 | BA3: 3.86 | BB3: 4.03 | BC3: 2.35 | BD3: 125 | BE3: 21 | BF3: 0.8 | BG3: 56 | BH3: 9.41 | BI3: 1.79 | BJ3: 519 | BK3: 87.19 | BL3: 89.33 | BM3: 5.2 | BN3: 96.77 | BO3: 252 | BP3: 42.34 | BQ3: 6.22 | BR3: 87.2 | BS3: 10.71 | BT3: 94.59 | BU3: 105.31 | BV3: 27 | BW3: 4.54 | BX3: 93.1
B4: CLAUDE.GIROUX | C4: R | D4: PHI | E4: 78 | F4: 282.64 | G4: 4 | H4: 11 | I4: 8 | J4: 19 | K4: 23 | L4: 15 | M4: 0.85 | N4: 2.34 | O4: 1.7 | P4: 4.03 | Q4: 4.88 | R4: 3.18 | S4: 113 | T4: 23.99 | U4: 61 | V4: 12.95 | W4: 6.56 | X4: 576 | Y4: 122.28 | Z4: 91 | AA4: 5.73 | AB4: 89.47 | AC4: 310 | AD4: 65.81 | AE4: 88.83 | AF4: 10.65 | AG4: 84.62 | AH4: 95.26 | AI4: 33 | AJ4: 7.01 | AK4: 84.62 | AM4: P.K..SUBBAN | AN4: D | AO4: MTL | AP4: 68 | AQ4: 313.98 | AR4: 2 | AS4: 7 | AT4: 13 | AU4: 20 | AV4: 22 | AW4: 9 | AX4: 0.38 | AY4: 1.34 | AZ4: 2.48 | BA4: 3.82 | BB4: 4.2 | BC4: 1.72 | BD4: 142 | BE4: 27.14 | BF4: 1.41 | BG4: 60 | BH4: 11.47 | BI4: 3.33 | BJ4: 511 | BK4: 97.65 | BL4: 89.18 | BM4: 6.26 | BN4: 91.94 | BO4: 264 | BP4: 50.45 | BQ4: 8.03 | BR4: 86.27 | BS4: 12.12 | BT4: 88.1 | BU4: 100.22 | BV4: 32 | BW4: 6.12 | BX4: 86.49
B5: JOE.THORNTON | C5: C | D5: S.J | E5: 82 | F5: 281.57 | G5: 8 | H5: 7 | I5: 5 | J5: 12 | K5: 20 | L5: 15 | M5: 1.7 | N5: 1.49 | O5: 1.07 | P5: 2.56 | Q5: 4.26 | R5: 3.2 | S5: 61 | T5: 13 | U5: 35 | V5: 7.46 | W5: 22.86 | X5: 519 | Y5: 110.59 | Z5: 89.33 | AA5: 7.13 | AB5: 91.94 | AC5: 280 | AD5: 59.67 | AE5: 87.23 | AF5: 13.21 | AG5: 87.8 | AH5: 101.02 | AI5: 37 | AJ5: 7.88 | AK5: 88.1 | AM5: BRENT.BURNS | AN5: D | AO5: S.J | AP5: 82 | AQ5: 309.69 | AR5: 7 | AS5: 9 | AT5: 9 | AU5: 18 | AV5: 25 | AW5: 16 | AX5: 1.36 | AY5: 1.74 | AZ5: 1.74 | BA5: 3.49 | BB5: 4.84 | BC5: 3.1 | BD5: 167 | BE5: 32.35 | BF5: 4.19 | BG5: 80 | BH5: 15.5 | BI5: 8.75 | BJ5: 541 | BK5: 104.81 | BL5: 88.11 | BM5: 6.84 | BN5: 91.78 | BO5: 290 | BP5: 56.19 | BQ5: 8.91 | BR5: 86.31 | BS5: 12.76 | BT5: 86.96 | BU5: 99.72 | BV5: 37 | BW5: 7.17 | BX5: 86.05
B6: JOE.PAVELSKI | C6: C | D6: S.J | E6: 82 | F6: 280.3 | G6: 8 | H6: 7 | I6: 5 | J6: 12 | K6: 20 | L6: 15 | M6: 1.71 | N6: 1.5 | O6: 1.07 | P6: 2.57 | Q6: 4.28 | R6: 3.21 | S6: 94 | T6: 20.12 | U6: 59 | V6: 12.63 | W6: 13.56 | X6: 508 | Y6: 108.74 | Z6: 87.74 | AA6: 7.48 | AB6: 92.96 | AC6: 274 | AD6: 58.65 | AE6: 86.16 | AF6: 13.87 | AG6: 88.64 | AH6: 102.5 | AI6: 38 | AJ6: 8.13 | AK6: 88.37 | AM6: RYAN.SUTER | AN6: D | AO6: MIN | AP6: 82 | AQ6: 291.33 | AR6: 2 | AS6: 7 | AT6: 9 | AU6: 16 | AV6: 18 | AW6: 9 | AX6: 0.41 | AY6: 1.44 | AZ6: 1.85 | BA6: 3.3 | BB6: 3.71 | BC6: 1.85 | BD6: 100 | BE6: 20.6 | BF6: 2 | BG6: 39 | BH6: 8.03 | BI6: 5.13 | BJ6: 465 | BK6: 95.77 | BL6: 90.12 | BM6: 6.45 | BN6: 96.08 | BO6: 238 | BP6: 49.02 | BQ6: 7.41 | BR6: 86.86 | BS6: 12.61 | BT6: 94.44 | BU6: 107.05 | BV6: 30 | BW6: 6.18 | BX6: 93.75
B7: BRAYDEN.SCHENN | C7: C | D7: PHI | E7: 80 | F7: 276.41 | G7: 10 | H7: 6 | I7: 5 | J7: 11 | K7: 21 | L7: 16 | M7: 2.17 | N7: 1.3 | O7: 1.09 | P7: 2.39 | Q7: 4.56 | R7: 3.47 | S7: 87 | T7: 18.88 | U7: 50 | V7: 10.85 | W7: 20 | X7: 545 | Y7: 118.3 | Z7: 89.93 | AA7: 6.97 | AB7: 95.08 | AC7: 287 | AD7: 62.3 | AE7: 87.5 | AF7: 13.24 | AG7: 92.68 | AH7: 105.92 | AI7: 38 | AJ7: 8.25 | AK7: 92.68 | AM7: ANDREI.MARKOV | AN7: D | AO7: MTL | AP7: 82 | AQ7: 272.32 | AR7: 4 | AS7: 5 | AT7: 8 | AU7: 13 | AV7: 17 | AW7: 9 | AX7: 0.88 | AY7: 1.1 | AZ7: 1.76 | BA7: 2.86 | BB7: 3.75 | BC7: 1.98 | BD7: 58 | BE7: 12.78 | BF7: 6.9 | BG7: 32 | BH7: 7.05 | BI7: 12.5 | BJ7: 422 | BK7: 92.98 | BL7: 87.37 | BM7: 6.16 | BN7: 91.8 | BO7: 227 | BP7: 50.01 | BQ7: 10.36 | BR7: 82.85 | BS7: 11.45 | BT7: 89.36 | BU7: 100.82 | BV7: 26 | BW7: 5.73 | BX7: 83.87
B8: JOHNNY.GAUDREAU | C8: L | D8: CGY | E8: 79 | F8: 272.17 | G8: 6 | H8: 10 | I8: 4 | J8: 14 | K8: 20 | L8: 16 | M8: 1.32 | N8: 2.2 | O8: 0.88 | P8: 3.09 | Q8: 4.41 | R8: 3.53 | S8: 84 | T8: 18.52 | U8: 52 | V8: 11.46 | W8: 11.54 | X8: 445 | Y8: 98.1 | Z8: 89.18 | AA8: 6.29 | AB8: 98.15 | AC8: 239 | AD8: 52.69 | AE8: 87.23 | AF8: 11.72 | AG8: 97.14 | AH8: 108.86 | AI8: 28 | AJ8: 6.17 | AK8: 96.55 | AM8: DUSTIN.BYFUGLIEN | AN8: D | AO8: WPG | AP8: 81 | AQ8: 271.16 | AR8: 3 | AS8: 7 | AT8: 7 | AU8: 14 | AV8: 17 | AW8: 10 | AX8: 0.66 | AY8: 1.55 | AZ8: 1.55 | BA8: 3.1 | BB8: 3.76 | BC8: 2.21 | BD8: 137 | BE8: 30.31 | BF8: 2.19 | BG8: 62 | BH8: 13.72 | BI8: 4.84 | BJ8: 415 | BK8: 91.83 | BL8: 89.44 | BM8: 6.75 | BN8: 93.88 | BO8: 202 | BP8: 44.7 | BQ8: 7.74 | BR8: 85.23 | BS8: 13.86 | BT8: 91.43 | BU8: 105.29 | BV8: 28 | BW8: 6.2 | BX8: 90.32
B9: WAYNE.SIMMONDS | C9: R | D9: PHI | E9: 81 | F9: 270.94 | G9: 13 | H9: 5 | I9: 3 | J9: 8 | K9: 21 | L9: 18 | M9: 2.88 | N9: 1.11 | O9: 0.66 | P9: 1.77 | Q9: 4.65 | R9: 3.99 | S9: 85 | T9: 18.82 | U9: 51 | V9: 11.29 | W9: 25.49 | X9: 546 | Y9: 120.91 | Z9: 89.8 | AA9: 5.86 | AB9: 90.32 | AC9: 294 | AD9: 65.11 | AE9: 87.76 | AF9: 10.88 | AG9: 85.37 | AH9: 96.25 | AI9: 32 | AJ9: 7.09 | AK9: 84.21 | AM9: KRIS.LETANG | AN9: D | AO9: PIT | AP9: 71 | AQ9: 258 | AR9: 4 | AS9: 7 | AT9: 12 | AU9: 19 | AV9: 23 | AW9: 11 | AX9: 0.93 | AY9: 1.63 | AZ9: 2.79 | BA9: 4.42 | BB9: 5.35 | BC9: 2.56 | BD9: 81 | BE9: 18.84 | BF9: 4.94 | BG9: 46 | BH9: 10.7 | BI9: 8.7 | BJ9: 424 | BK9: 98.6 | BL9: 87.6 | BM9: 7.08 | BN9: 96.67 | BO9: 257 | BP9: 59.77 | BQ9: 9.77 | BR9: 85.95 | BS9: 11.67 | BT9: 95.24 | BU9: 106.91 | BV9: 30 | BW9: 6.98 | BX9: 93.75
B10: SIDNEY.CROSBY | C10: C | D10: PIT | E10: 80 | F10: 270.36 | G10: 9 | H10: 6 | I10: 6 | J10: 12 | K10: 21 | L10: 15 | M10: 2 | N10: 1.33 | O10: 1.33 | P10: 2.66 | Q10: 4.66 | R10: 3.33 | S10: 101 | T10: 22.41 | U10: 55 | V10: 12.21 | W10: 16.36 | X10: 456 | Y10: 101.2 | Z10: 88.2 | AA10: 7.68 | AB10: 96.72 | AC10: 263 | AD10: 58.37 | AE10: 85.95 | AF10: 13.31 | AG10: 95.35 | AH10: 108.66 | AI10: 35 | AJ10: 7.77 | AK10: 94.59 | AM10: DREW.DOUGHTY | AN10: D | AO10: L.A | AP10: 82 | AQ10: 254.6 | AR10: 9 | AS10: 9 | AT10: 5 | AU10: 14 | AV10: 23 | AW10: 18 | AX10: 2.12 | AY10: 2.12 | AZ10: 1.18 | BA10: 3.3 | BB10: 5.42 | BC10: 4.24 | BD10: 120 | BE10: 28.28 | BF10: 7.5 | BG10: 53 | BH10: 12.49 | BI10: 16.98 | BJ10: 466 | BK10: 109.82 | BL10: 92.46 | BM10: 5.58 | BN10: 97.37 | BO10: 239 | BP10: 56.32 | BQ10: 4.95 | BR10: 91.92 | BS10: 10.88 | BT10: 95.24 | BU10: 106.12 | BV10: 26 | BW10: 6.13 | BX10: 96.3
B11: MIKKO.KOIVU | C11: C | D11: MIN | E11: 82 | F11: 269.38 | G11: 8 | H11: 4 | I11: 5 | J11: 9 | K11: 17 | L11: 12 | M11: 1.78 | N11: 0.89 | O11: 1.11 | P11: 2 | Q11: 3.79 | R11: 2.67 | S11: 60 | T11: 13.36 | U11: 31 | V11: 6.9 | W11: 25.81 | X11: 460 | Y11: 102.46 | Z11: 90.2 | AA11: 6.09 | AB11: 96 | AC11: 232 | AD11: 51.67 | AE11: 86.89 | AF11: 12.07 | AG11: 94.29 | AH11: 106.35 | AI11: 28 | AJ11: 6.24 | AK11: 93.33 | AM11: TOREY.KRUG | AN11: D | AO11: BOS | AP11: 81 | AQ11: 253.32 | AR11: 1 | AS11: 11 | AT11: 8 | AU11: 19 | AV11: 20 | AW11: 12 | AX11: 0.24 | AY11: 2.61 | AZ11: 1.89 | BA11: 4.5 | BB11: 4.74 | BC11: 2.84 | BD11: 147 | BE11: 34.82 | BF11: 0.68 | BG11: 65 | BH11: 15.4 | BI11: 1.54 | BJ11: 501 | BK11: 118.66 | BL11: 90.6 | BM11: 5.59 | BN11: 96.15 | BO11: 246 | BP11: 58.27 | BQ11: 8.53 | BR11: 87.23 | BS11: 11.38 | BT11: 94.44 | BU11: 105.83 | BV11: 28 | BW11: 6.63 | BX11: 93.33
B12: PATRICK.MARLEAU | C12: C | D12: S.J | E12: 82 | F12: 267.66 | G12: 8 | H12: 6 | I12: 6 | J12: 12 | K12: 20 | L12: 14 | M12: 1.79 | N12: 1.34 | O12: 1.34 | P12: 2.69 | Q12: 4.48 | R12: 3.14 | S12: 92 | T12: 20.62 | U12: 53 | V12: 11.88 | W12: 15.09 | X12: 497 | Y12: 111.41 | Z12: 89.87 | AA12: 6.84 | AB12: 92.86 | AC12: 272 | AD12: 60.97 | AE12: 88.03 | AF12: 12.5 | AG12: 89.19 | AH12: 101.69 | AI12: 34 | AJ12: 7.62 | AK12: 89.47 | AM12: ROMAN.JOSI | AN12: D | AO12: NSH | AP12: 81 | AQ12: 253.1 | AR12: 5 | AS12: 14 | AT12: 2 | AU12: 16 | AV12: 21 | AW12: 19 | AX12: 1.19 | AY12: 3.32 | AZ12: 0.47 | BA12: 3.79 | BB12: 4.98 | BC12: 4.5 | BD12: 85 | BE12: 20.15 | BF12: 5.88 | BG12: 46 | BH12: 10.9 | BI12: 10.87 | BJ12: 352 | BK12: 83.45 | BL12: 89.11 | BM12: 8.81 | BN12: 95.35 | BO12: 203 | BP12: 48.12 | BQ12: 8.06 | BR12: 85.65 | BS12: 15.27 | BT12: 94.12 | BU12: 109.39 | BV12: 31 | BW12: 7.35 | BX12: 93.94
B13: PHIL.KESSEL | C13: C | D13: PIT | E13: 82 | F13: 264.25 | G13: 4 | H13: 8 | I13: 4 | J13: 12 | K13: 16 | L13: 12 | M13: 0.91 | N13: 1.82 | O13: 0.91 | P13: 2.72 | Q13: 3.63 | R13: 2.72 | S13: 111 | T13: 25.2 | U13: 62 | V13: 14.08 | W13: 6.45 | X13: 450 | Y13: 102.18 | Z13: 88.76 | AA13: 7.56 | AB13: 92.98 | AC13: 266 | AD13: 60.4 | AE13: 87.5 | AF13: 12.78 | AG13: 89.47 | AH13: 102.26 | AI13: 34 | AJ13: 7.72 | AK13: 89.47 | AM13: MARK.GIORDANO | AN13: D | AO13: CGY | AP13: 82 | AQ13: 251.69 | AR13: 9 | AS13: 2 | AT13: 6 | AU13: 8 | AV13: 17 | AW13: 11 | AX13: 2.15 | AY13: 0.48 | AZ13: 1.43 | BA13: 1.91 | BB13: 4.05 | BC13: 2.62 | BD13: 118 | BE13: 28.13 | BF13: 7.63 | BG13: 55 | BH13: 13.11 | BI13: 16.36 | BJ13: 397 | BK13: 94.64 | BL13: 89.41 | BM13: 7.56 | BN13: 93.62 | BO13: 215 | BP13: 51.25 | BQ13: 7.39 | BR13: 87.4 | BS13: 13.95 | BT13: 90.32 | BU13: 104.28 | BV13: 30 | BW13: 7.15 | BX13: 90.91
B14: JAMIE.BENN | C14: L | D14: DAL | E14: 82 | F14: 252.75 | G14: 14 | H14: 5 | I14: 6 | J14: 11 | K14: 25 | L14: 19 | M14: 3.32 | N14: 1.19 | O14: 1.42 | P14: 2.61 | Q14: 5.93 | R14: 4.51 | S14: 92 | T14: 21.84 | U14: 52 | V14: 12.34 | W14: 26.92 | X14: 481 | Y14: 114.18 | Z14: 89.41 | AA14: 8.32 | AB14: 84.21 | AC14: 254 | AD14: 60.3 | AE14: 86.1 | AF14: 15.75 | AG14: 78.05 | AH14: 93.8 | AI14: 40 | AJ14: 9.5 | AK14: 81.63 | AM14: SHEA.WEBER | AN14: D | AO14: NSH | AP14: 78 | AQ14: 244.79 | AR14: 13 | AS14: 4 | AT14: 5 | AU14: 9 | AV14: 22 | AW14: 17 | AX14: 3.19 | AY14: 0.98 | AZ14: 1.23 | BA14: 2.21 | BB14: 5.39 | BC14: 4.17 | BD14: 83 | BE14: 20.34 | BF14: 15.66 | BG14: 48 | BH14: 11.77 | BI14: 27.08 | BJ14: 352 | BK14: 86.28 | BL14: 90.49 | BM14: 8.24 | BN14: 94.59 | BO14: 204 | BP14: 50 | BQ14: 7.11 | BR14: 87.55 | BS14: 14.22 | BT14: 93.1 | BU14: 107.32 | BV14: 29 | BW14: 7.11 | BX14: 93.55
B15: BLAKE.WHEELER | C15: R | D15: WPG | E15: 82 | F15: 252.67 | G15: 3 | H15: 6 | I15: 7 | J15: 13 | K15: 16 | L15: 9 | M15: 0.71 | N15: 1.42 | O15: 1.66 | P15: 3.09 | Q15: 3.8 | R15: 2.14 | S15: 76 | T15: 18.05 | U15: 36 | V15: 8.55 | W15: 8.33 | X15: 399 | Y15: 94.75 | Z15: 89.46 | AA15: 6.27 | AB15: 93.62 | AC15: 198 | AD15: 47.02 | AE15: 86.09 | AF15: 12.63 | AG15: 90.62 | AH15: 103.25 | AI15: 25 | AJ15: 5.94 | AK15: 89.29 | AM15: RASMUS.RISTOLAINEN | AN15: D | AO15: BUF | AP15: 82 | AQ15: 240.41 | AR15: 4 | AS15: 7 | AT15: 10 | AU15: 17 | AV15: 21 | AW15: 11 | AX15: 1 | AY15: 1.75 | AZ15: 2.5 | BA15: 4.24 | BB15: 5.24 | BC15: 2.75 | BD15: 116 | BE15: 28.95 | BF15: 3.45 | BG15: 58 | BH15: 14.48 | BI15: 6.9 | BJ15: 382 | BK15: 95.34 | BL15: 87.82 | BM15: 8.38 | BN15: 94.34 | BO15: 217 | BP15: 54.16 | BQ15: 7.24 | BR15: 88.21 | BS15: 14.75 | BT15: 89.66 | BU15: 104.4 | BV15: 32 | BW15: 7.99 | BX15: 91.43
B16: DANIEL.SEDIN | C16: L | D16: VAN | E16: 82 | F16: 250.94 | G16: 7 | H16: 4 | I16: 3 | J16: 7 | K16: 14 | L16: 11 | M16: 1.67 | N16: 0.96 | O16: 0.72 | P16: 1.67 | Q16: 3.35 | R16: 2.63 | S16: 77 | T16: 18.41 | U16: 52 | V16: 12.43 | W16: 13.46 | X16: 414 | Y16: 98.99 | Z16: 87.53 | AA16: 4.83 | AB16: 96.61 | AC16: 221 | AD16: 52.84 | AE16: 84.03 | AF16: 9.05 | AG16: 95.24 | AH16: 104.29 | AI16: 20 | AJ16: 4.78 | AK16: 90.91 | AM16: SHAYNE.GOSTISBEHERE | AN16: D | AO16: PHI | AP16: 64 | AQ16: 237.38 | AR16: 6 | AS16: 3 | AT16: 8 | AU16: 11 | AV16: 17 | AW16: 9 | AX16: 1.52 | AY16: 0.76 | AZ16: 2.02 | BA16: 2.78 | BB16: 4.3 | BC16: 2.27 | BD16: 122 | BE16: 30.84 | BF16: 4.92 | BG16: 56 | BH16: 14.15 | BI16: 10.71 | BJ16: 452 | BK16: 114.25 | BL16: 89.5 | BM16: 6.64 | BN16: 90.57 | BO16: 245 | BP16: 61.93 | BQ16: 8.59 | BR16: 87.81 | BS16: 12.24 | BT16: 85.29 | BU16: 97.54 | BV16: 30 | BW16: 7.58 | BX16: 85.71
B17: SEAN.MONAHAN | C17: C | D17: CGY | E17: 81 | F17: 249.9 | G17: 7 | H17: 10 | I17: 3 | J17: 13 | K17: 20 | L17: 17 | M17: 1.68 | N17: 2.4 | O17: 0.72 | P17: 3.12 | Q17: 4.8 | R17: 4.08 | S17: 66 | T17: 15.85 | U17: 43 | V17: 10.32 | W17: 16.28 | X17: 407 | Y17: 97.72 | Z17: 88.29 | AA17: 7.62 | AB17: 96.3 | AC17: 220 | AD17: 52.82 | AE17: 86.61 | AF17: 14.09 | AG17: 94.12 | AH17: 108.21 | AI17: 31 | AJ17: 7.44 | AK17: 93.94 | AM17: TYSON.BARRIE | AN17: D | AO17: COL | AP17: 78 | AQ17: 233.06 | AR17: 3 | AS17: 9 | AT17: 7 | AU17: 16 | AV17: 19 | AW17: 12 | AX17: 0.77 | AY17: 2.32 | AZ17: 1.8 | BA17: 4.12 | BB17: 4.89 | BC17: 3.09 | BD17: 79 | BE17: 20.34 | BF17: 3.8 | BG17: 47 | BH17: 12.1 | BI17: 6.38 | BJ17: 331 | BK17: 85.21 | BL17: 88.5 | BM17: 7.55 | BN17: 90.7 | BO17: 189 | BP17: 48.66 | BQ17: 8.5 | BR17: 85.14 | BS17: 13.23 | BT17: 87.88 | BU17: 101.11 | BV17: 25 | BW17: 6.44 | BX17: 86.21
B18: PATRICK.KANE | C18: R | D18: CHI | E18: 82 | F18: 247.09 | G18: 13 | H18: 10 | I18: 7 | J18: 17 | K18: 30 | L18: 23 | M18: 3.16 | N18: 2.43 | O18: 1.7 | P18: 4.13 | Q18: 7.28 | R18: 5.59 | S18: 94 | T18: 22.83 | U18: 59 | V18: 14.33 | W18: 22.03 | X18: 346 | Y18: 84.02 | Z18: 90.58 | AA18: 10.12 | AB18: 94.44 | AC18: 188 | AD18: 45.65 | AE18: 88.26 | AF18: 18.62 | AG18: 92 | AH18: 110.62 | AI18: 35 | AJ18: 8.5 | AK18: 94.59 | AM18: JOHN.KLINGBERG | AN18: D | AO18: DAL | AP18: 76 | AQ18: 231.99 | AR18: 2 | AS18: 6 | AT18: 10 | AU18: 16 | AV18: 18 | AW18: 8 | AX18: 0.52 | AY18: 1.55 | AZ18: 2.59 | BA18: 4.14 | BB18: 4.66 | BC18: 2.07 | BD18: 67 | BE18: 17.33 | BF18: 2.99 | BG18: 29 | BH18: 7.5 | BI18: 6.9 | BJ18: 410 | BK18: 106.04 | BL18: 87.98 | BM18: 7.8 | BN18: 82.14 | BO18: 216 | BP18: 55.86 | BQ18: 10.86 | BR18: 83.72 | BS18: 14.81 | BT18: 76.19 | BU18: 91.01 | BV18: 32 | BW18: 8.28 | BX18: 76.19
B19: STEVEN.STAMKOS | C19: C | D19: T.B | E19: 77 | F19: 243.89 | G19: 10 | H19: 1 | I19: 3 | J19: 4 | K19: 14 | L19: 11 | M19: 2.46 | N19: 0.25 | O19: 0.74 | P19: 0.98 | Q19: 3.44 | R19: 2.71 | S19: 121 | T19: 29.77 | U19: 66 | V19: 16.24 | W19: 15.15 | X19: 340 | Y19: 83.64 | Z19: 86.73 | AA19: 5.88 | AB19: 88.46 | AC19: 176 | AD19: 43.3 | AE19: 83.41 | AF19: 11.36 | AG19: 82.86 | AH19: 94.22 | AI19: 20 | AJ19: 4.92 | AK19: 76.92 | AM19: NICK.LEDDY | AN19: D | AO19: NYI | AP19: 81 | AQ19: 226.45 | AR19: 3 | AS19: 9 | AT19: 7 | AU19: 16 | AV19: 19 | AW19: 12 | AX19: 0.79 | AY19: 2.38 | AZ19: 1.85 | BA19: 4.24 | BB19: 5.03 | BC19: 3.18 | BD19: 70 | BE19: 18.55 | BF19: 4.29 | BG19: 28 | BH19: 7.42 | BI19: 10.71 | BJ19: 365 | BK19: 96.71 | BL19: 91.25 | BM19: 7.4 | BN19: 91.43 | BO19: 197 | BP19: 52.2 | BQ19: 6.36 | BR19: 89.14 | BS19: 13.71 | BT19: 87.5 | BU19: 101.21 | BV19: 27 | BW19: 7.15 | BX19: 90
B20: HENRIK.ZETTERBERG | C20: L | D20: DET | E20: 82 | F20: 242.62 | G20: 0 | H20: 9 | I20: 10 | J20: 19 | K20: 19 | L20: 9 | M20: 0 | N20: 2.23 | O20: 2.47 | P20: 4.7 | Q20: 4.7 | R20: 2.23 | S20: 99 | T20: 24.48 | U20: 41 | V20: 10.14 | W20: 0 | X20: 383 | Y20: 94.72 | Z20: 89.91 | AA20: 7.05 | AB20: 100 | AC20: 197 | AD20: 48.72 | AE20: 86.78 | AF20: 13.71 | AG20: 100 | AH20: 113.71 | AI20: 27 | AJ20: 6.68 | AK20: 100 | AM20: BRENT.SEABROOK | AN20: D | AO20: CHI | AP20: 81 | AQ20: 222.06 | AR20: 5 | AS20: 7 | AT20: 8 | AU20: 15 | AV20: 20 | AW20: 12 | AX20: 1.35 | AY20: 1.89 | AZ20: 2.16 | BA20: 4.05 | BB20: 5.4 | BC20: 3.24 | BD20: 95 | BE20: 25.67 | BF20: 5.26 | BG20: 48 | BH20: 12.97 | BI20: 10.42 | BJ20: 301 | BK20: 81.33 | BL20: 90.66 | BM20: 9.97 | BN20: 100 | BO20: 160 | BP20: 43.23 | BQ20: 5.13 | BR20: 89.39 | BS20: 18.75 | BT20: 100 | BU20: 118.75 | BV20: 30 | BW20: 8.11 | BX20: 100
B21: MAX.DOMI | C21: C | D21: ARI | E21: 81 | F21: 240.12 | G21: 3 | H21: 9 | I21: 3 | J21: 12 | K21: 15 | L21: 12 | M21: 0.75 | N21: 2.25 | O21: 0.75 | P21: 3 | Q21: 3.75 | R21: 3 | S21: 67 | T21: 16.74 | U21: 39 | V21: 9.75 | W21: 7.69 | X21: 390 | Y21: 97.45 | Z21: 88.84 | AA21: 6.92 | AB21: 91.84 | AC21: 210 | AD21: 52.47 | AE21: 84.34 | AF21: 12.86 | AG21: 89.74 | AH21: 102.6 | AI21: 27 | AJ21: 6.75 | AK21: 87.1 | AM21: AARON.EKBLAD | AN21: D | AO21: FLA | AP21: 78 | AQ21: 220.95 | AR21: 2 | AS21: 2 | AT21: 3 | AU21: 5 | AV21: 7 | AW21: 4 | AX21: 0.54 | AY21: 0.54 | AZ21: 0.81 | BA21: 1.36 | BB21: 1.9 | BC21: 1.09 | BD21: 73 | BE21: 19.82 | BF21: 2.74 | BG21: 34 | BH21: 9.23 | BI21: 5.88 | BJ21: 294 | BK21: 79.84 | BL21: 88.29 | BM21: 5.44 | BN21: 92.31 | BO21: 159 | BP21: 43.18 | BQ21: 6.52 | BR21: 86.89 | BS21: 10.06 | BT21: 87.5 | BU21: 97.56 | BV21: 16 | BW21: 4.34 | BX21: 84.21
B22: JAKUB.VORACEK | C22: R | D22: PHI | E22: 73 | F22: 239.81 | G22: 1 | H22: 9 | I22: 8 | J22: 17 | K22: 18 | L22: 10 | M22: 0.25 | N22: 2.25 | O22: 2 | P22: 4.25 | Q22: 4.5 | R22: 2.5 | S22: 128 | T22: 32.03 | U22: 71 | V22: 17.76 | W22: 1.41 | X22: 491 | Y22: 122.85 | Z22: 89.76 | AA22: 5.91 | AB22: 92.86 | AC22: 266 | AD22: 66.55 | AE22: 86.93 | AF22: 10.9 | AG22: 90 | AH22: 100.9 | AI22: 29 | AJ22: 7.26 | AK22: 87.88 | AM22: BRIAN.CAMPBELL | AN22: D | AO22: FLA | AP22: 82 | AQ22: 217.54 | AR22: 0 | AS22: 4 | AT22: 4 | AU22: 8 | AV22: 8 | AW22: 4 | AX22: 0 | AY22: 1.1 | AZ22: 1.1 | BA22: 2.21 | BB22: 2.21 | BC22: 1.1 | BD22: 45 | BE22: 12.41 | BF22: 0 | BG22: 21 | BH22: 5.79 | BI22: 0 | BJ22: 294 | BK22: 81.09 | BL22: 85.96 | BM22: 6.12 | BN22: 97.92 | BO22: 165 | BP22: 45.51 | BQ22: 8.83 | BR22: 83.76 | BS22: 10.91 | BT22: 96.88 | BU22: 107.78 | BV22: 18 | BW22: 4.96 | BX22: 94.74
B23: NIKITA.KUCHEROV | C23: R | D23: T.B | E23: 77 | F23: 239.38 | G23: 5 | H23: 9 | I23: 4 | J23: 13 | K23: 18 | L23: 14 | M23: 1.25 | N23: 2.26 | O23: 1 | P23: 3.26 | Q23: 4.51 | R23: 3.51 | S23: 91 | T23: 22.81 | U23: 49 | V23: 12.28 | W23: 10.2 | X23: 348 | Y23: 87.23 | Z23: 87.66 | AA23: 6.61 | AB23: 89.8 | AC23: 179 | AD23: 44.87 | AE23: 84.43 | AF23: 12.85 | AG23: 84.85 | AH23: 97.7 | AI23: 23 | AJ23: 5.76 | AK23: 82.14 | AM23: RYAN.MURRAY | AN23: D | AO23: CBJ | AP23: 82 | AQ23: 215.82 | AR23: 1 | AS23: 4 | AT23: 6 | AU23: 10 | AV23: 11 | AW23: 5 | AX23: 0.28 | AY23: 1.11 | AZ23: 1.67 | BA23: 2.78 | BB23: 3.06 | BC23: 1.39 | BD23: 56 | BE23: 15.57 | BF23: 1.79 | BG23: 27 | BH23: 7.51 | BI23: 3.7 | BJ23: 308 | BK23: 85.63 | BL23: 85.56 | BM23: 7.79 | BN23: 92.31 | BO23: 179 | BP23: 49.76 | BQ23: 10.56 | BR23: 82.49 | BS23: 13.41 | BT23: 89.47 | BU23: 102.88 | BV23: 24 | BW23: 6.67 | BX23: 85.71
B24: MAX.PACIORETTY | C24: L | D24: MTL | E24: 82 | F24: 236.17 | G24: 7 | H24: 7 | I24: 1 | J24: 8 | K24: 15 | L24: 14 | M24: 1.78 | N24: 1.78 | O24: 0.25 | P24: 2.03 | Q24: 3.81 | R24: 3.56 | S24: 92 | T24: 23.37 | U24: 46 | V24: 11.69 | W24: 15.22 | X24: 375 | Y24: 95.27 | Z24: 87.01 | AA24: 6.13 | AB24: 85.71 | AC24: 186 | AD24: 47.25 | AE24: 81.22 | AF24: 12.37 | AG24: 81.4 | AH24: 93.76 | AI24: 23 | AJ24: 5.84 | AK24: 74.19 | AM24: KEITH.YANDLE | AN24: D | AO24: NYR | AP24: 82 | AQ24: 214.24 | AR24: 2 | AS24: 11 | AT24: 8 | AU24: 19 | AV24: 21 | AW24: 13 | AX24: 0.56 | AY24: 3.08 | AZ24: 2.24 | BA24: 5.32 | BB24: 5.88 | BC24: 3.64 | BD24: 100 | BE24: 28.01 | BF24: 2 | BG24: 50 | BH24: 14 | BI24: 4 | BJ24: 354 | BK24: 99.14 | BL24: 88.28 | BM24: 6.5 | BN24: 95.74 | BO24: 188 | BP24: 52.65 | BQ24: 8.68 | BR24: 85.84 | BS24: 12.23 | BT24: 93.55 | BU24: 105.78 | BV24: 23 | BW24: 6.44 | BX24: 92
B25: ANTHONY.DUCLAIR | C25: L | D25: ARI | E25: 81 | F25: 235.62 | G25: 8 | H25: 2 | I25: 2 | J25: 4 | K25: 12 | L25: 10 | M25: 2.04 | N25: 0.51 | O25: 0.51 | P25: 1.02 | Q25: 3.06 | R25: 2.55 | S25: 55 | T25: 14.01 | U25: 35 | V25: 8.91 | W25: 22.86 | X25: 378 | Y25: 96.26 | Z25: 87.91 | AA25: 5.56 | AB25: 92.31 | AC25: 195 | AD25: 49.66 | AE25: 83.33 | AF25: 10.77 | AG25: 89.74 | AH25: 100.51 | AI25: 21 | AJ25: 5.35 | AK25: 84 | AM25: ANTON.STRALMAN | AN25: D | AO25: T.B | AP25: 73 | AQ25: 209.8 | AR25: 1 | AS25: 5 | AT25: 6 | AU25: 11 | AV25: 12 | AW25: 6 | AX25: 0.29 | AY25: 1.43 | AZ25: 1.72 | BA25: 3.15 | BB25: 3.43 | BC25: 1.72 | BD25: 34 | BE25: 9.72 | BF25: 2.94 | BG25: 16 | BH25: 4.58 | BI25: 6.25 | BJ25: 265 | BK25: 75.79 | BL25: 85.48 | BM25: 7.55 | BN25: 91.11 | BO25: 141 | BP25: 40.32 | BQ25: 8.87 | BR25: 81.98 | BS25: 14.18 | BT25: 87.1 | BU25: 101.28 | BV25: 20 | BW25: 5.72 | BX25: 83.33
B26: JOHN.TAVARES | C26: C | D26: NYI | E26: 78 | F26: 234.48 | G26: 5 | H26: 9 | I26: 3 | J26: 12 | K26: 17 | L26: 14 | M26: 1.28 | N26: 2.3 | O26: 0.77 | P26: 3.07 | Q26: 4.35 | R26: 3.58 | S26: 109 | T26: 27.89 | U26: 61 | V26: 15.61 | W26: 8.2 | X26: 399 | Y26: 102.1 | Z26: 91.3 | AA26: 7.52 | AB26: 94.74 | AC26: 208 | AD26: 53.22 | AE26: 88.51 | AF26: 14.42 | AG26: 92.59 | AH26: 107.02 | AI26: 30 | AJ26: 7.68 | AK26: 93.75 | AM26: MICHAEL.STONE | AN26: D | AO26: ARI | AP26: 75 | AQ26: 207.08 | AR26: 0 | AS26: 4 | AT26: 4 | AU26: 8 | AV26: 8 | AW26: 4 | AX26: 0 | AY26: 1.16 | AZ26: 1.16 | BA26: 2.32 | BB26: 2.32 | BC26: 1.16 | BD26: 80 | BE26: 23.18 | BF26: 0 | BG26: 41 | BH26: 11.88 | BI26: 0 | BJ26: 302 | BK26: 87.5 | BL26: 88.82 | BM26: 5.63 | BN26: 86.84 | BO26: 168 | BP26: 48.68 | BQ26: 8.98 | BR26: 84.42 | BS26: 10.12 | BT26: 83.87 | BU26: 93.99 | BV26: 17 | BW26: 4.93 | BX26: 77.27
B27: JUSTIN.ABDELKADER | C27: L | D27: DET | E27: 82 | F27: 233.38 | G27: 6 | H27: 4 | I27: 1 | J27: 5 | K27: 11 | L27: 10 | M27: 1.54 | N27: 1.03 | O27: 0.26 | P27: 1.29 | Q27: 2.83 | R27: 2.57 | S27: 47 | T27: 12.08 | U27: 31 | V27: 7.97 | W27: 19.35 | X27: 372 | Y27: 95.64 | Z27: 89.64 | AA27: 6.72 | AB27: 95.35 | AC27: 189 | AD27: 48.59 | AE27: 86.3 | AF27: 13.23 | AG27: 93.33 | AH27: 106.56 | AI27: 25 | AJ27: 6.43 | AK27: 92.59 | AM27: SETH.JONES | AN27: D | AO27: CBJ/NSH | AP27: 81 | AQ27: 206.53 | AR27: 1 | AS27: 1 | AT27: 7 | AU27: 8 | AV27: 9 | AW27: 2 | AX27: 0.29 | AY27: 0.29 | AZ27: 2.03 | BA27: 2.32 | BB27: 2.61 | BC27: 0.58 | BD27: 43 | BE27: 12.49 | BF27: 2.33 | BG27: 21 | BH27: 6.1 | BI27: 4.76 | BJ27: 253 | BK27: 73.5 | BL27: 86.64 | BM27: 4.74 | BN27: 94.87 | BO27: 147 | BP27: 42.71 | BQ27: 7.26 | BR27: 85.47 | BS27: 8.16 | BT27: 92 | BU27: 100.16 | BV27: 12 | BW27: 3.49 | BX27: 85.71
B28: PATRIC.HORNQVIST | C28: R | D28: PIT | E28: 82 | F28: 232.93 | G28: 9 | H28: 3 | I28: 3 | J28: 6 | K28: 15 | L28: 12 | M28: 2.32 | N28: 0.77 | O28: 0.77 | P28: 1.55 | Q28: 3.86 | R28: 3.09 | S28: 61 | T28: 15.71 | U28: 43 | V28: 11.08 | W28: 20.93 | X28: 402 | Y28: 103.55 | Z28: 89.53 | AA28: 7.71 | AB28: 97.87 | AC28: 227 | AD28: 58.47 | AE28: 86.64 | AF28: 13.66 | AG28: 97.14 | AH28: 110.8 | AI28: 31 | AJ28: 7.99 | AK28: 96.88 | AM28: MIKE.GREEN | AN28: D | AO28: DET | AP28: 74 | AQ28: 201.72 | AR28: 3 | AS28: 5 | AT28: 8 | AU28: 13 | AV28: 16 | AW28: 8 | AX28: 0.89 | AY28: 1.49 | AZ28: 2.38 | BA28: 3.87 | BB28: 4.76 | BC28: 2.38 | BD28: 72 | BE28: 21.42 | BF28: 4.17 | BG28: 28 | BH28: 8.33 | BI28: 10.71 | BJ28: 309 | BK28: 91.91 | BL28: 89.05 | BM28: 7.44 | BN28: 100 | BO28: 158 | BP28: 47 | BQ28: 7.14 | BR28: 86.81 | BS28: 14.56 | BT28: 100 | BU28: 114.56 | BV28: 23 | BW28: 6.84 | BX28: 100
B29: TAYLOR.HALL | C29: L | D29: EDM | E29: 82 | F29: 230.47 | G29: 4 | H29: 4 | I29: 4 | J29: 8 | K29: 12 | L29: 8 | M29: 1.04 | N29: 1.04 | O29: 1.04 | P29: 2.08 | Q29: 3.12 | R29: 2.08 | S29: 73 | T29: 19 | U29: 44 | V29: 11.45 | W29: 9.09 | X29: 341 | Y29: 88.78 | Z29: 86.77 | AA29: 5.28 | AB29: 96.15 | AC29: 187 | AD29: 48.68 | AE29: 82.74 | AF29: 9.63 | AG29: 94.87 | AH29: 104.5 | AI29: 18 | AJ29: 4.69 | AK29: 90 | AM29: MATT.NISKANEN | AN29: D | AO29: WSH | AP29: 82 | AQ29: 201.49 | AR29: 1 | AS29: 5 | AT29: 9 | AU29: 14 | AV29: 15 | AW29: 6 | AX29: 0.3 | AY29: 1.49 | AZ29: 2.68 | BA29: 4.17 | BB29: 4.47 | BC29: 1.79 | BD29: 63 | BE29: 18.76 | BF29: 1.59 | BG29: 21 | BH29: 6.25 | BI29: 4.76 | BJ29: 311 | BK29: 92.61 | BL29: 87.36 | BM29: 8.04 | BN29: 97.78 | BO29: 159 | BP29: 47.35 | BQ29: 8.04 | BR29: 85.48 | BS29: 15.72 | BT29: 96.3 | BU29: 112.02 | BV29: 25 | BW29: 7.44 | BX29: 96.15
B30: TYLER.SEGUIN | C30: C | D30: DAL | E30: 72 | F30: 228 | G30: 5 | H30: 9 | I30: 7 | J30: 16 | K30: 21 | L30: 14 | M30: 1.32 | N30: 2.37 | O30: 1.84 | P30: 4.21 | Q30: 5.53 | R30: 3.68 | S30: 162 | T30: 42.63 | U30: 86 | V30: 22.63 | W30: 5.81 | X30: 429 | Y30: 112.89 | Z30: 90.13 | AA30: 7.93 | AB30: 85.11 | AC30: 233 | AD30: 61.32 | AE30: 86.94 | AF30: 14.59 | AG30: 80 | AH30: 94.59 | AI30: 34 | AJ30: 8.95 | AK30: 82.93 | AM30: VICTOR.HEDMAN | AN30: D | AO30: T.B | AP30: 78 | AQ30: 201.45 | AR30: 1 | AS30: 6 | AT30: 2 | AU30: 8 | AV30: 9 | AW30: 7 | AX30: 0.3 | AY30: 1.79 | AZ30: 0.6 | BA30: 2.38 | BB30: 2.68 | BC30: 2.08 | BD30: 75 | BE30: 22.34 | BF30: 1.33 | BG30: 28 | BH30: 8.34 | BI30: 3.57 | BJ30: 290 | BK30: 86.37 | BL30: 90.34 | BM30: 3.79 | BN30: 93.55 | BO30: 142 | BP30: 42.29 | BQ30: 5.66 | BR30: 88.2 | BS30: 7.75 | BT30: 89.47 | BU30: 97.22 | BV30: 11 | BW30: 3.28 | BX30: 84.62
B31: LOUI.ERIKSSON | C31: L | D31: BOS | E31: 82 | F31: 227.98 | G31: 10 | H31: 3 | I31: 2 | J31: 5 | K31: 15 | L31: 13 | M31: 2.63 | N31: 0.79 | O31: 0.53 | P31: 1.32 | Q31: 3.95 | R31: 3.42 | S31: 55 | T31: 14.47 | U31: 36 | V31: 9.47 | W31: 27.78 | X31: 479 | Y31: 126.06 | Z31: 91.59 | AA31: 6.05 | AB31: 95.45 | AC31: 237 | AD31: 62.37 | AE31: 88.43 | AF31: 12.24 | AG31: 93.55 | AH31: 105.78 | AI31: 29 | AJ31: 7.63 | AK31: 93.55 | AM31: DION.PHANEUF | AN31: D | AO31: OTT/TOR | AP31: 71 | AQ31: 199.18 | AR31: 0 | AS31: 4 | AT31: 5 | AU31: 9 | AV31: 9 | AW31: 4 | AX31: 0 | AY31: 1.2 | AZ31: 1.51 | BA31: 2.71 | BB31: 2.71 | BC31: 1.2 | BD31: 89 | BE31: 26.81 | BF31: 0 | BG31: 23 | BH31: 6.93 | BI31: 0 | BJ31: 315 | BK31: 94.89 | BL31: 90 | BM31: 4.13 | BN31: 94.29 | BO31: 149 | BP31: 44.88 | BQ31: 6.63 | BR31: 87.13 | BS31: 8.72 | BT31: 90.91 | BU31: 99.63 | BV31: 13 | BW31: 3.92 | BX31: 86.67
B32: T.J..OSHIE | C32: C | D32: WSH | E32: 80 | F32: 227.88 | G32: 9 | H32: 2 | I32: 4 | J32: 6 | K32: 15 | L32: 11 | M32: 2.37 | N32: 0.53 | O32: 1.05 | P32: 1.58 | Q32: 3.95 | R32: 2.9 | S32: 68 | T32: 17.9 | U32: 37 | V32: 9.74 | W32: 24.32 | X32: 428 | Y32: 112.69 | Z32: 90.11 | AA32: 7.48 | AB32: 93.62 | AC32: 223 | AD32: 58.72 | AE32: 87.45 | AF32: 14.35 | AG32: 90.62 | AH32: 104.97 | AI32: 32 | AJ32: 8.43 | AK32: 91.43 | AM32: JUSTIN.FAULK | AN32: D | AO32: CAR | AP32: 64 | AQ32: 197.23 | AR32: 10 | AS32: 1 | AT32: 2 | AU32: 3 | AV32: 13 | AW32: 11 | AX32: 3.04 | AY32: 0.3 | AZ32: 0.61 | BA32: 0.91 | BB32: 3.95 | BC32: 3.35 | BD32: 134 | BE32: 40.76 | BF32: 7.46 | BG32: 67 | BH32: 20.38 | BI32: 14.93 | BJ32: 323 | BK32: 98.26 | BL32: 90.48 | BM32: 5.57 | BN32: 91.18 | BO32: 170 | BP32: 51.72 | BQ32: 7.91 | BR32: 86.73 | BS32: 10.59 | BT32: 88.46 | BU32: 99.05 | BV32: 18 | BW32: 5.48 | BX32: 85.71
B33: COREY.PERRY | C33: R | D33: ANA | E33: 82 | F33: 227.47 | G33: 10 | H33: 9 | I33: 3 | J33: 12 | K33: 22 | L33: 19 | M33: 2.64 | N33: 2.37 | O33: 0.79 | P33: 3.17 | Q33: 5.8 | R33: 5.01 | S33: 65 | T33: 17.15 | U33: 40 | V33: 10.55 | W33: 25 | X33: 426 | Y33: 112.37 | Z33: 92.21 | AA33: 7.51 | AB33: 91.67 | AC33: 218 | AD33: 57.5 | AE33: 90.83 | AF33: 14.68 | AG33: 86.36 | AH33: 101.04 | AI33: 32 | AJ33: 8.44 | AK33: 91.43 | AM33: DOUGIE.HAMILTON | AN33: D | AO33: CGY | AP33: 82 | AQ33: 196.75 | AR33: 5 | AS33: 5 | AT33: 5 | AU33: 10 | AV33: 15 | AW33: 10 | AX33: 1.52 | AY33: 1.52 | AZ33: 1.52 | BA33: 3.05 | BB33: 4.57 | BC33: 3.05 | BD33: 104 | BE33: 31.72 | BF33: 4.81 | BG33: 49 | BH33: 14.94 | BI33: 10.2 | BJ33: 349 | BK33: 106.43 | BL33: 89.49 | BM33: 6.88 | BN33: 97.56 | BO33: 196 | BP33: 59.77 | BQ33: 7.93 | BR33: 88.29 | BS33: 12.24 | BT33: 96.15 | BU33: 108.4 | BV33: 24 | BW33: 7.32 | BX33: 96
B34: KYLE.OKPOSO | C34: R | D34: NYI | E34: 79 | F34: 226.76 | G34: 6 | H34: 4 | I34: 9 | J34: 13 | K34: 19 | L34: 10 | M34: 1.59 | N34: 1.06 | O34: 2.38 | P34: 3.44 | Q34: 5.03 | R34: 2.65 | S34: 80 | T34: 21.17 | U34: 41 | V34: 10.85 | W34: 14.63 | X34: 386 | Y34: 102.13 | Z34: 91.04 | AA34: 7.51 | AB34: 94.74 | AC34: 208 | AD34: 55.04 | AE34: 88.89 | AF34: 13.94 | AG34: 92.31 | AH34: 106.25 | AI34: 29 | AJ34: 7.67 | AK34: 93.55 | AM34: CAM.FOWLER | AN34: D | AO34: ANA | AP34: 69 | AQ34: 196.22 | AR34: 3 | AS34: 5 | AT34: 6 | AU34: 11 | AV34: 14 | AW34: 8 | AX34: 0.92 | AY34: 1.53 | AZ34: 1.83 | BA34: 3.36 | BB34: 4.28 | BC34: 2.45 | BD34: 88 | BE34: 26.91 | BF34: 3.41 | BG34: 40 | BH34: 12.23 | BI34: 7.5 | BJ34: 348 | BK34: 106.41 | BL34: 90.39 | BM34: 7.47 | BN34: 97.3 | BO34: 170 | BP34: 51.98 | BQ34: 6.73 | BR34: 88.54 | BS34: 15.29 | BT34: 95.45 | BU34: 110.75 | BV34: 26 | BW34: 7.95 | BX34: 96.3
B35: JAMES.NEAL | C35: L | D35: NSH | E35: 82 | F35: 226.46 | G35: 4 | H35: 7 | I35: 3 | J35: 10 | K35: 14 | L35: 11 | M35: 1.06 | N35: 1.85 | O35: 0.79 | P35: 2.65 | Q35: 3.71 | R35: 2.91 | S35: 73 | T35: 19.34 | U35: 45 | V35: 11.92 | W35: 8.89 | X35: 340 | Y35: 90.08 | Z35: 90.67 | AA35: 8.53 | AB35: 94.29 | AC35: 194 | AD35: 51.4 | AE35: 87 | AF35: 14.95 | AG35: 93.1 | AH35: 108.05 | AI35: 29 | AJ35: 7.68 | AK35: 93.55 | AM35: SAMI.VATANEN | AN35: D | AO35: ANA | AP35: 71 | AQ35: 196.13 | AR35: 4 | AS35: 4 | AT35: 9 | AU35: 13 | AV35: 17 | AW35: 8 | AX35: 1.22 | AY35: 1.22 | AZ35: 2.75 | BA35: 3.98 | BB35: 5.2 | BC35: 2.45 | BD35: 95 | BE35: 29.06 | BF35: 4.21 | BG35: 43 | BH35: 13.15 | BI35: 9.3 | BJ35: 367 | BK35: 112.27 | BL35: 91.98 | BM35: 6.81 | BN35: 100 | BO35: 186 | BP35: 56.9 | BQ35: 5.51 | BR35: 91.18 | BS35: 13.44 | BT35: 100 | BU35: 113.44 | BV35: 25 | BW35: 7.65 | BX35: 100
B36: ZACH.PARISE | C36: L | D36: MIN | E36: 70 | F36: 226.33 | G36: 7 | H36: 4 | I36: 5 | J36: 9 | K36: 16 | L36: 11 | M36: 1.86 | N36: 1.06 | O36: 1.33 | P36: 2.39 | Q36: 4.24 | R36: 2.92 | S36: 109 | T36: 28.9 | U36: 60 | V36: 15.91 | W36: 11.67 | X36: 394 | Y36: 104.45 | Z36: 90.78 | AA36: 5.58 | AB36: 97.5 | AC36: 199 | AD36: 52.75 | AE36: 87.67 | AF36: 11.06 | AG36: 96.43 | AH36: 107.48 | AI36: 22 | AJ36: 5.83 | AK36: 95.65 | AM36: KEVIN.SHATTENKIRK | AN36: D | AO36: STL | AP36: 72 | AQ36: 195.24 | AR36: 5 | AS36: 11 | AT36: 9 | AU36: 20 | AV36: 25 | AW36: 16 | AX36: 1.54 | AY36: 3.38 | AZ36: 2.77 | BA36: 6.15 | BB36: 7.68 | BC36: 4.92 | BD36: 80 | BE36: 24.59 | BF36: 6.25 | BG36: 38 | BH36: 11.68 | BI36: 13.16 | BJ36: 286 | BK36: 87.89 | BL36: 88 | BM36: 11.19 | BN36: 97.44 | BO36: 151 | BP36: 46.4 | BQ36: 9.53 | BR36: 82.97 | BS36: 21.19 | BT36: 96.77 | BU36: 117.97 | BV36: 32 | BW36: 9.83 | BX36: 96.97
B37: BOBBY.RYAN | C37: R | D37: OTT | E37: 81 | F37: 225.18 | G37: 6 | H37: 4 | I37: 5 | J37: 9 | K37: 15 | L37: 10 | M37: 1.6 | N37: 1.07 | O37: 1.33 | P37: 2.4 | Q37: 4 | R37: 2.66 | S37: 74 | T37: 19.72 | U37: 35 | V37: 9.33 | W37: 17.14 | X37: 341 | Y37: 90.86 | Z37: 89.27 | AA37: 5.57 | AB37: 95.12 | AC37: 160 | AD37: 42.63 | AE37: 86.96 | AF37: 11.88 | AG37: 91.67 | AH37: 103.54 | AI37: 19 | AJ37: 5.06 | AK37: 90.48 | AM37: JAKE.MUZZIN | AN37: D | AO37: L.A | AP37: 82 | AQ37: 194.65 | AR37: 1 | AS37: 7 | AT37: 5 | AU37: 12 | AV37: 13 | AW37: 8 | AX37: 0.31 | AY37: 2.16 | AZ37: 1.54 | BA37: 3.7 | BB37: 4.01 | BC37: 2.47 | BD37: 89 | BE37: 27.43 | BF37: 1.12 | BG37: 39 | BH37: 12.02 | BI37: 2.56 | BJ37: 385 | BK37: 118.67 | BL37: 94.13 | BM37: 4.94 | BN37: 95.83 | BO37: 204 | BP37: 62.88 | BQ37: 3.39 | BR37: 94.88 | BS37: 9.31 | BT37: 90.91 | BU37: 100.22 | BV37: 19 | BW37: 5.86 | BX37: 95
B38: HENRIK.SEDIN | C38: C | D38: VAN | E38: 74 | F38: 225.03 | G38: 3 | H38: 8 | I38: 2 | J38: 10 | K38: 13 | L38: 11 | M38: 0.8 | N38: 2.13 | O38: 0.53 | P38: 2.67 | Q38: 3.47 | R38: 2.93 | S38: 39 | T38: 10.4 | U38: 24 | V38: 6.4 | W38: 12.5 | X38: 382 | Y38: 101.85 | Z38: 87.02 | AA38: 4.97 | AB38: 92.98 | AC38: 200 | AD38: 53.33 | AE38: 82.64 | AF38: 9.5 | AG38: 90.48 | AH38: 99.98 | AI38: 19 | AJ38: 5.07 | AK38: 82.61 | AM38: ANDREJ.SEKERA | AN38: D | AO38: EDM | AP38: 81 | AQ38: 192.6 | AR38: 2 | AS38: 7 | AT38: 4 | AU38: 11 | AV38: 13 | AW38: 9 | AX38: 0.62 | AY38: 2.18 | AZ38: 1.25 | BA38: 3.43 | BB38: 4.05 | BC38: 2.8 | BD38: 108 | BE38: 33.64 | BF38: 1.85 | BG38: 44 | BH38: 13.71 | BI38: 4.55 | BJ38: 314 | BK38: 97.82 | BL38: 89.71 | BM38: 7.01 | BN38: 97.22 | BO38: 167 | BP38: 52.02 | BQ38: 8.1 | BR38: 86.53 | BS38: 13.17 | BT38: 96.15 | BU38: 109.33 | BV38: 22 | BW38: 6.85 | BX38: 95.65
B39: MIKE.RIBEIRO | C39: C | D39: NSH | E39: 81 | F39: 224.97 | G39: 1 | H39: 3 | I39: 7 | J39: 10 | K39: 11 | L39: 4 | M39: 0.27 | N39: 0.8 | O39: 1.87 | P39: 2.67 | Q39: 2.93 | R39: 1.07 | S39: 14 | T39: 3.73 | U39: 9 | V39: 2.4 | W39: 11.11 | X39: 294 | Y39: 78.41 | Z39: 87.76 | AA39: 6.8 | AB39: 97.56 | AC39: 186 | AD39: 49.61 | AE39: 86.92 | AF39: 10.75 | AG39: 96.43 | AH39: 107.18 | AI39: 20 | AJ39: 5.33 | AK39: 95.24 | AM39: JAKE.GARDINER | AN39: D | AO39: TOR | AP39: 79 | AQ39: 186.1 | AR39: 0 | AS39: 4 | AT39: 5 | AU39: 9 | AV39: 9 | AW39: 4 | AX39: 0 | AY39: 1.29 | AZ39: 1.61 | BA39: 2.9 | BB39: 2.9 | BC39: 1.29 | BD39: 59 | BE39: 19.02 | BF39: 0 | BG39: 17 | BH39: 5.48 | BI39: 0 | BJ39: 309 | BK39: 99.62 | BL39: 90.35 | BM39: 4.53 | BN39: 93.94 | BO39: 136 | BP39: 43.85 | BQ39: 5.8 | BR39: 88.31 | BS39: 10.29 | BT39: 88.89 | BU39: 99.18 | BV39: 14 | BW39: 4.51 | BX39: 87.5
B40: JACK.EICHEL | C40: C | D40: BUF | E40: 81 | F40: 224.67 | G40: 7 | H40: 9 | I40: 4 | J40: 13 | K40: 20 | L40: 16 | M40: 1.87 | N40: 2.4 | O40: 1.07 | P40: 3.47 | Q40: 5.34 | R40: 4.27 | S40: 80 | T40: 21.36 | U40: 39 | V40: 10.42 | W40: 17.95 | X40: 369 | Y40: 98.54 | Z40: 88.7 | AA40: 7.32 | AB40: 95.74 | AC40: 206 | AD40: 55.01 | AE40: 88.41 | AF40: 13.11 | AG40: 92.59 | AH40: 105.7 | AI40: 27 | AJ40: 7.21 | AK40: 93.1 | AM40: MARK.STREIT | AN40: D | AO40: PHI | AP40: 62 | AQ40: 185.39 | AR40: 2 | AS40: 2 | AT40: 3 | AU40: 5 | AV40: 7 | AW40: 4 | AX40: 0.65 | AY40: 0.65 | AZ40: 0.97 | BA40: 1.62 | BB40: 2.27 | BC40: 1.29 | BD40: 62 | BE40: 20.07 | BF40: 3.23 | BG40: 28 | BH40: 9.06 | BI40: 7.14 | BJ40: 291 | BK40: 94.18 | BL40: 89.26 | BM40: 4.12 | BN40: 91.43 | BO40: 157 | BP40: 50.81 | BQ40: 7.77 | BR40: 86.74 | BS40: 7.64 | BT40: 87.5 | BU40: 95.14 | BV40: 12 | BW40: 3.88 | BX40: 80
B41: JAROME.IGINLA | C41: R | D41: COL | E41: 82 | F41: 224.56 | G41: 13 | H41: 3 | I41: 2 | J41: 5 | K41: 18 | L41: 16 | M41: 3.47 | N41: 0.8 | O41: 0.53 | P41: 1.34 | Q41: 4.81 | R41: 4.28 | S41: 115 | T41: 30.73 | U41: 61 | V41: 16.3 | W41: 21.31 | X41: 340 | Y41: 90.84 | Z41: 87.4 | AA41: 7.94 | AB41: 93.88 | AC41: 195 | AD41: 52.1 | AE41: 82.98 | AF41: 13.85 | AG41: 92.5 | AH41: 106.35 | AI41: 27 | AJ41: 7.21 | AK41: 90 | AM41: DUNCAN.KEITH | AN41: D | AO41: CHI | AP41: 67 | AQ41: 185.36 | AR41: 4 | AS41: 3 | AT41: 6 | AU41: 9 | AV41: 13 | AW41: 7 | AX41: 1.29 | AY41: 0.97 | AZ41: 1.94 | BA41: 2.91 | BB41: 4.21 | BC41: 2.27 | BD41: 49 | BE41: 15.86 | BF41: 8.16 | BG41: 22 | BH41: 7.12 | BI41: 18.18 | BJ41: 235 | BK41: 76.07 | BL41: 89.02 | BM41: 8.09 | BN41: 96.55 | BO41: 132 | BP41: 42.73 | BQ41: 6.15 | BR41: 87.42 | BS41: 14.39 | BT41: 94.74 | BU41: 109.13 | BV41: 19 | BW41: 6.15 | BX41: 95
B42: PATRICE.BERGERON | C42: C | D42: BOS | E42: 80 | F42: 224.02 | G42: 12 | H42: 5 | I42: 7 | J42: 12 | K42: 24 | L42: 17 | M42: 3.21 | N42: 1.34 | O42: 1.87 | P42: 3.21 | Q42: 6.43 | R42: 4.55 | S42: 97 | T42: 25.98 | U42: 61 | V42: 16.34 | W42: 19.67 | X42: 478 | Y42: 128.02 | Z42: 91.92 | AA42: 6.69 | AB42: 100 | AC42: 243 | AD42: 65.08 | AE42: 88.69 | AF42: 13.17 | AG42: 100 | AH42: 113.17 | AI42: 32 | AJ42: 8.57 | AK42: 100 | AM42: FRANCOIS.BEAUCHEMIN | AN42: D | AO42: COL | AP42: 82 | AQ42: 184.45 | AR42: 2 | AS42: 3 | AT42: 5 | AU42: 8 | AV42: 10 | AW42: 5 | AX42: 0.65 | AY42: 0.98 | AZ42: 1.63 | BA42: 2.6 | BB42: 3.25 | BC42: 1.63 | BD42: 44 | BE42: 14.31 | BF42: 4.55 | BG42: 22 | BH42: 7.16 | BI42: 9.09 | BJ42: 210 | BK42: 68.31 | BL42: 83.67 | BM42: 8.1 | BN42: 95.12 | BO42: 119 | BP42: 38.71 | BQ42: 9.43 | BR42: 80.41 | BS42: 14.29 | BT42: 93.1 | BU42: 107.39 | BV42: 17 | BW42: 5.53 | BX42: 89.47
B43: JASON.SPEZZA | C43: C | D43: DAL | E43: 75 | F43: 222.61 | G43: 8 | H43: 7 | I43: 6 | J43: 13 | K43: 21 | L43: 15 | M43: 2.16 | N43: 1.89 | O43: 1.62 | P43: 3.5 | Q43: 5.66 | R43: 4.04 | S43: 69 | T43: 18.6 | U43: 34 | V43: 9.16 | W43: 23.53 | X43: 427 | Y43: 115.09 | Z43: 89.71 | AA43: 8.2 | AB43: 83.67 | AC43: 218 | AD43: 58.76 | AE43: 86.17 | AF43: 16.06 | AG43: 77.14 | AH43: 93.2 | AI43: 35 | AJ43: 9.43 | AK43: 81.4 | AM43: NOAH.HANIFIN | AN43: D | AO43: CAR | AP43: 79 | AQ43: 184.23 | AR43: 1 | AS43: 5 | AT43: 1 | AU43: 6 | AV43: 7 | AW43: 6 | AX43: 0.33 | AY43: 1.63 | AZ43: 0.33 | BA43: 1.95 | BB43: 2.28 | BC43: 1.95 | BD43: 75 | BE43: 24.43 | BF43: 1.33 | BG43: 36 | BH43: 11.72 | BI43: 2.78 | BJ43: 314 | BK43: 102.26 | BL43: 91.55 | BM43: 5.1 | BN43: 93.1 | BO43: 167 | BP43: 54.39 | BQ43: 6.84 | BR43: 88.83 | BS43: 9.58 | BT43: 90.48 | BU43: 100.06 | BV43: 16 | BW43: 5.21 | BX43: 88.89
B44: VLADIMIR.TARASENKO | C44: R | D44: STL | E44: 80 | F44: 222.42 | G44: 12 | H44: 4 | I44: 8 | J44: 12 | K44: 24 | L44: 16 | M44: 3.24 | N44: 1.08 | O44: 2.16 | P44: 3.24 | Q44: 6.47 | R44: 4.32 | S44: 101 | T44: 27.25 | U44: 47 | V44: 12.68 | W44: 25.53 | X44: 320 | Y44: 86.32 | Z44: 87.19 | AA44: 9.38 | AB44: 93.62 | AC44: 165 | AD44: 44.51 | AE44: 82.91 | AF44: 18.18 | AG44: 91.18 | AH44: 109.36 | AI44: 30 | AJ44: 8.09 | AK44: 90.91 | AM44: RYAN.ELLIS | AN44: D | AO44: NSH | AP44: 79 | AQ44: 183.03 | AR44: 3 | AS44: 3 | AT44: 1 | AU44: 4 | AV44: 7 | AW44: 6 | AX44: 0.98 | AY44: 0.98 | AZ44: 0.33 | BA44: 1.31 | BB44: 2.29 | BC44: 1.97 | BD44: 65 | BE44: 21.31 | BF44: 4.62 | BG44: 39 | BH44: 12.78 | BI44: 7.69 | BJ44: 206 | BK44: 67.53 | BL44: 88.79 | BM44: 4.85 | BN44: 100 | BO44: 124 | BP44: 40.65 | BQ44: 5.9 | BR44: 87.32 | BS44: 8.06 | BT44: 100 | BU44: 108.06 | BV44: 10 | BW44: 3.28 | BX44: 100
B45: RYAN.JOHANSEN | C45: C | D45: CBJ/NSH | E45: 80 | F45: 221.5 | G45: 4 | H45: 8 | I45: 8 | J45: 16 | K45: 20 | L45: 12 | M45: 1.08 | N45: 2.17 | O45: 2.17 | P45: 4.33 | Q45: 5.42 | R45: 3.25 | S45: 76 | T45: 20.59 | U45: 50 | V45: 13.54 | W45: 8 | X45: 329 | Y45: 89.12 | Z45: 89.89 | AA45: 8.81 | AB45: 94.59 | AC45: 213 | AD45: 57.7 | AE45: 88.38 | AF45: 13.62 | AG45: 92.86 | AH45: 106.47 | AI45: 29 | AJ45: 7.86 | AK45: 93.55 | AM45: MATT.DUMBA | AN45: D | AO45: MIN | AP45: 81 | AQ45: 182.58 | AR45: 6 | AS45: 6 | AT45: 0 | AU45: 6 | AV45: 12 | AW45: 12 | AX45: 1.97 | AY45: 1.97 | AZ45: 0 | BA45: 1.97 | BB45: 3.94 | BC45: 3.94 | BD45: 104 | BE45: 34.18 | BF45: 5.77 | BG45: 55 | BH45: 18.07 | BI45: 10.91 | BJ45: 272 | BK45: 89.39 | BL45: 89.77 | BM45: 5.15 | BN45: 93.55 | BO45: 152 | BP45: 49.95 | BQ45: 6.9 | BR45: 87.86 | BS45: 9.21 | BT45: 90.48 | BU45: 99.69 | BV45: 14 | BW45: 4.6 | BX45: 87.5
B46: GUSTAV.NYQUIST | C46: C | D46: DET | E46: 82 | F46: 220.69 | G46: 7 | H46: 2 | I46: 2 | J46: 4 | K46: 11 | L46: 9 | M46: 1.9 | N46: 0.54 | O46: 0.54 | P46: 1.09 | Q46: 2.99 | R46: 2.45 | S46: 50 | T46: 13.59 | U46: 30 | V46: 8.16 | W46: 23.33 | X46: 347 | Y46: 94.34 | Z46: 90.84 | AA46: 6.05 | AB46: 97.14 | AC46: 176 | AD46: 47.85 | AE46: 88.89 | AF46: 11.93 | AG46: 95.45 | AH46: 107.39 | AI46: 21 | AJ46: 5.71 | AK46: 95.45 | AM46: ALEX.PIETRANGELO | AN46: D | AO46: STL | AP46: 73 | AQ46: 180.02 | AR46: 1 | AS46: 2 | AT46: 2 | AU46: 4 | AV46: 5 | AW46: 3 | AX46: 0.33 | AY46: 0.67 | AZ46: 0.67 | BA46: 1.33 | BB46: 1.67 | BC46: 1 | BD46: 39 | BE46: 13 | BF46: 2.56 | BG46: 24 | BH46: 8 | BI46: 4.17 | BJ46: 171 | BK46: 56.99 | BL46: 85.93 | BM46: 7.6 | BN46: 92.86 | BO46: 99 | BP46: 33 | BQ46: 8 | BR46: 80.49 | BS46: 13.13 | BT46: 91.67 | BU46: 104.8 | BV46: 13 | BW46: 4.33 | BX46: 86.67
B47: SAM.REINHART | C47: C | D47: BUF | E47: 79 | F47: 220.13 | G47: 8 | H47: 2 | I47: 0 | J47: 2 | K47: 10 | L47: 10 | M47: 2.18 | N47: 0.55 | O47: 0 | P47: 0.55 | Q47: 2.73 | R47: 2.73 | S47: 52 | T47: 14.17 | U47: 32 | V47: 8.72 | W47: 25 | X47: 363 | Y47: 98.94 | Z47: 87.89 | AA47: 7.16 | AB47: 94 | AC47: 203 | AD47: 55.33 | AE47: 85.65 | AF47: 12.81 | AG47: 91.18 | AH47: 103.98 | AI47: 26 | AJ47: 7.09 | AK47: 89.66 | AM47: TYLER.MYERS | AN47: D | AO47: WPG | AP47: 73 | AQ47: 177.81 | AR47: 0 | AS47: 2 | AT47: 0 | AU47: 2 | AV47: 2 | AW47: 2 | AX47: 0 | AY47: 0.67 | AZ47: 0 | BA47: 0.67 | BB47: 0.67 | BC47: 0.67 | BD47: 46 | BE47: 15.52 | BF47: 0 | BG47: 30 | BH47: 10.12 | BI47: 0 | BJ47: 196 | BK47: 66.14 | BL47: 88.29 | BM47: 3.57 | BN47: 100 | BO47: 109 | BP47: 36.78 | BQ47: 5.4 | BR47: 87.2 | BS47: 6.42 | BT47: 100 | BU47: 106.42 | BV47: 7 | BW47: 2.36 | BX47: 100
B48: TOMAS.PLEKANEC | C48: C | D48: MTL | E48: 82 | F48: 219.51 | G48: 1 | H48: 5 | I48: 6 | J48: 11 | K48: 12 | L48: 6 | M48: 0.27 | N48: 1.37 | O48: 1.64 | P48: 3.01 | Q48: 3.28 | R48: 1.64 | S48: 70 | T48: 19.13 | U48: 39 | V48: 10.66 | W48: 2.56 | X48: 332 | Y48: 90.75 | Z48: 89.01 | AA48: 6.93 | AB48: 95.12 | AC48: 176 | AD48: 48.11 | AE48: 86.7 | AF48: 13.07 | AG48: 92.59 | AH48: 105.66 | AI48: 23 | AJ48: 6.29 | AK48: 92 | AM48: TJ.BRODIE | AN48: D | AO48: CGY | AP48: 70 | AQ48: 177.32 | AR48: 2 | AS48: 2 | AT48: 5 | AU48: 7 | AV48: 9 | AW48: 4 | AX48: 0.68 | AY48: 0.68 | AZ48: 1.69 | BA48: 2.37 | BB48: 3.05 | BC48: 1.35 | BD48: 25 | BE48: 8.46 | BF48: 8 | BG48: 8 | BH48: 2.71 | BI48: 25 | BJ48: 191 | BK48: 64.63 | BL48: 86.82 | BM48: 7.85 | BN48: 86.21 | BO48: 87 | BP48: 29.44 | BQ48: 6.77 | BR48: 81.31 | BS48: 17.24 | BT48: 80 | BU48: 97.24 | BV48: 15 | BW48: 5.08 | BX48: 78.95
B49: DAVID.KREJCI | C49: C | D49: BOS | E49: 72 | F49: 219.35 | G49: 4 | H49: 2 | I49: 10 | J49: 12 | K49: 16 | L49: 6 | M49: 1.09 | N49: 0.55 | O49: 2.74 | P49: 3.28 | Q49: 4.38 | R49: 1.64 | S49: 112 | T49: 30.64 | U49: 42 | V49: 11.49 | W49: 9.52 | X49: 463 | Y49: 126.65 | Z49: 91.87 | AA49: 5.83 | AB49: 97.56 | AC49: 229 | AD49: 62.64 | AE49: 89.45 | AF49: 11.79 | AG49: 96.3 | AH49: 108.09 | AI49: 27 | AJ49: 7.39 | AK49: 96.43 | AM49: NIKLAS.KRONWALL | AN49: D | AO49: DET | AP49: 64 | AQ49: 177.08 | AR49: 0 | AS49: 7 | AT49: 7 | AU49: 14 | AV49: 14 | AW49: 7 | AX49: 0 | AY49: 2.37 | AZ49: 2.37 | BA49: 4.74 | BB49: 4.74 | BC49: 2.37 | BD49: 49 | BE49: 16.6 | BF49: 0 | BG49: 22 | BH49: 7.45 | BI49: 0 | BJ49: 273 | BK49: 92.5 | BL49: 90.4 | BM49: 7.33 | BN49: 96.55 | BO49: 141 | BP49: 47.78 | BQ49: 7.12 | BR49: 87.04 | BS49: 14.18 | BT49: 95.24 | BU49: 109.42 | BV49: 20 | BW49: 6.78 | BX49: 95.24
B50: NICKLAS.BACKSTROM | C50: C | D50: WSH | E50: 75 | F50: 217.64 | G50: 3 | H50: 7 | I50: 16 | J50: 23 | K50: 26 | L50: 10 | M50: 0.83 | N50: 1.93 | O50: 4.41 | P50: 6.34 | Q50: 7.17 | R50: 2.76 | S50: 37 | T50: 10.2 | U50: 21 | V50: 5.79 | W50: 14.29 | X50: 407 | Y50: 112.2 | Z50: 90.85 | AA50: 7.86 | AB50: 92.68 | AC50: 217 | AD50: 59.82 | AE50: 88.57 | AF50: 14.75 | AG50: 89.29 | AH50: 104.03 | AI50: 32 | AJ50: 8.82 | AK50: 91.43 | AM50: BEN.HUTTON | AN50: D | AO50: VAN | AP50: 75 | AQ50: 173.82 | AR50: 0 | AS50: 1 | AT50: 6 | AU50: 7 | AV50: 7 | AW50: 1 | AX50: 0 | AY50: 0.35 | AZ50: 2.07 | BA50: 2.42 | BB50: 2.42 | BC50: 0.35 | BD50: 53 | BE50: 18.29 | BF50: 0 | BG50: 24 | BH50: 8.28 | BI50: 0 | BJ50: 231 | BK50: 79.74 | BL50: 83.7 | BM50: 6.49 | BN50: 93.33 | BO50: 124 | BP50: 42.8 | BQ50: 9.67 | BR50: 81.58 | BS50: 12.1 | BT50: 89.29 | BU50: 101.38 | BV50: 15 | BW50: 5.18 | BX50: 83.33
B51: ARTEMI.PANARIN | C51: C | D51: CHI | E51: 80 | F51: 216.82 | G51: 6 | H51: 12 | I51: 3 | J51: 15 | K51: 21 | L51: 18 | M51: 1.66 | N51: 3.32 | O51: 0.83 | P51: 4.15 | Q51: 5.81 | R51: 4.98 | S51: 52 | T51: 14.39 | U51: 28 | V51: 7.75 | W51: 21.43 | X51: 280 | Y51: 77.48 | Z51: 89.17 | AA51: 10.71 | AB51: 94.12 | AC51: 156 | AD51: 43.17 | AE51: 87.15 | AF51: 19.23 | AG51: 91.3 | AH51: 110.54 | AI51: 30 | AJ51: 8.3 | AK51: 93.75 | AM51: JOHN.CARLSON | AN51: D | AO51: WSH | AP51: 56 | AQ51: 173.81 | AR51: 1 | AS51: 5 | AT51: 6 | AU51: 11 | AV51: 12 | AW51: 6 | AX51: 0.35 | AY51: 1.73 | AZ51: 2.07 | BA51: 3.8 | BB51: 4.14 | BC51: 2.07 | BD51: 65 | BE51: 22.44 | BF51: 1.54 | BG51: 31 | BH51: 10.7 | BI51: 3.23 | BJ51: 322 | BK51: 111.16 | BL51: 90.96 | BM51: 6.52 | BN51: 93.75 | BO51: 172 | BP51: 59.38 | BQ51: 8.63 | BR51: 87.31 | BS51: 12.21 | BT51: 92 | BU51: 104.21 | BV51: 21 | BW51: 7.25 | BX51: 91.3
B52: JAROMIR.JAGR | C52: R | D52: FLA | E52: 79 | F52: 216.38 | G52: 3 | H52: 3 | I52: 3 | J52: 6 | K52: 9 | L52: 6 | M52: 0.83 | N52: 0.83 | O52: 0.83 | P52: 1.66 | Q52: 2.5 | R52: 1.66 | S52: 49 | T52: 13.59 | U52: 28 | V52: 7.76 | W52: 10.71 | X52: 299 | Y52: 82.91 | Z52: 87.43 | AA52: 5.35 | AB52: 95.35 | AC52: 173 | AD52: 47.97 | AE52: 87.37 | AF52: 9.25 | AG52: 92 | AH52: 101.25 | AI52: 16 | AJ52: 4.44 | AK52: 88.89 | AM52: HAMPUS.LINDHOLM | AN52: D | AO52: ANA | AP52: 80 | AQ52: 169.09 | AR52: 4 | AS52: 4 | AT52: 6 | AU52: 10 | AV52: 14 | AW52: 8 | AX52: 1.42 | AY52: 1.42 | AZ52: 2.13 | BA52: 3.55 | BB52: 4.97 | BC52: 2.84 | BD52: 86 | BE52: 30.52 | BF52: 4.65 | BG52: 43 | BH52: 15.26 | BI52: 9.3 | BJ52: 281 | BK52: 99.71 | BL52: 93.05 | BM52: 6.76 | BN52: 95.24 | BO52: 149 | BP52: 52.87 | BQ52: 3.19 | BR52: 94.3 | BS52: 12.75 | BT52: 88.89 | BU52: 101.64 | BV52: 19 | BW52: 6.74 | BX52: 95
B53: MARK.STONE | C53: R | D53: OTT | E53: 75 | F53: 216.1 | G53: 5 | H53: 4 | I53: 6 | J53: 10 | K53: 15 | L53: 9 | M53: 1.39 | N53: 1.11 | O53: 1.67 | P53: 2.78 | Q53: 4.16 | R53: 2.5 | S53: 35 | T53: 9.72 | U53: 21 | V53: 5.83 | W53: 23.81 | X53: 324 | Y53: 89.96 | Z53: 88.77 | AA53: 7.72 | AB53: 97.56 | AC53: 153 | AD53: 42.48 | AE53: 87.43 | AF53: 16.34 | AG53: 95.45 | AH53: 111.79 | AI53: 25 | AJ53: 6.94 | AK53: 96.15 | AM53: ALEX.GOLIGOSKI | AN53: D | AO53: DAL | AP53: 82 | AQ53: 168.93 | AR53: 1 | AS53: 2 | AT53: 1 | AU53: 3 | AV53: 4 | AW53: 3 | AX53: 0.36 | AY53: 0.71 | AZ53: 0.36 | BA53: 1.07 | BB53: 1.42 | BC53: 1.07 | BD53: 37 | BE53: 13.14 | BF53: 2.7 | BG53: 15 | BH53: 5.33 | BI53: 6.67 | BJ53: 236 | BK53: 83.82 | BL53: 89.39 | BM53: 4.24 | BN53: 82.14 | BO53: 113 | BP53: 40.13 | BQ53: 7.81 | BR53: 83.7 | BS53: 8.85 | BT53: 77.27 | BU53: 86.12 | BV53: 10 | BW53: 3.55 | BX53: 66.67
B54: RYAN.O'REILLY | C54: C | D54: BUF | E54: 71 | F54: 215.93 | G54: 8 | H54: 7 | I54: 6 | J54: 13 | K54: 21 | L54: 15 | M54: 2.22 | N54: 1.95 | O54: 1.67 | P54: 3.61 | Q54: 5.84 | R54: 4.17 | S54: 60 | T54: 16.67 | U54: 39 | V54: 10.84 | W54: 20.51 | X54: 366 | Y54: 101.7 | Z54: 89.27 | AA54: 8.47 | AB54: 90.91 | AC54: 205 | AD54: 56.96 | AE54: 86.5 | AF54: 15.12 | AG54: 87.5 | AH54: 102.62 | AI54: 31 | AJ54: 8.61 | AK54: 88.57 | AM54: ALEC.MARTINEZ | AN54: D | AO54: L.A | AP54: 78 | AQ54: 161.53 | AR54: 4 | AS54: 6 | AT54: 3 | AU54: 9 | AV54: 13 | AW54: 10 | AX54: 1.49 | AY54: 2.23 | AZ54: 1.11 | BA54: 3.34 | BB54: 4.83 | BC54: 3.71 | BD54: 82 | BE54: 30.46 | BF54: 4.88 | BG54: 38 | BH54: 14.12 | BI54: 10.53 | BJ54: 287 | BK54: 106.61 | BL54: 90.82 | BM54: 7.32 | BN54: 96.55 | BO54: 141 | BP54: 52.37 | BQ54: 5.94 | BR54: 89.81 | BS54: 14.89 | BT54: 93.75 | BU54: 108.64 | BV54: 21 | BW54: 7.8 | BX54: 95.45
B55: FRANS.NIELSEN | C55: C | D55: NYI | E55: 81 | F55: 214.54 | G55: 7 | H55: 3 | I55: 8 | J55: 11 | K55: 18 | L55: 10 | M55: 1.96 | N55: 0.84 | O55: 2.24 | P55: 3.08 | Q55: 5.03 | R55: 2.8 | S55: 57 | T55: 15.94 | U55: 26 | V55: 7.27 | W55: 26.92 | X55: 374 | Y55: 104.6 | Z55: 90.78 | AA55: 6.68 | AB55: 92.11 | AC55: 199 | AD55: 55.65 | AE55: 88.44 | AF55: 12.56 | AG55: 88.46 | AH55: 101.02 | AI55: 25 | AJ55: 6.99 | AK55: 89.29 | AM55: DAN.BOYLE | AN55: D | AO55: NYR | AP55: 74 | AQ55: 159.05 | AR55: 3 | AS55: 2 | AT55: 1 | AU55: 3 | AV55: 6 | AW55: 5 | AX55: 1.13 | AY55: 0.75 | AZ55: 0.38 | BA55: 1.13 | BB55: 2.26 | BC55: 1.89 | BD55: 56 | BE55: 21.13 | BF55: 5.36 | BG55: 29 | BH55: 10.94 | BI55: 10.34 | BJ55: 249 | BK55: 93.93 | BL55: 88.93 | BM55: 5.22 | BN55: 96.77 | BO55: 127 | BP55: 47.91 | BQ55: 7.92 | BR55: 85.81 | BS55: 10.24 | BT55: 95.24 | BU55: 105.47 | BV55: 13 | BW55: 4.9 | BX55: 92.86
B56: FILIP.FORSBERG | C56: C | D56: NSH | E56: 82 | F56: 214.26 | G56: 6 | H56: 2 | I56: 13 | J56: 15 | K56: 21 | L56: 8 | M56: 1.68 | N56: 0.56 | O56: 3.64 | P56: 4.2 | Q56: 5.88 | R56: 2.24 | S56: 91 | T56: 25.48 | U56: 46 | V56: 12.88 | W56: 13.04 | X56: 314 | Y56: 87.93 | Z56: 90.75 | AA56: 8.92 | AB56: 96.88 | AC56: 172 | AD56: 48.17 | AE56: 86.87 | AF56: 16.28 | AG56: 96.15 | AH56: 112.43 | AI56: 28 | AJ56: 7.84 | AK56: 96.55 | AM56: TREVOR.DALEY | AN56: D | AO56: CHI/PIT | AP56: 82 | AQ56: 157.81 | AR56: 1 | AS56: 4 | AT56: 3 | AU56: 7 | AV56: 8 | AW56: 5 | AX56: 0.38 | AY56: 1.52 | AZ56: 1.14 | BA56: 2.66 | BB56: 3.04 | BC56: 1.9 | BD56: 34 | BE56: 12.93 | BF56: 2.94 | BG56: 15 | BH56: 5.7 | BI56: 6.67 | BJ56: 192 | BK56: 73 | BL56: 88.48 | BM56: 6.25 | BN56: 84 | BO56: 105 | BP56: 39.92 | BQ56: 5.32 | BR56: 88.24 | BS56: 11.43 | BT56: 71.43 | BU56: 82.86 | BV56: 12 | BW56: 4.56 | BX56: 75
B57: MATS.ZUCCARELLO | C57: C | D57: NYR | E57: 81 | F57: 213.54 | G57: 5 | H57: 8 | I57: 3 | J57: 11 | K57: 16 | L57: 13 | M57: 1.4 | N57: 2.25 | O57: 0.84 | P57: 3.09 | Q57: 4.5 | R57: 3.65 | S57: 97 | T57: 27.25 | U57: 42 | V57: 11.8 | W57: 11.9 | X57: 395 | Y57: 110.99 | Z57: 90.39 | AA57: 7.34 | AB57: 92.86 | AC57: 211 | AD57: 59.29 | AE57: 88.28 | AF57: 13.74 | AG57: 89.29 | AH57: 103.03 | AI57: 29 | AJ57: 8.15 | AK57: 90.62 | AM57: MORGAN.RIELLY | AN57: D | AO57: TOR | AP57: 82 | AQ57: 157.38 | AR57: 2 | AS57: 0 | AT57: 6 | AU57: 6 | AV57: 8 | AW57: 2 | AX57: 0.76 | AY57: 0 | AZ57: 2.29 | BA57: 2.29 | BB57: 3.05 | BC57: 0.76 | BD57: 53 | BE57: 20.21 | BF57: 3.77 | BG57: 22 | BH57: 8.39 | BI57: 9.09 | BJ57: 245 | BK57: 93.4 | BL57: 90.41 | BM57: 5.31 | BN57: 84.62 | BO57: 110 | BP57: 41.94 | BQ57: 6.86 | BR57: 85.94 | BS57: 11.82 | BT57: 77.78 | BU57: 89.6 | BV57: 13 | BW57: 4.96 | BX57: 76.47
